Workbook

Sheet SheetInfo (hidden)
B2: SheetName | C2: TableID | D2: TableName | E2: NumberColumns
B3: Tab_A.1 | C3: Tab_A.1 | D3: Glossary | E3: =16384-COUNTIF(INDIRECT($B3&"!$24:$24"),"") -> 2
B4: Tab_B.1 | C4: Tab_B.1 | D4: Collisions by severity and year | E4: =16384-COUNTIF(INDIRECT($B4&"!$24:$24"),"") -> 13
B5: Tab_B.2 | C5: Tab_B.2 | D5: Collisions by road class, speed limit and severity, 2016 | E5: 6
B6: Tab_B.3 | C6: Tab_B.3 | D6: Collisions by road classification, speed limit, and severity, 2016 | E6: 8
B7: Tab_B.4 | C7: Tab_B.4 | D7: Collisions involving cars by road class, vehicle location and year | E7: 12
B8: Tab_B.5 | C8: Tab_B.5 | D8: Collisions involving LGVs by road class, vehicle location and year | E8: 12
B9: Tab_B.6 | C9: Tab_B.6 | D9: Collisions involving HGVs by road class, vehicle location and year | E9: 12
B10: Tab_B.7 | C10: Tab_B.7 | D10: Collisions involving bus/coach by road class, vehicle location and year | E10: 12
B11: Tab_B.8 | C11: Tab_B.8 | D11: Collisions involving at least one motorcycle by road class, vehicle location and year | E11: 12
B12: Tab_B.9 | C12: Tab_B.9 | D12: Collisions involving pedal cycles by road class, vehicle location and year | E12: =16384-COUNTIF(INDIRECT($B12&"!$24:$24"),"") -> 12
B13: Tab_B.10 | C13: Tab_B.10 | D13: Collisions involving agricultural vehicles by road class, vehicle location and year | E13: 12
B14: Tab_B.11 | C14: Tab_B.11 | D14: Collisions involving pedestrians and single vehicle by vehicle type and severity, 2016 | E14: 6
B15: Tab_B.12 | C15: Tab_B.12 | D15: Collisions by road classification, road surface condition and light condition, 2016 | E15: 9
B16: Tab_B.13 | C16: Tab_B.13 | D16: Collisions during darkness by road classification, weather condition and severity, 2016 | E16: 10
B17: Tab_B.14 | C17: Tab_B.14 | D17: Collisions during daylight by road classification, weather condition, and severity, 2016 | E17: 8
B18: Tab_B.15 | C18: Tab_B.15 | D18: Single vehicle collisions by object hit off carriageway, road classification and severity, 2016 | E18: 9
B19: Tab_B.16 | C19: Tab_B.16 | D19: Collisions by region, severity and year | E19: 12
B20: Tab_B.17 | C20: Tab_B.17 | D20: Collisions by road classification, severity and year | E20: =16384-COUNTIF(INDIRECT($B20&"!$24:$24"),"") -> 14
B21: Tab_B.18 | C21: Tab_B.18 | D21: Collisions by user type involved, severity and year | E21: 13
B22: Tab_B.19 | C22: Tab_B.19 | D22: Collisions by vulnerable user types involved, severity and year | E22: 13
B23: Tab_B.20 | C23: Tab_B.20 | D23: Collisions by non-motorised user types involved, severity and year | E23: 13
B24: Tab_B.21 | C24: Tab_B.21 | D24: Collisions by casualty age groups involved, severity and year | E24: 13
B25: Tab_B.22 | C25: Tab_B.22 | D25: Collisions by month and year | E25: 13
B26: Tab_B.23 | C26: Tab_B.23 | D26: Collisions by time period, day and year | E26: 13
B27: Tab_B.24 | C27: Tab_B.24 | D27: Collisions by road surface conditions, weather conditions and year | E27: 13
B28: Tab_B.25 | C28: Tab_B.25 | D28: Collisions by collision type and year | E28: 13
B29: Tab_B.26 | C29: Tab_B.26 | D29: KSI collisions from vehicles hitting objects off carriageway by year | E29: 13
B30: Tab_B.27 | C30: Tab_B.27 | D30: KSI collisions from vehicles hitting objects on carriageway by year | E30: 13
B31: Tab_B.28 | C31: Tab_B.28 | D31: Collisions from vehicles hitting objects off carriageway by year | E31: 13
B32: Tab_B.29 | C32: Tab_B.29 | D32: Collisions from vehicles hitting objects on carriageway by year | E32: 13
B33: Tab_B.30 | C33: Tab_B.30 | D33: Collisions involving single vehicles by severity and year | E33: 13
B34: Tab_B.31 | C34: Tab_B.31 | D34: Collisions involving HGVs by severity and year | E34: 13
B35: Tab_B.32 | C35: Tab_B.32 | D35: Collisions involving LGVs by severity and year | E35: 13
B36: Tab_B.33 | C36: Tab_B.33 | D36: Collisions involving young drivers (aged 17 – 24 years) by severity and year | E36: 13
B37: Tab_B.34 | C37: Tab_B.34 | D37: Collisions involving elderly drivers (aged 70 years and over) by severity and year | E37: 13
B38: Tab_B.35 | C38: Tab_B.35 | D38: Collisions involving towed caravans by severity and year | E38: 13
B39: Tab_B.36 | C39: Tab_B.36 | D39: Collisions by top 20 road names and year | E39: 13
B40: Tab_B.37 | C40: Tab_B.37 | D40: Fatal collisions by top 20 road names and year | E40: 13
B41: Tab_B.38 | C41: Tab_B.38 | D41: Fatal+Serious collisions by top 20 road names and year | E41: 13
B42: Tab_C.1 | C42: Tab_C.1 | D42: Casualties by severity and year | E42: 13
B43: Tab_C.2 | C43: Tab_C.2 | D43: Casualties by road classification, severity and year | E43: 14
B44: Tab_C.3 | C44: Tab_C.3 | D44: Casualty by road class, speed limit and severity, 2016 | E44: 7
B45: Tab_C.4 | C45: Tab_C.4 | D45: Total casualties by casualty type, age and year | E45: 11
B46: Tab_C.5 | C46: Tab_C.5 | D46: Casualties involved in fatal collisions by casualty type, severity and year | E46: 11
B47: Tab_C.6 | C47: Tab_C.6 | D47: Casualties involved in serious collisions by casualty type and year | E47: 11
B48: Tab_C.7 | C48: Tab_C.7 | D48: Casualties involved in slight collisions by casualty type and year | E48: 11
B49: Tab_C.8 | C49: Tab_C.8 | D49: Male casualties by road classification and severity | E49: 14
B50: Tab_C.9 | C50: Tab_C.9 | D50: Female casualties by road classification and severity | E50: 14
B51: Tab_C.10 | C51: Tab_C.10 | D51: Casualties by age group, gender, severity and year | E51: 13
B52: Tab_C.11 | C52: Tab_C.11 | D52: Casualties involving seatbelt use by severity and year | E52: 12
B53: Tab_C.12 | C53: Tab_C.12 | D53: Casualties by region, casualty severity and year | E53: 11
B54: Tab_C.13 | C54: Tab_C.13 | D54: Casualties by casualty type, severity and year | E54: 13
B55: Tab_C.14 | C55: Tab_C.14 | D55: Casualties by vulnerable user type, severity and year | E55: 13
B56: Tab_C.15 | C56: Tab_C.15 | D56: Casualties by non-motorised user types, severity and year | E56: 13
B57: Tab_C.16 | C57: Tab_C.16 | D57: Casualties by age groups, severity and year | E57: 13
B58: Tab_C.17 | C58: Tab_C.17 | D58: Bus and coach occupant casualties by age, severity and year | E58: 13
B59: Tab_C.18 | C59: Tab_C.18 | D59: Car occupant casualties by age group, severity and year | E59: 13
B60: Tab_C.19 | C60: Tab_C.19 | D60: Other goods vehicle casualties by age group, severity and year | E60: 13
B61: Tab_C.20 | C61: Tab_C.20 | D61: Heavy goods vehicle occupant casualties by age group, severity and year | E61: 13
B62: Tab_C.21 | C62: Tab_C.21 | D62: Pedal cycle casualties by age group, severity and year | E62: 13
B63: Tab_C.22 | C63: Tab_C.22 | D63: Pedestrian casualties by age group, severity and year | E63: 13
B64: Tab_C.23 | C64: Tab_C.23 | D64: Motorcycle casualties by age group, severity and year | E64: 13
B65: Tab_C.24 | C65: Tab_C.24 | D65: Casualties by month and year | E65: 13
B66: Tab_C.25 | C66: Tab_C.25 | D66: Casualties by time period, day and year | E66: 13
B67: Tab_C.26 | C67: Tab_C.26 | D67: Casualties by road surface conditions, weather conditions and year | E67: =16384-COUNTIF(INDIRECT($B67&"!$24:$24"),"") -> 13
B68: Tab_C.27 | C68: Tab_C.27 | D68: Casualties by collision type and year | E68: 13
B69: Tab_C.28 | C69: Tab_C.28 | D69: KSI casualties from vehicles hitting objects off carriageway by year | E69: 13
B70: Tab_C.29 | C70: Tab_C.29 | D70: KSI casualties from vehicles hitting objects on carriageway by year | E70: 13
B71: Tab_C.30 | C71: Tab_C.30 | D71: Casualties from vehicles hitting objects off carriageway by year | E71: 13
B72: Tab_C.31 | C72: Tab_C.31 | D72: Casualties from vehicles hitting objects on carriageway by year | E72: 13
B73: Tab_C.32 | C73: Tab_C.32 | D73: Casualties involving single vehicles by severity, casualty type and year | E73: 13
B74: Tab_C.33 | C74: Tab_C.33 | D74: Casualties involving heavy goods vehicles by severity, casualty type and year | E74: 13
B75: Tab_C.34 | C75: Tab_C.34 | D75: Casualties involving LGVs by severity, casualty type and year | E75: 13
B76: Tab_C.35 | C76: Tab_C.35 | D76: Casualties involving young drivers by severity, casualty type and year | E76: 13
B77: Tab_C.36 | C77: Tab_C.36 | D77: Casualties involving elderly drivers by severity, casualty type and year | E77: 13
B78: Tab_C.37 | C78: Tab_C.37 | D78: Casualties involving towed caravans by severity, casualty type and year | E78: 13
B79: Tab_C.38 | C79: Tab_C.38 | D79: Casualties by top 20 road names and year | E79: 13
B80: Tab_C.39 | C80: Tab_C.39 | D80: Fatally injured casualties by top 20 road names and year | E80: 13
B81: Tab_C.40 | C81: Tab_C.40 | D81: KSI casualties by top 20 road names and year | E81: 13
B82: Tab_D.1 | C82: Tab_D.1 | D82: Collision rates per 100 MVM by severity and year | E82: 12
B83: Tab_D.2 | C83: Tab_D.2 | D83: Casualty rates per 100 MVM by severity and year | E83: 12
B84: Tab_D.3 | C84: Tab_D.3 | D84: Collision user rates per 100 MVM by road user type, severity and year | E84: 12
B85: Tab_D.4 | C85: Tab_D.4 | D85: Casualty user rates per 100 MVM by road user type, severity and year | E85: 12
B86: Tab_D.5 | C86: Tab_D.5 | D86: Vehicle type rates per 100 MVM by vehicle user type, severity and year | E86: 12
B87: Tab_D.6 | C87: Tab_D.6 | D87: Total traffic (100 MVM) by top 40 road names and year | E87: 13
B88: Tab_D.7 | C88: Tab_D.7 | D88: Total casualties per 100 MVM by top 40 trafficked roads and year | E88: 13
B89: Tab_D.8 | C89: Tab_D.8 | D89: Total collisions per 100 MVM by top 40 trafficked roads and year | E89: 13
B90: Tab_D.9 | C90: Tab_D.9 | D90: Total casualties per 100 MVM by top 20 motorways and year | E90: 13
B91: Tab_D.10 | C91: Tab_D.10 | D91: Total collisions per 100 MVM by top 20 motorways and year | E91: 13
B92: Tab_D.11 | C92: Tab_D.11 | D92: Total casualties per 100 MVM by top 20 A-roads and year | E92: 13
B93: Tab_D.12 | C93: Tab_D.12 | D93: Total collisions per 100 MVM by top 20 A-roads and year | E93: 13
B94: Tab_D.13 | C94: Tab_D.13 | D94: Casualties per 100 MVM by road classification, severity and year | E94: 16
B95: Tab_D.14 | C95: Tab_D.14 | D95: Collisions per 100 MVM by road classification, severity and year | E95: 16
B96: Tab_D.15 | C96: Tab_D.15 | D96: KSI casualties per 100 MVM by top 40 trafficked road names and year | E96: 12
B97: Tab_D.16 | C97: Tab_D.16 | D97: KSI severity collisions per 100 MVM by top 40 trafficked road names and year | E97: 12
B98: Tab_D.17 | C98: Tab_D.17 | D98: KSI casualties per 100 MVM by top 20 motorways and year | E98: 13
B99: Tab_D.18 | C99: Tab_D.18 | D99: KSI severity collisions per 100 MVM by top 20 motorways and year | E99: 13
B100: Tab_D.19 | C100: Tab_D.19 | D100: KSI casualties per 100 MVM by top 20 A-roads and year | E100: 13
B101: Tab_D.20 | C101: Tab_D.20 | D101: KSI severity collisions per 100 MVM by top 20 A-roads and year | E101: 13
B102: Tab_E.1 | C102: Tab_E.1 | D102: Number of vehicles by collision type, severity and year | E102: 12
B103: Tab_E.2 | C103: Tab_E.2 | D103: Male and female drivers involved in collisions by vehicle type and year | E103: 11
B104: Tab_E.3 | C104: Tab_E.3 | D104: Vehicles involved in collisions by vehicle type, road classification and collision severity, 2016 | E104: 14
B105: Tab_E.4 | C105: Tab_E.4 | D105: Vehicles involved in collisions by vehicle type and junction detail, 2016 | E105: 11
B106: Tab_E.5 | C106: Tab_E.5 | D106: Vehicles skidding, overturning etc. by road surface condition and vehicle type, 2016 | E106: 8
B107: Tab_E.6 | C107: Tab_E.6 | D107: Vehicles involved in collisions by vehicle type and manoeuvre, 2016 | E107: 11
B108: Tab_E.7 | C108: Tab_E.7 | D108: KSI casualties by vehicle interaction and year | E108: 17
B109: Tab_E.8 | C109: Tab_E.8 | D109: Fatal and serious collisions by vehicle interaction and year | E109: 17
B110: Tab_E.9 | C110: Tab_E.9 | D110: Casualties by vehicle interaction and severity in 2016 | E110: 11
B111: Tab_E.10 | C111: Tab_E.10 | D111: Collisions by vehicle interaction and severity in 2016 | E111: 11
B112: Tab_E.11 | C112: Tab_E.11 | D112: Casualties by user type, vehicle age group and year | E112: 12
B113: Tab_E.12 | C113: Tab_E.12 | D113: Collisions by vehicle involved, vehicle age group involved and year | E113: 12
B114: Tab_E.13 | C114: Tab_E.13 | D114: Casualties involving at least one vehicle defect contributory factor by severity and year | E114: 12
B115: Tab_E.14 | C115: Tab_E.14 | D115: Collisions involving at least one vehicle defect contributory factor by severity and year | E115: 12
B116: Tab_F.1 | C116: Tab_F.1 | D116: Contributory factor group classification and codes | E116: 4
B117: Tab_F.2 | C117: Tab_F.2 | D117: Casualties involving contributory factors by severity, 2016 | E117: 7
B118: Tab_F.3 | C118: Tab_F.3 | D118: Collisions involving contributory factors by severity, 2016 | E118: 7
B119: Tab_F.4 | C119: Tab_F.4 | D119: Collisions involving contributory factors on Motorways by severity, 2016 | E119: 7
B120: Tab_F.5 | C120: Tab_F.5 | D120: Collisions involving contributory factors on A-roads by severity, 2016 | E120: 8
B121: Tab_F.6 | C121: Tab_F.6 | D121: Casualties involving contributory factors on Motorways by severity, 2016 | E121: 7
B122: Tab_F.7 | C122: Tab_F.7 | D122: Casualties involving contributory factors on A-roads by severity, 2016 | E122: 7
B123: Tab_F.8 | C123: Tab_F.8 | D123: Collisions involving contributory factors on A-road single carriageways by severity, 2016 | E123: 8
B124: Tab_F.9 | C124: Tab_F.9 | D124: Collisions involving contributory factors on A-road dual carriageways by severity, 2016 | E124: 8
B125: Tab_F.10 | C125: Tab_F.10 | D125: Casualties involving contributory factors on A-road single carriagways by severity, 2016 | E125: 8
B126: Tab_F.11 | C126: Tab_F.11 | D126: Casualties involving contributory factors on A-road dual carriagways by severity, 2016 | E126: 8
B127: Tab_F.12 | C127: Tab_F.12 | D127: Top 20 contributory factors for total collisions on Motorways by year | E127: 12
B128: Tab_F.13 | C128: Tab_F.13 | D128: Top 20 contributory factors for total collisions on A-roads by year | E128: 12
B129: Tab_F.14 | C129: Tab_F.14 | D129: Top 20 contributory factors for total collisions on A-road single carriageways by year | E129: =16384-COUNTIF(INDIRECT($B129&"!$24:$24"),"") -> 12
B130: Tab_F.15 | C130: Tab_F.15 | D130: Top 20 contributory factors for total collisions on A-road dual carriageways by year | E130: 12
B131: Tab_F.16 | C131: Tab_F.16 | D131: Top 20 contributory factors for total casualties on Motorways by year | E131: 12
B132: Tab_F.17 | C132: Tab_F.17 | D132: Top 20 contributory factors for total casualties on A-roads by year | E132: 12
B133: Tab_F.18 | C133: Tab_F.18 | D133: Top 20 contributory factors for total casualties on A-road single carriageways by year | E133: 12
B134: Tab_F.19 | C134: Tab_F.19 | D134: Top 20 contributory factors for total casualties on A-road dual carriageways by year | E134: 12
B135: Tab_F.20 | C135: Tab_F.20 | D135: Top 20 contributory factors for casualties by severity and year | E135: 13
B136: Tab_F.21 | C136: Tab_F.21 | D136: Top 20 contributory factors for collisions by severity and year | E136: 13
B137: Tab_F.22 | C137: Tab_F.22 | D137: Casualties involving drivers or riders impaired by alcohol and/or drugs by road classification, severity and year | E137: 14
B138: Tab_F.23 | C138: Tab_F.23 | D138: Collisions involving drivers or riders impaired by alcohol and/or drugs by road classification, severity and year | E138: 14
B139: Tab_F.24 | C139: Tab_F.24 | D139: Casualties involving drivers or riders impaired by alcohol and/or drugs by top 20 road names and year | E139: 12
B140: Tab_F.25 | C140: Tab_F.25 | D140: Collisions involving drivers or riders impaired by alcohol and/or drugs by top 20 road names and year | E140: 12
B141: Tab_F.26 | C141: Tab_F.26 | D141: Casualties involving drivers or riders fatigued by road classification, severity and year | E141: 14
B142: Tab_F.27 | C142: Tab_F.27 | D142: Collisions involving drivers or riders fatigued by road classification, severity and year | E142: 14
B143: Tab_F.28 | C143: Tab_F.28 | D143: Casualties involving drivers or riders fatigued by top 20 road names and year | E143: 12
B144: Tab_F.29 | C144: Tab_F.29 | D144: Collisions involving drivers or riders fatigued by top 20 road names and year | E144: 12
B145: Tab_F.30 | C145: Tab_F.30 | D145: Casualties involving drivers or riders exceeding the speed limit by road classification, severity and year | E145: 14
B146: Tab_F.31 | C146: Tab_F.31 | D146: Collisions involving drivers or riders exceeding the speed limit by road classification, severity and year | E146: 14
B147: Tab_F.32 | C147: Tab_F.32 | D147: Casualties involving drivers or riders exceeding the speed limit by top 20 road names and year | E147: 12
B148: Tab_F.33 | C148: Tab_F.33 | D148: Collisions involving drivers or riders exceeding the speed limit by top 20 road names and year | E148: 12
B149: Tab_F.34 | C149: Tab_F.34 | D149: Casualties involving drivers or riders distracted by road classification, severity and year | E149: 14
B150: Tab_F.35 | C150: Tab_F.35 | D150: Collisions involving drivers or riders distracted by road classification, severity and year | E150: 14
B151: Tab_F.36 | C151: Tab_F.36 | D151: Casualties involving distracted drivers or riders by top 20 road names and year | E151: 12
B152: Tab_F.37 | C152: Tab_F.37 | D152: Collisions involving distracted drivers or riders by top 20 road names and year | E152: 12
B153: Tab_G.1 | C153: Tab_G.1 | D153: Fatally injured casualties by top 20 road names and year
B154: Tab_G.2 | C154: Tab_G.2 | D154: Fatal collisions by top 20 road names and year
B155: Tab_G.3 | C155: Tab_G.3 | D155: Fatally injured casualties by road classification and year
B156: Tab_G.4 | C156: Tab_G.4 | D156: Fatal collisions by road classification and year
B157: Tab_G.5 | C157: Tab_G.5 | D157: Top 20 contributory factors involving fatally injured casualties by year
B158: Tab_G.6 | C158: Tab_G.6 | D158: Male fatally injured casualties by casualty type, age and year
B159: Tab_G.7 | C159: Tab_G.7 | D159: Female fatally injured casualties by casualty type, age, and year
B160: Tab_G.8 | C160: Tab_G.8 | D160: Top 20 contributory factors involving fatal collisions by year
B161: Tab_G.9 | C161: Tab_G.9 | D161: Top 20 contributory factors for fatal collisions on Motorways by year
B162: Tab_G.10 | C162: Tab_G.10 | D162: Top 20 contributory factors for fatal collisions on A-roads by year
B163: Tab_G.11 | C163: Tab_G.11 | D163: Top 20 contributory factors for fatal collisions on A-road single carriageways by year
B164: Tab_G.12 | C164: Tab_G.12 | D164: Top 20 contributory factors for fatal collisions on A-road dual carriageways by year
B165: Tab_G.13 | C165: Tab_G.13 | D165: Fatally injured casualties by objects hit on carriageway and year
B166: Tab_G.14 | C166: Tab_G.14 | D166: Fatal collisions by objects hit on carriageway and year
B167: Tab_G.15 | C167: Tab_G.15 | D167: Fatally injured casualties by objects hit off carriageway and year
B168: Tab_G.16 | C168: Tab_G.16 | D168: Fatal collisions by objects hit off carriageway and year
B169: Tab_G.17 | C169: Tab_G.17 | D169: Fatally injured casualties by road condition, skidding and year
B170: Tab_G.18 | C170: Tab_G.18 | D170: Fatal collisions by road surface condition, skidding and year
B171: Tab_G.19 | C171: Tab_G.19 | D171: Fatally injured casualties by light conditions, road classification and year
B172: Tab_G.20 | C172: Tab_G.20 | D172: Fatal collisions by light conditions, road classification and year
B173: Tab_G.21 | C173: Tab_G.21 | D173: Fatally injured casualties by junction detail and year
B174: Tab_G.22 | C174: Tab_G.22 | D174: Fatal collisions by junction detail and year
B175: Tab_G.23 | C175: Tab_G.23 | D175: Fatally injured casualties involving hard shoulders or laybys by vehicle location and year
B176: Tab_G.24 | C176: Tab_G.24 | D176: Fatal collisions involving hard shoulders or laybys by vehicle location and year
B177: Tab_G.25 | C177: Tab_G.25 | D177: Fatally injured casualties by driver age group involved and year
B178: Tab_G.26 | C178: Tab_G.26 | D178: Fatal collisions by driver age group involved and year
B179: Tab_G.27 | C179: Tab_G.27 | D179: Fatally injured casualties by vehicle type involved and year
B180: Tab_G.28 | C180: Tab_G.28 | D180: Fatal collisions by vehicle type involved and year
B181: Tab_G.29 | C181: Tab_G.29 | D181: Fatally injured casualties by journey purpose, vehicle type and year
B182: Tab_G.30 | C182: Tab_G.30 | D182: Fatal collisions by journey purpose, vehicle type and year
B183: Tab_G.31 | C183: Tab_G.31 | D183: Fatally injured casualties by time of day and year
B184: Tab_G.32 | C184: Tab_G.32 | D184: Fatal collisions by time of day and year
B185: Tab_G.33 | C185: Tab_G.33 | D185: Fatally injured casualties by day of the week and year
B186: Tab_G.34 | C186: Tab_G.34 | D186: Fatal collisions by day of the week and year
B187: Tab_G.35 | C187: Tab_G.35 | D187: Fatally injured casualties by month and year
B188: Tab_G.36 | C188: Tab_G.36 | D188: Fatal collisions by month and year
B189: Tab_H.1 | C189: Tab_H.1 | D189: Seriously injured casualties by top 20 road names and year
B190: Tab_H.2 | C190: Tab_H.2 | D190: Serious collisions by top 20 road names and year
B191: Tab_H.3 | C191: Tab_H.3 | D191: Seriously injured casualties by road classification and year
B192: Tab_H.4 | C192: Tab_H.4 | D192: Serious collisions by road classification and year
B193: Tab_H.5 | C193: Tab_H.5 | D193: Top 20 contributory factors involving seriously injured casualties by year | E193: =16384-COUNTIF(INDIRECT($B193&"!$24:$24"),"") -> 
B194: Tab_H.6 | C194: Tab_H.6 | D194: Seriously injured male casualties by casualty type, age and year
B195: Tab_H.7 | C195: Tab_H.7 | D195: Seriously injured female casualties by casualty type, age and year
B196: Tab_H.8 | C196: Tab_H.8 | D196: Top 20 contributory factors involving serious collisions by year
B197: Tab_H.9 | C197: Tab_H.9 | D197: Seriously injured casualties by objects hit on carriageway and year
B198: Tab_H.10 | C198: Tab_H.10 | D198: Serious collisions by objects hit on carriageway and year
B199: Tab_H.11 | C199: Tab_H.11 | D199: Seriously injured casualties by objects hit off carriageway and year
B200: Tab_H.12 | C200: Tab_H.12 | D200: Serious collisions by objects hit off carriageway and year
B201: Tab_H.13 | C201: Tab_H.13 | D201: Seriously injured casualties by road surface condition, skidding and year
... 263 more rows

Sheet Notes (hidden)
A1: Notes | D1: Comments
A3: 1 | B3: Table template needs to have 4 columns e.g. Road Classification Table
A4: 2 | B4: Add Equestrian to all non-motirised user tables
A5: 3 | B5: 042_005_APP_N_Cas_during_roadworks_VehType_Severity_yr - Table not there!
A6: 4 | B6: 042_009_APP_N_severity_at_RdWorks_NotAt_RdWorks_yr - Category blank for Not during Roadworks
A7: 5 | B7: 044_002_APP_O_Objects_hit_On_Carriag_by_roadtype_Severity_yr - Wrong Query
A8: 6 | B8: Tab_Q.5 - Casualties at junctions by vehicle type and year - Added Data missing or pout of range to 'Other'
A9: 7 | B9: Tab_Q.7 - Casualties at junctions by driver age, severity and year - Underage motorist has 2 seriously Inured
A10: 8 | B10: 046_002_App_P_Col_RoadNames_by_junction_detail_2013 - Table is over the 300 row limit and runs into the table below. Also, only data for 2013
A11: 9 | B11: Datasheet V has no data for 2015
A12: 10 | B12: Green Tabs - New tables added
A13: 11 | B13: Red Tabs - Issues with the tab
A14: 12 | B14: Smart Motorway Costs
A15: 13 | B15: Tab J.11 - 2015 Unknown value incorrect
A16: 14 | B16: 010_005_APP_C_HA Casualties by VehHitOff_2015 | D16: Changed Query 010_005_APP_C_HA Casualties by VehHitOff_2015
A17: 16 | B17: 010_007_APP_C_HA Casualties by VehHitOn_2015 | D17: Changed Query 010_007_APP_C_HA Casualties by VehHitOn_Year
A18: 18 | B18: 010_020_APP_C_HA_Casualties_By_Month_Yr | D18: Add to export list
A19: 19 | B19: 010_021_APP_C_HA_Casualties_By_DayofWeek_TimePeriod_Yr | D19: Add to export list
B20: CF Queries | D20: Need creating
B21: 062_011_APP_I_SlightlyIC_by VehTypeInv and yr | D21: Does this Query need removing??
B22: 062_016_Slight_CasType | D22: Remove Queries??
B23: 062_017_Slight_CasAgeBand | D23: Remove Queries??
B24: 062_018_Slight_CasAge | D24: Remove Queries??
B25: 062_019_Slight_DriverAgeInvol | D25: Remove Queries??
B26: 062_020_Slight_SingVeh_byVehType | D26: Remove Queries??
B27: 062_021_Slight_SingVeh_DriverAge | D27: Remove Queries??
B28: 062_023_Slight_TimeOfWeek_yr | D28: Remove Queries??
B29: 062_020_Slight_SingVeh_byVehType | D29: Is this the right Query?
B30: TAB M_5 and M_6 are duplicates
B31: 040_004_APP_M_Cas_WeatherType_VehType_Severity_2013 | D31: Changed Query to 2015
B32: 040_005A_Col_WeatherType_SkiddingCat_Yr | D32: Check Query and add to export list
B33: 042_005_APP_N_Cas_during_roadworks_VehType_Severity_yr | D33: CHANGED - Was wrong Query - showing Roadworks, Month,Severity
B34: 042_007A_Col_During_Roadworks_CasualtyClass_Severity_Yr | D34: CHECK QUERY
B35: 042_009_Cas_Severity_At_Rdworks_NotAt_Rdworks_Yr | D35: Casualty Query created
B36: 046_002_App_P_Col_RoadNames_by_junction_detail_2015 | D36: Changed Query to 2015 - 584 fields
B37: 046_005A_APP_P_Col_AtJunctionByDriverAge_Severity_Yr | D37: Check Query and add to export list
B38: 024_080_APP_H_HAColInv_TyresbyWeatherSkidSurface_Sev | D38: Correct Query needs adding to export list
B39: 052_001A_Col_Invol_PTW_Severity_Yr | D39: Add to export list
B40: 052_002A_Col_Invol_PTW_RdName_Yr | D40: Add to export list
B41: 052_003A_Col_Invol_PTW_CasAge_Severity_Yr | D41: Add to export list
B42: 052_005A_Col_Invol_PTW_RoadClass_Sev_Yr | D42: Add to export list
B43: 054_005_APP_T_cas_invol_HS_LB_CFs_yr | D43: Query 4497 rows
B44: 058_001_CasSeverity_ColType | D44: Add to export list
B46: Tab_Q.9 - Casualties at junctions by top 20 road names and junction detail, 2015 | D46: Query for Casualty and collisions needs creating | E46: [046_002_App_P_Col_RoadNames_by_junction_detail_2013] - Query Structure changed so now 'Junction type' = Column Headers; 'Year' = Row header, is actualy 2015 just didn’t change name so I didn’t have to update export/import tables
B47: 020_001_APP_F_HA_All_78CFS_by NumCol_and_AccSev | D47: Casualty query needs creating
B48: 020_002_APP_F_HA_All_78CFS_by NumCol and Total FS Year | D48: Casualty query needs creating
B49: 011_009A_VehInt_Fatal | D49: Check Query and add to export list
B50: 011_010A_VehInt_Serious | D50: Check Query and add to export list
B51: 020_006_APP_F_HA_Cas_InvolBoozeDrugsTop20RdNames_Yr | D51: Add to main dataset and export list
B52: 020_009_APP_F_HA_Cas_InvolFatigueByTop20RdNames_Yr | D52: Add to main dataset and export list
B53: 020_012_APP_F_HA_Cas_InvolSpeedingTop20RdNames_Yr | D53: Add to main dataset and export list
B54: 020_015_APP_F_HA_Cas_InvolDistractTop20RdNames_Yr | D54: Add to main dataset and export list

Sheet Table Inport (hidden)
B1: Sept_ExportList | D1: 300
B2: QueryName | C2: Inport Sheet | D2: Inport Location (cell) | E2: Title Location (Cell) | F2: File Location (Folder) | G2: File Combo (Folder+File_name)
B3: 008_001_APP_B_HA Collisions by Road Types_Sev_Year | C3: B_DataSheet | D3: B24 | E3: B23 | F3: B:\Projects\60546469 - SPaTS_ 1-281_RoadSafetyAnalysisAndReporting\3 - Work Packages\STATS19 2018\3 September Report\Appendix\db_Elements | G3: =F3&"\"&B3&".txt" -> B:\Projects\60546469 - SPaTS_ 1-281_RoadSafetyAnalysisAndReporting\3 - Work Packages\STATS19 2018\3 September Report\Appendix\db_Elements\008_001_APP_B_HA Collisions by Road Types_Sev_Year.txt
B4: 008_004_APP_B_HA Collisions by Month_Year | C4: B_DataSheet | D4: B324 | E4: B323 | F4: B:\Projects\60546469 - SPaTS_ 1-281_RoadSafetyAnalysisAndReporting\3 - Work Packages\STATS19 2018\3 September Report\Appendix\db_Elements | G4: =F4&"\"&B4&".txt" -> B:\Projects\60546469 - SPaTS_ 1-281_RoadSafetyAnalysisAndReporting\3 - Work Packages\STATS19 2018\3 September Report\Appendix\db_Elements\008_004_APP_B_HA Collisions by Month_Year.txt
B5: 008_005_APP_B_HA F_S Collisions by Month_Year | C5: B_DataSheet | D5: B624 | E5: B623 | F5: B:\Projects\60546469 - SPaTS_ 1-281_RoadSafetyAnalysisAndReporting\3 - Work Packages\STATS19 2018\3 September Report\Appendix\db_Elements | G5: B:\Projects\60546469 - SPaTS_ 1-281_RoadSafetyAnalysisAndReporting\3 - Work Packages\STATS19 2018\3 September Report\Appendix\db_Elements\008_005_APP_B_HA F_S Collisions by Month_Year.txt
B6: 008_006_APP_B_HA Collins by DayofWeek_TimePeriod_year | C6: B_DataSheet | D6: B924 | E6: B923 | F6: B:\Projects\60546469 - SPaTS_ 1-281_RoadSafetyAnalysisAndReporting\3 - Work Packages\STATS19 2018\3 September Report\Appendix\db_Elements | G6: B:\Projects\60546469 - SPaTS_ 1-281_RoadSafetyAnalysisAndReporting\3 - Work Packages\STATS19 2018\3 September Report\Appendix\db_Elements\008_006_APP_B_HA Collins by DayofWeek_TimePeriod_year.txt
B7: 008_007_APP_B_HA F_S_Collisions by DayofWeek_TimePeriod_year | C7: B_DataSheet | D7: B1224 | E7: B1223 | F7: B:\Projects\60546469 - SPaTS_ 1-281_RoadSafetyAnalysisAndReporting\3 - Work Packages\STATS19 2018\3 September Report\Appendix\db_Elements | G7: B:\Projects\60546469 - SPaTS_ 1-281_RoadSafetyAnalysisAndReporting\3 - Work Packages\STATS19 2018\3 September Report\Appendix\db_Elements\008_007_APP_B_HA F_S_Collisions by DayofWeek_TimePeriod_year.txt
B8: 008_008_APP_B_HA LighWeather Collisions_Year | C8: B_DataSheet | D8: B1524 | E8: B1523 | F8: B:\Projects\60546469 - SPaTS_ 1-281_RoadSafetyAnalysisAndReporting\3 - Work Packages\STATS19 2018\3 September Report\Appendix\db_Elements | G8: B:\Projects\60546469 - SPaTS_ 1-281_RoadSafetyAnalysisAndReporting\3 - Work Packages\STATS19 2018\3 September Report\Appendix\db_Elements\008_008_APP_B_HA LighWeather Collisions_Year.txt
B9: 008_010_APP_B_HA Collisions Inv_SingleVeh by Sev_Year | C9: B_DataSheet | D9: B1824 | E9: B1823 | F9: B:\Projects\60546469 - SPaTS_ 1-281_RoadSafetyAnalysisAndReporting\3 - Work Packages\STATS19 2018\3 September Report\Appendix\db_Elements | G9: B:\Projects\60546469 - SPaTS_ 1-281_RoadSafetyAnalysisAndReporting\3 - Work Packages\STATS19 2018\3 September Report\Appendix\db_Elements\008_010_APP_B_HA Collisions Inv_SingleVeh by Sev_Year.txt
B10: 008_011_APP_B_HA Collisions Inv_HGV by Sev_Year | C10: B_DataSheet | D10: B2124 | E10: B2123 | F10: B:\Projects\60546469 - SPaTS_ 1-281_RoadSafetyAnalysisAndReporting\3 - Work Packages\STATS19 2018\3 September Report\Appendix\db_Elements | G10: B:\Projects\60546469 - SPaTS_ 1-281_RoadSafetyAnalysisAndReporting\3 - Work Packages\STATS19 2018\3 September Report\Appendix\db_Elements\008_011_APP_B_HA Collisions Inv_HGV by Sev_Year.txt
B11: 008_012_APP_B_HA Collisions Inv_LightGV by Sev_Year | C11: B_DataSheet | D11: B2424 | E11: B2423 | F11: B:\Projects\60546469 - SPaTS_ 1-281_RoadSafetyAnalysisAndReporting\3 - Work Packages\STATS19 2018\3 September Report\Appendix\db_Elements | G11: B:\Projects\60546469 - SPaTS_ 1-281_RoadSafetyAnalysisAndReporting\3 - Work Packages\STATS19 2018\3 September Report\Appendix\db_Elements\008_012_APP_B_HA Collisions Inv_LightGV by Sev_Year.txt
B12: 008_013_APP_B_HA Collisions Inv_YoungMotorist by Sev_Year | C12: B_DataSheet | D12: B2724 | E12: B2723 | F12: B:\Projects\60546469 - SPaTS_ 1-281_RoadSafetyAnalysisAndReporting\3 - Work Packages\STATS19 2018\3 September Report\Appendix\db_Elements | G12: B:\Projects\60546469 - SPaTS_ 1-281_RoadSafetyAnalysisAndReporting\3 - Work Packages\STATS19 2018\3 September Report\Appendix\db_Elements\008_013_APP_B_HA Collisions Inv_YoungMotorist by Sev_Year.txt
B13: 008_014_APP_B_HA Collisions Inv_ElderlyMotorist by Sev_Year | C13: B_DataSheet | D13: B3024 | E13: B3023 | F13: B:\Projects\60546469 - SPaTS_ 1-281_RoadSafetyAnalysisAndReporting\3 - Work Packages\STATS19 2018\3 September Report\Appendix\db_Elements | G13: B:\Projects\60546469 - SPaTS_ 1-281_RoadSafetyAnalysisAndReporting\3 - Work Packages\STATS19 2018\3 September Report\Appendix\db_Elements\008_014_APP_B_HA Collisions Inv_ElderlyMotorist by Sev_Year.txt
B14: 008_015_APP_B_HA Collins Inv_TowCvan by Sev_Year | C14: B_DataSheet | D14: B3324 | E14: B3323 | F14: B:\Projects\60546469 - SPaTS_ 1-281_RoadSafetyAnalysisAndReporting\3 - Work Packages\STATS19 2018\3 September Report\Appendix\db_Elements | G14: B:\Projects\60546469 - SPaTS_ 1-281_RoadSafetyAnalysisAndReporting\3 - Work Packages\STATS19 2018\3 September Report\Appendix\db_Elements\008_015_APP_B_HA Collins Inv_TowCvan by Sev_Year.txt
B15: 008_18_APP_B_Collisions by collision Type | C15: B_DataSheet | D15: B3924 | E15: B3923 | F15: B:\Projects\60546469 - SPaTS_ 1-281_RoadSafetyAnalysisAndReporting\3 - Work Packages\STATS19 2018\3 September Report\Appendix\db_Elements | G15: B:\Projects\60546469 - SPaTS_ 1-281_RoadSafetyAnalysisAndReporting\3 - Work Packages\STATS19 2018\3 September Report\Appendix\db_Elements\008_18_APP_B_Collisions by collision Type.txt
B16: 008_019_ColsByCasInvovled | C16: B_DataSheet | D16: B4224 | E16: B4223 | F16: B:\Projects\60546469 - SPaTS_ 1-281_RoadSafetyAnalysisAndReporting\3 - Work Packages\STATS19 2018\3 September Report\Appendix\db_Elements | G16: B:\Projects\60546469 - SPaTS_ 1-281_RoadSafetyAnalysisAndReporting\3 - Work Packages\STATS19 2018\3 September Report\Appendix\db_Elements\008_019_ColsByCasInvovled.txt
B17: 008_020_ColsByCasAgeInvolved | C17: B_DataSheet | D17: B4524 | E17: B4523 | F17: B:\Projects\60546469 - SPaTS_ 1-281_RoadSafetyAnalysisAndReporting\3 - Work Packages\STATS19 2018\3 September Report\Appendix\db_Elements | G17: B:\Projects\60546469 - SPaTS_ 1-281_RoadSafetyAnalysisAndReporting\3 - Work Packages\STATS19 2018\3 September Report\Appendix\db_Elements\008_020_ColsByCasAgeInvolved.txt
B18: 008_021_ColsByObHitInInvolved | C18: B_DataSheet | D18: B4824 | E18: B4823 | F18: B:\Projects\60546469 - SPaTS_ 1-281_RoadSafetyAnalysisAndReporting\3 - Work Packages\STATS19 2018\3 September Report\Appendix\db_Elements | G18: =F18&"\"&B18&".txt" -> B:\Projects\60546469 - SPaTS_ 1-281_RoadSafetyAnalysisAndReporting\3 - Work Packages\STATS19 2018\3 September Report\Appendix\db_Elements\008_021_ColsByObHitInInvolved.txt
B19: 008_022_ColsByObHitOffInvolved | C19: B_DataSheet | D19: B5124 | E19: B5123 | F19: B:\Projects\60546469 - SPaTS_ 1-281_RoadSafetyAnalysisAndReporting\3 - Work Packages\STATS19 2018\3 September Report\Appendix\db_Elements | G19: B:\Projects\60546469 - SPaTS_ 1-281_RoadSafetyAnalysisAndReporting\3 - Work Packages\STATS19 2018\3 September Report\Appendix\db_Elements\008_022_ColsByObHitOffInvolved.txt
B20: 008_023_FatalCollisions_by_RoadAndYear | C20: B_DataSheet | D20: B5424 | E20: B5423 | F20: B:\Projects\60546469 - SPaTS_ 1-281_RoadSafetyAnalysisAndReporting\3 - Work Packages\STATS19 2018\3 September Report\Appendix\db_Elements | G20: B:\Projects\60546469 - SPaTS_ 1-281_RoadSafetyAnalysisAndReporting\3 - Work Packages\STATS19 2018\3 September Report\Appendix\db_Elements\008_023_FatalCollisions_by_RoadAndYear.txt
B21: 008_024_F_or_S_Collisions_by_RoadAndYear | C21: B_DataSheet | D21: B5724 | E21: B5723 | F21: B:\Projects\60546469 - SPaTS_ 1-281_RoadSafetyAnalysisAndReporting\3 - Work Packages\STATS19 2018\3 September Report\Appendix\db_Elements | G21: B:\Projects\60546469 - SPaTS_ 1-281_RoadSafetyAnalysisAndReporting\3 - Work Packages\STATS19 2018\3 September Report\Appendix\db_Elements\008_024_F_or_S_Collisions_by_RoadAndYear.txt
B22: Table C Collision_ RoadClass_Speedlimit_severity | C22: B_DataSheet | D22: B6024 | E22: B6023 | F22: B:\Projects\60546469 - SPaTS_ 1-281_RoadSafetyAnalysisAndReporting\3 - Work Packages\STATS19 2018\3 September Report\Appendix\db_Elements | G22: B:\Projects\60546469 - SPaTS_ 1-281_RoadSafetyAnalysisAndReporting\3 - Work Packages\STATS19 2018\3 September Report\Appendix\db_Elements\Table C Collision_ RoadClass_Speedlimit_severity.txt
B23: Table A_ collision by speed limit_ road type_ road class | C23: B_DataSheet | D23: B6324 | E23: B6323 | F23: B:\Projects\60546469 - SPaTS_ 1-281_RoadSafetyAnalysisAndReporting\3 - Work Packages\STATS19 2018\3 September Report\Appendix\db_Elements | G23: B:\Projects\60546469 - SPaTS_ 1-281_RoadSafetyAnalysisAndReporting\3 - Work Packages\STATS19 2018\3 September Report\Appendix\db_Elements\Table A_ collision by speed limit_ road type_ road class.txt
B24: Table Z1 result_collision_vehType_vehLocation | C24: B_DataSheet | D24: B6624 | E24: B6623 | F24: B:\Projects\60546469 - SPaTS_ 1-281_RoadSafetyAnalysisAndReporting\3 - Work Packages\STATS19 2018\3 September Report\Appendix\db_Elements | G24: B:\Projects\60546469 - SPaTS_ 1-281_RoadSafetyAnalysisAndReporting\3 - Work Packages\STATS19 2018\3 September Report\Appendix\db_Elements\Table Z1 result_collision_vehType_vehLocation.txt
B25: Table J_ resultof coll_singveh_ped | C25: B_DataSheet | D25: B6924 | E25: B6923 | F25: B:\Projects\60546469 - SPaTS_ 1-281_RoadSafetyAnalysisAndReporting\3 - Work Packages\STATS19 2018\3 September Report\Appendix\db_Elements | G25: B:\Projects\60546469 - SPaTS_ 1-281_RoadSafetyAnalysisAndReporting\3 - Work Packages\STATS19 2018\3 September Report\Appendix\db_Elements\Table J_ resultof coll_singveh_ped.txt
B26: Table J_ resultofcoll__1veh_ped | C26: B_DataSheet | D26: B7224 | E26: B7223 | F26: B:\Projects\60546469 - SPaTS_ 1-281_RoadSafetyAnalysisAndReporting\3 - Work Packages\STATS19 2018\3 September Report\Appendix\db_Elements | G26: B:\Projects\60546469 - SPaTS_ 1-281_RoadSafetyAnalysisAndReporting\3 - Work Packages\STATS19 2018\3 September Report\Appendix\db_Elements\Table J_ resultofcoll__1veh_ped.txt
B27: Table E_Col_ByLightCondition_SpeedLimit_RdSurface | C27: B_DataSheet | D27: B7524 | E27: B7523 | F27: B:\Projects\60546469 - SPaTS_ 1-281_RoadSafetyAnalysisAndReporting\3 - Work Packages\STATS19 2018\3 September Report\Appendix\db_Elements | G27: B:\Projects\60546469 - SPaTS_ 1-281_RoadSafetyAnalysisAndReporting\3 - Work Packages\STATS19 2018\3 September Report\Appendix\db_Elements\Table E_Col_ByLightCondition_SpeedLimit_RdSurface.txt
B28: Table G_ collisions _ LightConditionDark_Weathercondition | C28: B_DataSheet | D28: B7824 | E28: B7823 | F28: B:\Projects\60546469 - SPaTS_ 1-281_RoadSafetyAnalysisAndReporting\3 - Work Packages\STATS19 2018\3 September Report\Appendix\db_Elements | G28: B:\Projects\60546469 - SPaTS_ 1-281_RoadSafetyAnalysisAndReporting\3 - Work Packages\STATS19 2018\3 September Report\Appendix\db_Elements\Table G_ collisions _ LightConditionDark_Weathercondition.txt
B29: Table G_Col_LightWeatherCondition | C29: B_DataSheet | D29: B8124 | E29: B8123 | F29: B:\Projects\60546469 - SPaTS_ 1-281_RoadSafetyAnalysisAndReporting\3 - Work Packages\STATS19 2018\3 September Report\Appendix\db_Elements | G29: B:\Projects\60546469 - SPaTS_ 1-281_RoadSafetyAnalysisAndReporting\3 - Work Packages\STATS19 2018\3 September Report\Appendix\db_Elements\Table G_Col_LightWeatherCondition.txt
B30: Table I_result_collision_single_seve | C30: B_DataSheet | D30: B8424 | E30: B8423 | F30: B:\Projects\60546469 - SPaTS_ 1-281_RoadSafetyAnalysisAndReporting\3 - Work Packages\STATS19 2018\3 September Report\Appendix\db_Elements | G30: B:\Projects\60546469 - SPaTS_ 1-281_RoadSafetyAnalysisAndReporting\3 - Work Packages\STATS19 2018\3 September Report\Appendix\db_Elements\Table I_result_collision_single_seve.txt
B31: TableZ11_result_collosion_region | C31: B_DataSheet | D31: B8724 | E31: B8723 | F31: B:\Projects\60546469 - SPaTS_ 1-281_RoadSafetyAnalysisAndReporting\3 - Work Packages\STATS19 2018\3 September Report\Appendix\db_Elements | G31: B:\Projects\60546469 - SPaTS_ 1-281_RoadSafetyAnalysisAndReporting\3 - Work Packages\STATS19 2018\3 September Report\Appendix\db_Elements\TableZ11_result_collosion_region.txt
B32: 008_025_Cols_By_Severity_RdClass_Region | C32: B_DataSheet | D32: B9024 | E32: B9023 | F32: B:\Projects\60546469 - SPaTS_ 1-281_RoadSafetyAnalysisAndReporting\3 - Work Packages\STATS19 2018\3 September Report\Appendix\db_Elements | G32: B:\Projects\60546469 - SPaTS_ 1-281_RoadSafetyAnalysisAndReporting\3 - Work Packages\STATS19 2018\3 September Report\Appendix\db_Elements\008_025_Cols_By_Severity_RdClass_Region.txt
B33: 008_026_Cols_By_Severity_CasInvolved_Region | C33: B_DataSheet | D33: B9324 | E33: B9323 | F33: B:\Projects\60546469 - SPaTS_ 1-281_RoadSafetyAnalysisAndReporting\3 - Work Packages\STATS19 2018\3 September Report\Appendix\db_Elements | G33: B:\Projects\60546469 - SPaTS_ 1-281_RoadSafetyAnalysisAndReporting\3 - Work Packages\STATS19 2018\3 September Report\Appendix\db_Elements\008_026_Cols_By_Severity_CasInvolved_Region.txt
B34: 008_017_APP_B_HA Collisions by road name and year | C34: B_DataSheet | D34: B9624 | E34: B9623 | F34: B:\Projects\60546469 - SPaTS_ 1-281_RoadSafetyAnalysisAndReporting\3 - Work Packages\STATS19 2018\3 September Report\Appendix\db_Elements | G34: =F34&"\"&B34&".txt" -> B:\Projects\60546469 - SPaTS_ 1-281_RoadSafetyAnalysisAndReporting\3 - Work Packages\STATS19 2018\3 September Report\Appendix\db_Elements\008_017_APP_B_HA Collisions by road name and year.txt
B35: 010_001_APP_C_HA Casualties by Road Types_Sev_Year | C35: C_DataSheet | D35: B24 | E35: B23 | F35: B:\Projects\60546469 - SPaTS_ 1-281_RoadSafetyAnalysisAndReporting\3 - Work Packages\STATS19 2018\3 September Report\Appendix\db_Elements | G35: B:\Projects\60546469 - SPaTS_ 1-281_RoadSafetyAnalysisAndReporting\3 - Work Packages\STATS19 2018\3 September Report\Appendix\db_Elements\010_001_APP_C_HA Casualties by Road Types_Sev_Year.txt
B36: 010_002_APP_C_HA Casualties by Agegroup_Sev_Year | C36: C_DataSheet | D36: B324 | E36: B323 | F36: B:\Projects\60546469 - SPaTS_ 1-281_RoadSafetyAnalysisAndReporting\3 - Work Packages\STATS19 2018\3 September Report\Appendix\db_Elements | G36: B:\Projects\60546469 - SPaTS_ 1-281_RoadSafetyAnalysisAndReporting\3 - Work Packages\STATS19 2018\3 September Report\Appendix\db_Elements\010_002_APP_C_HA Casualties by Agegroup_Sev_Year.txt
B37: 010_003_APP_C_HA Casualties by Sev_CasType_Year | C37: C_DataSheet | D37: B624 | E37: B623 | F37: B:\Projects\60546469 - SPaTS_ 1-281_RoadSafetyAnalysisAndReporting\3 - Work Packages\STATS19 2018\3 September Report\Appendix\db_Elements | G37: B:\Projects\60546469 - SPaTS_ 1-281_RoadSafetyAnalysisAndReporting\3 - Work Packages\STATS19 2018\3 September Report\Appendix\db_Elements\010_003_APP_C_HA Casualties by Sev_CasType_Year.txt
B38: 010_004_APP_C_HA Casualties by CasType_Agegroup_2012 | C38: C_DataSheet | D38: B924 | E38: B923 | F38: B:\Projects\60546469 - SPaTS_ 1-281_RoadSafetyAnalysisAndReporting\3 - Work Packages\STATS19 2018\3 September Report\Appendix\db_Elements | G38: B:\Projects\60546469 - SPaTS_ 1-281_RoadSafetyAnalysisAndReporting\3 - Work Packages\STATS19 2018\3 September Report\Appendix\db_Elements\010_004_APP_C_HA Casualties by CasType_Agegroup_2012.txt
B39: 010_005_APP_C_HA Casualties by VehHitOff_2013 | C39: C_DataSheet | D39: B1224 | E39: B1223 | F39: B:\Projects\60546469 - SPaTS_ 1-281_RoadSafetyAnalysisAndReporting\3 - Work Packages\STATS19 2018\3 September Report\Appendix\db_Elements | G39: B:\Projects\60546469 - SPaTS_ 1-281_RoadSafetyAnalysisAndReporting\3 - Work Packages\STATS19 2018\3 September Report\Appendix\db_Elements\010_005_APP_C_HA Casualties by VehHitOff_2013.txt
B40: 010_005a_APP_C_HA vehicles by VehHitOff_2013 | C40: C_DataSheet | D40: B1524 | E40: B1523 | F40: B:\Projects\60546469 - SPaTS_ 1-281_RoadSafetyAnalysisAndReporting\3 - Work Packages\STATS19 2018\3 September Report\Appendix\db_Elements | G40: B:\Projects\60546469 - SPaTS_ 1-281_RoadSafetyAnalysisAndReporting\3 - Work Packages\STATS19 2018\3 September Report\Appendix\db_Elements\010_005a_APP_C_HA vehicles by VehHitOff_2013.txt
B41: 010_006_APP_C_HA KSI Casualties by VehHitOff_Year | C41: C_DataSheet | D41: B1824 | E41: B1823 | F41: B:\Projects\60546469 - SPaTS_ 1-281_RoadSafetyAnalysisAndReporting\3 - Work Packages\STATS19 2018\3 September Report\Appendix\db_Elements | G41: B:\Projects\60546469 - SPaTS_ 1-281_RoadSafetyAnalysisAndReporting\3 - Work Packages\STATS19 2018\3 September Report\Appendix\db_Elements\010_006_APP_C_HA KSI Casualties by VehHitOff_Year.txt
B42: 010_007_APP_C_HA Casualties by VehHitOn_2013 | C42: C_DataSheet | D42: B2124 | E42: B2123 | F42: B:\Projects\60546469 - SPaTS_ 1-281_RoadSafetyAnalysisAndReporting\3 - Work Packages\STATS19 2018\3 September Report\Appendix\db_Elements | G42: B:\Projects\60546469 - SPaTS_ 1-281_RoadSafetyAnalysisAndReporting\3 - Work Packages\STATS19 2018\3 September Report\Appendix\db_Elements\010_007_APP_C_HA Casualties by VehHitOn_2013.txt
B43: 010_007a_APP_C_HA vehicles by VehHitIn_2013 | C43: C_DataSheet | D43: B2424 | E43: B2423 | F43: B:\Projects\60546469 - SPaTS_ 1-281_RoadSafetyAnalysisAndReporting\3 - Work Packages\STATS19 2018\3 September Report\Appendix\db_Elements | G43: B:\Projects\60546469 - SPaTS_ 1-281_RoadSafetyAnalysisAndReporting\3 - Work Packages\STATS19 2018\3 September Report\Appendix\db_Elements\010_007a_APP_C_HA vehicles by VehHitIn_2013.txt
B44: 010_008_APP_C_HA KSI Casualties by VehHitOn_Year | C44: C_DataSheet | D44: B2724 | E44: B2723 | F44: B:\Projects\60546469 - SPaTS_ 1-281_RoadSafetyAnalysisAndReporting\3 - Work Packages\STATS19 2018\3 September Report\Appendix\db_Elements | G44: B:\Projects\60546469 - SPaTS_ 1-281_RoadSafetyAnalysisAndReporting\3 - Work Packages\STATS19 2018\3 September Report\Appendix\db_Elements\010_008_APP_C_HA KSI Casualties by VehHitOn_Year.txt
B45: 010_009_APP_C_HA Casualties Inv_SingleVehby CasType_Sev_Year | C45: C_DataSheet | D45: B3024 | E45: B3023 | F45: B:\Projects\60546469 - SPaTS_ 1-281_RoadSafetyAnalysisAndReporting\3 - Work Packages\STATS19 2018\3 September Report\Appendix\db_Elements | G45: B:\Projects\60546469 - SPaTS_ 1-281_RoadSafetyAnalysisAndReporting\3 - Work Packages\STATS19 2018\3 September Report\Appendix\db_Elements\010_009_APP_C_HA Casualties Inv_SingleVehby CasType_Sev_Year.txt
B46: 010_010_APP_C_HA Casualties Inv_HGVs by CasType_Sev_Year | C46: C_DataSheet | D46: B3324 | E46: B3323 | F46: B:\Projects\60546469 - SPaTS_ 1-281_RoadSafetyAnalysisAndReporting\3 - Work Packages\STATS19 2018\3 September Report\Appendix\db_Elements | G46: B:\Projects\60546469 - SPaTS_ 1-281_RoadSafetyAnalysisAndReporting\3 - Work Packages\STATS19 2018\3 September Report\Appendix\db_Elements\010_010_APP_C_HA Casualties Inv_HGVs by CasType_Sev_Year.txt
B47: 010_011_APP_C_HA Casualties Inv_LightGVs by CasType_Sev_Year | C47: C_DataSheet | D47: B3624 | E47: B3623 | F47: B:\Projects\60546469 - SPaTS_ 1-281_RoadSafetyAnalysisAndReporting\3 - Work Packages\STATS19 2018\3 September Report\Appendix\db_Elements | G47: B:\Projects\60546469 - SPaTS_ 1-281_RoadSafetyAnalysisAndReporting\3 - Work Packages\STATS19 2018\3 September Report\Appendix\db_Elements\010_011_APP_C_HA Casualties Inv_LightGVs by CasType_Sev_Year.txt
B48: 010_012_APP_C_HA Casualties Inv_YngMotor by CasType_Sev_Year | C48: C_DataSheet | D48: B3924 | E48: B3923 | F48: B:\Projects\60546469 - SPaTS_ 1-281_RoadSafetyAnalysisAndReporting\3 - Work Packages\STATS19 2018\3 September Report\Appendix\db_Elements | G48: B:\Projects\60546469 - SPaTS_ 1-281_RoadSafetyAnalysisAndReporting\3 - Work Packages\STATS19 2018\3 September Report\Appendix\db_Elements\010_012_APP_C_HA Casualties Inv_YngMotor by CasType_Sev_Year.txt
B49: 010_013_APP_C_HACasualtiesInv_ElderlyMotorbyCasType_Sev_Year | C49: C_DataSheet | D49: B4224 | E49: B4223 | F49: B:\Projects\60546469 - SPaTS_ 1-281_RoadSafetyAnalysisAndReporting\3 - Work Packages\STATS19 2018\3 September Report\Appendix\db_Elements | G49: B:\Projects\60546469 - SPaTS_ 1-281_RoadSafetyAnalysisAndReporting\3 - Work Packages\STATS19 2018\3 September Report\Appendix\db_Elements\010_013_APP_C_HACasualtiesInv_ElderlyMotorbyCasType_Sev_Year.txt
B50: 010_014_APP_C_HACasualtiesInv_TowedCaravenbyCasType_Sev_Year | C50: C_DataSheet | D50: B4524 | E50: B4523 | F50: B:\Projects\60546469 - SPaTS_ 1-281_RoadSafetyAnalysisAndReporting\3 - Work Packages\STATS19 2018\3 September Report\Appendix\db_Elements | G50: B:\Projects\60546469 - SPaTS_ 1-281_RoadSafetyAnalysisAndReporting\3 - Work Packages\STATS19 2018\3 September Report\Appendix\db_Elements\010_014_APP_C_HACasualtiesInv_TowedCaravenbyCasType_Sev_Year.txt
B51: 010_016_APP_C_HA Killed Casualties by Road Name_Year | C51: C_DataSheet | D51: B5124 | E51: B5123 | F51: B:\Projects\60546469 - SPaTS_ 1-281_RoadSafetyAnalysisAndReporting\3 - Work Packages\STATS19 2018\3 September Report\Appendix\db_Elements | G51: B:\Projects\60546469 - SPaTS_ 1-281_RoadSafetyAnalysisAndReporting\3 - Work Packages\STATS19 2018\3 September Report\Appendix\db_Elements\010_016_APP_C_HA Killed Casualties by Road Name_Year.txt
B52: 010_017_APP_C_HA KSI Casualties by Road Name_Year | C52: C_DataSheet | D52: B5424 | E52: B5423 | F52: B:\Projects\60546469 - SPaTS_ 1-281_RoadSafetyAnalysisAndReporting\3 - Work Packages\STATS19 2018\3 September Report\Appendix\db_Elements | G52: B:\Projects\60546469 - SPaTS_ 1-281_RoadSafetyAnalysisAndReporting\3 - Work Packages\STATS19 2018\3 September Report\Appendix\db_Elements\010_017_APP_C_HA KSI Casualties by Road Name_Year.txt
B53: 010_018_APP_C_HA_Cas by collision type | C53: C_DataSheet | D53: B5724 | E53: B5723 | F53: B:\Projects\60546469 - SPaTS_ 1-281_RoadSafetyAnalysisAndReporting\3 - Work Packages\STATS19 2018\3 September Report\Appendix\db_Elements | G53: B:\Projects\60546469 - SPaTS_ 1-281_RoadSafetyAnalysisAndReporting\3 - Work Packages\STATS19 2018\3 September Report\Appendix\db_Elements\010_018_APP_C_HA_Cas by collision type.txt
B54: 010_019_APP_C_HA_SurfaceWeatherCas_Year | C54: C_DataSheet | D54: B6024 | E54: B6023 | F54: B:\Projects\60546469 - SPaTS_ 1-281_RoadSafetyAnalysisAndReporting\3 - Work Packages\STATS19 2018\3 September Report\Appendix\db_Elements | G54: B:\Projects\60546469 - SPaTS_ 1-281_RoadSafetyAnalysisAndReporting\3 - Work Packages\STATS19 2018\3 September Report\Appendix\db_Elements\010_019_APP_C_HA_SurfaceWeatherCas_Year.txt
B55: 010_020_APP_C_HA_Casualties_By_Month_Yr | C55: C_DataSheet | D55: B6324 | E55: B6323 | F55: B:\Projects\60546469 - SPaTS_ 1-281_RoadSafetyAnalysisAndReporting\3 - Work Packages\STATS19 2018\3 September Report\Appendix\db_Elements | G55: B:\Projects\60546469 - SPaTS_ 1-281_RoadSafetyAnalysisAndReporting\3 - Work Packages\STATS19 2018\3 September Report\Appendix\db_Elements\010_020_APP_C_HA_Casualties_By_Month_Yr.txt
B56: 010_021_APP_C_HA_Casualties_By_DayofWeek_TimePeriod_Yr | C56: C_DataSheet | D56: B6624 | E56: B6623 | F56: B:\Projects\60546469 - SPaTS_ 1-281_RoadSafetyAnalysisAndReporting\3 - Work Packages\STATS19 2018\3 September Report\Appendix\db_Elements | G56: B:\Projects\60546469 - SPaTS_ 1-281_RoadSafetyAnalysisAndReporting\3 - Work Packages\STATS19 2018\3 September Report\Appendix\db_Elements\010_021_APP_C_HA_Casualties_By_DayofWeek_TimePeriod_Yr.txt
B57: Table C1_casul_Speedlimit_severity | C57: C_DataSheet | D57: B6924 | E57: B6923 | F57: B:\Projects\60546469 - SPaTS_ 1-281_RoadSafetyAnalysisAndReporting\3 - Work Packages\STATS19 2018\3 September Report\Appendix\db_Elements | G57: B:\Projects\60546469 - SPaTS_ 1-281_RoadSafetyAnalysisAndReporting\3 - Work Packages\STATS19 2018\3 September Report\Appendix\db_Elements\Table C1_casul_Speedlimit_severity.txt
B58: Table Q2_Total_Casu_age_casType | C58: C_DataSheet | D58: B7224 | E58: B7223 | F58: B:\Projects\60546469 - SPaTS_ 1-281_RoadSafetyAnalysisAndReporting\3 - Work Packages\STATS19 2018\3 September Report\Appendix\db_Elements | G58: B:\Projects\60546469 - SPaTS_ 1-281_RoadSafetyAnalysisAndReporting\3 - Work Packages\STATS19 2018\3 September Report\Appendix\db_Elements\Table Q2_Total_Casu_age_casType.txt
B59: Table R&S&T_casualty_accidet_severity_type | C59: C_DataSheet | D59: B7524 | E59: B7523 | F59: B:\Projects\60546469 - SPaTS_ 1-281_RoadSafetyAnalysisAndReporting\3 - Work Packages\STATS19 2018\3 September Report\Appendix\db_Elements | G59: B:\Projects\60546469 - SPaTS_ 1-281_RoadSafetyAnalysisAndReporting\3 - Work Packages\STATS19 2018\3 September Report\Appendix\db_Elements\Table R&S&T_casualty_accidet_severity_type.txt
B60: datasheet15_resultcas_roadtype_gender | C60: C_DataSheet | D60: B7824 | E60: B7823 | F60: B:\Projects\60546469 - SPaTS_ 1-281_RoadSafetyAnalysisAndReporting\3 - Work Packages\STATS19 2018\3 September Report\Appendix\db_Elements | G60: B:\Projects\60546469 - SPaTS_ 1-281_RoadSafetyAnalysisAndReporting\3 - Work Packages\STATS19 2018\3 September Report\Appendix\db_Elements\datasheet15_resultcas_roadtype_gender.txt
B61: Table P_result cas_age_gender | C61: C_DataSheet | D61: B8124 | E61: B8123 | F61: B:\Projects\60546469 - SPaTS_ 1-281_RoadSafetyAnalysisAndReporting\3 - Work Packages\STATS19 2018\3 September Report\Appendix\db_Elements | G61: B:\Projects\60546469 - SPaTS_ 1-281_RoadSafetyAnalysisAndReporting\3 - Work Packages\STATS19 2018\3 September Report\Appendix\db_Elements\Table P_result cas_age_gender.txt
B62: Table W_Result_seatbelt_inuse | C62: C_DataSheet | D62: B8424 | E62: B8423 | F62: B:\Projects\60546469 - SPaTS_ 1-281_RoadSafetyAnalysisAndReporting\3 - Work Packages\STATS19 2018\3 September Report\Appendix\db_Elements | G62: B:\Projects\60546469 - SPaTS_ 1-281_RoadSafetyAnalysisAndReporting\3 - Work Packages\STATS19 2018\3 September Report\Appendix\db_Elements\Table W_Result_seatbelt_inuse.txt
B63: Table Z10_result_casualty_region | C63: C_DataSheet | D63: B8724 | E63: B8723 | F63: B:\Projects\60546469 - SPaTS_ 1-281_RoadSafetyAnalysisAndReporting\3 - Work Packages\STATS19 2018\3 September Report\Appendix\db_Elements | G63: B:\Projects\60546469 - SPaTS_ 1-281_RoadSafetyAnalysisAndReporting\3 - Work Packages\STATS19 2018\3 September Report\Appendix\db_Elements\Table Z10_result_casualty_region.txt
B64: 010_023_APP_C_HA_Casualties_By_Severity_Region_RdClass | C64: C_DataSheet | D64: B9024 | E64: B9023 | F64: B:\Projects\60546469 - SPaTS_ 1-281_RoadSafetyAnalysisAndReporting\3 - Work Packages\STATS19 2018\3 September Report\Appendix\db_Elements | G64: B:\Projects\60546469 - SPaTS_ 1-281_RoadSafetyAnalysisAndReporting\3 - Work Packages\STATS19 2018\3 September Report\Appendix\db_Elements\010_023_APP_C_HA_Casualties_By_Severity_Region_RdClass.txt
B65: 010_024_APP_C_HA_Casualties_By_Severity_Region_CasType | C65: C_DataSheet | D65: B9324 | E65: B9323 | F65: B:\Projects\60546469 - SPaTS_ 1-281_RoadSafetyAnalysisAndReporting\3 - Work Packages\STATS19 2018\3 September Report\Appendix\db_Elements | G65: B:\Projects\60546469 - SPaTS_ 1-281_RoadSafetyAnalysisAndReporting\3 - Work Packages\STATS19 2018\3 September Report\Appendix\db_Elements\010_024_APP_C_HA_Casualties_By_Severity_Region_CasType.txt
B66: 010_015_APP_C_HA Casualties by Road Name_Year | C66: C_DataSheet | D66: B9624 | E66: B9623 | F66: B:\Projects\60546469 - SPaTS_ 1-281_RoadSafetyAnalysisAndReporting\3 - Work Packages\STATS19 2018\3 September Report\Appendix\db_Elements | G66: =F66&"\"&B66&".txt" -> B:\Projects\60546469 - SPaTS_ 1-281_RoadSafetyAnalysisAndReporting\3 - Work Packages\STATS19 2018\3 September Report\Appendix\db_Elements\010_015_APP_C_HA Casualties by Road Name_Year.txt
B67: 016_001_Traffic_Volumes_Rname_Year | C67: D_DataSheet | D67: B24 | E67: B23 | F67: B:\Projects\60546469 - SPaTS_ 1-281_RoadSafetyAnalysisAndReporting\3 - Work Packages\STATS19 2018\3 September Report\Appendix\db_Elements | G67: =F67&"\"&B67&".txt" -> B:\Projects\60546469 - SPaTS_ 1-281_RoadSafetyAnalysisAndReporting\3 - Work Packages\STATS19 2018\3 September Report\Appendix\db_Elements\016_001_Traffic_Volumes_Rname_Year.txt
B68: 016_003_RdClass_Traffic_Volumes_Rname_Year | C68: D_DataSheet | D68: B324 | E68: B323 | F68: B:\Projects\60546469 - SPaTS_ 1-281_RoadSafetyAnalysisAndReporting\3 - Work Packages\STATS19 2018\3 September Report\Appendix\db_Elements | G68: =F68&"\"&B68&".txt" -> B:\Projects\60546469 - SPaTS_ 1-281_RoadSafetyAnalysisAndReporting\3 - Work Packages\STATS19 2018\3 September Report\Appendix\db_Elements\016_003_RdClass_Traffic_Volumes_Rname_Year.txt
B69: 014_007_Traffic_VehType_Year | C69: D_DataSheet | D69: B624 | E69: B623 | F69: B:\Projects\60546469 - SPaTS_ 1-281_RoadSafetyAnalysisAndReporting\3 - Work Packages\STATS19 2018\3 September Report\Appendix\db_Elements | G69: =F69&"\"&B69&".txt" -> B:\Projects\60546469 - SPaTS_ 1-281_RoadSafetyAnalysisAndReporting\3 - Work Packages\STATS19 2018\3 September Report\Appendix\db_Elements\014_007_Traffic_VehType_Year.txt
B70: Traffic_By_Region | C70: D_DataSheet | D70: B924 | E70: B923 | F70: B:\Projects\60546469 - SPaTS_ 1-281_RoadSafetyAnalysisAndReporting\3 - Work Packages\STATS19 2018\3 September Report\Appendix\db_Elements | G70: =F70&"\"&B70&".txt" -> B:\Projects\60546469 - SPaTS_ 1-281_RoadSafetyAnalysisAndReporting\3 - Work Packages\STATS19 2018\3 September Report\Appendix\db_Elements\Traffic_By_Region.txt
B71: 011_009_VehInt_Killed | C71: E_DataSheet | D71: B24 | E71: B23 | F71: B:\Projects\60546469 - SPaTS_ 1-281_RoadSafetyAnalysisAndReporting\3 - Work Packages\STATS19 2018\3 September Report\Appendix\db_Elements | G71: B:\Projects\60546469 - SPaTS_ 1-281_RoadSafetyAnalysisAndReporting\3 - Work Packages\STATS19 2018\3 September Report\Appendix\db_Elements\011_009_VehInt_Killed.txt
B72: 011_010_VehInt_SI | C72: E_DataSheet | D72: B324 | E72: B323 | F72: B:\Projects\60546469 - SPaTS_ 1-281_RoadSafetyAnalysisAndReporting\3 - Work Packages\STATS19 2018\3 September Report\Appendix\db_Elements | G72: =F72&"\"&B72&".txt" -> B:\Projects\60546469 - SPaTS_ 1-281_RoadSafetyAnalysisAndReporting\3 - Work Packages\STATS19 2018\3 September Report\Appendix\db_Elements\011_010_VehInt_SI.txt
B73: 011_011_APP_E_VehInt_KSI_VehCount | C73: E_DataSheet | D73: B624 | E73: B623 | F73: B:\Projects\60546469 - SPaTS_ 1-281_RoadSafetyAnalysisAndReporting\3 - Work Packages\STATS19 2018\3 September Report\Appendix\db_Elements | G73: B:\Projects\60546469 - SPaTS_ 1-281_RoadSafetyAnalysisAndReporting\3 - Work Packages\STATS19 2018\3 September Report\Appendix\db_Elements\011_011_APP_E_VehInt_KSI_VehCount.txt
B74: 012_001_HA_Veh Inv by Acc Sev_VehType_Year | C74: E_DataSheet | D74: B924 | E74: B923 | F74: B:\Projects\60546469 - SPaTS_ 1-281_RoadSafetyAnalysisAndReporting\3 - Work Packages\STATS19 2018\3 September Report\Appendix\db_Elements | G74: B:\Projects\60546469 - SPaTS_ 1-281_RoadSafetyAnalysisAndReporting\3 - Work Packages\STATS19 2018\3 September Report\Appendix\db_Elements\012_001_HA_Veh Inv by Acc Sev_VehType_Year.txt
B75: 012_002_Cas by_VehInt_serv_1yr | C75: E_DataSheet | D75: B1224 | E75: B1223 | F75: B:\Projects\60546469 - SPaTS_ 1-281_RoadSafetyAnalysisAndReporting\3 - Work Packages\STATS19 2018\3 September Report\Appendix\db_Elements | G75: B:\Projects\60546469 - SPaTS_ 1-281_RoadSafetyAnalysisAndReporting\3 - Work Packages\STATS19 2018\3 September Report\Appendix\db_Elements\012_002_Cas by_VehInt_serv_1yr.txt
B76: 012_003_APP_E_VehInt_VehCount_1Yr | C76: E_DataSheet | D76: B1524 | E76: B1523 | F76: B:\Projects\60546469 - SPaTS_ 1-281_RoadSafetyAnalysisAndReporting\3 - Work Packages\STATS19 2018\3 September Report\Appendix\db_Elements | G76: B:\Projects\60546469 - SPaTS_ 1-281_RoadSafetyAnalysisAndReporting\3 - Work Packages\STATS19 2018\3 September Report\Appendix\db_Elements\012_003_APP_E_VehInt_VehCount_1Yr.txt
B77: 012_004_Col by_VehInt_serv_1yr | C77: E_DataSheet | D77: B1824 | E77: B1823 | F77: B:\Projects\60546469 - SPaTS_ 1-281_RoadSafetyAnalysisAndReporting\3 - Work Packages\STATS19 2018\3 September Report\Appendix\db_Elements | G77: B:\Projects\60546469 - SPaTS_ 1-281_RoadSafetyAnalysisAndReporting\3 - Work Packages\STATS19 2018\3 September Report\Appendix\db_Elements\012_004_Col by_VehInt_serv_1yr.txt
B78: 104_112_Cas_by_type_AgeVehicle | C78: E_DataSheet | D78: B2124 | E78: B2123 | F78: B:\Projects\60546469 - SPaTS_ 1-281_RoadSafetyAnalysisAndReporting\3 - Work Packages\STATS19 2018\3 September Report\Appendix\db_Elements | G78: B:\Projects\60546469 - SPaTS_ 1-281_RoadSafetyAnalysisAndReporting\3 - Work Packages\STATS19 2018\3 September Report\Appendix\db_Elements\104_112_Cas_by_type_AgeVehicle.txt
B79: 104_114_Col_VehTypeVehAgeSeverityYr | C79: E_DataSheet | D79: B2424 | E79: B2423 | F79: B:\Projects\60546469 - SPaTS_ 1-281_RoadSafetyAnalysisAndReporting\3 - Work Packages\STATS19 2018\3 September Report\Appendix\db_Elements | G79: B:\Projects\60546469 - SPaTS_ 1-281_RoadSafetyAnalysisAndReporting\3 - Work Packages\STATS19 2018\3 September Report\Appendix\db_Elements\104_114_Col_VehTypeVehAgeSeverityYr.txt
B80: 104_109 Cas by vehDefect ayears | C80: E_DataSheet | D80: B2724 | E80: B2723 | F80: B:\Projects\60546469 - SPaTS_ 1-281_RoadSafetyAnalysisAndReporting\3 - Work Packages\STATS19 2018\3 September Report\Appendix\db_Elements | G80: B:\Projects\60546469 - SPaTS_ 1-281_RoadSafetyAnalysisAndReporting\3 - Work Packages\STATS19 2018\3 September Report\Appendix\db_Elements\104_109 Cas by vehDefect ayears.txt
B81: 104_109a Cols by vehDefect ayears | C81: E_DataSheet | D81: B3024 | E81: B3023 | F81: B:\Projects\60546469 - SPaTS_ 1-281_RoadSafetyAnalysisAndReporting\3 - Work Packages\STATS19 2018\3 September Report\Appendix\db_Elements | G81: B:\Projects\60546469 - SPaTS_ 1-281_RoadSafetyAnalysisAndReporting\3 - Work Packages\STATS19 2018\3 September Report\Appendix\db_Elements\104_109a Cols by vehDefect ayears.txt
B82: 011_009A_VehInt_Fatal | C82: E_DataSheet | D82: B3324 | E82: B3323 | F82: B:\Projects\60546469 - SPaTS_ 1-281_RoadSafetyAnalysisAndReporting\3 - Work Packages\STATS19 2018\3 September Report\Appendix\db_Elements | G82: B:\Projects\60546469 - SPaTS_ 1-281_RoadSafetyAnalysisAndReporting\3 - Work Packages\STATS19 2018\3 September Report\Appendix\db_Elements\011_009A_VehInt_Fatal.txt
B83: 011_010A_VehInt_Serious | C83: E_DataSheet | D83: B3624 | E83: B3623 | F83: B:\Projects\60546469 - SPaTS_ 1-281_RoadSafetyAnalysisAndReporting\3 - Work Packages\STATS19 2018\3 September Report\Appendix\db_Elements | G83: B:\Projects\60546469 - SPaTS_ 1-281_RoadSafetyAnalysisAndReporting\3 - Work Packages\STATS19 2018\3 September Report\Appendix\db_Elements\011_010A_VehInt_Serious.txt
B84: Table U_Male and Female Drivers | C84: E_DataSheet | D84: B3924 | E84: B3923 | F84: B:\Projects\60546469 - SPaTS_ 1-281_RoadSafetyAnalysisAndReporting\3 - Work Packages\STATS19 2018\3 September Report\Appendix\db_Elements | G84: B:\Projects\60546469 - SPaTS_ 1-281_RoadSafetyAnalysisAndReporting\3 - Work Packages\STATS19 2018\3 September Report\Appendix\db_Elements\Table U_Male and Female Drivers.txt
B85: Table K_resultcolli_vehNo_vehtype | C85: E_DataSheet | D85: B4224 | E85: B4223 | F85: B:\Projects\60546469 - SPaTS_ 1-281_RoadSafetyAnalysisAndReporting\3 - Work Packages\STATS19 2018\3 September Report\Appendix\db_Elements | G85: B:\Projects\60546469 - SPaTS_ 1-281_RoadSafetyAnalysisAndReporting\3 - Work Packages\STATS19 2018\3 September Report\Appendix\db_Elements\Table K_resultcolli_vehNo_vehtype.txt
B86: Table L_resultcolli_veh_junction | C86: E_DataSheet | D86: B4524 | E86: B4523 | F86: B:\Projects\60546469 - SPaTS_ 1-281_RoadSafetyAnalysisAndReporting\3 - Work Packages\STATS19 2018\3 September Report\Appendix\db_Elements | G86: B:\Projects\60546469 - SPaTS_ 1-281_RoadSafetyAnalysisAndReporting\3 - Work Packages\STATS19 2018\3 September Report\Appendix\db_Elements\Table L_resultcolli_veh_junction.txt
B87: Table N_resultcolli_veh_surface | C87: E_DataSheet | D87: B4824 | E87: B4823 | F87: B:\Projects\60546469 - SPaTS_ 1-281_RoadSafetyAnalysisAndReporting\3 - Work Packages\STATS19 2018\3 September Report\Appendix\db_Elements | G87: B:\Projects\60546469 - SPaTS_ 1-281_RoadSafetyAnalysisAndReporting\3 - Work Packages\STATS19 2018\3 September Report\Appendix\db_Elements\Table N_resultcolli_veh_surface.txt
B88: Table O_result of vehtype_manv | C88: E_DataSheet | D88: B5124 | E88: B5123 | F88: B:\Projects\60546469 - SPaTS_ 1-281_RoadSafetyAnalysisAndReporting\3 - Work Packages\STATS19 2018\3 September Report\Appendix\db_Elements | G88: B:\Projects\60546469 - SPaTS_ 1-281_RoadSafetyAnalysisAndReporting\3 - Work Packages\STATS19 2018\3 September Report\Appendix\db_Elements\Table O_result of vehtype_manv.txt
B89: 012_005_HA_Veh_InvBySevRegion | C89: E_DataSheet | D89: B5424 | E89: B5423 | F89: B:\Projects\60546469 - SPaTS_ 1-281_RoadSafetyAnalysisAndReporting\3 - Work Packages\STATS19 2018\3 September Report\Appendix\db_Elements | G89: B:\Projects\60546469 - SPaTS_ 1-281_RoadSafetyAnalysisAndReporting\3 - Work Packages\STATS19 2018\3 September Report\Appendix\db_Elements\012_005_HA_Veh_InvBySevRegion.txt
B90: 020_001_APP_F_HA_All_78CFS_by NumCol_and_AccSev | C90: F_DataSheet | D90: B24 | E90: B23 | F90: B:\Projects\60546469 - SPaTS_ 1-281_RoadSafetyAnalysisAndReporting\3 - Work Packages\STATS19 2018\3 September Report\Appendix\db_Elements | G90: B:\Projects\60546469 - SPaTS_ 1-281_RoadSafetyAnalysisAndReporting\3 - Work Packages\STATS19 2018\3 September Report\Appendix\db_Elements\020_001_APP_F_HA_All_78CFS_by NumCol_and_AccSev.txt
B91: 020_002_APP_F_HA_All_78CFS_by NumCol and Total FS Year 2013 | C91: F_DataSheet | D91: B324 | E91: B323 | F91: B:\Projects\60546469 - SPaTS_ 1-281_RoadSafetyAnalysisAndReporting\3 - Work Packages\STATS19 2018\3 September Report\Appendix\db_Elements | G91: B:\Projects\60546469 - SPaTS_ 1-281_RoadSafetyAnalysisAndReporting\3 - Work Packages\STATS19 2018\3 September Report\Appendix\db_Elements\020_002_APP_F_HA_All_78CFS_by NumCol and Total FS Year 2013.txt
B92: 020_004_APP_F_HA_Casu involving Booze and Drugs By Sev_Year | C92: F_DataSheet | D92: B624 | E92: B623 | F92: B:\Projects\60546469 - SPaTS_ 1-281_RoadSafetyAnalysisAndReporting\3 - Work Packages\STATS19 2018\3 September Report\Appendix\db_Elements | G92: B:\Projects\60546469 - SPaTS_ 1-281_RoadSafetyAnalysisAndReporting\3 - Work Packages\STATS19 2018\3 September Report\Appendix\db_Elements\020_004_APP_F_HA_Casu involving Booze and Drugs By Sev_Year.txt
B93: 020_005_APP_F_HA_Col involving Booze and Drugs By Sev_Year | C93: F_DataSheet | D93: B924 | E93: B923 | F93: B:\Projects\60546469 - SPaTS_ 1-281_RoadSafetyAnalysisAndReporting\3 - Work Packages\STATS19 2018\3 September Report\Appendix\db_Elements | G93: B:\Projects\60546469 - SPaTS_ 1-281_RoadSafetyAnalysisAndReporting\3 - Work Packages\STATS19 2018\3 September Report\Appendix\db_Elements\020_005_APP_F_HA_Col involving Booze and Drugs By Sev_Year.txt
B94: 020_006_APP_F_HA_Col invol BoozeDrugs By Top10Rnames_Year | C94: F_DataSheet | D94: B1224 | E94: B1223 | F94: B:\Projects\60546469 - SPaTS_ 1-281_RoadSafetyAnalysisAndReporting\3 - Work Packages\STATS19 2018\3 September Report\Appendix\db_Elements | G94: B:\Projects\60546469 - SPaTS_ 1-281_RoadSafetyAnalysisAndReporting\3 - Work Packages\STATS19 2018\3 September Report\Appendix\db_Elements\020_006_APP_F_HA_Col invol BoozeDrugs By Top10Rnames_Year.txt
B95: 020_007_APP_F_HA_CasualtiesInvolvingFatigueBy RtypeSev_Year | C95: F_DataSheet | D95: B1524 | E95: B1523 | F95: B:\Projects\60546469 - SPaTS_ 1-281_RoadSafetyAnalysisAndReporting\3 - Work Packages\STATS19 2018\3 September Report\Appendix\db_Elements | G95: B:\Projects\60546469 - SPaTS_ 1-281_RoadSafetyAnalysisAndReporting\3 - Work Packages\STATS19 2018\3 September Report\Appendix\db_Elements\020_007_APP_F_HA_CasualtiesInvolvingFatigueBy RtypeSev_Year.txt
B96: 020_008_APP_F_HA_Col involving Fatigue By RtypeSev_Year | C96: F_DataSheet | D96: B1824 | E96: B1823 | F96: B:\Projects\60546469 - SPaTS_ 1-281_RoadSafetyAnalysisAndReporting\3 - Work Packages\STATS19 2018\3 September Report\Appendix\db_Elements | G96: B:\Projects\60546469 - SPaTS_ 1-281_RoadSafetyAnalysisAndReporting\3 - Work Packages\STATS19 2018\3 September Report\Appendix\db_Elements\020_008_APP_F_HA_Col involving Fatigue By RtypeSev_Year.txt
B97: 020_009_APP_F_HA_Col invol Fatigue By Top10Rnames_Year | C97: F_DataSheet | D97: B2124 | E97: B2123 | F97: B:\Projects\60546469 - SPaTS_ 1-281_RoadSafetyAnalysisAndReporting\3 - Work Packages\STATS19 2018\3 September Report\Appendix\db_Elements | G97: B:\Projects\60546469 - SPaTS_ 1-281_RoadSafetyAnalysisAndReporting\3 - Work Packages\STATS19 2018\3 September Report\Appendix\db_Elements\020_009_APP_F_HA_Col invol Fatigue By Top10Rnames_Year.txt
B98: 020_010_APP_F_HA_Cas involving Speed By Sev_SpeedLimit_Year | C98: F_DataSheet | D98: B2424 | E98: B2423 | F98: B:\Projects\60546469 - SPaTS_ 1-281_RoadSafetyAnalysisAndReporting\3 - Work Packages\STATS19 2018\3 September Report\Appendix\db_Elements | G98: B:\Projects\60546469 - SPaTS_ 1-281_RoadSafetyAnalysisAndReporting\3 - Work Packages\STATS19 2018\3 September Report\Appendix\db_Elements\020_010_APP_F_HA_Cas involving Speed By Sev_SpeedLimit_Year.txt
B99: 020_011_APP_F_HA_Cols involving Speed By Sev_SpeedLimit_Year | C99: F_DataSheet | D99: B2724 | E99: B2723 | F99: B:\Projects\60546469 - SPaTS_ 1-281_RoadSafetyAnalysisAndReporting\3 - Work Packages\STATS19 2018\3 September Report\Appendix\db_Elements | G99: B:\Projects\60546469 - SPaTS_ 1-281_RoadSafetyAnalysisAndReporting\3 - Work Packages\STATS19 2018\3 September Report\Appendix\db_Elements\020_011_APP_F_HA_Cols involving Speed By Sev_SpeedLimit_Year.txt
B100: 020_012_APP_F_HA_Col invol Speeding By Top10Rnames_Year | C100: F_DataSheet | D100: B3024 | E100: B3023 | F100: B:\Projects\60546469 - SPaTS_ 1-281_RoadSafetyAnalysisAndReporting\3 - Work Packages\STATS19 2018\3 September Report\Appendix\db_Elements | G100: B:\Projects\60546469 - SPaTS_ 1-281_RoadSafetyAnalysisAndReporting\3 - Work Packages\STATS19 2018\3 September Report\Appendix\db_Elements\020_012_APP_F_HA_Col invol Speeding By Top10Rnames_Year.txt
B101: 020_013_APP_F_HA_CasualtiesinvolvingDistractionBy Sev_Year | C101: F_DataSheet | D101: B3324 | E101: B3323 | F101: B:\Projects\60546469 - SPaTS_ 1-281_RoadSafetyAnalysisAndReporting\3 - Work Packages\STATS19 2018\3 September Report\Appendix\db_Elements | G101: B:\Projects\60546469 - SPaTS_ 1-281_RoadSafetyAnalysisAndReporting\3 - Work Packages\STATS19 2018\3 September Report\Appendix\db_Elements\020_013_APP_F_HA_CasualtiesinvolvingDistractionBy Sev_Year.txt
B102: 020_014_APP_F_HA_Cols involving Distraction By Sev_Year | C102: F_DataSheet | D102: B3624 | E102: B3623 | F102: B:\Projects\60546469 - SPaTS_ 1-281_RoadSafetyAnalysisAndReporting\3 - Work Packages\STATS19 2018\3 September Report\Appendix\db_Elements | G102: B:\Projects\60546469 - SPaTS_ 1-281_RoadSafetyAnalysisAndReporting\3 - Work Packages\STATS19 2018\3 September Report\Appendix\db_Elements\020_014_APP_F_HA_Cols involving Distraction By Sev_Year.txt
B103: 020_015_APP_F_HA_Col invol Distract By Top10Rnames_Year | C103: F_DataSheet | D103: B3924 | E103: B3923 | F103: B:\Projects\60546469 - SPaTS_ 1-281_RoadSafetyAnalysisAndReporting\3 - Work Packages\STATS19 2018\3 September Report\Appendix\db_Elements | G103: B:\Projects\60546469 - SPaTS_ 1-281_RoadSafetyAnalysisAndReporting\3 - Work Packages\STATS19 2018\3 September Report\Appendix\db_Elements\020_015_APP_F_HA_Col invol Distract By Top10Rnames_Year.txt
B104: 020_006_APP_F_HA_Cas_InvolBoozeDrugsTop20RdNames_Yr | C104: F_DataSheet | D104: B4224 | E104: B4223 | F104: B:\Projects\60546469 - SPaTS_ 1-281_RoadSafetyAnalysisAndReporting\3 - Work Packages\STATS19 2018\3 September Report\Appendix\db_Elements | G104: B:\Projects\60546469 - SPaTS_ 1-281_RoadSafetyAnalysisAndReporting\3 - Work Packages\STATS19 2018\3 September Report\Appendix\db_Elements\020_006_APP_F_HA_Cas_InvolBoozeDrugsTop20RdNames_Yr.txt
B105: 020_009_APP_F_HA_Cas_InvolFatigueByTop20RdNames_Yr | C105: F_DataSheet | D105: B4524 | E105: B4523 | F105: B:\Projects\60546469 - SPaTS_ 1-281_RoadSafetyAnalysisAndReporting\3 - Work Packages\STATS19 2018\3 September Report\Appendix\db_Elements | G105: B:\Projects\60546469 - SPaTS_ 1-281_RoadSafetyAnalysisAndReporting\3 - Work Packages\STATS19 2018\3 September Report\Appendix\db_Elements\020_009_APP_F_HA_Cas_InvolFatigueByTop20RdNames_Yr.txt
B106: 020_012_APP_F_HA_Cas_InvolSpeedingTop20RdNames_Yr | C106: F_DataSheet | D106: B4824 | E106: B4823 | F106: B:\Projects\60546469 - SPaTS_ 1-281_RoadSafetyAnalysisAndReporting\3 - Work Packages\STATS19 2018\3 September Report\Appendix\db_Elements | G106: B:\Projects\60546469 - SPaTS_ 1-281_RoadSafetyAnalysisAndReporting\3 - Work Packages\STATS19 2018\3 September Report\Appendix\db_Elements\020_012_APP_F_HA_Cas_InvolSpeedingTop20RdNames_Yr.txt
B107: 020_015_APP_F_HA_Cas_InvolDistractTop20RdNames_Yr | C107: F_DataSheet | D107: B5124 | E107: B5123 | F107: B:\Projects\60546469 - SPaTS_ 1-281_RoadSafetyAnalysisAndReporting\3 - Work Packages\STATS19 2018\3 September Report\Appendix\db_Elements | G107: B:\Projects\60546469 - SPaTS_ 1-281_RoadSafetyAnalysisAndReporting\3 - Work Packages\STATS19 2018\3 September Report\Appendix\db_Elements\020_015_APP_F_HA_Cas_InvolDistractTop20RdNames_Yr.txt
B108: 020_001a_APP_F_HA_All_78CFS_by NumCas_and_AccSev | C108: F_DataSheet | D108: B5424 | E108: B5423 | F108: B:\Projects\60546469 - SPaTS_ 1-281_RoadSafetyAnalysisAndReporting\3 - Work Packages\STATS19 2018\3 September Report\Appendix\db_Elements | G108: B:\Projects\60546469 - SPaTS_ 1-281_RoadSafetyAnalysisAndReporting\3 - Work Packages\STATS19 2018\3 September Report\Appendix\db_Elements\020_001a_APP_F_HA_All_78CFS_by NumCas_and_AccSev.txt
B109: 020_002_APP_F_HA_All_78CFS_by NumCasSeverityandYear | C109: F_DataSheet | D109: B5724 | E109: B5723 | F109: B:\Projects\60546469 - SPaTS_ 1-281_RoadSafetyAnalysisAndReporting\3 - Work Packages\STATS19 2018\3 September Report\Appendix\db_Elements | G109: B:\Projects\60546469 - SPaTS_ 1-281_RoadSafetyAnalysisAndReporting\3 - Work Packages\STATS19 2018\3 September Report\Appendix\db_Elements\020_002_APP_F_HA_All_78CFS_by NumCasSeverityandYear.txt
B110: Table Z13&Z14_collision_CF_RoadClass_2015 | C110: F_DataSheet | D110: B6024 | E110: B6023 | F110: B:\Projects\60546469 - SPaTS_ 1-281_RoadSafetyAnalysisAndReporting\3 - Work Packages\STATS19 2018\3 September Report\Appendix\db_Elements | G110: B:\Projects\60546469 - SPaTS_ 1-281_RoadSafetyAnalysisAndReporting\3 - Work Packages\STATS19 2018\3 September Report\Appendix\db_Elements\Table Z13&Z14_collision_CF_RoadClass_2015.txt
B111: Table Z16_Result_casualty_CF_2015 | C111: F_DataSheet | D111: B6324 | E111: B6323 | F111: B:\Projects\60546469 - SPaTS_ 1-281_RoadSafetyAnalysisAndReporting\3 - Work Packages\STATS19 2018\3 September Report\Appendix\db_Elements | G111: B:\Projects\60546469 - SPaTS_ 1-281_RoadSafetyAnalysisAndReporting\3 - Work Packages\STATS19 2018\3 September Report\Appendix\db_Elements\Table Z16_Result_casualty_CF_2015.txt
B112: Table Z20&Z21_ Result_Collision_CF_2015 | C112: F_DataSheet | D112: B6624 | E112: B6623 | F112: B:\Projects\60546469 - SPaTS_ 1-281_RoadSafetyAnalysisAndReporting\3 - Work Packages\STATS19 2018\3 September Report\Appendix\db_Elements | G112: B:\Projects\60546469 - SPaTS_ 1-281_RoadSafetyAnalysisAndReporting\3 - Work Packages\STATS19 2018\3 September Report\Appendix\db_Elements\Table Z20&Z21_ Result_Collision_CF_2015.txt
B113: Table Z24&Z25_casualty_CF_RoadType_2015 | C113: F_DataSheet | D113: B6924 | E113: B6923 | F113: B:\Projects\60546469 - SPaTS_ 1-281_RoadSafetyAnalysisAndReporting\3 - Work Packages\STATS19 2018\3 September Report\Appendix\db_Elements | G113: B:\Projects\60546469 - SPaTS_ 1-281_RoadSafetyAnalysisAndReporting\3 - Work Packages\STATS19 2018\3 September Report\Appendix\db_Elements\Table Z24&Z25_casualty_CF_RoadType_2015.txt
B114: Total_Top20Motorway_CF_Collisions | C114: F_DataSheet | D114: B7224 | E114: B7223 | F114: B:\Projects\60546469 - SPaTS_ 1-281_RoadSafetyAnalysisAndReporting\3 - Work Packages\STATS19 2018\3 September Report\Appendix\db_Elements | G114: B:\Projects\60546469 - SPaTS_ 1-281_RoadSafetyAnalysisAndReporting\3 - Work Packages\STATS19 2018\3 September Report\Appendix\db_Elements\Total_Top20Motorway_CF_Collisions.txt
B115: Total_Top20ARoad_CF_Collisions | C115: F_DataSheet | D115: B7524 | E115: B7523 | F115: B:\Projects\60546469 - SPaTS_ 1-281_RoadSafetyAnalysisAndReporting\3 - Work Packages\STATS19 2018\3 September Report\Appendix\db_Elements | G115: B:\Projects\60546469 - SPaTS_ 1-281_RoadSafetyAnalysisAndReporting\3 - Work Packages\STATS19 2018\3 September Report\Appendix\db_Elements\Total_Top20ARoad_CF_Collisions.txt
B116: Total_Top20ARoad_SingleCarriageway_CF_Collisions | C116: F_DataSheet | D116: B7824 | E116: B7823 | F116: B:\Projects\60546469 - SPaTS_ 1-281_RoadSafetyAnalysisAndReporting\3 - Work Packages\STATS19 2018\3 September Report\Appendix\db_Elements | G116: B:\Projects\60546469 - SPaTS_ 1-281_RoadSafetyAnalysisAndReporting\3 - Work Packages\STATS19 2018\3 September Report\Appendix\db_Elements\Total_Top20ARoad_SingleCarriageway_CF_Collisions.txt
B117: Total_Top20ARoad_DualCarriageway_CF_Collisions | C117: F_DataSheet | D117: B8124 | E117: B8123 | F117: B:\Projects\60546469 - SPaTS_ 1-281_RoadSafetyAnalysisAndReporting\3 - Work Packages\STATS19 2018\3 September Report\Appendix\db_Elements | G117: B:\Projects\60546469 - SPaTS_ 1-281_RoadSafetyAnalysisAndReporting\3 - Work Packages\STATS19 2018\3 September Report\Appendix\db_Elements\Total_Top20ARoad_DualCarriageway_CF_Collisions.txt
B118: Total_Top20Motorway_CF_Casualties | C118: F_DataSheet | D118: B8424 | E118: B8423 | F118: B:\Projects\60546469 - SPaTS_ 1-281_RoadSafetyAnalysisAndReporting\3 - Work Packages\STATS19 2018\3 September Report\Appendix\db_Elements | G118: B:\Projects\60546469 - SPaTS_ 1-281_RoadSafetyAnalysisAndReporting\3 - Work Packages\STATS19 2018\3 September Report\Appendix\db_Elements\Total_Top20Motorway_CF_Casualties.txt
B119: Total_Top20ARoad_CF_Casualites | C119: F_DataSheet | D119: B8724 | E119: B8723 | F119: B:\Projects\60546469 - SPaTS_ 1-281_RoadSafetyAnalysisAndReporting\3 - Work Packages\STATS19 2018\3 September Report\Appendix\db_Elements | G119: B:\Projects\60546469 - SPaTS_ 1-281_RoadSafetyAnalysisAndReporting\3 - Work Packages\STATS19 2018\3 September Report\Appendix\db_Elements\Total_Top20ARoad_CF_Casualites.txt
B120: Total_Top20ARoad_SingleCarriageway_CF_Casualties | C120: F_DataSheet | D120: B9024 | E120: B9023 | F120: B:\Projects\60546469 - SPaTS_ 1-281_RoadSafetyAnalysisAndReporting\3 - Work Packages\STATS19 2018\3 September Report\Appendix\db_Elements | G120: B:\Projects\60546469 - SPaTS_ 1-281_RoadSafetyAnalysisAndReporting\3 - Work Packages\STATS19 2018\3 September Report\Appendix\db_Elements\Total_Top20ARoad_SingleCarriageway_CF_Casualties.txt
B121: Total_Top20ARoad_DualCarriageway_CF_Casualties | C121: F_DataSheet | D121: B9324 | E121: B9323 | F121: B:\Projects\60546469 - SPaTS_ 1-281_RoadSafetyAnalysisAndReporting\3 - Work Packages\STATS19 2018\3 September Report\Appendix\db_Elements | G121: B:\Projects\60546469 - SPaTS_ 1-281_RoadSafetyAnalysisAndReporting\3 - Work Packages\STATS19 2018\3 September Report\Appendix\db_Elements\Total_Top20ARoad_DualCarriageway_CF_Casualties.txt
B122: 002_007_CF | C122: F_DataSheet | D122: B9624 | E122: B9623 | F122: B:\Projects\60546469 - SPaTS_ 1-281_RoadSafetyAnalysisAndReporting\3 - Work Packages\STATS19 2018\3 September Report\Appendix\db_Elements | G122: B:\Projects\60546469 - SPaTS_ 1-281_RoadSafetyAnalysisAndReporting\3 - Work Packages\STATS19 2018\3 September Report\Appendix\db_Elements\002_007_CF.txt
B123: 030_001_APP_H_Fat by road name and year | C123: G_DataSheet | D123: B24 | E123: B23 | F123: B:\Projects\60546469 - SPaTS_ 1-281_RoadSafetyAnalysisAndReporting\3 - Work Packages\STATS19 2018\3 September Report\Appendix\db_Elements | G123: B:\Projects\60546469 - SPaTS_ 1-281_RoadSafetyAnalysisAndReporting\3 - Work Packages\STATS19 2018\3 September Report\Appendix\db_Elements\030_001_APP_H_Fat by road name and year.txt
B124: 030_002_APP_H_Fatalities by road type and year | C124: G_DataSheet | D124: B324 | E124: B323 | F124: B:\Projects\60546469 - SPaTS_ 1-281_RoadSafetyAnalysisAndReporting\3 - Work Packages\STATS19 2018\3 September Report\Appendix\db_Elements | G124: B:\Projects\60546469 - SPaTS_ 1-281_RoadSafetyAnalysisAndReporting\3 - Work Packages\STATS19 2018\3 September Report\Appendix\db_Elements\030_002_APP_H_Fatalities by road type and year.txt
B125: 030_003_APP_H_Fatal Collisions_Rapid_CF ANALYSIS | C125: G_DataSheet | D125: B624 | E125: B623 | F125: B:\Projects\60546469 - SPaTS_ 1-281_RoadSafetyAnalysisAndReporting\3 - Work Packages\STATS19 2018\3 September Report\Appendix\db_Elements | G125: B:\Projects\60546469 - SPaTS_ 1-281_RoadSafetyAnalysisAndReporting\3 - Work Packages\STATS19 2018\3 September Report\Appendix\db_Elements\030_003_APP_H_Fatal Collisions_Rapid_CF ANALYSIS.txt
B126: 030_004_APP_H_Fat_by object hit on carr and year | C126: G_DataSheet | D126: B924 | E126: B923 | F126: B:\Projects\60546469 - SPaTS_ 1-281_RoadSafetyAnalysisAndReporting\3 - Work Packages\STATS19 2018\3 September Report\Appendix\db_Elements | G126: B:\Projects\60546469 - SPaTS_ 1-281_RoadSafetyAnalysisAndReporting\3 - Work Packages\STATS19 2018\3 September Report\Appendix\db_Elements\030_004_APP_H_Fat_by object hit on carr and year.txt
B127: 030_005_APP_H_Fat_by object hit off carr and year | C127: G_DataSheet | D127: B1224 | E127: B1223 | F127: B:\Projects\60546469 - SPaTS_ 1-281_RoadSafetyAnalysisAndReporting\3 - Work Packages\STATS19 2018\3 September Report\Appendix\db_Elements | G127: B:\Projects\60546469 - SPaTS_ 1-281_RoadSafetyAnalysisAndReporting\3 - Work Packages\STATS19 2018\3 September Report\Appendix\db_Elements\030_005_APP_H_Fat_by object hit off carr and year.txt
B128: 030_006_APP_H_Fat_WetSkidd_RdCondit_Yr | C128: G_DataSheet | D128: B1524 | E128: B1523 | F128: B:\Projects\60546469 - SPaTS_ 1-281_RoadSafetyAnalysisAndReporting\3 - Work Packages\STATS19 2018\3 September Report\Appendix\db_Elements | G128: B:\Projects\60546469 - SPaTS_ 1-281_RoadSafetyAnalysisAndReporting\3 - Work Packages\STATS19 2018\3 September Report\Appendix\db_Elements\030_006_APP_H_Fat_WetSkidd_RdCondit_Yr.txt
B129: 030_007_APP_H_Fat_light condition road classification | C129: G_DataSheet | D129: B1824 | E129: B1823 | F129: B:\Projects\60546469 - SPaTS_ 1-281_RoadSafetyAnalysisAndReporting\3 - Work Packages\STATS19 2018\3 September Report\Appendix\db_Elements | G129: B:\Projects\60546469 - SPaTS_ 1-281_RoadSafetyAnalysisAndReporting\3 - Work Packages\STATS19 2018\3 September Report\Appendix\db_Elements\030_007_APP_H_Fat_light condition road classification.txt
B130: 030_008_APP_H_Fat_Junction detail and yr | C130: G_DataSheet | D130: B2124 | E130: B2123 | F130: B:\Projects\60546469 - SPaTS_ 1-281_RoadSafetyAnalysisAndReporting\3 - Work Packages\STATS19 2018\3 September Report\Appendix\db_Elements | G130: B:\Projects\60546469 - SPaTS_ 1-281_RoadSafetyAnalysisAndReporting\3 - Work Packages\STATS19 2018\3 September Report\Appendix\db_Elements\030_008_APP_H_Fat_Junction detail and yr.txt
B131: 030_009_APP_H_Fat_involving hardSH_lybysby location and yr | C131: G_DataSheet | D131: B2424 | E131: B2423 | F131: B:\Projects\60546469 - SPaTS_ 1-281_RoadSafetyAnalysisAndReporting\3 - Work Packages\STATS19 2018\3 September Report\Appendix\db_Elements | G131: B:\Projects\60546469 - SPaTS_ 1-281_RoadSafetyAnalysisAndReporting\3 - Work Packages\STATS19 2018\3 September Report\Appendix\db_Elements\030_009_APP_H_Fat_involving hardSH_lybysby location and yr.txt
B132: 030_010_APP_H_Fat_by driverAgeGroupInv and yr | C132: G_DataSheet | D132: B2724 | E132: B2723 | F132: B:\Projects\60546469 - SPaTS_ 1-281_RoadSafetyAnalysisAndReporting\3 - Work Packages\STATS19 2018\3 September Report\Appendix\db_Elements | G132: B:\Projects\60546469 - SPaTS_ 1-281_RoadSafetyAnalysisAndReporting\3 - Work Packages\STATS19 2018\3 September Report\Appendix\db_Elements\030_010_APP_H_Fat_by driverAgeGroupInv and yr.txt
B133: 030_011_APP_H_Fat_by VehTypeInv and yr | C133: G_DataSheet | D133: B3024 | E133: B3023 | F133: B:\Projects\60546469 - SPaTS_ 1-281_RoadSafetyAnalysisAndReporting\3 - Work Packages\STATS19 2018\3 September Report\Appendix\db_Elements | G133: B:\Projects\60546469 - SPaTS_ 1-281_RoadSafetyAnalysisAndReporting\3 - Work Packages\STATS19 2018\3 September Report\Appendix\db_Elements\030_011_APP_H_Fat_by VehTypeInv and yr.txt
B134: 030_012_APP_H_Fat_JourneyPurpose and Yr | C134: G_DataSheet | D134: B3324 | E134: B3323 | F134: B:\Projects\60546469 - SPaTS_ 1-281_RoadSafetyAnalysisAndReporting\3 - Work Packages\STATS19 2018\3 September Report\Appendix\db_Elements | G134: B:\Projects\60546469 - SPaTS_ 1-281_RoadSafetyAnalysisAndReporting\3 - Work Packages\STATS19 2018\3 September Report\Appendix\db_Elements\030_012_APP_H_Fat_JourneyPurpose and Yr.txt
B135: 030_013_APP_H_Fatalities by time of day_Yr | C135: G_DataSheet | D135: B3624 | E135: B3623 | F135: B:\Projects\60546469 - SPaTS_ 1-281_RoadSafetyAnalysisAndReporting\3 - Work Packages\STATS19 2018\3 September Report\Appendix\db_Elements | G135: B:\Projects\60546469 - SPaTS_ 1-281_RoadSafetyAnalysisAndReporting\3 - Work Packages\STATS19 2018\3 September Report\Appendix\db_Elements\030_013_APP_H_Fatalities by time of day_Yr.txt
B136: 030_014_APP_H_Fatalities by day of week_Yr | C136: G_DataSheet | D136: B3924 | E136: B3923 | F136: B:\Projects\60546469 - SPaTS_ 1-281_RoadSafetyAnalysisAndReporting\3 - Work Packages\STATS19 2018\3 September Report\Appendix\db_Elements | G136: =F136&"\"&B136&".txt" -> B:\Projects\60546469 - SPaTS_ 1-281_RoadSafetyAnalysisAndReporting\3 - Work Packages\STATS19 2018\3 September Report\Appendix\db_Elements\030_014_APP_H_Fatalities by day of week_Yr.txt
B137: 030_015_APP_H_Fatalities by month of year_Yr | C137: G_DataSheet | D137: B4224 | E137: B4223 | F137: B:\Projects\60546469 - SPaTS_ 1-281_RoadSafetyAnalysisAndReporting\3 - Work Packages\STATS19 2018\3 September Report\Appendix\db_Elements | G137: B:\Projects\60546469 - SPaTS_ 1-281_RoadSafetyAnalysisAndReporting\3 - Work Packages\STATS19 2018\3 September Report\Appendix\db_Elements\030_015_APP_H_Fatalities by month of year_Yr.txt
B138: 030_016_APP_H_CF fatal col by yr | C138: G_DataSheet | D138: B4524 | E138: B4523 | F138: B:\Projects\60546469 - SPaTS_ 1-281_RoadSafetyAnalysisAndReporting\3 - Work Packages\STATS19 2018\3 September Report\Appendix\db_Elements | G138: B:\Projects\60546469 - SPaTS_ 1-281_RoadSafetyAnalysisAndReporting\3 - Work Packages\STATS19 2018\3 September Report\Appendix\db_Elements\030_016_APP_H_CF fatal col by yr.txt
B139: 030_017_Fatal driver age invovled | C139: G_DataSheet | D139: B4824 | E139: B4823 | F139: B:\Projects\60546469 - SPaTS_ 1-281_RoadSafetyAnalysisAndReporting\3 - Work Packages\STATS19 2018\3 September Report\Appendix\db_Elements | G139: B:\Projects\60546469 - SPaTS_ 1-281_RoadSafetyAnalysisAndReporting\3 - Work Packages\STATS19 2018\3 September Report\Appendix\db_Elements\030_017_Fatal driver age invovled.txt
B140: 030_018_Fatalities by cas age | C140: G_DataSheet | D140: B5124 | E140: B5123 | F140: B:\Projects\60546469 - SPaTS_ 1-281_RoadSafetyAnalysisAndReporting\3 - Work Packages\STATS19 2018\3 September Report\Appendix\db_Elements | G140: B:\Projects\60546469 - SPaTS_ 1-281_RoadSafetyAnalysisAndReporting\3 - Work Packages\STATS19 2018\3 September Report\Appendix\db_Elements\030_018_Fatalities by cas age.txt
B141: 030_019_Fatalities by cas age band | C141: G_DataSheet | D141: B5424 | E141: B5423 | F141: B:\Projects\60546469 - SPaTS_ 1-281_RoadSafetyAnalysisAndReporting\3 - Work Packages\STATS19 2018\3 September Report\Appendix\db_Elements | G141: B:\Projects\60546469 - SPaTS_ 1-281_RoadSafetyAnalysisAndReporting\3 - Work Packages\STATS19 2018\3 September Report\Appendix\db_Elements\030_019_Fatalities by cas age band.txt
B142: 030_020_Fatalities by cas type | C142: G_DataSheet | D142: B5724 | E142: B5723 | F142: B:\Projects\60546469 - SPaTS_ 1-281_RoadSafetyAnalysisAndReporting\3 - Work Packages\STATS19 2018\3 September Report\Appendix\db_Elements | G142: B:\Projects\60546469 - SPaTS_ 1-281_RoadSafetyAnalysisAndReporting\3 - Work Packages\STATS19 2018\3 September Report\Appendix\db_Elements\030_020_Fatalities by cas type.txt
B143: 030_021_Fatalities by area and region | C143: G_DataSheet | D143: B6024 | E143: B6023 | F143: B:\Projects\60546469 - SPaTS_ 1-281_RoadSafetyAnalysisAndReporting\3 - Work Packages\STATS19 2018\3 September Report\Appendix\db_Elements | G143: B:\Projects\60546469 - SPaTS_ 1-281_RoadSafetyAnalysisAndReporting\3 - Work Packages\STATS19 2018\3 September Report\Appendix\db_Elements\030_021_Fatalities by area and region.txt
B144: 030_022_Fatalities_by_single_vehicle_invovled | C144: G_DataSheet | D144: B6324 | E144: B6323 | F144: B:\Projects\60546469 - SPaTS_ 1-281_RoadSafetyAnalysisAndReporting\3 - Work Packages\STATS19 2018\3 September Report\Appendix\db_Elements | G144: B:\Projects\60546469 - SPaTS_ 1-281_RoadSafetyAnalysisAndReporting\3 - Work Packages\STATS19 2018\3 September Report\Appendix\db_Elements\030_022_Fatalities_by_single_vehicle_invovled.txt
B145: 030_023_Fatal singelVeh_driverAge | C145: G_DataSheet | D145: B6624 | E145: B6623 | F145: B:\Projects\60546469 - SPaTS_ 1-281_RoadSafetyAnalysisAndReporting\3 - Work Packages\STATS19 2018\3 September Report\Appendix\db_Elements | G145: B:\Projects\60546469 - SPaTS_ 1-281_RoadSafetyAnalysisAndReporting\3 - Work Packages\STATS19 2018\3 September Report\Appendix\db_Elements\030_023_Fatal singelVeh_driverAge.txt
B146: 030_024_Fatalies_SinVeh_by VehType | C146: G_DataSheet | D146: B6924 | E146: B6923 | F146: B:\Projects\60546469 - SPaTS_ 1-281_RoadSafetyAnalysisAndReporting\3 - Work Packages\STATS19 2018\3 September Report\Appendix\db_Elements | G146: B:\Projects\60546469 - SPaTS_ 1-281_RoadSafetyAnalysisAndReporting\3 - Work Packages\STATS19 2018\3 September Report\Appendix\db_Elements\030_024_Fatalies_SinVeh_by VehType.txt
B147: 030_025_Fatal_singleVeh_Cfs | C147: G_DataSheet | D147: B7224 | E147: B7223 | F147: B:\Projects\60546469 - SPaTS_ 1-281_RoadSafetyAnalysisAndReporting\3 - Work Packages\STATS19 2018\3 September Report\Appendix\db_Elements | G147: B:\Projects\60546469 - SPaTS_ 1-281_RoadSafetyAnalysisAndReporting\3 - Work Packages\STATS19 2018\3 September Report\Appendix\db_Elements\030_025_Fatal_singleVeh_Cfs.txt
B148: 030_026_fatal_TimeOfWeek_yr | C148: G_DataSheet | D148: B7524 | E148: B7523 | F148: B:\Projects\60546469 - SPaTS_ 1-281_RoadSafetyAnalysisAndReporting\3 - Work Packages\STATS19 2018\3 September Report\Appendix\db_Elements | G148: B:\Projects\60546469 - SPaTS_ 1-281_RoadSafetyAnalysisAndReporting\3 - Work Packages\STATS19 2018\3 September Report\Appendix\db_Elements\030_026_fatal_TimeOfWeek_yr.txt
B149: 030_001A_Fatal_Collisons_Road_Name_and_Year | C149: G_DataSheet | D149: B7824 | E149: B7823 | F149: B:\Projects\60546469 - SPaTS_ 1-281_RoadSafetyAnalysisAndReporting\3 - Work Packages\STATS19 2018\3 September Report\Appendix\db_Elements | G149: B:\Projects\60546469 - SPaTS_ 1-281_RoadSafetyAnalysisAndReporting\3 - Work Packages\STATS19 2018\3 September Report\Appendix\db_Elements\030_001A_Fatal_Collisons_Road_Name_and_Year.txt
B150: 030_002A_Fatal_collision_roadtype_year | C150: G_DataSheet | D150: B8124 | E150: B8123 | F150: B:\Projects\60546469 - SPaTS_ 1-281_RoadSafetyAnalysisAndReporting\3 - Work Packages\STATS19 2018\3 September Report\Appendix\db_Elements | G150: B:\Projects\60546469 - SPaTS_ 1-281_RoadSafetyAnalysisAndReporting\3 - Work Packages\STATS19 2018\3 September Report\Appendix\db_Elements\030_002A_Fatal_collision_roadtype_year.txt
B151: 030_004A_Fatal_Object_Hit_On_Carr_and_yr | C151: G_DataSheet | D151: B8424 | E151: B8423 | F151: B:\Projects\60546469 - SPaTS_ 1-281_RoadSafetyAnalysisAndReporting\3 - Work Packages\STATS19 2018\3 September Report\Appendix\db_Elements | G151: B:\Projects\60546469 - SPaTS_ 1-281_RoadSafetyAnalysisAndReporting\3 - Work Packages\STATS19 2018\3 September Report\Appendix\db_Elements\030_004A_Fatal_Object_Hit_On_Carr_and_yr.txt
B152: 030_005A_Fat_Object_Hit_Off_Carr_And_Yr | C152: G_DataSheet | D152: B8724 | E152: B8723 | F152: B:\Projects\60546469 - SPaTS_ 1-281_RoadSafetyAnalysisAndReporting\3 - Work Packages\STATS19 2018\3 September Report\Appendix\db_Elements | G152: B:\Projects\60546469 - SPaTS_ 1-281_RoadSafetyAnalysisAndReporting\3 - Work Packages\STATS19 2018\3 September Report\Appendix\db_Elements\030_005A_Fat_Object_Hit_Off_Carr_And_Yr.txt
B153: 030_006A_Fat_WetSkidd_RdCondit_Collisions_Yr | C153: G_DataSheet | D153: B9024 | E153: B9023 | F153: B:\Projects\60546469 - SPaTS_ 1-281_RoadSafetyAnalysisAndReporting\3 - Work Packages\STATS19 2018\3 September Report\Appendix\db_Elements | G153: B:\Projects\60546469 - SPaTS_ 1-281_RoadSafetyAnalysisAndReporting\3 - Work Packages\STATS19 2018\3 September Report\Appendix\db_Elements\030_006A_Fat_WetSkidd_RdCondit_Collisions_Yr.txt
B154: 030_007A_Fat_LightCondition_RoadClassification_yr | C154: G_DataSheet | D154: B9324 | E154: B9323 | F154: B:\Projects\60546469 - SPaTS_ 1-281_RoadSafetyAnalysisAndReporting\3 - Work Packages\STATS19 2018\3 September Report\Appendix\db_Elements | G154: B:\Projects\60546469 - SPaTS_ 1-281_RoadSafetyAnalysisAndReporting\3 - Work Packages\STATS19 2018\3 September Report\Appendix\db_Elements\030_007A_Fat_LightCondition_RoadClassification_yr.txt
B155: 030_008A_Fat_Junction_Detail_And_Yr | C155: G_DataSheet | D155: B9624 | E155: B9623 | F155: B:\Projects\60546469 - SPaTS_ 1-281_RoadSafetyAnalysisAndReporting\3 - Work Packages\STATS19 2018\3 September Report\Appendix\db_Elements | G155: B:\Projects\60546469 - SPaTS_ 1-281_RoadSafetyAnalysisAndReporting\3 - Work Packages\STATS19 2018\3 September Report\Appendix\db_Elements\030_008A_Fat_Junction_Detail_And_Yr.txt
B156: 030_009A_Fat_Involvinghardsh_lybyLocation_yr | C156: G_DataSheet | D156: B9924 | E156: B9923 | F156: B:\Projects\60546469 - SPaTS_ 1-281_RoadSafetyAnalysisAndReporting\3 - Work Packages\STATS19 2018\3 September Report\Appendix\db_Elements | G156: B:\Projects\60546469 - SPaTS_ 1-281_RoadSafetyAnalysisAndReporting\3 - Work Packages\STATS19 2018\3 September Report\Appendix\db_Elements\030_009A_Fat_Involvinghardsh_lybyLocation_yr.txt
B157: 030_010A_Fat_ByDriverAgeGroup_Yr | C157: G_DataSheet | D157: B10224 | E157: B10223 | F157: B:\Projects\60546469 - SPaTS_ 1-281_RoadSafetyAnalysisAndReporting\3 - Work Packages\STATS19 2018\3 September Report\Appendix\db_Elements | G157: B:\Projects\60546469 - SPaTS_ 1-281_RoadSafetyAnalysisAndReporting\3 - Work Packages\STATS19 2018\3 September Report\Appendix\db_Elements\030_010A_Fat_ByDriverAgeGroup_Yr.txt
B158: 030_012A_Fat_JourneyPurpose_Yr | C158: G_DataSheet | D158: B10524 | E158: B10523 | F158: B:\Projects\60546469 - SPaTS_ 1-281_RoadSafetyAnalysisAndReporting\3 - Work Packages\STATS19 2018\3 September Report\Appendix\db_Elements | G158: B:\Projects\60546469 - SPaTS_ 1-281_RoadSafetyAnalysisAndReporting\3 - Work Packages\STATS19 2018\3 September Report\Appendix\db_Elements\030_012A_Fat_JourneyPurpose_Yr.txt
B159: 030_011A_Fat_by_VehicleTypeInv_and_yr | C159: G_DataSheet | D159: B10824 | E159: B10823 | F159: B:\Projects\60546469 - SPaTS_ 1-281_RoadSafetyAnalysisAndReporting\3 - Work Packages\STATS19 2018\3 September Report\Appendix\db_Elements | G159: B:\Projects\60546469 - SPaTS_ 1-281_RoadSafetyAnalysisAndReporting\3 - Work Packages\STATS19 2018\3 September Report\Appendix\db_Elements\030_011A_Fat_by_VehicleTypeInv_and_yr.txt
B160: 030_013A_Fatalities_By_TimeOfDay_Yr | C160: G_DataSheet | D160: B11124 | E160: B11123 | F160: B:\Projects\60546469 - SPaTS_ 1-281_RoadSafetyAnalysisAndReporting\3 - Work Packages\STATS19 2018\3 September Report\Appendix\db_Elements | G160: B:\Projects\60546469 - SPaTS_ 1-281_RoadSafetyAnalysisAndReporting\3 - Work Packages\STATS19 2018\3 September Report\Appendix\db_Elements\030_013A_Fatalities_By_TimeOfDay_Yr.txt
B161: 030_014A_Fatalities_By_DayOfWeek_Yr | C161: G_DataSheet | D161: B11424 | E161: B11423 | F161: B:\Projects\60546469 - SPaTS_ 1-281_RoadSafetyAnalysisAndReporting\3 - Work Packages\STATS19 2018\3 September Report\Appendix\db_Elements | G161: B:\Projects\60546469 - SPaTS_ 1-281_RoadSafetyAnalysisAndReporting\3 - Work Packages\STATS19 2018\3 September Report\Appendix\db_Elements\030_014A_Fatalities_By_DayOfWeek_Yr.txt
B162: 030_015A_Fatalities_By_MonthOfYear_Yr | C162: G_DataSheet | D162: B11724 | E162: B11723 | F162: B:\Projects\60546469 - SPaTS_ 1-281_RoadSafetyAnalysisAndReporting\3 - Work Packages\STATS19 2018\3 September Report\Appendix\db_Elements | G162: B:\Projects\60546469 - SPaTS_ 1-281_RoadSafetyAnalysisAndReporting\3 - Work Packages\STATS19 2018\3 September Report\Appendix\db_Elements\030_015A_Fatalities_By_MonthOfYear_Yr.txt
B163: 030_003a_APP_H_Fatal_cas_Rapid_CF ANALYSIS | C163: G_DataSheet | D163: B12024 | E163: B12023 | F163: B:\Projects\60546469 - SPaTS_ 1-281_RoadSafetyAnalysisAndReporting\3 - Work Packages\STATS19 2018\3 September Report\Appendix\db_Elements | G163: B:\Projects\60546469 - SPaTS_ 1-281_RoadSafetyAnalysisAndReporting\3 - Work Packages\STATS19 2018\3 September Report\Appendix\db_Elements\030_003a_APP_H_Fatal_cas_Rapid_CF ANALYSIS.txt
B164: datasheet14_age_gender_cas type | C164: G_DataSheet | D164: B12324 | E164: B12323 | F164: B:\Projects\60546469 - SPaTS_ 1-281_RoadSafetyAnalysisAndReporting\3 - Work Packages\STATS19 2018\3 September Report\Appendix\db_Elements | G164: B:\Projects\60546469 - SPaTS_ 1-281_RoadSafetyAnalysisAndReporting\3 - Work Packages\STATS19 2018\3 September Report\Appendix\db_Elements\datasheet14_age_gender_cas type.txt
B165: Top20Motorway_CF_Fatal_Collisions | C165: G_DataSheet | D165: B12624 | E165: B12623 | F165: B:\Projects\60546469 - SPaTS_ 1-281_RoadSafetyAnalysisAndReporting\3 - Work Packages\STATS19 2018\3 September Report\Appendix\db_Elements | G165: B:\Projects\60546469 - SPaTS_ 1-281_RoadSafetyAnalysisAndReporting\3 - Work Packages\STATS19 2018\3 September Report\Appendix\db_Elements\Top20Motorway_CF_Fatal_Collisions.txt
B166: Top20ARoad_CF_Fatal_Collisions | C166: G_DataSheet | D166: B12924 | E166: B12923 | F166: B:\Projects\60546469 - SPaTS_ 1-281_RoadSafetyAnalysisAndReporting\3 - Work Packages\STATS19 2018\3 September Report\Appendix\db_Elements | G166: B:\Projects\60546469 - SPaTS_ 1-281_RoadSafetyAnalysisAndReporting\3 - Work Packages\STATS19 2018\3 September Report\Appendix\db_Elements\Top20ARoad_CF_Fatal_Collisions.txt
B167: Top20ARoad_SingleCarriageway_CF_Fatal_Collisions | C167: G_DataSheet | D167: B13224 | E167: B13223 | F167: B:\Projects\60546469 - SPaTS_ 1-281_RoadSafetyAnalysisAndReporting\3 - Work Packages\STATS19 2018\3 September Report\Appendix\db_Elements | G167: B:\Projects\60546469 - SPaTS_ 1-281_RoadSafetyAnalysisAndReporting\3 - Work Packages\STATS19 2018\3 September Report\Appendix\db_Elements\Top20ARoad_SingleCarriageway_CF_Fatal_Collisions.txt
B168: Top20ARoad_DualCarriageway_CF_Fatal_Collisions | C168: G_DataSheet | D168: B13524 | E168: B13523 | F168: B:\Projects\60546469 - SPaTS_ 1-281_RoadSafetyAnalysisAndReporting\3 - Work Packages\STATS19 2018\3 September Report\Appendix\db_Elements | G168: B:\Projects\60546469 - SPaTS_ 1-281_RoadSafetyAnalysisAndReporting\3 - Work Packages\STATS19 2018\3 September Report\Appendix\db_Elements\Top20ARoad_DualCarriageway_CF_Fatal_Collisions.txt
B169: 032_001_APP_I_SIC by road name and year | C169: H_DataSheet | D169: B24 | E169: B23 | F169: B:\Projects\60546469 - SPaTS_ 1-281_RoadSafetyAnalysisAndReporting\3 - Work Packages\STATS19 2018\3 September Report\Appendix\db_Elements | G169: B:\Projects\60546469 - SPaTS_ 1-281_RoadSafetyAnalysisAndReporting\3 - Work Packages\STATS19 2018\3 September Report\Appendix\db_Elements\032_001_APP_I_SIC by road name and year.txt
B170: 032_002_APP_I_SIC by road type and year | C170: H_DataSheet | D170: B324 | E170: B323 | F170: B:\Projects\60546469 - SPaTS_ 1-281_RoadSafetyAnalysisAndReporting\3 - Work Packages\STATS19 2018\3 September Report\Appendix\db_Elements | G170: B:\Projects\60546469 - SPaTS_ 1-281_RoadSafetyAnalysisAndReporting\3 - Work Packages\STATS19 2018\3 September Report\Appendix\db_Elements\032_002_APP_I_SIC by road type and year.txt
B171: 032_003_01_SIC_col_Cfs | C171: H_DataSheet | D171: B624 | E171: B623 | F171: B:\Projects\60546469 - SPaTS_ 1-281_RoadSafetyAnalysisAndReporting\3 - Work Packages\STATS19 2018\3 September Report\Appendix\db_Elements | G171: B:\Projects\60546469 - SPaTS_ 1-281_RoadSafetyAnalysisAndReporting\3 - Work Packages\STATS19 2018\3 September Report\Appendix\db_Elements\032_003_01_SIC_col_Cfs.txt
B172: 032_004_APP_I_SIC_by object hit on carr and year | C172: H_DataSheet | D172: B924 | E172: B923 | F172: B:\Projects\60546469 - SPaTS_ 1-281_RoadSafetyAnalysisAndReporting\3 - Work Packages\STATS19 2018\3 September Report\Appendix\db_Elements | G172: B:\Projects\60546469 - SPaTS_ 1-281_RoadSafetyAnalysisAndReporting\3 - Work Packages\STATS19 2018\3 September Report\Appendix\db_Elements\032_004_APP_I_SIC_by object hit on carr and year.txt
B173: 032_005_APP_I_SIC_by object hit off carr and year | C173: H_DataSheet | D173: B1224 | E173: B1223 | F173: B:\Projects\60546469 - SPaTS_ 1-281_RoadSafetyAnalysisAndReporting\3 - Work Packages\STATS19 2018\3 September Report\Appendix\db_Elements | G173: B:\Projects\60546469 - SPaTS_ 1-281_RoadSafetyAnalysisAndReporting\3 - Work Packages\STATS19 2018\3 September Report\Appendix\db_Elements\032_005_APP_I_SIC_by object hit off carr and year.txt
B174: 032_006_APP_I_SIC_RdConditino_Skidding_yr | C174: H_DataSheet | D174: B1524 | E174: B1523 | F174: B:\Projects\60546469 - SPaTS_ 1-281_RoadSafetyAnalysisAndReporting\3 - Work Packages\STATS19 2018\3 September Report\Appendix\db_Elements | G174: B:\Projects\60546469 - SPaTS_ 1-281_RoadSafetyAnalysisAndReporting\3 - Work Packages\STATS19 2018\3 September Report\Appendix\db_Elements\032_006_APP_I_SIC_RdConditino_Skidding_yr.txt
B175: 032_007_APP_I_SIC_lightCondition_RdClass_yr | C175: H_DataSheet | D175: B1824 | E175: B1823 | F175: B:\Projects\60546469 - SPaTS_ 1-281_RoadSafetyAnalysisAndReporting\3 - Work Packages\STATS19 2018\3 September Report\Appendix\db_Elements | G175: B:\Projects\60546469 - SPaTS_ 1-281_RoadSafetyAnalysisAndReporting\3 - Work Packages\STATS19 2018\3 September Report\Appendix\db_Elements\032_007_APP_I_SIC_lightCondition_RdClass_yr.txt
B176: 032_008_APP_I_SIC_JunctionDetail_yr | C176: H_DataSheet | D176: B2124 | E176: B2123 | F176: B:\Projects\60546469 - SPaTS_ 1-281_RoadSafetyAnalysisAndReporting\3 - Work Packages\STATS19 2018\3 September Report\Appendix\db_Elements | G176: B:\Projects\60546469 - SPaTS_ 1-281_RoadSafetyAnalysisAndReporting\3 - Work Packages\STATS19 2018\3 September Report\Appendix\db_Elements\032_008_APP_I_SIC_JunctionDetail_yr.txt
B177: 032_009_APP_I_SIC_involving hardSH_lybysby location and yr | C177: H_DataSheet | D177: B2424 | E177: B2423 | F177: B:\Projects\60546469 - SPaTS_ 1-281_RoadSafetyAnalysisAndReporting\3 - Work Packages\STATS19 2018\3 September Report\Appendix\db_Elements | G177: B:\Projects\60546469 - SPaTS_ 1-281_RoadSafetyAnalysisAndReporting\3 - Work Packages\STATS19 2018\3 September Report\Appendix\db_Elements\032_009_APP_I_SIC_involving hardSH_lybysby location and yr.txt
B178: 032_010_APP_I_SIC_by driverAgeGroupInv and yr | C178: H_DataSheet | D178: B2724 | E178: B2723 | F178: B:\Projects\60546469 - SPaTS_ 1-281_RoadSafetyAnalysisAndReporting\3 - Work Packages\STATS19 2018\3 September Report\Appendix\db_Elements | G178: B:\Projects\60546469 - SPaTS_ 1-281_RoadSafetyAnalysisAndReporting\3 - Work Packages\STATS19 2018\3 September Report\Appendix\db_Elements\032_010_APP_I_SIC_by driverAgeGroupInv and yr.txt
B179: 032_011_APP_I_SIC_by VehTypeInv and yr | C179: H_DataSheet | D179: B3024 | E179: B3023 | F179: B:\Projects\60546469 - SPaTS_ 1-281_RoadSafetyAnalysisAndReporting\3 - Work Packages\STATS19 2018\3 September Report\Appendix\db_Elements | G179: B:\Projects\60546469 - SPaTS_ 1-281_RoadSafetyAnalysisAndReporting\3 - Work Packages\STATS19 2018\3 September Report\Appendix\db_Elements\032_011_APP_I_SIC_by VehTypeInv and yr.txt
B180: 032_012_APP_I_SIC_by JourneyPurposeInv and yr | C180: H_DataSheet | D180: B3324 | E180: B3323 | F180: B:\Projects\60546469 - SPaTS_ 1-281_RoadSafetyAnalysisAndReporting\3 - Work Packages\STATS19 2018\3 September Report\Appendix\db_Elements | G180: B:\Projects\60546469 - SPaTS_ 1-281_RoadSafetyAnalysisAndReporting\3 - Work Packages\STATS19 2018\3 September Report\Appendix\db_Elements\032_012_APP_I_SIC_by JourneyPurposeInv and yr.txt
B181: 032_013_APP_I_SIC by time of day_Yr | C181: H_DataSheet | D181: B3624 | E181: B3623 | F181: B:\Projects\60546469 - SPaTS_ 1-281_RoadSafetyAnalysisAndReporting\3 - Work Packages\STATS19 2018\3 September Report\Appendix\db_Elements | G181: B:\Projects\60546469 - SPaTS_ 1-281_RoadSafetyAnalysisAndReporting\3 - Work Packages\STATS19 2018\3 September Report\Appendix\db_Elements\032_013_APP_I_SIC by time of day_Yr.txt
B182: 032_014_APP_I_SIC by day of week_Yr | C182: H_DataSheet | D182: B3924 | E182: B3923 | F182: B:\Projects\60546469 - SPaTS_ 1-281_RoadSafetyAnalysisAndReporting\3 - Work Packages\STATS19 2018\3 September Report\Appendix\db_Elements | G182: B:\Projects\60546469 - SPaTS_ 1-281_RoadSafetyAnalysisAndReporting\3 - Work Packages\STATS19 2018\3 September Report\Appendix\db_Elements\032_014_APP_I_SIC by day of week_Yr.txt
B183: 032_015_APP_I_SIC by month of year_Yr | C183: H_DataSheet | D183: B4224 | E183: B4223 | F183: B:\Projects\60546469 - SPaTS_ 1-281_RoadSafetyAnalysisAndReporting\3 - Work Packages\STATS19 2018\3 September Report\Appendix\db_Elements | G183: B:\Projects\60546469 - SPaTS_ 1-281_RoadSafetyAnalysisAndReporting\3 - Work Packages\STATS19 2018\3 September Report\Appendix\db_Elements\032_015_APP_I_SIC by month of year_Yr.txt
B184: 032_016_SIC_driverAge_invovled | C184: H_DataSheet | D184: B4524 | E184: B4523 | F184: B:\Projects\60546469 - SPaTS_ 1-281_RoadSafetyAnalysisAndReporting\3 - Work Packages\STATS19 2018\3 September Report\Appendix\db_Elements | G184: B:\Projects\60546469 - SPaTS_ 1-281_RoadSafetyAnalysisAndReporting\3 - Work Packages\STATS19 2018\3 September Report\Appendix\db_Elements\032_016_SIC_driverAge_invovled.txt
B185: 032_017_SIC_CasAgeBand | C185: H_DataSheet | D185: B4824 | E185: B4823 | F185: B:\Projects\60546469 - SPaTS_ 1-281_RoadSafetyAnalysisAndReporting\3 - Work Packages\STATS19 2018\3 September Report\Appendix\db_Elements | G185: B:\Projects\60546469 - SPaTS_ 1-281_RoadSafetyAnalysisAndReporting\3 - Work Packages\STATS19 2018\3 September Report\Appendix\db_Elements\032_017_SIC_CasAgeBand.txt
B186: 032_018_SIC_CasAge | C186: H_DataSheet | D186: B5124 | E186: B5123 | F186: B:\Projects\60546469 - SPaTS_ 1-281_RoadSafetyAnalysisAndReporting\3 - Work Packages\STATS19 2018\3 September Report\Appendix\db_Elements | G186: B:\Projects\60546469 - SPaTS_ 1-281_RoadSafetyAnalysisAndReporting\3 - Work Packages\STATS19 2018\3 September Report\Appendix\db_Elements\032_018_SIC_CasAge.txt
B187: 032_019_SIC_CasType | C187: H_DataSheet | D187: B5424 | E187: B5423 | F187: B:\Projects\60546469 - SPaTS_ 1-281_RoadSafetyAnalysisAndReporting\3 - Work Packages\STATS19 2018\3 September Report\Appendix\db_Elements | G187: B:\Projects\60546469 - SPaTS_ 1-281_RoadSafetyAnalysisAndReporting\3 - Work Packages\STATS19 2018\3 September Report\Appendix\db_Elements\032_019_SIC_CasType.txt
B188: 032_020_SIC_SingleVeh_driverAge | C188: H_DataSheet | D188: B5724 | E188: B5723 | F188: B:\Projects\60546469 - SPaTS_ 1-281_RoadSafetyAnalysisAndReporting\3 - Work Packages\STATS19 2018\3 September Report\Appendix\db_Elements | G188: B:\Projects\60546469 - SPaTS_ 1-281_RoadSafetyAnalysisAndReporting\3 - Work Packages\STATS19 2018\3 September Report\Appendix\db_Elements\032_020_SIC_SingleVeh_driverAge.txt
B189: 032_021_SIC_singVeh_byVehType | C189: H_DataSheet | D189: B6024 | E189: B6023 | F189: B:\Projects\60546469 - SPaTS_ 1-281_RoadSafetyAnalysisAndReporting\3 - Work Packages\STATS19 2018\3 September Report\Appendix\db_Elements | G189: B:\Projects\60546469 - SPaTS_ 1-281_RoadSafetyAnalysisAndReporting\3 - Work Packages\STATS19 2018\3 September Report\Appendix\db_Elements\032_021_SIC_singVeh_byVehType.txt
B190: 032_022__SIC_SingleVeh_CFs | C190: H_DataSheet | D190: B6324 | E190: B6323 | F190: B:\Projects\60546469 - SPaTS_ 1-281_RoadSafetyAnalysisAndReporting\3 - Work Packages\STATS19 2018\3 September Report\Appendix\db_Elements | G190: B:\Projects\60546469 - SPaTS_ 1-281_RoadSafetyAnalysisAndReporting\3 - Work Packages\STATS19 2018\3 September Report\Appendix\db_Elements\032_022__SIC_SingleVeh_CFs.txt
B191: 032_023_SIC_timeOfWeek_yr | C191: H_DataSheet | D191: B6624 | E191: B6623 | F191: B:\Projects\60546469 - SPaTS_ 1-281_RoadSafetyAnalysisAndReporting\3 - Work Packages\STATS19 2018\3 September Report\Appendix\db_Elements | G191: B:\Projects\60546469 - SPaTS_ 1-281_RoadSafetyAnalysisAndReporting\3 - Work Packages\STATS19 2018\3 September Report\Appendix\db_Elements\032_023_SIC_timeOfWeek_yr.txt
B192: 032_001A_SeriousCollision_By_Top20RoadNames_Yr | C192: H_DataSheet | D192: B6924 | E192: B6923 | F192: B:\Projects\60546469 - SPaTS_ 1-281_RoadSafetyAnalysisAndReporting\3 - Work Packages\STATS19 2018\3 September Report\Appendix\db_Elements | G192: B:\Projects\60546469 - SPaTS_ 1-281_RoadSafetyAnalysisAndReporting\3 - Work Packages\STATS19 2018\3 September Report\Appendix\db_Elements\032_001A_SeriousCollision_By_Top20RoadNames_Yr.txt
B193: 032_004A_Serious_Collision_By_OjectHitOnCarr_Yr | C193: H_DataSheet | D193: B7224 | E193: B7223 | F193: B:\Projects\60546469 - SPaTS_ 1-281_RoadSafetyAnalysisAndReporting\3 - Work Packages\STATS19 2018\3 September Report\Appendix\db_Elements | G193: B:\Projects\60546469 - SPaTS_ 1-281_RoadSafetyAnalysisAndReporting\3 - Work Packages\STATS19 2018\3 September Report\Appendix\db_Elements\032_004A_Serious_Collision_By_OjectHitOnCarr_Yr.txt
B194: 032_005A_Serious_Collisions_By_ObjectHitOffCarr_Yr | C194: H_DataSheet | D194: B7524 | E194: B7523 | F194: B:\Projects\60546469 - SPaTS_ 1-281_RoadSafetyAnalysisAndReporting\3 - Work Packages\STATS19 2018\3 September Report\Appendix\db_Elements | G194: B:\Projects\60546469 - SPaTS_ 1-281_RoadSafetyAnalysisAndReporting\3 - Work Packages\STATS19 2018\3 September Report\Appendix\db_Elements\032_005A_Serious_Collisions_By_ObjectHitOffCarr_Yr.txt
B195: 032_006A_Serious_Collisions_RdCondition_Skidding_Yr | C195: H_DataSheet | D195: B7824 | E195: B7823 | F195: B:\Projects\60546469 - SPaTS_ 1-281_RoadSafetyAnalysisAndReporting\3 - Work Packages\STATS19 2018\3 September Report\Appendix\db_Elements | G195: B:\Projects\60546469 - SPaTS_ 1-281_RoadSafetyAnalysisAndReporting\3 - Work Packages\STATS19 2018\3 September Report\Appendix\db_Elements\032_006A_Serious_Collisions_RdCondition_Skidding_Yr.txt
B196: 032_007A_Serious_Collisions_LightCondition_RdClass_Yr | C196: H_DataSheet | D196: B8124 | E196: B8123 | F196: B:\Projects\60546469 - SPaTS_ 1-281_RoadSafetyAnalysisAndReporting\3 - Work Packages\STATS19 2018\3 September Report\Appendix\db_Elements | G196: B:\Projects\60546469 - SPaTS_ 1-281_RoadSafetyAnalysisAndReporting\3 - Work Packages\STATS19 2018\3 September Report\Appendix\db_Elements\032_007A_Serious_Collisions_LightCondition_RdClass_Yr.txt
B197: 032_008A_Serious_Collisions_JunctionDetail_Yr | C197: H_DataSheet | D197: B8424 | E197: B8423 | F197: B:\Projects\60546469 - SPaTS_ 1-281_RoadSafetyAnalysisAndReporting\3 - Work Packages\STATS19 2018\3 September Report\Appendix\db_Elements | G197: B:\Projects\60546469 - SPaTS_ 1-281_RoadSafetyAnalysisAndReporting\3 - Work Packages\STATS19 2018\3 September Report\Appendix\db_Elements\032_008A_Serious_Collisions_JunctionDetail_Yr.txt
B198: 032_009A_Serious_Collisions_InvHardsh_LybyLocation_Yr | C198: H_DataSheet | D198: B8724 | E198: B8723 | F198: B:\Projects\60546469 - SPaTS_ 1-281_RoadSafetyAnalysisAndReporting\3 - Work Packages\STATS19 2018\3 September Report\Appendix\db_Elements | G198: B:\Projects\60546469 - SPaTS_ 1-281_RoadSafetyAnalysisAndReporting\3 - Work Packages\STATS19 2018\3 September Report\Appendix\db_Elements\032_009A_Serious_Collisions_InvHardsh_LybyLocation_Yr.txt
B199: 032_010A_Serious_Collisions_DriverAgeGroupInv_Yr | C199: H_DataSheet | D199: B9024 | E199: B9023 | F199: B:\Projects\60546469 - SPaTS_ 1-281_RoadSafetyAnalysisAndReporting\3 - Work Packages\STATS19 2018\3 September Report\Appendix\db_Elements | G199: B:\Projects\60546469 - SPaTS_ 1-281_RoadSafetyAnalysisAndReporting\3 - Work Packages\STATS19 2018\3 September Report\Appendix\db_Elements\032_010A_Serious_Collisions_DriverAgeGroupInv_Yr.txt
B200: 032_011A_Serious_Collisions_VehTypeInv_Yr | C200: H_DataSheet | D200: B9324 | E200: B9323 | F200: B:\Projects\60546469 - SPaTS_ 1-281_RoadSafetyAnalysisAndReporting\3 - Work Packages\STATS19 2018\3 September Report\Appendix\db_Elements | G200: =F200&"\"&B200&".txt" -> B:\Projects\60546469 - SPaTS_ 1-281_RoadSafetyAnalysisAndReporting\3 - Work Packages\STATS19 2018\3 September Report\Appendix\db_Elements\032_011A_Serious_Collisions_VehTypeInv_Yr.txt
... 283 more rows

Sheet TableProperties (hidden)
A1: Table Properties | B1: Coulmn width
B2: 0.5
A3: Cat 1 | B3: 10
A4: Cat2 | B4: 10
A5: Cat3 | B5: 10
A6: 2005 | B6: 10
A7: 2006 | B7: 10
A8: 2007 | B8: 10
A9: 2008 | B9: 10
A10: 2009 | B10: 10
A11: 2010 | B11: 10
A12: 2011 | B12: 10
A13: 2012 | B13: 10
A14: 2013 | B14: 10
A15: 2014 | B15: 10
A16: 2015 | B16: 10
A17: 2016 | B17: 10
A18: 2017 | B18: 10
A19: 2018 | B19: 10
A20: 2019 | B20: 10
A21: 2020 | B21: 10
A22: BSL (2005-2009) | B22: 12.15
A23: Road Classification | B23: 12.7
A24: Collision Severity | B24: 14.7
A25: Casualty severity | B25: 16
A26: Road Type | B26: 18.6
A27: Road Class | B27: 9.5
A28: Road user type | B28: 24
A29: Vulnerable road user type | B29: 15.3
A30: Non-motorised road user type | B30: 15.3
A31: Quarter | B31: 8
A32: Month | B32: 6.5
A33: Weekday | B33: 12
A34: Grouped Time | B34: 14
A35: Road Surface Condition | B35: 22
A36: Weather | B36: 15
A37: Collision Type | B37: 19.5
A38: Object hit off carriageway | B38: 31
A39: Object hit on carriageway | B39: 31
A40: Number of vehicles | B40: 11
A41: No. | B41: 4
A42: Road | B42: 10
A43: Casualty age group | B43: 15
A44: Length | B44: 10
A45: Journey Purpose | B45: 27
A46: Vehicle Type | B46: 16
A47: Grouped Time | B47: 14
A48: CF Involvement | B48: 15
A49: Length (miles) | B49: 13

Sheet Sheet_Template (hidden)
A7: Casualty report Appendix
A8: Table_B.1
A9: Collisions by road classification, severity and year
I11: # columns | J11: ####
A12: Date updated
A13: 2016-09-20
A14: Input Year
A15: =Cover!$N$18 -> 2018
A16: Baseline Years
A17: =Cover!$N$20&"-"&Cover!$N$21 -> 2005-2009
A19: Link to Contents
B22: =A8&" - "&A9 -> Table_B.1 - Collisions by road classification, severity and year
M23: =K24&" change from" -> 2018 change from
B24: Cat 1 | C24: Cat2 | D24: Cat3 | E24: ="BSL ("&A17&")" -> BSL (2005-2009) | F24: =G24-1 -> 2013 | G24: =H24-1 -> 2014 | H24: =I24-1 -> 2015 | I24: =J24-1 -> 2016 | J24: =K24-1 -> 2017 | K24: =A15 -> 2018 | L24: =E24 -> BSL (2005-2009) | M24: =I24 -> 2016 | N24: =J24 -> 2017
B25: Ob1.1 | C25: Ob2.1 | D25: Ob3.1 | E25: 2000 | F25: 101 | G25: 102 | H25: 103 | I25: 104 | J25: 105 | K25: 106 | L25: =IF(E25>15,(K25-E25)/E25,"-") -> -0.947 | M25: =IF(I25>15,(K25-I25)/I25,"-") -> 0.01923076923 | N25: =IF(J25>15,(K25-J25)/J25,"-") -> 0.009523809524
B26: Ob1.2 | C26: Ob2.2 | D26: Ob3.2 | E26: 100 | F26: 101 | G26: 1000 | H26: 103 | I26: 104 | J26: 105 | K26: 5 | L26: =IF(E26>15,(K26-E26)/E26,"-") -> -0.95 | M26: =IF(I26>15,(K26-I26)/I26,"-") -> -0.9519230769 | N26: =IF(J26>15,(K26-J26)/J26,"-") -> -0.9523809524
B27: Ob1.3 | C27: Ob2.3 | D27: Ob3.3 | E27: 50000 | F27: 101 | G27: 99000 | H27: 103 | I27: 104 | J27: 500 | K27: 900 | L27: -0.982 | M27: =IF(I27>15,(K27-I27)/I27,"-") -> 7.653846154 | N27: 0.8
B28: Ob1.4 | C28: Ob2.4 | D28: Ob3.4 | E28: 76 | F28: 101 | G28: 102 | H28: 103 | I28: 104 | J28: 105 | K28: 106 | L28: 0.3947368421 | M28: 0.01923076923 | N28: 0.009523809524
B29: Ob1.5 | C29: Ob2.5 | D29: Ob3.5 | E29: 76 | F29: 101 | G29: 102 | H29: 103 | I29: 104 | J29: 105 | K29: 106 | L29: 0.3947368421 | M29: 0.01923076923 | N29: 0.009523809524
B30: Ob1.6 | C30: Ob2.6 | D30: Ob3.6 | E30: 100 | F30: 101 | G30: 102 | H30: 103 | I30: 104 | J30: 105 | K30: 106 | L30: 0.06 | M30: 0.01923076923 | N30: 0.009523809524
B31: Ob1.7 | C31: Ob2.7 | D31: Ob3.7 | E31: 100 | F31: 101 | G31: 102 | H31: 103 | I31: 104 | J31: 15 | K31: 106 | L31: 0.06 | M31: 0.01923076923 | N31: -
B32: Ob1.8 | C32: Ob2.8 | D32: Ob3.8 | E32: 100 | F32: 101 | G32: 102 | H32: 103 | I32: 104 | J32: 105 | K32: 106 | L32: 0.06 | M32: 0.01923076923 | N32: 0.009523809524
B33: Ob1.9 | C33: Ob2.9 | D33: Ob3.9 | E33: 100 | F33: 101 | G33: 102 | H33: 103 | I33: 104 | J33: 105 | K33: 106 | L33: 0.06 | M33: 0.01923076923 | N33: 0.009523809524
B34: Ob1.10 | C34: Ob2.10 | D34: Ob3.10 | E34: 100 | F34: 101 | G34: 102 | H34: 103 | I34: 104 | J34: 105 | K34: 106 | L34: 0.06 | M34: 0.01923076923 | N34: 0.009523809524
B36: Notes:
B37: a) Please add or remove as appropriate
B38: b) Please add or remove as appropriate
B39: c) Please add or remove as appropriate

Sheet List (hidden)
A1: Please select Input Year | B1: Please select Input Year From | C1: Please select Input Year To | D1: Please select BSL Start Year | E1: Please select BSL End Year | J1: Current Year | K1: Date updated
A2: 2005 | B2: 2005 | C2: 2005 | D2: 2005 | E2: 2005 | J2: 2018 | K2: 2020-02-12
A3: 2006 | B3: 2006 | C3: 2006 | D3: 2006 | E3: 2006
A4: 2007 | B4: 2007 | C4: 2007 | D4: 2007 | E4: 2007
A5: 2008 | B5: 2008 | C5: 2008 | D5: 2008 | E5: 2008
A6: 2009 | B6: 2009 | C6: 2009 | D6: 2009 | E6: 2009
A7: 2010 | B7: 2010 | C7: 2010 | D7: 2010 | E7: 2010
A8: 2011 | B8: 2011 | C8: 2011 | D8: 2011 | E8: 2011
A9: 2012 | B9: 2012 | C9: 2012 | D9: 2012 | E9: 2012
A10: 2013 | B10: 2013 | C10: 2013 | D10: 2013 | E10: 2013
A11: 2014 | B11: 2014 | C11: 2014 | D11: 2014 | E11: 2014
A12: 2015 | B12: 2015 | C12: 2015 | D12: 2015 | E12: 2015
A13: 2016 | B13: 2016 | C13: 2016 | D13: 2016 | E13: 2016
A14: 2017 | B14: 2017 | C14: 2017 | D14: 2017 | E14: 2017
A15: 2018 | B15: 2018 | C15: 2018 | D15: 2018 | E15: 2018

Sheet Cover
A7: Reported Road Casualties on the Strategic Network 2018:
A8: Appendix
A10: Issue
A11: 1
A13: Link to Document Control
A15: Link to Contents
A17: Document variables | M17: DropDownCell | N17: DropValue
A18: Input Year | D18: Some tables have fixed values and will therefore not be updated to reflect user inputs. The title of a table indicates if it is a fixed year table. | M18: 15 | N18: =INDEX(List_InYear,M18,1) -> 2018
A20: Baseline Start Year | M20: 2 | N20: =INDEX(List_BSLYrStart,M20,1) -> 2005 | O20: Year_Diff | P20: =M21-M20 -> 4 | Q20: =IF(P20<0,0,1) -> 1
A21: Baseline End Year | D21: =IF(P20<0,"Please selecet a value greater than or equal to the BSL Start Year", "") ->  | M21: 6 | N21: =INDEX(List_BSLYrEnd,M21,1) -> 2009
M22: Previously Calculated Values
D23: =IF(O26=1,"","Please update data tables, values selected do not match those used on data tables") ->  | M23: InYear | N23: 2018 | O23: =N23=N18 -> TRUE
M24: BSLstart | N24: 2005 | O24: =N24=N20 -> TRUE
M25: BSLend | N25: 2009 | O25: =N25=N21 -> TRUE
O26: =O23*O24*O25 -> 1

Sheet Doc_Control
A6: Document Control
A7: Document Title | B7: Reported Road Casualties on the Strategic Network 2015: Appendix
A8: Author | B8: Amanda Lowe/ AECOM
A9: Owner | B9: Stuart Lovatt
A10: Distribution | B10: NPPD SAPT
A11: Document Status | B11: Issue
A13: Revision History
A14: Version | B14: Date | C14: Description | D14: Author
A15: 1 | B15: 2020-02-12 | C15: Issue | D15: AECOM
A19: The original format of this document is copyright to Highways England
A21: Link to Cover
A23: Link to Contents

Sheet Contents
A7: Link to Cover
A9: Link to Document Control
A11: Contents | B11: Only contains Core Tables. Tables that are greyed out can be found in other appendices files
A12: Category | B12: Table | C12: Table Name
B13: Tab_A.1 | C13: Glossary | D13: 1
A14: Collisions Statistics
B15: Tab_B.1 | C15: =INDIRECT($B15&"!A9") -> Collisions by severity and year | D15: 0
B16: Tab_B.2 | C16: =INDIRECT($B16&"!A9") -> Collisions by road class, speed limit and severity, 2018 | D16: 0
B17: Tab_B.3 | C17: Collisions by road classification, speed limit, and severity, 2018 | D17: 0
B18: Tab_B.4 | C18: Collisions involving cars by road class, vehicle location and year | D18: 0
B19: Tab_B.5 | C19: Collisions involving LGVs by road class, vehicle location and year | D19: 0
B20: Tab_B.6 | C20: Collisions involving HGVs by road class, vehicle location and year | D20: 0
B21: Tab_B.7 | C21: Collisions involving bus/coach by road class, vehicle location and year | D21: 0
B22: Tab_B.8 | C22: Collisions involving at least one motorcycle by road class, vehicle location and year | D22: 0
B23: Tab_B.9 | C23: Collisions involving pedal cycles by road class, vehicle location and year | D23: 0
B24: Tab_B.10 | C24: Collisions involving agricultural vehicles by road class, vehicle location and year | D24: 0
B25: Tab_B.11 | C25: Collisions involving pedestrians and single vehicle by vehicle type and severity, 2018 | D25: 0
B26: Tab_B.12 | C26: Collisions by road classification, road surface condition and light condition, 2018 | D26: 0
B27: Tab_B.13 | C27: Collisions during darkness by road classification, weather condition and severity, 2018 | D27: 0
B28: Tab_B.14 | C28: Collisions during daylight by road classification, weather condition, and severity, 2018 | D28: 0
B29: Tab_B.15 | C29: Single vehicle collisions by object hit off carriageway, road classification and severity, 2018 | D29: 0
B30: Tab_B.16 | C30: Collisions by region, severity and year | D30: 0
B31: Tab_B.17 | C31: Collisions by road classification, severity and year | D31: 0
B32: Tab_B.18 | C32: Collisions by user type involved, severity and year | D32: 0
B33: Tab_B.19 | C33: Collisions by vulnerable user types involved, severity and year | D33: 0
B34: Tab_B.20 | C34: Collisions by non-motorised user types involved, severity and year | D34: 0
B35: Tab_B.21 | C35: Collisions by casualty age groups involved, severity and year | D35: 0
B36: Tab_B.22 | C36: Collisions by month and year | D36: 0
B37: Tab_B.23 | C37: Collisions by time period, day and year | D37: 0
B38: Tab_B.24 | C38: Collisions by road surface conditions, weather conditions and year | D38: 0
B39: Tab_B.25 | C39: Collisions by collision type and year | D39: 0
B40: Tab_B.26 | C40: KSI collisions from vehicles hitting objects off carriageway by year | D40: 0
B41: Tab_B.27 | C41: KSI collisions from vehicles hitting objects on carriageway by year | D41: 0
B42: Tab_B.28 | C42: Collisions from vehicles hitting objects off carriageway by year | D42: 0
B43: Tab_B.29 | C43: Collisions from vehicles hitting objects on carriageway by year | D43: 0
B44: Tab_B.30 | C44: Collisions involving single vehicles by severity and year | D44: 0
B45: Tab_B.31 | C45: Collisions involving HGVs by severity and year | D45: 0
B46: Tab_B.32 | C46: Collisions involving LGVs by severity and year | D46: 0
B47: Tab_B.33 | C47: Collisions involving young drivers (aged 17 – 24 years) by severity and year | D47: 0
B48: Tab_B.34 | C48: Collisions involving elderly drivers (aged 70 years and over) by severity and year | D48: 0
B49: Tab_B.35 | C49: Collisions involving towed caravans by severity and year | D49: 0
B50: Tab_B.36 | C50: Collisions by top 20 road names and year | D50: 0
B51: Tab_B.37 | C51: Fatal collisions by top 20 road names and year | D51: 0
B52: Tab_B.38 | C52: Fatal+Serious collisions by top 20 road names and year | D52: 0
A53: Casualty Statistics
B54: Tab_C.1 | C54: Casualties by severity and year | D54: 0
B55: Tab_C.2 | C55: Casualties by road classification, severity and year | D55: 0
B56: Tab_C.3 | C56: Casualty by road class, speed limit and severity, 2018 | D56: 0
B57: Tab_C.4 | C57: Total casualties by casualty type, age and year | D57: 0
B58: Tab_C.5 | C58: Casualties involved in fatal collisions by casualty type, severity and year | D58: 0
B59: Tab_C.6 | C59: Casualties involved in serious collisions by casualty type and year | D59: 0
B60: Tab_C.7 | C60: Casualties involved in slight collisions by casualty type and year | D60: 0
B61: Tab_C.8 | C61: Male casualties by road classification and severity | D61: 0
B62: Tab_C.9 | C62: Female casualties by road classification and severity | D62: 0
B63: Tab_C.10 | C63: Casualties by age group, gender, severity and year | D63: 0
B64: Tab_C.11 | C64: Casualties involving seatbelt use by severity and year | D64: 0
B65: Tab_C.12 | C65: Casualties by region, casualty severity and year | D65: 0
B66: Tab_C.13 | C66: Casualties by casualty type, severity and year | D66: 0
B67: Tab_C.14 | C67: Casualties by vulnerable user type, severity and year | D67: 0
B68: Tab_C.15 | C68: Casualties by non-motorised user types, severity and year | D68: 0
B69: Tab_C.16 | C69: Casualties by age groups, severity and year | D69: 0
B70: Tab_C.17 | C70: Bus and coach occupant casualties by age, severity and year | D70: 0
B71: Tab_C.18 | C71: Car occupant casualties by age group, severity and year | D71: 0
B72: Tab_C.19 | C72: Other goods vehicle casualties by age group, severity and year | D72: 0
B73: Tab_C.20 | C73: Heavy goods vehicle occupant casualties by age group, severity and year | D73: 0
B74: Tab_C.21 | C74: Pedal cycle casualties by age group, severity and year | D74: 0
B75: Tab_C.22 | C75: Pedestrian casualties by age group, severity and year | D75: 0
B76: Tab_C.23 | C76: Motorcycle casualties by age group, severity and year | D76: 0
B77: Tab_C.24 | C77: Casualties by month and year | D77: 0
B78: Tab_C.25 | C78: Casualties by time period, day and year | D78: 0
B79: Tab_C.26 | C79: Casualties by road surface conditions, weather conditions and year | D79: 0
B80: Tab_C.27 | C80: =INDIRECT($B80&"!A9") -> Casualties by collision type and year | D80: 0
B81: Tab_C.28 | C81: KSI casualties from vehicles hitting objects off carriageway by year | D81: 0
B82: Tab_C.29 | C82: KSI casualties from vehicles hitting objects on carriageway by year | D82: 0
B83: Tab_C.30 | C83: Casualties from vehicles hitting objects off carriageway by year | D83: 0
B84: Tab_C.31 | C84: Casualties from vehicles hitting objects on carriageway by year | D84: 0
B85: Tab_C.32 | C85: Casualties involving single vehicles by severity, casualty type and year | D85: 0
B86: Tab_C.33 | C86: Casualties involving heavy goods vehicles by severity, casualty type and year | D86: 0
B87: Tab_C.34 | C87: Casualties involving LGVs by severity, casualty type and year | D87: 0
B88: Tab_C.35 | C88: Casualties involving young drivers by severity, casualty type and year | D88: 0
B89: Tab_C.36 | C89: Casualties involving elderly drivers by severity, casualty type and year | D89: 0
B90: Tab_C.37 | C90: Casualties involving towed caravans by severity, casualty type and year | D90: 0
B91: Tab_C.38 | C91: Casualties by top 20 road names and year | D91: 0
B92: Tab_C.39 | C92: Fatally injured casualties by top 20 road names and year | D92: 0
B93: Tab_C.40 | C93: KSI casualties by top 20 road names and year | D93: 0
A94: Casualty Rate Statistics
B95: Tab_D.1 | C95: Collision rates per 100 MVM by severity and year | D95: 0
B96: Tab_D.2 | C96: Casualty rates per 100 MVM by severity and year | D96: 0
B97: Tab_D.3 | C97: Collision user rates per 100 MVM by road user type, severity and year | D97: 0
B98: Tab_D.4 | C98: Casualty user rates per 100 MVM by road user type, severity and year | D98: 0
B99: Tab_D.5 | C99: Vehicle type rates per 100 MVM by vehicle user type, severity and year | D99: 0
B100: Tab_D.6 | C100: Total traffic (100 MVM) by top 40 road names and year | D100: 0
B101: Tab_D.7 | C101: Total casualties per 100 MVM by top 40 trafficked roads and year | D101: 0
B102: Tab_D.8 | C102: Total collisions per 100 MVM by top 40 trafficked roads and year | D102: 0
B103: Tab_D.9 | C103: Total casualties per 100 MVM by top 20 motorways and year | D103: 0
B104: Tab_D.10 | C104: Total collisions per 100 MVM by top 20 motorways and year | D104: 0
B105: Tab_D.11 | C105: Total casualties per 100 MVM by top 20 A-roads and year | D105: 0
B106: Tab_D.12 | C106: Total collisions per 100 MVM by top 20 A-roads and year | D106: 0
B107: Tab_D.13 | C107: Casualties per 100 MVM by road classification, severity and year | D107: 0
B108: Tab_D.14 | C108: Collisions per 100 MVM by road classification, severity and year | D108: 0
B109: Tab_D.15 | C109: KSI casualties per 100 MVM by top 40 trafficked road names and year | D109: 0
B110: Tab_D.16 | C110: KSI severity collisions per 100 MVM by top 40 trafficked road names and year | D110: 0
B111: Tab_D.17 | C111: KSI casualties per 100 MVM by top 20 motorways and year | D111: 0
B112: Tab_D.18 | C112: KSI severity collisions per 100 MVM by top 20 motorways and year | D112: 0
B113: Tab_D.19 | C113: KSI casualties per 100 MVM by top 20 A-roads and year | D113: 0
B114: Tab_D.20 | C114: KSI severity collisions per 100 MVM by top 20 A-roads and year | D114: 0
A115: Vehicle Statistics
B116: Tab_E.1 | C116: Number of vehicles by collision type, severity and year | D116: 0
B117: Tab_E.2 | C117: Male and female drivers involved in collisions by vehicle type and year | D117: 0
B118: Tab_E.3 | C118: Vehicles involved in collisions by vehicle type, road classification and collision severity, 2018 | D118: 0
B119: Tab_E.4 | C119: Vehicles involved in collisions by vehicle type and junction detail, 2018 | D119: 0
B120: Tab_E.5 | C120: Vehicles skidding, overturning etc. by road surface condition and vehicle type, 2018 | D120: 0
B121: Tab_E.6 | C121: Vehicles involved in collisions by vehicle type and manoeuvre, 2018 | D121: 0
B122: Tab_E.7 | C122: KSI casualties by vehicle interaction and year | D122: 0
B123: Tab_E.8 | C123: Fatal and serious collisions by vehicle interaction and year | D123: 0
B124: Tab_E.9 | C124: Casualties by vehicle interaction and severity in 2018 | D124: 0
B125: Tab_E.10 | C125: Collisions by vehicle interaction and severity in 2018 | D125: 0
B126: Tab_E.11 | C126: Casualties by user type, vehicle age group and year | D126: 0
B127: Tab_E.12 | C127: Collisions by vehicle involved, vehicle age group involved and year | D127: 0
B128: Tab_E.13 | C128: Casualties involving at least one vehicle defect contributory factor by severity and year | D128: 0
B129: Tab_E.14 | C129: Collisions involving at least one vehicle defect contributory factor by severity and year | D129: 0
A130: Contributory Factor Statistics
B131: Tab_F.1 | C131: Contributory factor group classification and codes | D131: 0
B132: Tab_F.2 | C132: Casualties involving contributory factors by severity, 2018 | D132: 0
B133: Tab_F.3 | C133: Collisions involving contributory factors by severity, 2018 | D133: 0
B134: Tab_F.4 | C134: Collisions involving contributory factors on Motorways by severity, 2018 | D134: 0
B135: Tab_F.5 | C135: Collisions involving contributory factors on A-roads by severity, 2018 | D135: 0
B136: Tab_F.6 | C136: Casualties involving contributory factors on Motorways by severity, 2018 | D136: 0
B137: Tab_F.7 | C137: Casualties involving contributory factors on A-roads by severity, 2018 | D137: 0
B138: Tab_F.8 | C138: Collisions involving contributory factors on A-road single carriageways by severity, 2018 | D138: 0
B139: Tab_F.9 | C139: Collisions involving contributory factors on A-road dual carriageways by severity, 2018 | D139: 0
B140: Tab_F.10 | C140: Casualties involving contributory factors on A-road single carriagways by severity, 2018 | D140: 0
B141: Tab_F.11 | C141: Casualties involving contributory factors on A-road dual carriagways by severity, 2018 | D141: 0
B142: Tab_F.12 | C142: Top 20 contributory factors for total collisions on Motorways by year | D142: 0
B143: Tab_F.13 | C143: Top 20 contributory factors for total collisions on A-roads by year | D143: 0
B144: Tab_F.14 | C144: =INDIRECT($B144&"!A9") -> Top 20 contributory factors for total collisions on A-road single carriageways by year | D144: 0
B145: Tab_F.15 | C145: Top 20 contributory factors for total collisions on A-road dual carriageways by year | D145: 0
B146: Tab_F.16 | C146: Top 20 contributory factors for total casualties on Motorways by year | D146: 0
B147: Tab_F.17 | C147: Top 20 contributory factors for total casualties on A-roads by year | D147: 0
B148: Tab_F.18 | C148: Top 20 contributory factors for total casualties on A-road single carriageways by year | D148: 0
B149: Tab_F.19 | C149: Top 20 contributory factors for total casualties on A-road dual carriageways by year | D149: 0
B150: Tab_F.20 | C150: Top 20 contributory factors for casualties by severity and year | D150: 0
B151: Tab_F.21 | C151: Top 20 contributory factors for collisions by severity and year | D151: 0
B152: Tab_F.22 | C152: Casualties involving drivers or riders impaired by alcohol and/or drugs by road classification, severity and year | D152: 0
B153: Tab_F.23 | C153: Collisions involving drivers or riders impaired by alcohol and/or drugs by road classification, severity and year | D153: 0
B154: Tab_F.24 | C154: Casualties involving drivers or riders impaired by alcohol and/or drugs by top 20 road names and year | D154: 0
B155: Tab_F.25 | C155: Collisions involving drivers or riders impaired by alcohol and/or drugs by top 20 road names and year | D155: 0
B156: Tab_F.26 | C156: Casualties involving drivers or riders fatigued by road classification, severity and year | D156: 0
B157: Tab_F.27 | C157: Collisions involving drivers or riders fatigued by road classification, severity and year | D157: 0
B158: Tab_F.28 | C158: Casualties involving drivers or riders fatigued by top 20 road names and year | D158: 0
B159: Tab_F.29 | C159: Collisions involving drivers or riders fatigued by top 20 road names and year | D159: 0
B160: Tab_F.30 | C160: Casualties involving drivers or riders exceeding the speed limit by road classification, severity and year | D160: 0
B161: Tab_F.31 | C161: Collisions involving drivers or riders exceeding the speed limit by road classification, severity and year | D161: 0
B162: Tab_F.32 | C162: Casualties involving drivers or riders exceeding the speed limit by top 20 road names and year | D162: 0
B163: Tab_F.33 | C163: Collisions involving drivers or riders exceeding the speed limit by top 20 road names and year | D163: 0
B164: Tab_F.34 | C164: Casualties involving drivers or riders distracted by road classification, severity and year | D164: 0
B165: Tab_F.35 | C165: Collisions involving drivers or riders distracted by road classification, severity and year | D165: 0
B166: Tab_F.36 | C166: Casualties involving distracted drivers or riders by top 20 road names and year | D166: 0
B167: Tab_F.37 | C167: Collisions involving distracted drivers or riders by top 20 road names and year | D167: 0
A168: Fatalities
B169: Tab_G.1 | C169: Fatally injured casualties by top 20 road names and year | D169: 0
B170: Tab_G.2 | C170: Fatal collisions by top 20 road names and year | D170: 0
B171: Tab_G.3 | C171: Fatally injured casualties by road classification and year | D171: 0
B172: Tab_G.4 | C172: Fatal collisions by road classification and year | D172: 0
B173: Tab_G.5 | C173: Top 20 contributory factors involving fatally injured casualties by year | D173: 0
B174: Tab_G.6 | C174: Male fatally injured casualties by casualty type, age and year | D174: 0
B175: Tab_G.7 | C175: Female fatally injured casualties by casualty type, age, and year | D175: 0
B176: Tab_G.8 | C176: Top 20 contributory factors involving fatal collisions by year | D176: 0
B177: Tab_G.9 | C177: Top 20 contributory factors for fatal collisions on Motorways by year | D177: 0
B178: Tab_G.10 | C178: Top 20 contributory factors for fatal collisions on A-roads by year | D178: 0
B179: Tab_G.11 | C179: Top 20 contributory factors for fatal collisions on A-road single carriageways by year | D179: 0
B180: Tab_G.12 | C180: Top 20 contributory factors for fatal collisions on A-road dual carriageways by year | D180: 0
B181: Tab_G.13 | C181: Fatally injured casualties by objects hit on carriageway and year | D181: 0
B182: Tab_G.14 | C182: Fatal collisions by objects hit on carriageway and year | D182: 0
B183: Tab_G.15 | C183: Fatally injured casualties by objects hit off carriageway and year | D183: 0
B184: Tab_G.16 | C184: Fatal collisions by objects hit off carriageway and year | D184: 0
B185: Tab_G.17 | C185: Fatally injured casualties by road condition, skidding and year | D185: 0
B186: Tab_G.18 | C186: Fatal collisions by road surface condition, skidding and year | D186: 0
B187: Tab_G.19 | C187: Fatally injured casualties by light conditions, road classification and year | D187: 0
B188: Tab_G.20 | C188: Fatal collisions by light conditions, road classification and year | D188: 0
B189: Tab_G.21 | C189: Fatally injured casualties by junction detail and year | D189: 0
B190: Tab_G.22 | C190: Fatal collisions by junction detail and year | D190: 0
B191: Tab_G.23 | C191: Fatally injured casualties involving hard shoulders or laybys by vehicle location and year | D191: 0
B192: Tab_G.24 | C192: Fatal collisions involving hard shoulders or laybys by vehicle location and year | D192: 0
B193: Tab_G.25 | C193: Fatally injured casualties by driver age group involved and year | D193: 0
B194: Tab_G.26 | C194: Fatal collisions by driver age group involved and year | D194: 0
B195: Tab_G.27 | C195: Fatally injured casualties by vehicle type involved and year | D195: 0
B196: Tab_G.28 | C196: Fatal collisions by vehicle type involved and year | D196: 0
B197: Tab_G.29 | C197: Fatally injured casualties by journey purpose, vehicle type and year | D197: 0
B198: Tab_G.30 | C198: Fatal collisions by journey purpose, vehicle type and year | D198: 0
B199: Tab_G.31 | C199: Fatally injured casualties by time of day and year | D199: 0
B200: Tab_G.32 | C200: Fatal collisions by time of day and year | D200: 0
B201: Tab_G.33 | C201: Fatally injured casualties by day of the week and year | D201: 0
B202: Tab_G.34 | C202: Fatal collisions by day of the week and year | D202: 0
B203: Tab_G.35 | C203: Fatally injured casualties by month and year | D203: 0
B204: Tab_G.36 | C204: Fatal collisions by month and year | D204: 0
A205: Seriously Injured
B206: Tab_H.1 | C206: Seriously injured casualties by top 20 road names and year | D206: 0
B207: Tab_H.2 | C207: Serious collisions by top 20 road names and year | D207: 0
B208: Tab_H.3 | C208: Seriously injured casualties by road classification and year | D208: 0
... 303 more rows

Sheet Tab_A.1
A7: Casualty report Appendix
A8: Tab_A.1
A9: Glossary
A12: Date updated
A13: =List!K2 -> 2020-02-12
A14: Input Year
A15: =Cover!$N$18 -> 2018
A17: Link to Contents
B20: =A8&" - "&A9 -> Tab_A.1 - Glossary
B21: Adults | C21: Person aged 16 years and over (except where otherwise stated)
B22: Baseline average | C22: Average of values between the year 2005 and 2009. (2005–2009 baseline average)
B23: Built-up roads | C23: Roads with speed limits of 40mph or less
B24: Buses and coaches | C24: Vehicle equipped to carry 17 or more passengers regardless of use
B25: Cars | C25: Includes cars, private hire cars and private taxis
B26: Collisions | C26: See “Personal injury collisions”
B27: Dual carriageway | C27: Road where two opposing directions of traffic are separated by a physical barrier. For context of this report only; roundabouts, slip roads and one way streets are classed as.
B28: Fatal collision | C28: A collision where at least one person was killed.
B29: Goods vehicles (GV) | C29: Includes all weight categories of goods vehicles unless stated otherwise
B30: Head on collision | C30: A collision involving at least two vehicles moving in opposite directions at point of impact, where both vehicles first point of impact was recorded as “Front”. For example, the front of vehicle 1 moving North to South collides with the front of vehicle 2 moving South to North. Vehicles that were parked, or where the vehicle movement was unknown are not included.
B31: HGV | C31: Heavy goods vehicle; classed as goods vehicle with known weight over 3.5 tonnes respectively.
B32: Junction collision | C32: A collision recorded as occurring within 20m of a junction.
B33: Killed | C33: Human casualties who sustained injuries which caused death less than 30 days after the collision. Confirmed suicides are excluded. Also referred to as fatalities.
B34: KSI | C34: Killed or seriously injured
B35: LGV (Other GV) | C35: Light weight goods vehicle; classed as goods vehicle with known weight equal to or less than 3.5tonnes and those GVs without a classification within STATS19 data.
B36: Motorcycle | C36: Includes all engine capacities of powered two wheelers or motorcycles.
B37: Motorways | C37: Motorway and A(M) roads.
B38: Non built-up roads | C38: Roads with speed limits of 50mph or more.
B39: Other vehicles | C39: Other vehicles include ambulances, fire engines, trams, refuse vehicles, road rollers, agricultural vehicles, excavators, mobile cranes, tower wagons, army tanks, pedestrian-controlled vehicles with a motor. Other non-motor vehicles include those drawn by animals, ridden horses, invalid carriages, etc.
B40: Overtake collision | C40: A collision involving at least one vehicle recorded as overtaking another vehicle.
B41: Pedal cyclist collision | C41: A collision involving at least one pedal cyclist casualty.
B42: Pedestrian collision | C42: A collision involving at least one pedestrian casualty.
B43: Personal injury collisions (PIC) | C43: Collisions resulting in at least one casualty of any severity.
B44: Referenced Network | C44: The definitive network against which collision and casualty trends will be monitored. From 2016, the referenced network will be that at 1st January and will be updated annually to capture changes on the SRN in a timely manner. Pre-2016 was a fixed reference network taken in December 2010.
B45: Serious collision | C45: Collision involving at least one casualty who is seriously injured with no casualties killed.
B46: Seriously injured | C46: An injury for which a person is detained in hospital as an “in-patient”, or any of the following injuries whether or not they are detained in hospital: fractures, concussion, internal injuries, crushing, burns, severe cuts and lacerations, severe general shock requiring medical treatment and injuries causing death 30 or more days after the collision.
B47: Severity | C47: Of a collision; the severity of the most injured casualty (fatal, serious or slight). Of a casualty; killed, seriously injured or slightly injured.
B48: Shunt collision | C48: A collision involving at least two vehicles moving in the same directions at point of impact, where one vehicles first point of impact was recorded as “Front” and the other vehicles as “Back”. For example, the front of vehicle 1 moving North to South collides with the back of vehicle 2 moving North to South. Vehicles that were parked, or where the vehicle movement was unknown are not included.
B49: Single vehicle collision | C49: A collision involving a single vehicle (includes collisions involving pedestrians).
B50: Single vehicle run off collision | C50: A collision involving a single vehicle recorded as leaving the carriageway (excludes collisions involving pedestrians).
B51: Slight collision | C51: Collision involving at least one casualty who is slightly injured with no casualties killed or seriously injured.
B52: Slightly injured | C52: An injury of a minor character such as a sprain (including neck whiplash injury), bruise or cut which are not judged to be severe, or slight shock requiring roadside attention. This definition includes injuries not requiring medical treatment.
B53: Traffic | C53: The number of vehicle-miles of traffic, measured in 100 million vehicle miles (100 MVM). Also referred to as hundred million vehicle miles (HMVM).
B54: Young motorist | C54: Drivers of vehicles aged between 17 and 24 years old whose vehicle is not powered two wheelers or pedal cycle.
B55: Young rider | C55: Rider of vehicles aged between 16 and 19 years old whose vehicle is a powered two wheelers.

Sheet B_DataSheet (hidden)
A7: Casualty report Appendix
A8: B_DataSheet
A12: Date updated
A13: =List!K2 -> 2020-02-12
A14: Input Year
A15: =Cover!$N$18 -> 2018
A17: Link to Contents
A21: BSL | AA21: Summary Years
A22: =Cover!$N$20 -> 2005 | AA22: =#REF! -> 
A23: =Cover!N21 -> 2009 | B23: 008_001_APP_B_HA Collisions by Road Types_Sev_Year | AA23: =#REF! -> 
A24: BSL | B24: RoadClass | C24: RoadType (TRL Grouping) | D24: RoadClassification | E24: AccidentSeverity | F24: 2005 | G24: 2006 | H24: 2007 | I24: 2008 | J24: 2009 | K24: 2010 | L24: 2011 | M24: 2012 | N24: 2013 | O24: 2014 | P24: 2015 | Q24: 2016 | R24: 2017 | S24: 2018
A25: =SUMIFS(B25:X25,$B$24:$X$24,">="&$A$22,$B$24:$X$24,"<="&$A$23)/($A$23-$A$22+1) -> 0 | B25: Other | C25: Dual Carriageway | D25: Built-up | E25: Slight | N25: 1 | AA25: =SUMIFS(B25:X25,$B$24:$X$24,">="&$AA$22,$B$24:$X$24,"<="&$AA$23) -> 0 | AD25: Collision Severity | AE25: BSL (2005-2009) | AF25: 2005 | AG25: 2006 | AH25: 2007 | AI25: 2008 | AJ25: 2009 | AK25: 2010 | AL25: 2011 | AM25: 2012 | AN25: 2013 | AO25: 2014 | AP25: 2015 | AQ25: 2016 | AR25: 2017 | AS25: 2018 | AT25: 2019 | AU25: 2020
A26: =SUMIFS(B26:X26,$B$24:$X$24,">="&$A$22,$B$24:$X$24,"<="&$A$23)/($A$23-$A$22+1) -> 0 | B26: Other | C26: Dual Carriageway | D26: Non Built-up | E26: Slight | N26: 1 | AA26: =SUMIFS(B26:X26,$B$24:$X$24,">="&$AA$22,$B$24:$X$24,"<="&$AA$23) -> 0 | AD26: Fatal | AE26: =AVERAGE(AF26:AJ26) -> 314 | AF26: =IF(OR($AD26="Fatal+Serious",$AD26="Total"),AF24+AF25,SUMIFS(F$25:F$60,$E$25:$E$60,$AD26)) -> 364 | AG26: =IF(OR($AD26="Fatal+Serious",$AD26="Total"),AG24+AG25,SUMIFS(G$25:G$60,$E$25:$E$60,$AD26)) -> 344 | AH26: 326 | AI26: 309 | AJ26: 227 | AK26: 231 | AL26: 226 | AM26: 201 | AN26: 226 | AO26: 192 | AP26: 202 | AQ26: 213 | AR26: 203 | AS26: 221 | AT26: 0 | AU26: 0
A27: =SUMIFS(B27:X27,$B$24:$X$24,">="&$A$22,$B$24:$X$24,"<="&$A$23)/($A$23-$A$22+1) -> 0 | B27: Other | C27: Single Carriageway | D27: Built-up | E27: Slight | N27: 2 | AA27: 0 | AD27: Serious | AE27: =AVERAGE(AF27:AJ27) -> 1570.6 | AF27: =IF(OR($AD27="Fatal+Serious",$AD27="Total"),AF25+AF26,SUMIFS(F$25:F$60,$E$25:$E$60,$AD27)) -> 1775 | AG27: =IF(OR($AD27="Fatal+Serious",$AD27="Total"),AG25+AG26,SUMIFS(G$25:G$60,$E$25:$E$60,$AD27)) -> 1628 | AH27: =IF(OR($AD27="Fatal+Serious",$AD27="Total"),AH25+AH26,SUMIFS(H$25:H$60,$E$25:$E$60,$AD27)) -> 1628 | AI27: =IF(OR($AD27="Fatal+Serious",$AD27="Total"),AI25+AI26,SUMIFS(I$25:I$60,$E$25:$E$60,$AD27)) -> 1423 | AJ27: =IF(OR($AD27="Fatal+Serious",$AD27="Total"),AJ25+AJ26,SUMIFS(J$25:J$60,$E$25:$E$60,$AD27)) -> 1399 | AK27: =IF(OR($AD27="Fatal+Serious",$AD27="Total"),AK25+AK26,SUMIFS(K$25:K$60,$E$25:$E$60,$AD27)) -> 1345 | AL27: =IF(OR($AD27="Fatal+Serious",$AD27="Total"),AL25+AL26,SUMIFS(L$25:L$60,$E$25:$E$60,$AD27)) -> 1278 | AM27: =IF(OR($AD27="Fatal+Serious",$AD27="Total"),AM25+AM26,SUMIFS(M$25:M$60,$E$25:$E$60,$AD27)) -> 1228 | AN27: =IF(OR($AD27="Fatal+Serious",$AD27="Total"),AN25+AN26,SUMIFS(N$25:N$60,$E$25:$E$60,$AD27)) -> 1209 | AO27: =IF(OR($AD27="Fatal+Serious",$AD27="Total"),AO25+AO26,SUMIFS(O$25:O$60,$E$25:$E$60,$AD27)) -> 1371 | AP27: =IF(OR($AD27="Fatal+Serious",$AD27="Total"),AP25+AP26,SUMIFS(P$25:P$60,$E$25:$E$60,$AD27)) -> 1320 | AQ27: =IF(OR($AD27="Fatal+Serious",$AD27="Total"),AQ25+AQ26,SUMIFS(Q$25:Q$60,$E$25:$E$60,$AD27)) -> 1482 | AR27: =IF(OR($AD27="Fatal+Serious",$AD27="Total"),AR25+AR26,SUMIFS(R$25:R$60,$E$25:$E$60,$AD27)) -> 1339 | AS27: =IF(OR($AD27="Fatal+Serious",$AD27="Total"),AS25+AS26,SUMIFS(S$25:S$60,$E$25:$E$60,$AD27)) -> 1453 | AT27: =IF(OR($AD27="Fatal+Serious",$AD27="Total"),AT25+AT26,SUMIFS(T$25:T$60,$E$25:$E$60,$AD27)) -> 0 | AU27: =IF(OR($AD27="Fatal+Serious",$AD27="Total"),AU25+AU26,SUMIFS(U$25:U$60,$E$25:$E$60,$AD27)) -> 0
A28: 0 | B28: Other | C28: Single Carriageway | D28: Non Built-up | E28: Serious | N28: 1 | AA28: 0 | AD28: Fatal+Serious | AE28: 1884.6 | AF28: 2139 | AG28: 1972 | AH28: 1954 | AI28: 1732 | AJ28: 1626 | AK28: 1576 | AL28: 1504 | AM28: 1429 | AN28: 1435 | AO28: 1563 | AP28: 1522 | AQ28: 1695 | AR28: 1542 | AS28: 1674 | AT28: 0 | AU28: 0
A29: 0.8 | B29: Motorway | C29: Dual Carriageway | D29: Built-up | E29: Fatal | G29: 2 | I29: 2 | K29: 1 | O29: 1 | P29: 3 | R29: 1 | S29: 1 | AA29: 0 | AD29: Slight | AE29: 11986.6 | AF29: 13214 | AG29: 12863 | AH29: 12311 | AI29: 11095 | AJ29: 10450 | AK29: 9838 | AL29: 9443 | AM29: 9091 | AN29: 8710 | AO29: 9026 | AP29: 8777 | AQ29: 8463 | AR29: 7301 | AS29: 6786 | AT29: 0 | AU29: 0
A30: =SUMIFS(B30:X30,$B$24:$X$24,">="&$A$22,$B$24:$X$24,"<="&$A$23)/($A$23-$A$22+1) -> 9 | B30: Motorway | C30: Dual Carriageway | D30: Built-up | E30: Serious | F30: 7 | G30: 13 | H30: 9 | I30: 6 | J30: 10 | K30: 8 | L30: 9 | M30: 5 | N30: 3 | O30: 2 | P30: 6 | Q30: 11 | R30: 6 | S30: 8 | AA30: 0 | AD30: Total | AE30: 13871.2 | AF30: 15353 | AG30: 14835 | AH30: 14265 | AI30: 12827 | AJ30: 12076 | AK30: 11414 | AL30: 10947 | AM30: 10520 | AN30: 10145 | AO30: 10589 | AP30: 10299 | AQ30: 10158 | AR30: =IF(OR($AD30="Fatal+Serious",$AD30="Total"),AR28+AR29,SUMIFS(R$25:R$60,$E$25:$E$60,$AD30)) -> 8843 | AS30: 8460 | AT30: 0 | AU30: 0
A31: =SUMIFS(B31:X31,$B$24:$X$24,">="&$A$22,$B$24:$X$24,"<="&$A$23)/($A$23-$A$22+1) -> 155.4 | B31: Motorway | C31: Dual Carriageway | D31: Built-up | E31: Slight | F31: 222 | G31: 162 | H31: 120 | I31: 138 | J31: 135 | K31: 115 | L31: 103 | M31: 66 | N31: 59 | O31: 72 | P31: 96 | Q31: 90 | R31: 108 | S31: 95 | AA31: 0
A32: 129.8 | B32: Motorway | C32: Dual Carriageway | D32: Non Built-up | E32: Fatal | F32: 156 | G32: 143 | H32: 132 | I32: 120 | J32: 98 | K32: 104 | L32: 78 | M32: 70 | N32: 85 | O32: 72 | P32: 79 | Q32: 74 | R32: 68 | S32: 73 | AA32: 0
A33: 673.6 | B33: Motorway | C33: Dual Carriageway | D33: Non Built-up | E33: Serious | F33: 721 | G33: 694 | H33: 726 | I33: 635 | J33: 592 | K33: 584 | L33: 527 | M33: 478 | N33: 483 | O33: 531 | P33: 532 | Q33: 605 | R33: 544 | S33: 608 | AA33: 0
A34: 5953 | B34: Motorway | C34: Dual Carriageway | D34: Non Built-up | E34: Slight | F34: 6600 | G34: 6463 | H34: 6119 | I34: 5533 | J34: 5050 | K34: 4992 | L34: 4412 | M34: 4350 | N34: 4151 | O34: 4254 | P34: 4092 | Q34: 3941 | R34: 3438 | S34: 3225 | AA34: 0
A35: 0.2 | B35: Motorway | C35: Single Carriageway | D35: Built-up | E35: Fatal | I35: 1 | AA35: 0
A36: 0.6 | B36: Motorway | C36: Single Carriageway | D36: Built-up | E36: Serious | F36: 1 | G36: 2 | L36: 1 | AA36: 0
A37: 12.4 | B37: Motorway | C37: Single Carriageway | D37: Built-up | E37: Slight | F37: 16 | G37: 17 | H37: 10 | I37: 5 | J37: 14 | K37: 9 | L37: 17 | M37: 13 | N37: 6 | O37: 4 | P37: 5 | Q37: 5 | R37: 8 | S37: 9 | AA37: 0
A38: 0.4 | B38: Motorway | C38: Single Carriageway | D38: Non Built-up | E38: Fatal | G38: 1 | J38: 1 | AA38: 0
A39: 1 | B39: Motorway | C39: Single Carriageway | D39: Non Built-up | E39: Serious | F39: 2 | G39: 1 | I39: 1 | J39: 1 | K39: 1 | N39: 1 | Q39: 2 | S39: 1 | AA39: 0
A40: 15 | B40: Motorway | C40: Single Carriageway | D40: Non Built-up | E40: Slight | F40: 12 | G40: 15 | H40: 12 | I40: 21 | J40: 15 | K40: 12 | L40: 6 | M40: 16 | N40: 8 | O40: 5 | P40: 13 | Q40: 10 | R40: 7 | S40: 9 | AA40: 0
A41: 5.4 | B41: A-road | C41: Dual Carriageway | D41: Built-up | E41: Fatal | F41: 8 | G41: 5 | H41: 6 | I41: 3 | J41: 5 | K41: 1 | L41: 4 | M41: 4 | N41: 2 | O41: 4 | P41: 3 | Q41: 4 | R41: 4 | S41: 6 | AA41: 0
A42: =SUMIFS(B42:X42,$B$24:$X$24,">="&$A$22,$B$24:$X$24,"<="&$A$23)/($A$23-$A$22+1) -> 50.8 | B42: A-road | C42: Dual Carriageway | D42: Built-up | E42: Serious | F42: 54 | G42: 42 | H42: 58 | I42: 50 | J42: 50 | K42: 45 | L42: 53 | M42: 50 | N42: 41 | O42: 58 | P42: 53 | Q42: 52 | R42: 43 | S42: 58 | AA42: 0
A43: 612.2 | B43: A-road | C43: Dual Carriageway | D43: Built-up | E43: Slight | F43: 659 | G43: 612 | H43: 637 | I43: 594 | J43: 559 | K43: 443 | L43: 617 | M43: 537 | N43: 493 | O43: 547 | P43: 498 | Q43: 493 | R43: 419 | S43: 375 | AA43: 0
A44: 114.4 | B44: A-road | C44: Dual Carriageway | D44: Non Built-up | E44: Fatal | F44: 125 | G44: 125 | H44: 124 | I44: 124 | J44: 74 | K44: 86 | L44: 92 | M44: 77 | N44: 80 | O44: 64 | P44: 73 | Q44: 87 | R44: 79 | S44: 85 | AA44: 0
A45: 543.4 | B45: A-road | C45: Dual Carriageway | D45: Non Built-up | E45: Serious | F45: 658 | G45: 579 | H45: 527 | I45: 490 | J45: 463 | K45: 490 | L45: 467 | M45: 458 | N45: 422 | O45: 506 | P45: 465 | Q45: 555 | R45: 479 | S45: 508 | AA45: 0
A46: 3753.8 | B46: A-road | C46: Dual Carriageway | D46: Non Built-up | E46: Slight | F46: 4092 | G46: 4010 | H46: 3865 | I46: 3468 | J46: 3334 | K46: 3083 | L46: 3176 | M46: 2998 | N46: 2934 | O46: 3042 | P46: 2993 | Q46: 2886 | R46: 2429 | S46: 2275 | AA46: 0
A47: 5.2 | B47: A-road | C47: Single Carriageway | D47: Built-up | E47: Fatal | F47: 4 | G47: 4 | H47: 6 | I47: 9 | J47: 3 | K47: 5 | L47: 7 | M47: 7 | N47: 9 | O47: 9 | P47: 6 | Q47: 3 | R47: 3 | S47: 1 | AA47: 0
A48: 57.2 | B48: A-road | C48: Single Carriageway | D48: Built-up | E48: Serious | F48: 66 | G48: 46 | H48: 66 | I48: 42 | J48: 66 | K48: 52 | L48: 57 | M48: 50 | N48: 44 | O48: 57 | P48: 59 | Q48: 55 | R48: 61 | S48: 67 | AA48: 0
A49: 397.4 | B49: A-road | C49: Single Carriageway | D49: Built-up | E49: Slight | F49: 395 | G49: 400 | H49: 397 | I49: 402 | J49: 393 | K49: 328 | L49: 309 | M49: 306 | N49: 314 | O49: 331 | P49: 319 | Q49: 315 | R49: 253 | S49: 228 | AA49: 0
A50: 57.8 | B50: A-road | C50: Single Carriageway | D50: Non Built-up | E50: Fatal | F50: 71 | G50: 64 | H50: 58 | I50: 50 | J50: 46 | K50: 34 | L50: 45 | M50: 43 | N50: 50 | O50: 42 | P50: 38 | Q50: 45 | R50: 48 | S50: 55 | AA50: 0
A51: 235 | B51: A-road | C51: Single Carriageway | D51: Non Built-up | E51: Serious | F51: 266 | G51: 251 | H51: 242 | I51: 199 | J51: 217 | K51: 165 | L51: 164 | M51: 187 | N51: 214 | O51: 217 | P51: 205 | Q51: 202 | R51: 206 | S51: 203 | AA51: 0
A52: 1087.4 | B52: A-road | C52: Single Carriageway | D52: Non Built-up | E52: Slight | F52: 1218 | G52: 1184 | H52: 1151 | I52: 934 | J52: 950 | K52: 856 | L52: 803 | M52: 805 | N52: 741 | O52: 771 | P52: 761 | Q52: 723 | R52: 639 | S52: 570 | AA52: 0
A53: 0 | AA53: 0
A54: 0 | AA54: 0
A55: 0 | AA55: 0
A56: 0 | AA56: 0
A57: 0 | AA57: 0
A58: 0 | AA58: 0
A59: 0 | AA59: 0
A60: 0 | AA60: 0
AA61: 0
AA62: 0
B323: 008_004_APP_B_HA Collisions by Month_Year
A324: BSL | B324: Quarter | C324: Month | D324: 2005 | E324: 2006 | F324: 2007 | G324: 2008 | H324: 2009 | I324: 2010 | J324: 2011 | K324: 2012 | L324: 2013 | M324: 2014 | N324: 2015 | O324: 2016 | P324: 2017 | Q324: 2018
A325: =SUMIFS(B325:X325,$B$324:$X$324,">="&$A$22,$B$324:$X$324,"<="&$A$23)/($A$23-$A$22+1) -> 1117.6 | B325: Q1 | C325: Jan | D325: 1205 | E325: 1053 | F325: 1173 | G325: 1116 | H325: 1041 | I325: 771 | J325: 894 | K325: 785 | L325: 709 | M325: 930 | N325: 862 | O325: 835 | P325: 755 | Q325: 698
A326: =SUMIFS(B326:X326,$B$324:$X$324,">="&$A$22,$B$324:$X$324,"<="&$A$23)/($A$23-$A$22+1) -> 1033 | B326: Q1 | C326: Feb | D326: 1133 | E326: 1158 | F326: 1025 | G326: 1072 | H326: 777 | I326: 882 | J326: 867 | K326: 772 | L326: 706 | M326: 795 | N326: 788 | O326: 791 | P326: 689 | Q326: 619
A327: 1080.6 | B327: Q1 | C327: Mar | D327: 1151 | E327: 1118 | F327: 1101 | G327: 1133 | H327: 900 | I327: 838 | J327: 842 | K327: 810 | L327: 775 | M327: 787 | N327: 778 | O327: 800 | P327: 648 | Q327: 627
A328: 1055.8 | B328: Q2 | C328: Apr | D328: 1121 | E328: 1074 | F328: 1095 | G328: 1076 | H328: 913 | I328: 946 | J328: 875 | K328: 837 | L328: 690 | M328: 792 | N328: 751 | O328: 787 | P328: 619 | Q328: 676
A329: 1103.6 | B329: Q2 | C329: May | D329: 1230 | E329: 1176 | F329: 1147 | G329: 1007 | H329: 958 | I329: 941 | J329: 823 | K329: 822 | L329: 827 | M329: 837 | N329: 806 | O329: 838 | P329: 749 | Q329: 766
A330: 1101.2 | B330: Q2 | C330: Jun | D330: 1237 | E330: 1221 | F330: 1129 | G330: 978 | H330: 941 | I330: 935 | J330: 929 | K330: 818 | L330: 828 | M330: 841 | N330: 830 | O330: 821 | P330: 721 | Q330: 702
A331: 1257.8 | B331: Q3 | C331: Jul | D331: 1336 | E331: 1404 | F331: 1340 | G331: 1128 | H331: 1081 | I331: 1015 | J331: 970 | K331: 981 | L331: 987 | M331: 962 | N331: 931 | O331: 841 | P331: 786 | Q331: 760
A332: =SUMIFS(B332:X332,$B$324:$X$324,">="&$A$22,$B$324:$X$324,"<="&$A$23)/($A$23-$A$22+1) -> 1227.4 | B332: Q3 | C332: Aug | D332: 1416 | E332: 1254 | F332: 1335 | G332: 1051 | H332: 1081 | I332: 1007 | J332: 947 | K332: 953 | L332: 918 | M332: 949 | N332: 903 | O332: 1009 | P332: 782 | Q332: 762
A333: 1164.4 | B333: Q3 | C333: Sep | D333: 1298 | E333: 1362 | F333: 1171 | G333: 1005 | H333: 986 | I333: 988 | J333: 941 | K333: 910 | L333: 813 | M333: 762 | N333: 882 | O333: 839 | P333: 711 | Q333: 704
A334: 1231 | B334: Q4 | C334: Oct | D334: 1419 | E334: 1347 | F334: 1249 | G334: 1109 | H334: 1031 | I334: 1046 | J334: 943 | K334: 909 | L334: 983 | M334: 992 | N334: 960 | O334: 863 | P334: 760 | Q334: 753
A335: 1284.6 | B335: Q4 | C335: Nov | D335: 1432 | E335: 1350 | F335: 1280 | G335: 1150 | H335: 1211 | I335: 1111 | J335: 973 | K335: 1006 | L335: 993 | M335: 1002 | N335: 944 | O335: 911 | P335: 805 | Q335: 737
A336: 1214.2 | B336: Q4 | C336: Dec | D336: 1375 | E336: 1318 | F336: 1220 | G336: 1002 | H336: 1156 | I336: 934 | J336: 943 | K336: 917 | L336: 916 | M336: 940 | N336: 864 | O336: 823 | P336: 818 | Q336: 656
A337: =SUMIFS(B337:X337,$B$324:$X$324,">="&$A$22,$B$324:$X$324,"<="&$A$23)/($A$23-$A$22+1) -> 0
A338: 0
A339: 0
A340: 0
A341: 0
A342: 0
A343: 0
A344: 0
A345: 0
B623: 008_005_APP_B_HA F_S Collisions by Month_Year
A624: BSL | B624: Quarter | C624: Month | D624: 2005 | E624: 2006 | F624: 2007 | G624: 2008 | H624: 2009 | I624: 2010 | J624: 2011 | K624: 2012 | L624: 2013 | M624: 2014 | N624: 2015 | O624: 2016 | P624: 2017 | Q624: 2018
A625: =SUMIFS(B625:X625,$B$624:$X$624,">="&$A$22,$B$624:$X$624,"<="&$A$23)/($A$23-$A$22+1) -> 145.4 | B625: Q1 | C625: Jan | D625: 169 | E625: 126 | F625: 165 | G625: 121 | H625: 146 | I625: 91 | J625: 118 | K625: 103 | L625: 85 | M625: 130 | N625: 108 | O625: 123 | P625: 122 | Q625: 126
A626: =SUMIFS(B626:X626,$B$624:$X$624,">="&$A$22,$B$624:$X$624,"<="&$A$23)/($A$23-$A$22+1) -> 135.2 | B626: Q1 | C626: Feb | D626: 176 | E626: 138 | F626: 121 | G626: 143 | H626: 98 | I626: 104 | J626: 103 | K626: 112 | L626: 87 | M626: 91 | N626: 121 | O626: 121 | P626: 97 | Q626: 112
A627: 144 | B627: Q1 | C627: Mar | D627: 172 | E627: 142 | F627: 144 | G627: 153 | H627: 109 | I627: 107 | J627: 108 | K627: 106 | L627: 97 | M627: 102 | N627: 92 | O627: 137 | P627: 107 | Q627: 117
A628: 155.8 | B628: Q2 | C628: Apr | D628: 155 | E628: 162 | F628: 178 | G628: 153 | H628: 131 | I628: 142 | J628: 115 | K628: 120 | L628: 99 | M628: 131 | N628: 109 | O628: 113 | P628: 122 | Q628: 133
A629: 158.4 | B629: Q2 | C629: May | D629: 173 | E629: 170 | F629: 144 | G629: 132 | H629: 173 | I629: 129 | J629: 123 | K629: 126 | L629: 126 | M629: 113 | N629: 143 | O629: 154 | P629: 151 | Q629: 171
A630: 161.4 | B630: Q2 | C630: Jun | D630: 186 | E630: 160 | F630: 156 | G630: 144 | H630: 161 | I630: 125 | J630: 123 | K630: 109 | L630: 113 | M630: 141 | N630: 130 | O630: 153 | P630: 130 | Q630: 135
A631: 178.4 | B631: Q3 | C631: Jul | D631: 200 | E631: 208 | F631: 188 | G631: 173 | H631: 123 | I631: 162 | J631: 147 | K631: 126 | L631: 155 | M631: 167 | N631: 149 | O631: 148 | P631: 156 | Q631: 162
A632: 177 | B632: Q3 | C632: Aug | D632: 198 | E632: 179 | F632: 182 | G632: 178 | H632: 148 | I632: 171 | J632: 152 | K632: 144 | L632: 152 | M632: 153 | N632: 147 | O632: 179 | P632: 145 | Q632: 162
A633: 163.2 | B633: Q3 | C633: Sep | D633: 181 | E633: 170 | F633: 174 | G633: 144 | H633: 147 | I633: 161 | J633: 151 | K633: 114 | L633: 136 | M633: 128 | N633: 119 | O633: 138 | P633: 117 | Q633: 149
A634: 153.6 | B634: Q4 | C634: Oct | D634: 181 | E634: 152 | F634: 167 | G634: 129 | H634: 139 | I634: 128 | J634: 117 | K634: 132 | L634: 146 | M634: 144 | N634: 129 | O634: 138 | P634: 118 | Q634: 143
A635: 159.2 | B635: Q4 | C635: Nov | D635: 184 | E635: 178 | F635: 170 | G635: 134 | H635: 130 | I635: 130 | J635: 124 | K635: 123 | L635: 119 | M635: 122 | N635: 135 | O635: 148 | P635: 124 | Q635: 141
A636: =SUMIFS(B636:X636,$B$624:$X$624,">="&$A$22,$B$624:$X$624,"<="&$A$23)/($A$23-$A$22+1) -> 153 | B636: Q4 | C636: Dec | D636: 164 | E636: 187 | F636: 165 | G636: 128 | H636: 121 | I636: 126 | J636: 123 | K636: 114 | L636: 120 | M636: 141 | N636: 140 | O636: 143 | P636: 153 | Q636: 123
A637: 0
A638: 0
A639: 0
A640: 0
A641: 0
A642: 0
A643: 0
A644: 0
A645: 0
A646: 0
B923: 008_006_APP_B_HA Collins by DayofWeek_TimePeriod_year
A924: BSL | B924: Weekday | C924: GroupedTime | D924: 2005 | E924: 2006 | F924: 2007 | G924: 2008 | H924: 2009 | I924: 2010 | J924: 2011 | K924: 2012 | L924: 2013 | M924: 2014 | N924: 2015 | O924: 2016 | P924: 2017 | Q924: 2018
A925: =SUMIFS(B925:X925,$B$924:$X$924,">="&$A$22,$B$924:$X$924,"<="&$A$23)/($A$23-$A$22+1) -> 210.8 | B925: Sunday | C925: 0 - 6am | D925: 226 | E925: 230 | F925: 215 | G925: 197 | H925: 186 | I925: 163 | J925: 164 | K925: 161 | L925: 128 | M925: 123 | N925: 125 | O925: 143 | P925: 111 | Q925: 128
A926: =SUMIFS(B926:X926,$B$924:$X$924,">="&$A$22,$B$924:$X$924,"<="&$A$23)/($A$23-$A$22+1) -> 442 | B926: Sunday | C926: 10am - 2pm | D926: 470 | E926: 466 | F926: 451 | G926: 417 | H926: 406 | I926: 363 | J926: 342 | K926: 337 | L926: 321 | M926: 346 | N926: 365 | O926: 331 | P926: 267 | Q926: 289
A927: =SUMIFS(B927:X927,$B$924:$X$924,">="&$A$22,$B$924:$X$924,"<="&$A$23)/($A$23-$A$22+1) -> 493.8 | B927: Sunday | C927: 2 - 6pm | D927: 564 | E927: 540 | F927: 488 | G927: 455 | H927: 422 | I927: 388 | J927: 384 | K927: 350 | L927: 326 | M927: 368 | N927: 381 | O927: 336 | P927: 325 | Q927: 313
A928: 215.8 | B928: Sunday | C928: 6 - 10am | D928: 208 | E928: 236 | F928: 217 | G928: 210 | H928: 208 | I928: 199 | J928: 198 | K928: 201 | L928: 150 | M928: 148 | N928: 136 | O928: 149 | P928: 126 | Q928: 125
A929: 423.8 | B929: Sunday | C929: 6pm - 0am | D929: 493 | E929: 455 | F929: 460 | G929: 381 | H929: 330 | I929: 326 | J929: 298 | K929: 281 | L929: 287 | M929: 282 | N929: 280 | O929: 291 | P929: 252 | Q929: 227
A930: 0.2 | B930: Sunday | C930: Error | D930: 1
A931: 145.8 | B931: Monday | C931: 0 - 6am | D931: 154 | E931: 176 | F931: 168 | G931: 107 | H931: 124 | I931: 105 | J931: 113 | K931: 89 | L931: 90 | M931: 130 | N931: 88 | O931: 99 | P931: 83 | Q931: 107
A932: 427.8 | B932: Monday | C932: 10am - 2pm | D932: 538 | E932: 433 | F932: 416 | G932: 389 | H932: 363 | I932: 351 | J932: 297 | K932: 316 | L932: 314 | M932: 350 | N932: 344 | O932: 300 | P932: 269 | Q932: 271
A933: 549 | B933: Monday | C933: 2 - 6pm | D933: 576 | E933: 559 | F933: 582 | G933: 519 | H933: 509 | I933: 458 | J933: 448 | K933: 454 | L933: 421 | M933: 461 | N933: 430 | O933: 440 | P933: 388 | Q933: 359
A934: 555.2 | B934: Monday | C934: 6 - 10am | D934: 633 | E934: 583 | F934: 568 | G934: 552 | H934: 440 | I934: 432 | J934: 435 | K934: 393 | L934: 415 | M934: 437 | N934: 393 | O934: 394 | P934: 318 | Q934: 341
A935: 346.2 | B935: Monday | C935: 6pm - 0am | D935: 375 | E935: 362 | F935: 375 | G935: 317 | H935: 302 | I935: 269 | J935: 301 | K935: 284 | L935: 244 | M935: 281 | N935: 265 | O935: 254 | P935: 206 | Q935: 210
A936: 129.8 | B936: Tuesday | C936: 0 - 6am | D936: 167 | E936: 119 | F936: 137 | G936: 123 | H936: 103 | I936: 106 | J936: 98 | K936: 92 | L936: 102 | M936: 88 | N936: 86 | O936: 69 | P936: 77 | Q936: 78
A937: 386.6 | B937: Tuesday | C937: 10am - 2pm | D937: 438 | E937: 400 | F937: 424 | G937: 351 | H937: 320 | I937: 324 | J937: 270 | K937: 282 | L937: 285 | M937: 280 | N937: 285 | O937: 274 | P937: 221 | Q937: 211
A938: 545.2 | B938: Tuesday | C938: 2 - 6pm | D938: 614 | E938: 589 | F938: 547 | G938: 520 | H938: 456 | I938: 423 | J938: 452 | K938: 423 | L938: 436 | M938: 453 | N938: 417 | O938: 434 | P938: 395 | Q938: 362
A939: 513.6 | B939: Tuesday | C939: 6 - 10am | D939: 538 | E939: 548 | F939: 534 | G939: 516 | H939: 432 | I939: 396 | J939: 426 | K939: 389 | L939: 402 | M939: 423 | N939: 420 | O939: 411 | P939: 364 | Q939: 312
A940: 376.8 | B940: Tuesday | C940: 6pm - 0am | D940: 396 | E940: 390 | F940: 404 | G940: 362 | H940: 332 | I940: 323 | J940: 299 | K940: 264 | L940: 290 | M940: 289 | N940: 284 | O940: 265 | P940: 253 | Q940: 218
A941: 117.6 | B941: Wednesday | C941: 0 - 6am | D941: 127 | E941: 105 | F941: 123 | G941: 115 | H941: 118 | I941: 91 | J941: 81 | K941: 71 | L941: 80 | M941: 88 | N941: 87 | O941: 93 | P941: 82 | Q941: 66
A942: 369.2 | B942: Wednesday | C942: 10am - 2pm | D942: 428 | E942: 397 | F942: 373 | G942: 354 | H942: 294 | I942: 291 | J942: 322 | K942: 315 | L942: 261 | M942: 285 | N942: 270 | O942: 273 | P942: 223 | Q942: 251
A943: 555 | B943: Wednesday | C943: 2 - 6pm | D943: 630 | E943: 572 | F943: 562 | G943: 538 | H943: 473 | I943: 465 | J943: 476 | K943: 494 | L943: 400 | M943: 444 | N943: 451 | O943: 420 | P943: 365 | Q943: 351
A944: 525 | B944: Wednesday | C944: 6 - 10am | D944: 566 | E944: 565 | F944: 535 | G944: 496 | H944: 463 | I944: 432 | J944: 375 | K944: 408 | L944: 380 | M944: 406 | N944: 405 | O944: 384 | P944: 334 | Q944: 326
A945: 392.8 | B945: Wednesday | C945: 6pm - 0am | D945: 449 | E945: 434 | F945: 386 | G945: 331 | H945: 364 | I945: 335 | J945: 311 | K945: 290 | L945: 301 | M945: 302 | N945: 265 | O945: 283 | P945: 254 | Q945: 237
A946: 134.2 | B946: Thursday | C946: 0 - 6am | D946: 125 | E946: 148 | F946: 147 | G946: 122 | H946: 129 | I946: 102 | J946: 87 | K946: 93 | L946: 71 | M946: 96 | N946: 89 | O946: 83 | P946: 82 | Q946: 75
A947: 392 | B947: Thursday | C947: 10am - 2pm | D947: 427 | E947: 437 | F947: 440 | G947: 330 | H947: 326 | I947: 292 | J947: 312 | K947: 286 | L947: 270 | M947: 269 | N947: 249 | O947: 280 | P947: 235 | Q947: 249
A948: 589.6 | B948: Thursday | C948: 2 - 6pm | D948: 639 | E948: 659 | F948: 598 | G948: 534 | H948: 518 | I948: 508 | J948: 529 | K948: 488 | L948: 442 | M948: 492 | N948: 476 | O948: 470 | P948: 420 | Q948: 373
A949: 482.4 | B949: Thursday | C949: 6 - 10am | D949: 500 | E949: 538 | F949: 528 | G949: 425 | H949: 421 | I949: 404 | J949: 398 | K949: 376 | L949: 378 | M949: 355 | N949: 361 | O949: 368 | P949: 302 | Q949: 293
A950: 413.4 | B950: Thursday | C950: 6pm - 0am | D950: 513 | E950: 421 | F950: 435 | G950: 343 | H950: 355 | I950: 333 | J950: 334 | K950: 321 | L950: 288 | M950: 289 | N950: 333 | O950: 330 | P950: 280 | Q950: 272
A951: =SUMIFS(B951:X951,$B$924:$X$924,">="&$A$22,$B$924:$X$924,"<="&$A$23)/($A$23-$A$22+1) -> 145.6 | B951: Friday | C951: 0 - 6am | D951: 166 | E951: 145 | F951: 152 | G951: 161 | H951: 104 | I951: 115 | J951: 83 | K951: 129 | L951: 95 | M951: 102 | N951: 101 | O951: 106 | P951: 97 | Q951: 86
A952: 522.4 | B952: Friday | C952: 10am - 2pm | D952: 576 | E952: 597 | F952: 513 | G952: 463 | H952: 463 | I952: 422 | J952: 431 | K952: 387 | L952: 384 | M952: 382 | N952: 397 | O952: 396 | P952: 326 | Q952: 321
A953: 779.6 | B953: Friday | C953: 2 - 6pm | D953: 860 | E953: 877 | F953: 724 | G953: 696 | H953: 741 | I953: 728 | J953: 659 | K953: 575 | L953: 573 | M953: 625 | N953: 622 | O953: 600 | P953: 498 | Q953: 460
A954: 387.4 | B954: Friday | C954: 6 - 10am | D954: 418 | E954: 427 | F954: 407 | G954: 357 | H954: 328 | I954: 322 | J954: 320 | K954: 279 | L954: 282 | M954: 318 | N954: 287 | O954: 253 | P954: 250 | Q954: 243
A955: 517.4 | B955: Friday | C955: 6pm - 0am | D955: 601 | E955: 562 | F955: 511 | G955: 460 | H955: 453 | I955: 454 | J955: 389 | K955: 396 | L955: 436 | M955: 372 | N955: 348 | O955: 390 | P955: 348 | Q955: 285
A956: 0 | B956: Friday | C956: Error | O956: 1
A957: 202.8 | B957: Saturday | C957: 0 - 6am | D957: 232 | E957: 226 | F957: 200 | G957: 181 | H957: 175 | I957: 173 | J957: 159 | K957: 137 | L957: 139 | M957: 132 | N957: 127 | O957: 139 | P957: 132 | Q957: 111
A958: 532.2 | B958: Saturday | C958: 10am - 2pm | D958: 570 | E958: 552 | F958: 573 | G958: 479 | H958: 487 | I958: 454 | J958: 415 | K958: 412 | L958: 380 | M958: 391 | N958: 395 | O958: 371 | P958: 325 | Q958: 298
A959: =SUMIFS(B959:X959,$B$924:$X$924,">="&$A$22,$B$924:$X$924,"<="&$A$23)/($A$23-$A$22+1) -> 444.8 | B959: Saturday | C959: 2 - 6pm | D959: 505 | E959: 469 | F959: 457 | G959: 412 | H959: 381 | I959: 360 | J959: 325 | K959: 341 | L959: 324 | M959: 303 | N959: 339 | O959: 316 | P959: 247 | Q959: 256
A960: 248 | B960: Saturday | C960: 6 - 10am | D960: 256 | E960: 275 | F960: 241 | G960: 234 | H960: 234 | I960: 238 | J960: 172 | K960: 167 | L960: 181 | M960: 230 | N960: 169 | O960: 153 | P960: 156 | Q960: 139
A961: 357.4 | B961: Saturday | C961: 6pm - 0am | D961: 374 | E961: 343 | F961: 374 | G961: 380 | H961: 316 | I961: 269 | J961: 244 | K961: 239 | L961: 269 | M961: 249 | N961: 229 | O961: 259 | P961: 232 | Q961: 217
A962: 0
A963: 0
A964: 0
A965: 0
A966: 0
A967: 0
A968: 0
A969: 0
A970: 0
B1223: 008_007_APP_B_HA F_S_Collisions by DayofWeek_TimePeriod_year
A1224: BSL | B1224: Weekday | C1224: GroupedTime | D1224: 2005 | E1224: 2006 | F1224: 2007 | G1224: 2008 | H1224: 2009 | I1224: 2010 | J1224: 2011 | K1224: 2012 | L1224: 2013 | M1224: 2014 | N1224: 2015 | O1224: 2016 | P1224: 2017 | Q1224: 2018
A1225: =SUMIFS(B1225:X1225,$B$1224:$X$1224,">="&$A$22,$B$1224:$X$1224,"<="&$A$23)/($A$23-$A$22+1) -> 62 | B1225: Sunday | C1225: 0 - 6am | D1225: 74 | E1225: 63 | F1225: 68 | G1225: 51 | H1225: 54 | I1225: 44 | J1225: 49 | K1225: 47 | L1225: 26 | M1225: 26 | N1225: 39 | O1225: 37 | P1225: 35 | Q1225: 38
A1226: =SUMIFS(B1226:X1226,$B$1224:$X$1224,">="&$A$22,$B$1224:$X$1224,"<="&$A$23)/($A$23-$A$22+1) -> 65 | B1226: Sunday | C1226: 10am - 2pm | D1226: 66 | E1226: 74 | F1226: 60 | G1226: 65 | H1226: 60 | I1226: 61 | J1226: 69 | K1226: 52 | L1226: 38 | M1226: 60 | N1226: 66 | O1226: 74 | P1226: 46 | Q1226: 59
A1227: 74.8 | B1227: Sunday | C1227: 2 - 6pm | D1227: 79 | E1227: 96 | F1227: 71 | G1227: 59 | H1227: 69 | I1227: 54 | J1227: 59 | K1227: 56 | L1227: 58 | M1227: 60 | N1227: 54 | O1227: 46 | P1227: 60 | Q1227: 55
A1228: 32.6 | B1228: Sunday | C1228: 6 - 10am | D1228: 38 | E1228: 30 | F1228: 29 | G1228: 31 | H1228: 35 | I1228: 43 | J1228: 42 | K1228: 39 | L1228: 26 | M1228: 27 | N1228: 26 | O1228: 30 | P1228: 31 | Q1228: 30
A1229: 67.8 | B1229: Sunday | C1229: 6pm - 0am | D1229: 84 | E1229: 67 | F1229: 64 | G1229: 64 | H1229: 60 | I1229: 40 | J1229: 52 | K1229: 42 | L1229: 42 | M1229: 45 | N1229: 41 | O1229: 49 | P1229: 60 | Q1229: 57
A1230: 0.2 | B1230: Sunday | C1230: Error | D1230: 1
A1231: 34 | B1231: Monday | C1231: 0 - 6am | D1231: 29 | E1231: 43 | F1231: 52 | G1231: 19 | H1231: 27 | I1231: 24 | J1231: 29 | K1231: 16 | L1231: 20 | M1231: 40 | N1231: 22 | O1231: 25 | P1231: 28 | Q1231: 30
A1232: 49.4 | B1232: Monday | C1232: 10am - 2pm | D1232: 64 | E1232: 46 | F1232: 56 | G1232: 39 | H1232: 42 | I1232: 44 | J1232: 37 | K1232: 44 | L1232: 41 | M1232: 39 | N1232: 53 | O1232: 42 | P1232: 57 | Q1232: 48
A1233: 66.2 | B1233: Monday | C1233: 2 - 6pm | D1233: 72 | E1233: 72 | F1233: 75 | G1233: 50 | H1233: 62 | I1233: 67 | J1233: 69 | K1233: 54 | L1233: 53 | M1233: 60 | N1233: 53 | O1233: 61 | P1233: 57 | Q1233: 72
A1234: 55.6 | B1234: Monday | C1234: 6 - 10am | D1234: 68 | E1234: 40 | F1234: 68 | G1234: 53 | H1234: 49 | I1234: 34 | J1234: 49 | K1234: 51 | L1234: 41 | M1234: 50 | N1234: 42 | O1234: 60 | P1234: 46 | Q1234: 52
A1235: 54 | B1235: Monday | C1235: 6pm - 0am | D1235: 55 | E1235: 56 | F1235: 54 | G1235: 61 | H1235: 44 | I1235: 45 | J1235: 40 | K1235: 43 | L1235: 51 | M1235: 44 | N1235: 43 | O1235: 60 | P1235: 40 | Q1235: 46
A1236: 27.6 | B1236: Tuesday | C1236: 0 - 6am | D1236: 34 | E1236: 22 | F1236: 35 | G1236: 31 | H1236: 16 | I1236: 20 | J1236: 15 | K1236: 19 | L1236: 24 | M1236: 24 | N1236: 22 | O1236: 20 | P1236: 22 | Q1236: 28
A1237: 45.8 | B1237: Tuesday | C1237: 10am - 2pm | D1237: 52 | E1237: 55 | F1237: 41 | G1237: 39 | H1237: 42 | I1237: 42 | J1237: 31 | K1237: 41 | L1237: 39 | M1237: 42 | N1237: 41 | O1237: 32 | P1237: 34 | Q1237: 42
A1238: 61.6 | B1238: Tuesday | C1238: 2 - 6pm | D1238: 74 | E1238: 64 | F1238: 66 | G1238: 52 | H1238: 52 | I1238: 51 | J1238: 49 | K1238: 51 | L1238: 53 | M1238: 47 | N1238: 58 | O1238: 48 | P1238: 74 | Q1238: 61
A1239: =SUMIFS(B1239:X1239,$B$1224:$X$1224,">="&$A$22,$B$1224:$X$1224,"<="&$A$23)/($A$23-$A$22+1) -> 59.6 | B1239: Tuesday | C1239: 6 - 10am | D1239: 61 | E1239: 63 | F1239: 61 | G1239: 55 | H1239: 58 | I1239: 42 | J1239: 54 | K1239: 42 | L1239: 51 | M1239: 50 | N1239: 50 | O1239: 58 | P1239: 42 | Q1239: 54
A1240: 57.2 | B1240: Tuesday | C1240: 6pm - 0am | D1240: 68 | E1240: 44 | F1240: 59 | G1240: 67 | H1240: 48 | I1240: 42 | J1240: 35 | K1240: 26 | L1240: 53 | M1240: 43 | N1240: 45 | O1240: 61 | P1240: 41 | Q1240: 53
A1241: 30 | B1241: Wednesday | C1241: 0 - 6am | D1241: 28 | E1241: 35 | F1241: 28 | G1241: 32 | H1241: 27 | I1241: 22 | J1241: 15 | K1241: 20 | L1241: 14 | M1241: 30 | N1241: 17 | O1241: 25 | P1241: 21 | Q1241: 17
A1242: 41.8 | B1242: Wednesday | C1242: 10am - 2pm | D1242: 55 | E1242: 48 | F1242: 38 | G1242: 40 | H1242: 28 | I1242: 34 | J1242: 32 | K1242: 37 | L1242: 35 | M1242: 41 | N1242: 39 | O1242: 44 | P1242: 27 | Q1242: 45
A1243: 58.6 | B1243: Wednesday | C1243: 2 - 6pm | D1243: 59 | E1243: 70 | F1243: 61 | G1243: 57 | H1243: 46 | I1243: 54 | J1243: 55 | K1243: 52 | L1243: 49 | M1243: 57 | N1243: 62 | O1243: 74 | P1243: 58 | Q1243: 58
A1244: 50.2 | B1244: Wednesday | C1244: 6 - 10am | D1244: 63 | E1244: 59 | F1244: 46 | G1244: 51 | H1244: 32 | I1244: 45 | J1244: 44 | K1244: 43 | L1244: 42 | M1244: 43 | N1244: 34 | O1244: 52 | P1244: 35 | Q1244: 45
A1245: 62.8 | B1245: Wednesday | C1245: 6pm - 0am | D1245: 84 | E1245: 56 | F1245: 75 | G1245: 46 | H1245: 53 | I1245: 53 | J1245: 34 | K1245: 35 | L1245: 39 | M1245: 44 | N1245: 37 | O1245: 50 | P1245: 48 | Q1245: 57
A1246: 32.6 | B1246: Thursday | C1246: 0 - 6am | D1246: 39 | E1246: 33 | F1246: 28 | G1246: 35 | H1246: 28 | I1246: 21 | J1246: 17 | K1246: 17 | L1246: 23 | M1246: 21 | N1246: 21 | O1246: 32 | P1246: 24 | Q1246: 21
A1247: 45 | B1247: Thursday | C1247: 10am - 2pm | D1247: 53 | E1247: 49 | F1247: 51 | G1247: 42 | H1247: 30 | I1247: 30 | J1247: 35 | K1247: 24 | L1247: 33 | M1247: 37 | N1247: 39 | O1247: 48 | P1247: 35 | Q1247: 41
A1248: 59.2 | B1248: Thursday | C1248: 2 - 6pm | D1248: 61 | E1248: 59 | F1248: 61 | G1248: 64 | H1248: 51 | I1248: 56 | J1248: 49 | K1248: 53 | L1248: 53 | M1248: 77 | N1248: 60 | O1248: 67 | P1248: 62 | Q1248: 60
A1249: 48.8 | B1249: Thursday | C1249: 6 - 10am | D1249: 46 | E1249: 59 | F1249: 59 | G1249: 34 | H1249: 46 | I1249: 50 | J1249: 24 | K1249: 46 | L1249: 45 | M1249: 36 | N1249: 47 | O1249: 46 | P1249: 44 | Q1249: 58
A1250: =SUMIFS(B1250:X1250,$B$1224:$X$1224,">="&$A$22,$B$1224:$X$1224,"<="&$A$23)/($A$23-$A$22+1) -> 68.2 | B1250: Thursday | C1250: 6pm - 0am | D1250: 78 | E1250: 75 | F1250: 74 | G1250: 61 | H1250: 53 | I1250: 46 | J1250: 59 | K1250: 42 | L1250: 36 | M1250: 51 | N1250: 62 | O1250: 62 | P1250: 52 | Q1250: 56
A1251: 34.6 | B1251: Friday | C1251: 0 - 6am | D1251: 43 | E1251: 33 | F1251: 35 | G1251: 30 | H1251: 32 | I1251: 31 | J1251: 15 | K1251: 28 | L1251: 23 | M1251: 23 | N1251: 27 | O1251: 24 | P1251: 30 | Q1251: 28
A1252: 57 | B1252: Friday | C1252: 10am - 2pm | D1252: 66 | E1252: 56 | F1252: 55 | G1252: 52 | H1252: 56 | I1252: 51 | J1252: 60 | K1252: 49 | L1252: 60 | M1252: 47 | N1252: 50 | O1252: 57 | P1252: 54 | Q1252: 58
A1253: 79 | B1253: Friday | C1253: 2 - 6pm | D1253: 90 | E1253: 84 | F1253: 78 | G1253: 77 | H1253: 66 | I1253: 89 | J1253: 77 | K1253: 63 | L1253: 65 | M1253: 81 | N1253: 82 | O1253: 70 | P1253: 70 | Q1253: 91
A1254: 40.4 | B1254: Friday | C1254: 6 - 10am | D1254: 39 | E1254: 52 | F1254: 38 | G1254: 35 | H1254: 38 | I1254: 40 | J1254: 39 | K1254: 30 | L1254: 41 | M1254: 40 | N1254: 35 | O1254: 40 | P1254: 45 | Q1254: 29
A1255: 76.2 | B1255: Friday | C1255: 6pm - 0am | D1255: 92 | E1255: 78 | F1255: 74 | G1255: 77 | H1255: 60 | I1255: 68 | J1255: 54 | K1255: 59 | L1255: 65 | M1255: 55 | N1255: 53 | O1255: 71 | P1255: 59 | Q1255: 55
A1256: 51.4 | B1256: Saturday | C1256: 0 - 6am | D1256: 62 | E1256: 52 | F1256: 59 | G1256: 41 | H1256: 43 | I1256: 44 | J1256: 41 | K1256: 34 | L1256: 34 | M1256: 37 | N1256: 35 | O1256: 36 | P1256: 35 | Q1256: 36
A1257: 60.2 | B1257: Saturday | C1257: 10am - 2pm | D1257: 58 | E1257: 61 | F1257: 61 | G1257: 52 | H1257: 69 | I1257: 53 | J1257: 50 | K1257: 46 | L1257: 46 | M1257: 50 | N1257: 48 | O1257: 48 | P1257: 49 | Q1257: 60
A1258: 69.8 | B1258: Saturday | C1258: 2 - 6pm | D1258: 85 | E1258: 73 | F1258: 72 | G1258: 63 | H1258: 56 | I1258: 49 | J1258: 55 | K1258: 53 | L1258: 52 | M1258: 41 | N1258: 42 | O1258: 59 | P1258: 42 | Q1258: 47
A1259: 37.6 | B1259: Saturday | C1259: 6 - 10am | D1259: 46 | E1259: 41 | F1259: 33 | G1259: 28 | H1259: 40 | I1259: 40 | J1259: 27 | K1259: 29 | L1259: 23 | M1259: 38 | N1259: 31 | O1259: 31 | P1259: 24 | Q1259: 29
A1260: =SUMIFS(B1260:X1260,$B$1224:$X$1224,">="&$A$22,$B$1224:$X$1224,"<="&$A$23)/($A$23-$A$22+1) -> 67.8 | B1260: Saturday | C1260: 6pm - 0am | D1260: 73 | E1260: 64 | F1260: 69 | G1260: 79 | H1260: 54 | I1260: 47 | J1260: 43 | K1260: 46 | L1260: 41 | M1260: 57 | N1260: 46 | O1260: 56 | P1260: 55 | Q1260: 58
A1261: 0
A1262: 0
A1263: 0
A1264: 0
A1265: 0
A1266: 0
A1267: 0
A1268: 0
A1269: 0
A1270: 0
B1523: 008_008_APP_B_HA LighWeather Collisions_Year
A1524: BSL | B1524: RoadSurfaceCondition | C1524: WeatherGroup | D1524: 2005 | E1524: 2006 | F1524: 2007 | G1524: 2008 | H1524: 2009 | I1524: 2010 | J1524: 2011 | K1524: 2012 | L1524: 2013 | M1524: 2014 | N1524: 2015 | O1524: 2016 | P1524: 2017 | Q1524: 2018
A1525: =SUMIFS(B1525:X1525,$B$1524:$X$1524,">="&$A$22,$B$1524:$X$1524,"<="&$A$23)/($A$23-$A$22+1) -> 0.6 | B1525: Data missing or out of range | C1525: Data missing or out of range | F1525: 1 | G1525: 2 | O1525: 1
A1526: =SUMIFS(B1526:X1526,$B$1524:$X$1524,">="&$A$22,$B$1524:$X$1524,"<="&$A$23)/($A$23-$A$22+1) -> 3.2 | B1526: Data missing or out of range | C1526: Fine | D1526: 3 | E1526: 3 | F1526: 1 | G1526: 4 | H1526: 5 | J1526: 1 | K1526: 4 | L1526: 8 | M1526: 3 | N1526: 10 | O1526: 10 | P1526: 8 | Q1526: 5
A1527: 0 | B1527: Data missing or out of range | C1527: Fog or mist | K1527: 1
A1528: =SUMIFS(B1528:X1528,$B$1524:$X$1524,">="&$A$22,$B$1524:$X$1524,"<="&$A$23)/($A$23-$A$22+1) -> 0 | B1528: Data missing or out of range | C1528: Other | J1528: 3 | K1528: 1 | N1528: 1 | P1528: 1 | Q1528: 1
A1529: 0.2 | B1529: Data missing or out of range | C1529: Rain | F1529: 1 | L1529: 1 | M1529: 1 | P1529: 2 | Q1529: 3
A1530: 16.2 | B1530: Data missing or out of range | C1530: Unknown | D1530: 23 | E1530: 16 | F1530: 21 | G1530: 13 | H1530: 8 | I1530: 9 | J1530: 6 | K1530: 15 | L1530: 13 | M1530: 6 | N1530: 11 | O1530: 14 | P1530: 9 | Q1530: 17
... 2201 more rows

Sheet Tab_B.1
A7: Casualty report Appendix
A8: Tab_B.1
A9: Collisions by severity and year
I11: # columns | J11: ####
A12: Date updated
A13: =List!K2 -> 2020-02-12
A14: Input Year
A15: =Cover!$N$18 -> 2018
A16: Baseline Years | G16: B_dataSheet!
A17: =Cover!$N$20&"-"&Cover!$N$21 -> 2005-2009 | G17: 25
G18: 56
A19: Link to Contents
B21: E | E21: A | F21: =SUBSTITUTE(ADDRESS(1,MATCH(F$24,INDIRECT($G$16&($G$17-1)&":"&($G$17-1))),4),"1","") -> N | G21: O | H21: P | I21: Q | J21: R | K21: S
B22: =A8&" - "&A9 -> Tab_B.1 - Collisions by severity and year
M23: =K24&" change from" -> 2018 change from
B24: Collision severity | E24: ="BSL ("&A17&")" -> BSL (2005-2009) | F24: =G24-1 -> 2013 | G24: =H24-1 -> 2014 | H24: =I24-1 -> 2015 | I24: =J24-1 -> 2016 | J24: =K24-1 -> 2017 | K24: =A15 -> 2018 | L24: =E24 -> BSL (2005-2009) | M24: =I24 -> 2016 | N24: =J24 -> 2017
B25: Fatal | E25: =IF(OR($B25="Fatal+Serious",$B25="Total"),E24+E23,SUMIFS(INDIRECT($G$16&E$21&$G$17&":"&E$21&$G$18),INDIRECT($G$16&$B$21&$G$17&":"&$B$21&$G$18),$B25)) -> 314 | F25: =IF(OR($B25="Fatal+Serious",$B25="Total"),F24+F23,SUMIFS(INDIRECT($G$16&F$21&$G$17&":"&F$21&$G$18),INDIRECT($G$16&$B$21&$G$17&":"&$B$21&$G$18),$B25)) -> 226 | G25: =IF(OR($B25="Fatal+Serious",$B25="Total"),G24+G23,SUMIFS(INDIRECT($G$16&G$21&$G$17&":"&G$21&$G$18),INDIRECT($G$16&$B$21&$G$17&":"&$B$21&$G$18),$B25)) -> 192 | H25: 202 | I25: 213 | J25: 203 | K25: =IF(OR($B25="Fatal+Serious",$B25="Total"),K24+K23,SUMIFS(INDIRECT($G$16&K$21&$G$17&":"&K$21&$G$18),INDIRECT($G$16&$B$21&$G$17&":"&$B$21&$G$18),$B25)) -> 221 | L25: =IF(E25>15,(K25-E25)/E25,"-") -> -0.2961783439 | M25: =IF(I25>15,(K25-I25)/I25,"-") -> 0.03755868545 | N25: =IF(J25>15,(K25-J25)/J25,"-") -> 0.08866995074
B26: Serious | E26: =IF(OR($B26="Fatal+Serious",$B26="Total"),E25+E24,SUMIFS(INDIRECT($G$16&E$21&$G$17&":"&E$21&$G$18),INDIRECT($G$16&$B$21&$G$17&":"&$B$21&$G$18),$B26)) -> 1570.6 | F26: =IF(OR($B26="Fatal+Serious",$B26="Total"),F25+F24,SUMIFS(INDIRECT($G$16&F$21&$G$17&":"&F$21&$G$18),INDIRECT($G$16&$B$21&$G$17&":"&$B$21&$G$18),$B26)) -> 1209 | G26: 1371 | H26: 1320 | I26: 1482 | J26: 1339 | K26: =IF(OR($B26="Fatal+Serious",$B26="Total"),K25+K24,SUMIFS(INDIRECT($G$16&K$21&$G$17&":"&K$21&$G$18),INDIRECT($G$16&$B$21&$G$17&":"&$B$21&$G$18),$B26)) -> 1453 | L26: =IF(E26>15,(K26-E26)/E26,"-") -> -0.07487584363 | M26: =IF(I26>15,(K26-I26)/I26,"-") -> -0.01956815115 | N26: =IF(J26>15,(K26-J26)/J26,"-") -> 0.08513816281
B27: Fatal+Serious | E27: =IF(OR($B27="Fatal+Serious",$B27="Total"),E26+E25,SUMIFS(INDIRECT($G$16&E$21&$G$17&":"&E$21&$G$18),INDIRECT($G$16&$B$21&$G$17&":"&$B$21&$G$18),$B27)) -> 1884.6 | F27: 1435 | G27: 1563 | H27: 1522 | I27: 1695 | J27: 1542 | K27: =IF(OR($B27="Fatal+Serious",$B27="Total"),K26+K25,SUMIFS(INDIRECT($G$16&K$21&$G$17&":"&K$21&$G$18),INDIRECT($G$16&$B$21&$G$17&":"&$B$21&$G$18),$B27)) -> 1674 | L27: =IF(E27>15,(K27-E27)/E27,"-") -> -0.111747851 | M27: =IF(I27>15,(K27-I27)/I27,"-") -> -0.01238938053 | N27: =IF(J27>15,(K27-J27)/J27,"-") -> 0.08560311284
B28: Slight | E28: =IF(OR($B28="Fatal+Serious",$B28="Total"),E27+E26,SUMIFS(INDIRECT($G$16&E$21&$G$17&":"&E$21&$G$18),INDIRECT($G$16&$B$21&$G$17&":"&$B$21&$G$18),$B28)) -> 11986.6 | F28: 8710 | G28: 9026 | H28: 8777 | I28: 8463 | J28: 7301 | K28: =IF(OR($B28="Fatal+Serious",$B28="Total"),K27+K26,SUMIFS(INDIRECT($G$16&K$21&$G$17&":"&K$21&$G$18),INDIRECT($G$16&$B$21&$G$17&":"&$B$21&$G$18),$B28)) -> 6786 | L28: =IF(E28>15,(K28-E28)/E28,"-") -> -0.4338678191 | M28: =IF(I28>15,(K28-I28)/I28,"-") -> -0.198156682 | N28: =IF(J28>15,(K28-J28)/J28,"-") -> -0.07053828243
B29: Total | E29: =IF(OR($B29="Fatal+Serious",$B29="Total"),E28+E27,SUMIFS(INDIRECT($G$16&E$21&$G$17&":"&E$21&$G$18),INDIRECT($G$16&$B$21&$G$17&":"&$B$21&$G$18),$B29)) -> 13871.2 | F29: 10145 | G29: 10589 | H29: 10299 | I29: 10158 | J29: 8843 | K29: =IF(OR($B29="Fatal+Serious",$B29="Total"),K28+K27,SUMIFS(INDIRECT($G$16&K$21&$G$17&":"&K$21&$G$18),INDIRECT($G$16&$B$21&$G$17&":"&$B$21&$G$18),$B29)) -> 8460 | L29: =IF(E29>15,(K29-E29)/E29,"-") -> -0.3901032355 | M29: =IF(I29>15,(K29-I29)/I29,"-") -> -0.1671588895 | N29: =IF(J29>15,(K29-J29)/J29,"-") -> -0.04331109352
B31: Notes:

Sheet Tab_B.2
A7: Casualty report Appendix
A8: Tab_B.2
A9: ="Collisions by road class, speed limit and severity,"&" "&A15 -> Collisions by road class, speed limit and severity, 2018
I11: # columns | J11: ####
A12: Date updated
A13: =List!K2 -> 2020-02-12
A14: Input Year
A15: =List!$J$2 -> 2018
A16: Baseline Years | G16: B_DataSheet!
A17: =Cover!$N$20&"-"&Cover!$N$21 -> 2005-2009 | G17: 6025
G18: 6050
A19: Link to Contents
A21: C | C21: D | D21: E | E21: F | F21: G
B22: =A8&" - "&A9 -> Tab_B.2 - Collisions by road class, speed limit and severity, 2018
D23: Collisions Involved, by Severity
B24: Road class | C24: Speed limit | D24: Fatal | E24: Serious | F24: Slight | G24: Fatal+Serious
A25: *M* | B25: Motorway | C25: 20 | D25: =SUMIFS(INDIRECT($G$16&D$21&$G$17&":"&D$21&$G$18),INDIRECT($G$16&$A$21&$G$17&":"&$A$21&$G$18),$A25,INDIRECT($G$16&$C$21&$G$17&":"&$C$21&$G$18),$C25) -> 0 | E25: =SUMIFS(INDIRECT($G$16&E$21&$G$17&":"&E$21&$G$18),INDIRECT($G$16&$A$21&$G$17&":"&$A$21&$G$18),$A25,INDIRECT($G$16&$C$21&$G$17&":"&$C$21&$G$18),$C25) -> 0 | F25: =SUMIFS(INDIRECT($G$16&F$21&$G$17&":"&F$21&$G$18),INDIRECT($G$16&$A$21&$G$17&":"&$A$21&$G$18),$A25,INDIRECT($G$16&$C$21&$G$17&":"&$C$21&$G$18),$C25) -> 0 | G25: =D25+E25 -> 0
A26: *M* | B26: Motorway | C26: 30 | D26: =SUMIFS(INDIRECT($G$16&D$21&$G$17&":"&D$21&$G$18),INDIRECT($G$16&$A$21&$G$17&":"&$A$21&$G$18),$A26,INDIRECT($G$16&$C$21&$G$17&":"&$C$21&$G$18),$C26) -> 0 | E26: 4 | F26: 53 | G26: =D26+E26 -> 4
A27: *M* | B27: Motorway | C27: 40 | D27: 1 | E27: 4 | F27: 51 | G27: 5
A28: *M* | B28: Motorway | C28: 50 | D28: 4 | E28: 21 | F28: 163 | G28: 25
A29: *M* | B29: Motorway | C29: 60 | D29: 0 | E29: 5 | F29: 65 | G29: 5
A30: *M* | B30: Motorway | C30: 70 | D30: 69 | E30: 583 | F30: 3006 | G30: 652
A31: A | B31: A-road | C31: 20 | D31: 0 | E31: 0 | F31: 2 | G31: 0
A32: A | B32: A-road | C32: 30 | D32: 3 | E32: 48 | F32: 258 | G32: 51
A33: A | B33: A-road | C33: 40 | D33: 4 | E33: 77 | F33: 343 | G33: 81
A34: A | B34: A-road | C34: 50 | D34: 15 | E34: 68 | F34: 361 | G34: 83
A35: A | B35: A-road | C35: 60 | D35: 50 | E35: 231 | F35: 790 | G35: 281
A36: A | B36: A-road | C36: 70 | D36: 75 | E36: 412 | F36: 1694 | G36: 487
A37: * | B37: Total | C37: 20 | D37: 0 | E37: 0 | F37: 2 | G37: 0
A38: * | B38: Total | C38: 30 | D38: 3 | E38: 52 | F38: 311 | G38: 55
A39: * | B39: Total | C39: 40 | D39: 5 | E39: 81 | F39: 394 | G39: 86
A40: * | B40: Total | C40: 50 | D40: 19 | E40: 89 | F40: 524 | G40: 108
A41: * | B41: Total | C41: 60 | D41: 50 | E41: 236 | F41: 855 | G41: 286
A42: * | B42: Total | C42: 70 | D42: 144 | E42: 995 | F42: 4700 | G42: 1139
B44: Notes:

Sheet Tab_B.3
A7: Casualty report Appendix
A8: Tab_B.3
A9: ="Collisions by road classification, speed limit, and severity,"&" "&A15 -> Collisions by road classification, speed limit, and severity, 2018
I11: # columns | J11: ####
A12: Date updated
A13: =List!K2 -> 2020-02-12
A14: Input Year
A15: =List!$J$2 -> 2018
A16: Baseline Years | G16: B_DataSheet!
A17: =Cover!$N$20&"-"&Cover!$N$21 -> 2005-2009 | G17: 6325
G18: 6370
A19: Link to Contents
A21: C | C21: F | D21: D | E21: E | F21: G | G21: H | H21: I
B22: =A8&" - "&A9 -> Tab_B.3 - Collisions by road classification, speed limit, and severity, 2018
B24: Road class | C24: Road type | D24: Road classification | E24: Speed limit | F24: Fatal | G24: Serious | H24: Slight | I24: Fatal+Serious
A25: *M* | B25: Motorway | C25: - | D25: - | E25: 20 | F25: =IF(F$24=$I$24,D25+C25,SUMIFS(INDIRECT($G$16&F$21&$G$17&":"&F$21&$G$18),INDIRECT($G$16&$A$21&$G$17&":"&$A$21&$G$18),$A25,INDIRECT($G$16&$C$21&$G$17&":"&$C$21&$G$18),IF($C25="-","*",$C25),INDIRECT($G$16&$D$21&$G$17&":"&$D$21&$G$18),IF($D25="-","*",$D25), INDIRECT($G$16&$E$21&$G$17&":"&$E$21&$G$18),$E25)) -> 0 | G25: =IF(G$24=$I$24,E25+D25,SUMIFS(INDIRECT($G$16&G$21&$G$17&":"&G$21&$G$18),INDIRECT($G$16&$A$21&$G$17&":"&$A$21&$G$18),$A25,INDIRECT($G$16&$C$21&$G$17&":"&$C$21&$G$18),IF($C25="-","*",$C25),INDIRECT($G$16&$D$21&$G$17&":"&$D$21&$G$18),IF($D25="-","*",$D25), INDIRECT($G$16&$E$21&$G$17&":"&$E$21&$G$18),$E25)) -> 0 | H25: 0 | I25: 0
A26: *M* | B26: Motorway | C26: - | D26: - | E26: 30 | F26: =IF(F$24=$I$24,D26+C26,SUMIFS(INDIRECT($G$16&F$21&$G$17&":"&F$21&$G$18),INDIRECT($G$16&$A$21&$G$17&":"&$A$21&$G$18),$A26,INDIRECT($G$16&$C$21&$G$17&":"&$C$21&$G$18),IF($C26="-","*",$C26),INDIRECT($G$16&$D$21&$G$17&":"&$D$21&$G$18),IF($D26="-","*",$D26), INDIRECT($G$16&$E$21&$G$17&":"&$E$21&$G$18),$E26)) -> 0 | G26: =IF(G$24=$I$24,E26+D26,SUMIFS(INDIRECT($G$16&G$21&$G$17&":"&G$21&$G$18),INDIRECT($G$16&$A$21&$G$17&":"&$A$21&$G$18),$A26,INDIRECT($G$16&$C$21&$G$17&":"&$C$21&$G$18),IF($C26="-","*",$C26),INDIRECT($G$16&$D$21&$G$17&":"&$D$21&$G$18),IF($D26="-","*",$D26), INDIRECT($G$16&$E$21&$G$17&":"&$E$21&$G$18),$E26)) -> 4 | H26: =IF(H$24=$I$24,F26+E26,SUMIFS(INDIRECT($G$16&H$21&$G$17&":"&H$21&$G$18),INDIRECT($G$16&$A$21&$G$17&":"&$A$21&$G$18),$A26,INDIRECT($G$16&$C$21&$G$17&":"&$C$21&$G$18),IF($C26="-","*",$C26),INDIRECT($G$16&$D$21&$G$17&":"&$D$21&$G$18),IF($D26="-","*",$D26), INDIRECT($G$16&$E$21&$G$17&":"&$E$21&$G$18),$E26)) -> 53 | I26: =IF(I$24=$I$24,G26+F26,SUMIFS(INDIRECT($G$16&I$21&$G$17&":"&I$21&$G$18),INDIRECT($G$16&$A$21&$G$17&":"&$A$21&$G$18),$A26,INDIRECT($G$16&$C$21&$G$17&":"&$C$21&$G$18),IF($C26="-","*",$C26),INDIRECT($G$16&$D$21&$G$17&":"&$D$21&$G$18),IF($D26="-","*",$D26), INDIRECT($G$16&$E$21&$G$17&":"&$E$21&$G$18),$E26)) -> 4
A27: *M* | B27: Motorway | C27: - | D27: - | E27: 40 | F27: 1 | G27: 4 | H27: 51 | I27: 5
A28: *M* | B28: Motorway | C28: - | D28: - | E28: 50 | F28: 4 | G28: 21 | H28: 163 | I28: 25
A29: *M* | B29: Motorway | C29: - | D29: - | E29: 60 | F29: 0 | G29: 5 | H29: 65 | I29: 5
A30: *M* | B30: Motorway | C30: - | D30: - | E30: 70 | F30: 69 | G30: 583 | H30: 3006 | I30: 652
A31: A | B31: A-road | C31: - | D31: - | E31: 20 | F31: 0 | G31: 0 | H31: 2 | I31: 0
A32: A | B32: A-road | C32: - | D32: - | E32: 30 | F32: 3 | G32: 48 | H32: 258 | I32: 51
A33: A | B33: A-road | C33: - | D33: - | E33: 40 | F33: 4 | G33: 77 | H33: 343 | I33: 81
A34: A | B34: A-road | C34: - | D34: - | E34: 50 | F34: 15 | G34: 68 | H34: 361 | I34: 83
A35: A | B35: A-road | C35: - | D35: - | E35: 60 | F35: 50 | G35: 231 | H35: 790 | I35: 281
A36: A | B36: A-road | C36: - | D36: - | E36: 70 | F36: 75 | G36: 412 | H36: 1694 | I36: 487
A37: A | B37: A-road | C37: Dual Carriageway | D37: Built-up | E37: 20 | F37: 0 | G37: 0 | H37: 2 | I37: 0
A38: A | B38: A-road | C38: Dual Carriageway | D38: Built-up | E38: 30 | F38: 2 | G38: 18 | H38: 161 | I38: 20
A39: A | B39: A-road | C39: Dual Carriageway | D39: Built-up | E39: 40 | F39: 4 | G39: 40 | H39: 212 | I39: 44
A40: A | B40: A-road | C40: Dual Carriageway | D40: Non built-up | E40: 50 | F40: 6 | G40: 31 | H40: 244 | I40: 37
A41: A | B41: A-road | C41: Dual Carriageway | D41: Non built-up | E41: 60 | F41: 4 | G41: 66 | H41: 337 | I41: 70
A42: A | B42: A-road | C42: Dual Carriageway | D42: Non built-up | E42: 70 | F42: 75 | G42: 411 | H42: 1694 | I42: 486
A43: A | B43: A-road | C43: Single Carriageway | D43: Built-up | E43: 20 | F43: 0 | G43: 0 | H43: 0 | I43: 0
A44: A | B44: A-road | C44: Single Carriageway | D44: Built-up | E44: 30 | F44: 1 | G44: 30 | H44: 97 | I44: 31
A45: A | B45: A-road | C45: Single Carriageway | D45: Built-up | E45: 40 | F45: 0 | G45: 37 | H45: 131 | I45: 37
A46: A | B46: A-road | C46: Single Carriageway | D46: Non built-up | E46: 50 | F46: 9 | G46: 37 | H46: 117 | I46: 46
A47: A | B47: A-road | C47: Single Carriageway | D47: Non built-up | E47: 60 | F47: 46 | G47: 165 | H47: 453 | I47: 211
A48: A | B48: A-road | C48: Single Carriageway | D48: Non built-up | E48: 70 | F48: 0 | G48: 1 | H48: 0 | I48: 1
A49: * | B49: Total | C49: - | D49: Built-up | E49: 20 | F49: =SUMIFS(INDIRECT($G$16&F$21&$G$17&":"&F$21&$G$18),INDIRECT($G$16&$A$21&$G$17&":"&$A$21&$G$18),$A49,INDIRECT($G$16&$C$21&$G$17&":"&$C$21&$G$18),IF($C49="-","*",$C49),INDIRECT($G$16&$D$21&$G$17&":"&$D$21&$G$18),IF($D49="-","*",$D49), INDIRECT($G$16&$E$21&$G$17&":"&$E$21&$G$18),$E49) -> 0 | G49: =SUMIFS(INDIRECT($G$16&G$21&$G$17&":"&G$21&$G$18),INDIRECT($G$16&$A$21&$G$17&":"&$A$21&$G$18),$A49,INDIRECT($G$16&$C$21&$G$17&":"&$C$21&$G$18),IF($C49="-","*",$C49),INDIRECT($G$16&$D$21&$G$17&":"&$D$21&$G$18),IF($D49="-","*",$D49), INDIRECT($G$16&$E$21&$G$17&":"&$E$21&$G$18),$E49) -> 0 | H49: 2 | I49: =F49+G49 -> 0
A50: * | B50: Total | C50: - | D50: Built-up | E50: 30 | F50: =SUMIFS(INDIRECT($G$16&F$21&$G$17&":"&F$21&$G$18),INDIRECT($G$16&$A$21&$G$17&":"&$A$21&$G$18),$A50,INDIRECT($G$16&$C$21&$G$17&":"&$C$21&$G$18),IF($C50="-","*",$C50),INDIRECT($G$16&$D$21&$G$17&":"&$D$21&$G$18),IF($D50="-","*",$D50), INDIRECT($G$16&$E$21&$G$17&":"&$E$21&$G$18),$E50) -> 3 | G50: 52 | H50: 311 | I50: =F50+G50 -> 55
A51: * | B51: Total | C51: - | D51: Built-up | E51: 40 | F51: 5 | G51: 81 | H51: 394 | I51: 86
A52: * | B52: Total | C52: - | D52: Non built-up | E52: 50 | F52: 19 | G52: 89 | H52: 524 | I52: 108
A53: * | B53: Total | C53: - | D53: Non built-up | E53: 60 | F53: 50 | G53: 236 | H53: 855 | I53: 286
A54: * | B54: Total | C54: - | D54: Non built-up | E54: 70 | F54: 144 | G54: 995 | H54: 4700 | I54: 1139
B56: Notes:

Sheet Tab_B.4
A7: Casualty report Appendix
A8: Tab_B.4
A9: Collisions involving cars by road class, vehicle location and year
H11: # columns | I11: ####
A12: Date updated
A13: =List!K2 -> 2020-02-12
A14: Input Year
A15: =Cover!$N$18 -> 2018
A16: Baseline Years | F16: B_DataSheet!
A17: =Cover!$N$20&"-"&Cover!$N$21 -> 2005-2009 | F17: 6625
F18: 6770
A19: Link to Contents
A21: B | C21: C | D21: A | E21: =SUBSTITUTE(ADDRESS(1,MATCH(E$24,INDIRECT($F$16&($F$17-1)&":"&($F$17-1))),4),"1","") -> M | F21: N | G21: O | H21: P | I21: Q | J21: R | N21: D | O21: C
B22: =A8&" - "&A9 -> Tab_B.4 - Collisions involving cars by road class, vehicle location and year
K23: =J24&" change from" -> 2018 change from | L23: =J24&" change from" -> 2018 change from | M23: =K24&" change from" -> BSL (2005-2009) change from
B24: Road class | C24: Vehicle location | D24: ="BSL ("&A17&")" -> BSL (2005-2009) | E24: =F24-1 -> 2013 | F24: =G24-1 -> 2014 | G24: 2015 | H24: 2016 | I24: 2017 | J24: =A15 -> 2018 | K24: =D24 -> BSL (2005-2009) | L24: =H24 -> 2016 | M24: =I24 -> 2017
A25: *M* | B25: Motorway | C25: Bus lane | D25: =SUMIFS(INDIRECT($F$16&D$21&$F$17&":"&D$21&$F$18),INDIRECT($F$16&$A$21&$F$17&":"&$A$21&$F$18),$A25,INDIRECT($F$16&$C$21&$F$17&":"&$C$21&$F$18),$C25,INDIRECT($F$16&$N$21&$F$17&":"&$N$21&$F$18),$N25) -> 1.2 | E25: 0 | F25: 0 | G25: 0 | H25: 0 | I25: 0 | J25: 0 | K25: =IF(D25>15,(J25-D25)/D25,"-") -> - | L25: =IF(H25>15,(J25-H25)/H25,"-") -> - | M25: =IF(I25>15,(J25-I25)/I25,"-") -> - | N25: Car
A26: *M* | C26: Busway (including guided busway) | D26: 0.2 | E26: 0 | F26: 0 | G26: 0 | H26: 0 | I26: 0 | J26: 0 | K26: =IF(D26>15,(J26-D26)/D26,"-") -> - | L26: =IF(H26>15,(J26-H26)/H26,"-") -> - | M26: =IF(I26>15,(J26-I26)/I26,"-") -> - | N26: Car
A27: *M* | C27: Cycle lane (on main carriageway) | D27: 0.2 | E27: 0 | F27: 0 | G27: 0 | H27: 0 | I27: 0 | J27: 0 | K27: - | L27: - | M27: - | N27: Car
A28: *M* | C28: Cycleway or shared use footway (not part of main carriageway) | D28: =SUMIFS(INDIRECT($F$16&D$21&$F$17&":"&D$21&$F$18),INDIRECT($F$16&$A$21&$F$17&":"&$A$21&$F$18),$A28,INDIRECT($F$16&$O$21&$F$17&":"&$O$21&$F$18),$O28,INDIRECT($F$16&$N$21&$F$17&":"&$N$21&$F$18),$N28) -> 2.4 | E28: =SUMIFS(INDIRECT($F$16&E$21&$F$17&":"&E$21&$F$18),INDIRECT($F$16&$A$21&$F$17&":"&$A$21&$F$18),$A28,INDIRECT($F$16&$O$21&$F$17&":"&$O$21&$F$18),$O28,INDIRECT($F$16&$N$21&$F$17&":"&$N$21&$F$18),$N28) -> 0 | F28: 0 | G28: 0 | H28: 0 | I28: 0 | J28: 0 | K28: - | L28: - | M28: - | N28: Car | O28: Cycleway or shared use footway (not part of main carriageway)
A29: *M* | C29: Entering lay-by or hard shoulder | D29: 8.8 | E29: 8 | F29: 4 | G29: 10 | H29: 6 | I29: 7 | J29: 8 | K29: - | L29: - | M29: - | N29: Car
A30: *M* | C30: Leaving lay-by or hard shoulder | D30: 7.4 | E30: 8 | F30: 7 | G30: 2 | H30: 3 | I30: 6 | J30: 3 | K30: - | L30: - | M30: - | N30: Car
A31: *M* | C31: On lay-by or hard shoulder | D31: 55.2 | E31: 39 | F31: 35 | G31: 28 | H31: 31 | I31: 30 | J31: 33 | K31: -0.402173913 | L31: 0.06451612903 | M31: =IF(I31>15,(J31-I31)/I31,"-") -> 0.1 | N31: Car
A32: *M* | C32: On main c'way - not in restricted lane | D32: 6378.6 | E32: 4411 | F32: 4533 | G32: 4437 | H32: 4371 | I32: 3812 | J32: 3704 | K32: -0.4193083122 | L32: -0.1525966598 | M32: -0.02833158447 | N32: Car
A33: *M* | C33: Footway (pavement) | D33: 0 | E33: 0 | F33: 0 | G33: 0 | H33: 0 | I33: 0 | J33: 1 | K33: - | L33: - | M33: - | N33: Car
A34: *M* | C34: Tram/Light rail track | D34: 0 | E34: 0 | F34: 0 | G34: 0 | H34: 0 | I34: 0 | J34: 0 | K34: - | L34: - | M34: - | N34: Car
A35: *M* | C35: Data missing or out of range | D35: =SUMIFS(INDIRECT($F$16&D$21&$F$17&":"&D$21&$F$18),INDIRECT($F$16&$A$21&$F$17&":"&$A$21&$F$18),$A35,INDIRECT($F$16&$C$21&$F$17&":"&$C$21&$F$18),$C35,INDIRECT($F$16&$N$21&$F$17&":"&$N$21&$F$18),$N35) -> 0 | E35: 0 | F35: 0 | G35: 10 | H35: 26 | I35: 17 | J35: 30 | K35: - | L35: 0.1538461538 | M35: 0.7647058824 | N35: Car
A36: A | B36: A road | C36: Bus lane | D36: 1.2 | E36: 2 | F36: 2 | G36: 1 | H36: 0 | I36: 0 | J36: 1 | K36: - | L36: - | M36: - | N36: Car
A37: A | C37: Busway (including guided busway) | D37: 0.4 | E37: 0 | F37: 1 | G37: 0 | H37: 0 | I37: 0 | J37: 0 | K37: - | L37: - | M37: - | N37: Car
A38: A | C38: Cycle lane (on main carriageway) | D38: 1.8 | E38: 4 | F38: 0 | G38: 2 | H38: 1 | I38: 2 | J38: 2 | K38: - | L38: - | M38: - | N38: Car
A39: A | C39: Cycleway or shared use footway (not part of main carriageway) | D39: =SUMIFS(INDIRECT($F$16&D$21&$F$17&":"&D$21&$F$18),INDIRECT($F$16&$A$21&$F$17&":"&$A$21&$F$18),$A39,INDIRECT($F$16&$O$21&$F$17&":"&$O$21&$F$18),$O39,INDIRECT($F$16&$N$21&$F$17&":"&$N$21&$F$18),$N39) -> 3 | E39: =SUMIFS(INDIRECT($F$16&E$21&$F$17&":"&E$21&$F$18),INDIRECT($F$16&$A$21&$F$17&":"&$A$21&$F$18),$A39,INDIRECT($F$16&$O$21&$F$17&":"&$O$21&$F$18),$O39,INDIRECT($F$16&$N$21&$F$17&":"&$N$21&$F$18),$N39) -> 1 | F39: 0 | G39: 2 | H39: 2 | I39: 1 | J39: 0 | K39: - | L39: - | M39: - | N39: Car | O39: Cycleway or shared use footway (not part of main carriageway)
A40: A | C40: Entering lay-by or hard shoulder | D40: 15 | E40: 12 | F40: 17 | G40: 15 | H40: 15 | I40: 7 | J40: 11 | K40: - | L40: - | M40: - | N40: Car
A41: A | C41: Leaving lay-by or hard shoulder | D41: 24.6 | E41: 18 | F41: 16 | G41: 18 | H41: 10 | I41: 18 | J41: 17 | K41: -0.3089430894 | L41: - | M41: -0.05555555556 | N41: Car
A42: A | C42: On lay-by or hard shoulder | D42: 33.6 | E42: 19 | F42: 24 | G42: 22 | H42: 30 | I42: 25 | J42: 26 | K42: -0.2261904762 | L42: -0.1333333333 | M42: 0.04 | N42: Car
A43: A | C43: On main c'way - not in restricted lane | D43: 6225.4 | E43: 4786 | F43: 5028 | G43: 4957 | H43: 4851 | I43: 4183 | J43: 3945 | K43: -0.3663057795 | L43: -0.1867656153 | M43: -0.0568969639 | N43: Car
A44: A | C44: Footway (pavement) | D44: 7.2 | E44: 5 | F44: 10 | G44: 5 | H44: 6 | I44: 6 | J44: 3 | K44: - | L44: - | M44: - | N44: Car
A45: A | C45: Tram/Light rail track | D45: 6 | E45: 0 | F45: 0 | G45: 1 | H45: 1 | I45: 1 | J45: 2 | K45: - | L45: - | M45: - | N45: Car
A46: A | C46: Data missing or out of range | D46: 0.2 | E46: 0 | F46: 0 | G46: 3 | H46: 14 | I46: 11 | J46: 10 | K46: - | L46: - | M46: - | N46: Car
B48: Notes:
B49: (a) Values in the table report the number of collisions by road class and vehicle location where at least one car was involved.
B50: (b) Collisions may fall within more than one collision type and hence may be counted more than once in the table.

Sheet Tab_B.5
A7: Casualty report Appendix
A8: Tab_B.5
A9: Collisions involving LGVs by road class, vehicle location and year
H11: # columns | I11: ####
A12: Date updated
A13: =List!K2 -> 2020-02-12
A14: Input Year
A15: =Cover!$N$18 -> 2018
A16: Baseline Years | F16: B_DataSheet!
A17: =Cover!$N$20&"-"&Cover!$N$21 -> 2005-2009 | F17: 6625
F18: 6770
A19: Link to Contents
A21: B | C21: C | D21: A | E21: =SUBSTITUTE(ADDRESS(1,MATCH(E$24,INDIRECT($F$16&($F$17-1)&":"&($F$17-1))),4),"1","") -> M | F21: =SUBSTITUTE(ADDRESS(1,MATCH(F$24,INDIRECT($F$16&($F$17-1)&":"&($F$17-1))),4),"1","") -> N | G21: O | H21: P | I21: Q | J21: R | N21: D | O21: C
B22: =A8&" - "&A9 -> Tab_B.5 - Collisions involving LGVs by road class, vehicle location and year
K23: =J24&" change from" -> 2018 change from | L23: =J24&" change from" -> 2018 change from | M23: =K24&" change from" -> BSL (2005-2009) change from
B24: Road class | C24: Vehicle location | D24: ="BSL ("&A17&")" -> BSL (2005-2009) | E24: =F24-1 -> 2013 | F24: =G24-1 -> 2014 | G24: 2015 | H24: 2016 | I24: 2017 | J24: =A15 -> 2018 | K24: =D24 -> BSL (2005-2009) | L24: =H24 -> 2016 | M24: =I24 -> 2017
A25: *M* | B25: Motorway | C25: Bus lane | D25: =SUMIFS(INDIRECT($F$16&D$21&$F$17&":"&D$21&$F$18),INDIRECT($F$16&$A$21&$F$17&":"&$A$21&$F$18),$A25,INDIRECT($F$16&$C$21&$F$17&":"&$C$21&$F$18),$C25,INDIRECT($F$16&$N$21&$F$17&":"&$N$21&$F$18),$N25) -> 0 | E25: 0 | F25: 0 | G25: 0 | H25: 0 | I25: 0 | J25: 0 | K25: =IF(D25>15,(J25-D25)/D25,"-") -> - | L25: =IF(H25>15,(J25-H25)/H25,"-") -> - | M25: =IF(I25>15,(J25-I25)/I25,"-") -> - | N25: Goods Vehicle
A26: *M* | C26: Busway (including guided busway) | D26: 0 | E26: 0 | F26: 0 | G26: 0 | H26: 0 | I26: 0 | J26: 0 | K26: =IF(D26>15,(J26-D26)/D26,"-") -> - | L26: =IF(H26>15,(J26-H26)/H26,"-") -> - | M26: =IF(I26>15,(J26-I26)/I26,"-") -> - | N26: Goods Vehicle
A27: *M* | C27: Cycle lane (on main carriageway) | D27: 0 | E27: 0 | F27: 0 | G27: 0 | H27: 0 | I27: 0 | J27: 0 | K27: - | L27: - | M27: - | N27: Goods Vehicle
A28: *M* | C28: Cycleway or shared use footway (not part of main carriageway) | D28: =SUMIFS(INDIRECT($F$16&D$21&$F$17&":"&D$21&$F$18),INDIRECT($F$16&$A$21&$F$17&":"&$A$21&$F$18),$A28,INDIRECT($F$16&$O$21&$F$17&":"&$O$21&$F$18),$O28,INDIRECT($F$16&$N$21&$F$17&":"&$N$21&$F$18),$N28) -> 0 | E28: =SUMIFS(INDIRECT($F$16&E$21&$F$17&":"&E$21&$F$18),INDIRECT($F$16&$A$21&$F$17&":"&$A$21&$F$18),$A28,INDIRECT($F$16&$O$21&$F$17&":"&$O$21&$F$18),$O28,INDIRECT($F$16&$N$21&$F$17&":"&$N$21&$F$18),$N28) -> 0 | F28: 0 | G28: 0 | H28: 0 | I28: 0 | J28: 0 | K28: - | L28: - | M28: - | N28: Goods Vehicle | O28: Cycleway or shared use footway (not part of main carriageway)
A29: *M* | C29: Entering lay-by or hard shoulder | D29: 2 | E29: 0 | F29: 0 | G29: 2 | H29: 1 | I29: 1 | J29: 1 | K29: - | L29: - | M29: - | N29: Goods Vehicle
A30: *M* | C30: Leaving lay-by or hard shoulder | D30: 0.6 | E30: 1 | F30: 0 | G30: 0 | H30: 2 | I30: 0 | J30: 1 | K30: - | L30: - | M30: - | N30: Goods Vehicle
A31: *M* | C31: On lay-by or hard shoulder | D31: 10 | E31: 0 | F31: 8 | G31: 12 | H31: 6 | I31: 15 | J31: 14 | K31: - | L31: - | M31: =IF(I31>15,(J31-I31)/I31,"-") -> - | N31: Goods Vehicle
A32: *M* | C32: On main c'way - not in restricted lane | D32: 859.8 | E32: 642 | F32: 724 | G32: 790 | H32: 887 | I32: 831 | J32: 758 | K32: =IF(D32>15,(J32-D32)/D32,"-") -> -0.1183996278 | L32: -0.1454340474 | M32: -0.08784596871 | N32: Goods Vehicle
A33: *M* | C33: Footway (pavement) | D33: 0 | E33: 0 | F33: 0 | G33: 0 | H33: 0 | I33: 0 | J33: 0 | K33: - | L33: - | M33: - | N33: Goods Vehicle
A34: *M* | C34: Tram/Light rail track | D34: 0 | E34: 0 | F34: 0 | G34: 0 | H34: 0 | I34: 0 | J34: 0 | K34: - | L34: - | M34: - | N34: Goods Vehicle
A35: *M* | C35: Data missing or out of range | D35: =SUMIFS(INDIRECT($F$16&D$21&$F$17&":"&D$21&$F$18),INDIRECT($F$16&$A$21&$F$17&":"&$A$21&$F$18),$A35,INDIRECT($F$16&$C$21&$F$17&":"&$C$21&$F$18),$C35,INDIRECT($F$16&$N$21&$F$17&":"&$N$21&$F$18),$N35) -> 0 | E35: 0 | F35: 0 | G35: 2 | H35: 4 | I35: 6 | J35: 7 | K35: - | L35: - | M35: - | N35: Goods Vehicle
A36: A | B36: A road | C36: Bus lane | D36: 0 | E36: 0 | F36: 1 | G36: 0 | H36: 0 | I36: 0 | J36: 0 | K36: - | L36: - | M36: - | N36: Goods Vehicle
A37: A | C37: Busway (including guided busway) | D37: 0 | E37: 0 | F37: 0 | G37: 0 | H37: 0 | I37: 0 | J37: 0 | K37: - | L37: - | M37: - | N37: Goods Vehicle
A38: A | C38: Cycle lane (on main carriageway) | D38: 0.4 | E38: 0 | F38: 0 | G38: 1 | H38: 0 | I38: 0 | J38: 0 | K38: - | L38: - | M38: - | N38: Goods Vehicle
A39: A | C39: Cycleway or shared use footway (not part of main carriageway) | D39: =SUMIFS(INDIRECT($F$16&D$21&$F$17&":"&D$21&$F$18),INDIRECT($F$16&$A$21&$F$17&":"&$A$21&$F$18),$A39,INDIRECT($F$16&$O$21&$F$17&":"&$O$21&$F$18),$O39,INDIRECT($F$16&$N$21&$F$17&":"&$N$21&$F$18),$N39) -> 0.2 | E39: =SUMIFS(INDIRECT($F$16&E$21&$F$17&":"&E$21&$F$18),INDIRECT($F$16&$A$21&$F$17&":"&$A$21&$F$18),$A39,INDIRECT($F$16&$O$21&$F$17&":"&$O$21&$F$18),$O39,INDIRECT($F$16&$N$21&$F$17&":"&$N$21&$F$18),$N39) -> 2 | F39: 0 | G39: 0 | H39: 0 | I39: 0 | J39: 0 | K39: - | L39: - | M39: - | N39: Goods Vehicle | O39: Cycleway or shared use footway (not part of main carriageway)
A40: A | C40: Entering lay-by or hard shoulder | D40: 1.6 | E40: 3 | F40: 1 | G40: 2 | H40: 1 | I40: 3 | J40: 4 | K40: - | L40: - | M40: - | N40: Goods Vehicle
A41: A | C41: Leaving lay-by or hard shoulder | D41: 4.4 | E41: 3 | F41: 1 | G41: 2 | H41: 2 | I41: 1 | J41: 3 | K41: - | L41: - | M41: - | N41: Goods Vehicle
A42: A | C42: On lay-by or hard shoulder | D42: 6.8 | E42: 8 | F42: 4 | G42: 6 | H42: 14 | I42: 8 | J42: 16 | K42: - | L42: - | M42: - | N42: Goods Vehicle
A43: A | C43: On main c'way - not in restricted lane | D43: 775.6 | E43: 657 | F43: 753 | G43: 813 | H43: 829 | I43: 802 | J43: 717 | K43: -0.07555440949 | L43: -0.1351025332 | M43: -0.1059850374 | N43: Goods Vehicle
A44: A | C44: Footway (pavement) | D44: 0.2 | E44: 0 | F44: 0 | G44: 2 | H44: 0 | I44: 2 | J44: 1 | K44: - | L44: - | M44: - | N44: Goods Vehicle
A45: A | C45: Tram/Light rail track | D45: 0.6 | E45: 0 | F45: 0 | G45: 0 | H45: 0 | I45: 0 | J45: 0 | K45: - | L45: - | M45: - | N45: Goods Vehicle
A46: A | C46: Data missing or out of range | D46: 0 | E46: 0 | F46: 0 | G46: 0 | H46: 3 | I46: 0 | J46: 1 | K46: - | L46: - | M46: - | N46: Goods Vehicle
B48: Notes:
B49: (a) Values in the table report the number of collisions by road class and vehicle location where at least one LGV was involved.
B50: (b) Collisions may fall within more than one collision type and hence may be counted more than once in the table.

Sheet Tab_B.6
A7: Casualty report Appendix
A8: Tab_B.6
A9: Collisions involving HGVs by road class, vehicle location and year
H11: # columns | I11: ####
A12: Date updated
A13: =List!K2 -> 2020-02-12
A14: Input Year
A15: =Cover!$N$18 -> 2018
A16: Baseline Years | F16: B_DataSheet!
A17: =Cover!$N$20&"-"&Cover!$N$21 -> 2005-2009 | F17: 6625
F18: 6770
A19: Link to Contents
A21: B | C21: C | D21: A | E21: =SUBSTITUTE(ADDRESS(1,MATCH(E$24,INDIRECT($F$16&($F$17-1)&":"&($F$17-1))),4),"1","") -> M | F21: N | G21: O | H21: P | I21: Q | J21: R | N21: D | O21: C
B22: =A8&" - "&A9 -> Tab_B.6 - Collisions involving HGVs by road class, vehicle location and year
L23: =J24&" change from" -> 2018 change from
B24: Road class | C24: Vehicle location | D24: ="BSL ("&A17&")" -> BSL (2005-2009) | E24: =F24-1 -> 2013 | F24: =G24-1 -> 2014 | G24: 2015 | H24: 2016 | I24: 2017 | J24: =A15 -> 2018 | K24: =D24 -> BSL (2005-2009) | L24: =H24 -> 2016 | M24: =I24 -> 2017
A25: *M* | B25: Motorway | C25: Bus lane | D25: =SUMIFS(INDIRECT($F$16&D$21&$F$17&":"&D$21&$F$18),INDIRECT($F$16&$A$21&$F$17&":"&$A$21&$F$18),$A25,INDIRECT($F$16&$C$21&$F$17&":"&$C$21&$F$18),$C25,INDIRECT($F$16&$N$21&$F$17&":"&$N$21&$F$18),$N25) -> 0 | E25: 0 | F25: 0 | G25: 0 | H25: 0 | I25: 0 | J25: 0 | K25: =IF(D25>15,(J25-D25)/D25,"-") -> - | L25: =IF(H25>15,(J25-H25)/H25,"-") -> - | M25: =IF(I25>15,(J25-I25)/I25,"-") -> - | N25: HGV
A26: *M* | C26: Busway (including guided busway) | D26: 0 | E26: 0 | F26: 0 | G26: 0 | H26: 0 | I26: 0 | J26: 0 | K26: =IF(D26>15,(J26-D26)/D26,"-") -> - | L26: =IF(H26>15,(J26-H26)/H26,"-") -> - | M26: =IF(I26>15,(J26-I26)/I26,"-") -> - | N26: HGV
A27: *M* | C27: Cycle lane (on main carriageway) | D27: 0 | E27: 0 | F27: 0 | G27: 0 | H27: 0 | I27: 0 | J27: 0 | K27: - | L27: - | M27: - | N27: HGV
A28: *M* | C28: Cycleway or shared use footway (not part of main carriageway) | D28: 2.4 | E28: 0 | F28: 0 | G28: 0 | H28: 0 | I28: 0 | J28: 0 | K28: - | L28: - | M28: - | N28: HGV | O28: Cycleway or shared use footway (not part of main carriageway)
A29: *M* | C29: Entering lay-by or hard shoulder | D29: 5.2 | E29: 2 | F29: 5 | G29: 2 | H29: 3 | I29: 2 | J29: 1 | K29: - | L29: - | M29: - | N29: HGV
A30: *M* | C30: Leaving lay-by or hard shoulder | D30: 4.4 | E30: 6 | F30: 1 | G30: 1 | H30: 2 | I30: 0 | J30: 0 | K30: - | L30: - | M30: - | N30: HGV
A31: *M* | C31: On lay-by or hard shoulder | D31: 27.2 | E31: 13 | F31: 9 | G31: 11 | H31: 11 | I31: 13 | J31: 8 | K31: -0.7058823529 | L31: - | M31: =IF(I31>15,(J31-I31)/I31,"-") -> - | N31: HGV
A32: *M* | C32: On main c'way - not in restricted lane | D32: 1755.4 | E32: 1159 | F32: 1200 | G32: 1197 | H32: 987 | I32: 872 | J32: 772 | K32: -0.5602141962 | L32: -0.2178318136 | M32: -0.1146788991 | N32: HGV
A33: *M* | C33: Footway (pavement) | D33: 0 | E33: 0 | F33: 0 | G33: 0 | H33: 0 | I33: 0 | J33: 0 | K33: - | L33: - | M33: - | N33: HGV
A34: *M* | C34: Tram/Light rail track | D34: 0.2 | E34: 0 | F34: 0 | G34: 0 | H34: 0 | I34: 0 | J34: 0 | K34: - | L34: - | M34: - | N34: HGV
A35: *M* | C35: Data missing or out of range | D35: =SUMIFS(INDIRECT($F$16&D$21&$F$17&":"&D$21&$F$18),INDIRECT($F$16&$A$21&$F$17&":"&$A$21&$F$18),$A35,INDIRECT($F$16&$C$21&$F$17&":"&$C$21&$F$18),$C35,INDIRECT($F$16&$N$21&$F$17&":"&$N$21&$F$18),$N35) -> 0 | E35: 0 | F35: 0 | G35: 0 | H35: 2 | I35: 1 | J35: 6 | K35: - | L35: - | M35: - | N35: HGV
A36: A | B36: A road | C36: Bus lane | D36: 0 | E36: 0 | F36: 0 | G36: 0 | H36: 0 | I36: 0 | J36: 0 | K36: - | L36: - | M36: - | N36: HGV
A37: A | C37: Busway (including guided busway) | D37: 0.4 | E37: 0 | F37: 0 | G37: 0 | H37: 0 | I37: 0 | J37: 0 | K37: - | L37: - | M37: - | N37: HGV
A38: A | C38: Cycle lane (on main carriageway) | D38: 0.4 | E38: 0 | F38: 1 | G38: 0 | H38: 0 | I38: 0 | J38: 0 | K38: - | L38: - | M38: - | N38: HGV
A39: A | C39: Cycleway or shared use footway (not part of main carriageway) | D39: =SUMIFS(INDIRECT($F$16&D$21&$F$17&":"&D$21&$F$18),INDIRECT($F$16&$A$21&$F$17&":"&$A$21&$F$18),$A39,INDIRECT($F$16&$O$21&$F$17&":"&$O$21&$F$18),$O39,INDIRECT($F$16&$N$21&$F$17&":"&$N$21&$F$18),$N39) -> 0 | E39: =SUMIFS(INDIRECT($F$16&E$21&$F$17&":"&E$21&$F$18),INDIRECT($F$16&$A$21&$F$17&":"&$A$21&$F$18),$A39,INDIRECT($F$16&$O$21&$F$17&":"&$O$21&$F$18),$O39,INDIRECT($F$16&$N$21&$F$17&":"&$N$21&$F$18),$N39) -> 0 | F39: 0 | G39: 0 | H39: 0 | I39: 0 | J39: 0 | K39: - | L39: - | M39: - | N39: HGV | O39: Cycleway or shared use footway (not part of main carriageway)
A40: A | C40: Entering lay-by or hard shoulder | D40: 4.8 | E40: 6 | F40: 3 | G40: 3 | H40: 3 | I40: 1 | J40: 3 | K40: - | L40: - | M40: - | N40: HGV
A41: A | C41: Leaving lay-by or hard shoulder | D41: 8.6 | E41: 6 | F41: 11 | G41: 12 | H41: 4 | I41: 4 | J41: 1 | K41: - | L41: - | M41: - | N41: HGV
A42: A | C42: On lay-by or hard shoulder | D42: 34.2 | E42: 31 | F42: 31 | G42: 27 | H42: 21 | I42: 31 | J42: 17 | K42: -0.5029239766 | L42: -0.1904761905 | M42: -0.4516129032 | N42: HGV
A43: A | C43: On main c'way - not in restricted lane | D43: 1115 | E43: 807 | F43: 849 | G43: 772 | H43: 749 | I43: 563 | J43: 573 | K43: -0.4860986547 | L43: -0.2349799733 | M43: 0.01776198934 | N43: HGV
A44: A | C44: Footway (pavement) | D44: 1.4 | E44: 0 | F44: 1 | G44: 0 | H44: 0 | I44: 0 | J44: 1 | K44: - | L44: - | M44: - | N44: HGV
A45: A | C45: Tram/Light rail track | D45: 0.8 | E45: 0 | F45: 0 | G45: 0 | H45: 0 | I45: 0 | J45: 0 | K45: - | L45: - | M45: - | N45: HGV
A46: A | C46: Data missing or out of range | D46: 0 | E46: 0 | F46: 0 | G46: 0 | H46: 1 | I46: 4 | J46: 2 | K46: - | L46: - | M46: - | N46: HGV
B48: Notes:
B49: (a) Values in the table report the number of collisions by road class and vehicle location where at least one HGV was involved.
B50: (b) Collisions may fall within more than one collision type and hence may be counted more than once in the table.

Sheet Tab_B.7
A7: Casualty report Appendix
A8: Tab_B.7
A9: Collisions involving bus/coach by road class, vehicle location and year
H11: # columns | I11: ####
A12: Date updated
A13: =List!K2 -> 2020-02-12
A14: Input Year
A15: =Cover!$N$18 -> 2018
A16: Baseline Years | F16: B_DataSheet!
A17: =Cover!$N$20&"-"&Cover!$N$21 -> 2005-2009 | F17: 6625
F18: 6770
A19: Link to Contents
A21: B | C21: C | D21: A | E21: =SUBSTITUTE(ADDRESS(1,MATCH(E$24,INDIRECT($F$16&($F$17-1)&":"&($F$17-1))),4),"1","") -> M | F21: N | G21: O | H21: P | I21: Q | J21: R | N21: D | O21: C
B22: =A8&" - "&A9 -> Tab_B.7 - Collisions involving bus/coach by road class, vehicle location and year
K23: =J24&" change from" -> 2018 change from | L23: =J24&" change from" -> 2018 change from | M23: =K24&" change from" -> BSL (2005-2009) change from
B24: Road class | C24: Vehicle location | D24: ="BSL ("&A17&")" -> BSL (2005-2009) | E24: =F24-1 -> 2013 | F24: =G24-1 -> 2014 | G24: 2015 | H24: 2016 | I24: 2017 | J24: =A15 -> 2018 | K24: =D24 -> BSL (2005-2009) | L24: =H24 -> 2016 | M24: =I24 -> 2017
A25: *M* | B25: Motorway | C25: Bus lane | D25: =SUMIFS(INDIRECT($F$16&D$21&$F$17&":"&D$21&$F$18),INDIRECT($F$16&$A$21&$F$17&":"&$A$21&$F$18),$A25,INDIRECT($F$16&$C$21&$F$17&":"&$C$21&$F$18),$C25,INDIRECT($F$16&$N$21&$F$17&":"&$N$21&$F$18),$N25) -> 0.6 | E25: 0 | F25: 0 | G25: 0 | H25: 0 | I25: 0 | J25: 0 | K25: =IF(D25>15,(J25-D25)/D25,"-") -> - | L25: =IF(H25>15,(J25-H25)/H25,"-") -> - | M25: =IF(I25>15,(J25-I25)/I25,"-") -> - | N25: Bus or coach
A26: *M* | B26: Motorway | C26: Busway (including guided busway) | D26: 0 | E26: 0 | F26: 0 | G26: 0 | H26: 0 | I26: 0 | J26: 0 | K26: =IF(D26>15,(J26-D26)/D26,"-") -> - | L26: =IF(H26>15,(J26-H26)/H26,"-") -> - | M26: =IF(I26>15,(J26-I26)/I26,"-") -> - | N26: Bus or coach
A27: *M* | B27: Motorway | C27: Cycle lane (on main carriageway) | D27: 0 | E27: 0 | F27: 0 | G27: 0 | H27: 0 | I27: 0 | J27: 0 | K27: - | L27: - | M27: - | N27: Bus or coach
A28: *M* | B28: Motorway | C28: Cycleway or shared use footway (not part of main carriageway) | D28: =SUMIFS(INDIRECT($F$16&D$21&$F$17&":"&D$21&$F$18),INDIRECT($F$16&$A$21&$F$17&":"&$A$21&$F$18),$A28,INDIRECT($F$16&$O$21&$F$17&":"&$O$21&$F$18),$O28,INDIRECT($F$16&$N$21&$F$17&":"&$N$21&$F$18),$N28) -> 0 | E28: =SUMIFS(INDIRECT($F$16&E$21&$F$17&":"&E$21&$F$18),INDIRECT($F$16&$A$21&$F$17&":"&$A$21&$F$18),$A28,INDIRECT($F$16&$O$21&$F$17&":"&$O$21&$F$18),$O28,INDIRECT($F$16&$N$21&$F$17&":"&$N$21&$F$18),$N28) -> 0 | F28: 0 | G28: 0 | H28: 0 | I28: 0 | J28: 0 | K28: - | L28: - | M28: - | N28: Bus or coach | O28: Cycleway or shared use footway (not part of main carriageway)
A29: *M* | B29: Motorway | C29: Entering lay-by or hard shoulder | D29: 0.2 | E29: 0 | F29: 0 | G29: 0 | H29: 0 | I29: 0 | J29: 0 | K29: - | L29: - | M29: - | N29: Bus or coach
A30: *M* | B30: Motorway | C30: Leaving lay-by or hard shoulder | D30: 0 | E30: 0 | F30: 0 | G30: 0 | H30: 0 | I30: 0 | J30: 0 | K30: - | L30: - | M30: - | N30: Bus or coach
A31: *M* | B31: Motorway | C31: On lay-by or hard shoulder | D31: 0.2 | E31: 0 | F31: 2 | G31: 1 | H31: 0 | I31: 0 | J31: 1 | K31: - | L31: - | M31: =IF(I31>15,(J31-I31)/I31,"-") -> - | N31: Bus or coach
A32: *M* | B32: Motorway | C32: On main c'way - not in restricted lane | D32: 52.6 | E32: 30 | F32: 36 | G32: 34 | H32: 29 | I32: 26 | J32: 35 | K32: -0.3346007605 | L32: 0.2068965517 | M32: 0.3461538462 | N32: Bus or coach
A33: *M* | B33: Motorway | C33: Footway (pavement) | D33: 0 | E33: 0 | F33: 0 | G33: 0 | H33: 0 | I33: 0 | J33: 0 | K33: - | L33: - | M33: - | N33: Bus or coach
A34: *M* | B34: Motorway | C34: Tram/Light rail track | D34: 0 | E34: 0 | F34: 0 | G34: 0 | H34: 0 | I34: 0 | J34: 0 | K34: - | L34: - | M34: - | N34: Bus or coach
A35: *M* | B35: Motorway | C35: Data missing or out of range | D35: =SUMIFS(INDIRECT($F$16&D$21&$F$17&":"&D$21&$F$18),INDIRECT($F$16&$A$21&$F$17&":"&$A$21&$F$18),$A35,INDIRECT($F$16&$C$21&$F$17&":"&$C$21&$F$18),$C35,INDIRECT($F$16&$N$21&$F$17&":"&$N$21&$F$18),$N35) -> 0 | E35: 0 | F35: 0 | G35: 0 | H35: 0 | I35: 0 | J35: 1 | K35: - | L35: - | M35: - | N35: Bus or coach
A36: A | B36: A road | C36: Bus lane | D36: 2 | E36: 3 | F36: 1 | G36: 1 | H36: 3 | I36: 1 | J36: 0 | K36: - | L36: - | M36: - | N36: Bus or coach
A37: A | B37: A road | C37: Busway (including guided busway) | D37: 0.2 | E37: 0 | F37: 0 | G37: 0 | H37: 0 | I37: 0 | J37: 0 | K37: - | L37: - | M37: - | N37: Bus or coach
A38: A | B38: A road | C38: Cycle lane (on main carriageway) | D38: 0 | E38: 0 | F38: 0 | G38: 0 | H38: 0 | I38: 0 | J38: 0 | K38: - | L38: - | M38: - | N38: Bus or coach
A39: A | B39: A road | C39: Cycleway or shared use footway (not part of main carriageway) | D39: =SUMIFS(INDIRECT($F$16&D$21&$F$17&":"&D$21&$F$18),INDIRECT($F$16&$A$21&$F$17&":"&$A$21&$F$18),$A39,INDIRECT($F$16&$O$21&$F$17&":"&$O$21&$F$18),$O39,INDIRECT($F$16&$N$21&$F$17&":"&$N$21&$F$18),$N39) -> 0 | E39: =SUMIFS(INDIRECT($F$16&E$21&$F$17&":"&E$21&$F$18),INDIRECT($F$16&$A$21&$F$17&":"&$A$21&$F$18),$A39,INDIRECT($F$16&$O$21&$F$17&":"&$O$21&$F$18),$O39,INDIRECT($F$16&$N$21&$F$17&":"&$N$21&$F$18),$N39) -> 0 | F39: 0 | G39: 0 | H39: 0 | I39: 0 | J39: 0 | K39: - | L39: - | M39: - | N39: Bus or coach | O39: Cycleway or shared use footway (not part of main carriageway)
A40: A | B40: A road | C40: Entering lay-by or hard shoulder | D40: 0.2 | E40: 0 | F40: 0 | G40: 0 | H40: 0 | I40: 0 | J40: 0 | K40: - | L40: - | M40: - | N40: Bus or coach
A41: A | B41: A road | C41: Leaving lay-by or hard shoulder | D41: 0.4 | E41: 0 | F41: 1 | G41: 1 | H41: 0 | I41: 0 | J41: 0 | K41: - | L41: - | M41: - | N41: Bus or coach
A42: A | B42: A road | C42: On lay-by or hard shoulder | D42: 0.8 | E42: 0 | F42: 0 | G42: 0 | H42: 1 | I42: 0 | J42: 0 | K42: - | L42: - | M42: - | N42: Bus or coach
A43: A | B43: A road | C43: On main c'way - not in restricted lane | D43: 73.6 | E43: 55 | F43: 56 | G43: 39 | H43: 47 | I43: 41 | J43: 41 | K43: -0.4429347826 | L43: -0.1276595745 | M43: 0 | N43: Bus or coach
A44: A | B44: A road | C44: Footway (pavement) | D44: 0 | E44: 0 | F44: 0 | G44: 0 | H44: 0 | I44: 0 | J44: 0 | K44: - | L44: - | M44: - | N44: Bus or coach
A45: A | B45: A road | C45: Tram/Light rail track | D45: 0 | E45: 0 | F45: 0 | G45: 0 | H45: 0 | I45: 0 | J45: 0 | K45: - | L45: - | M45: - | N45: Bus or coach
A46: A | B46: A road | C46: Data missing or out of range | D46: 0 | E46: 0 | F46: 0 | G46: 1 | H46: 0 | I46: 0 | J46: 0 | K46: - | L46: - | M46: - | N46: Bus or coach
B48: Notes:
B49: (a) Values in the table report the number of collisions by road class and vehicle location where at least one bus/coach was involved.
B50: (b) Collisions may fall within more than one collision type and hence may be counted more than once in the table.

Sheet Tab_B.8
A7: Casualty report Appendix
A8: Tab_B.8
A9: Collisions involving at least one motorcycle by road class, vehicle location and year
H11: # columns | I11: ####
A12: Date updated
A13: =List!K2 -> 2020-02-12
A14: Input Year
A15: =Cover!$N$18 -> 2018
A16: Baseline Years | F16: B_DataSheet!
A17: =Cover!$N$20&"-"&Cover!$N$21 -> 2005-2009 | F17: 6625
F18: 6770
A19: Link to Contents
A21: B | C21: C | D21: A | E21: =SUBSTITUTE(ADDRESS(1,MATCH(E$24,INDIRECT($F$16&($F$17-1)&":"&($F$17-1))),4),"1","") -> M | F21: N | G21: O | H21: P | I21: Q | J21: R | N21: D | O21: C
B22: =A8&" - "&A9 -> Tab_B.8 - Collisions involving at least one motorcycle by road class, vehicle location and year
K23: =J24&" change from" -> 2018 change from | L23: =J24&" change from" -> 2018 change from | M23: =K24&" change from" -> BSL (2005-2009) change from
B24: Road class | C24: Vehicle location | D24: ="BSL ("&A17&")" -> BSL (2005-2009) | E24: =F24-1 -> 2013 | F24: =G24-1 -> 2014 | G24: 2015 | H24: 2016 | I24: 2017 | J24: =A15 -> 2018 | K24: =D24 -> BSL (2005-2009) | L24: =H24 -> 2016 | M24: =I24 -> 2017
A25: *M* | B25: Motorway | C25: Bus lane | D25: =SUMIFS(INDIRECT($F$16&D$21&$F$17&":"&D$21&$F$18),INDIRECT($F$16&$A$21&$F$17&":"&$A$21&$F$18),$A25,INDIRECT($F$16&$C$21&$F$17&":"&$C$21&$F$18),$C25,INDIRECT($F$16&$N$21&$F$17&":"&$N$21&$F$18),$N25) -> 0.6 | E25: 0 | F25: 0 | G25: 0 | H25: 0 | I25: 0 | J25: 0 | K25: =IF(D25>15,(J25-D25)/D25,"-") -> - | L25: =IF(H25>15,(J25-H25)/H25,"-") -> - | M25: =IF(I25>15,(J25-I25)/I25,"-") -> - | N25: Motorcycle
A26: *M* | C26: Busway (including guided busway) | D26: 0 | E26: 0 | F26: 0 | G26: 0 | H26: 0 | I26: 0 | J26: 0 | K26: =IF(D26>15,(J26-D26)/D26,"-") -> - | L26: =IF(H26>15,(J26-H26)/H26,"-") -> - | M26: =IF(I26>15,(J26-I26)/I26,"-") -> - | N26: Motorcycle
A27: *M* | C27: Cycle lane (on main carriageway) | D27: 0 | E27: 0 | F27: 0 | G27: 0 | H27: 0 | I27: 0 | J27: 0 | K27: - | L27: - | M27: - | N27: Motorcycle
A28: *M* | C28: Cycleway or shared use footway (not part of main carriageway) | D28: =SUMIFS(INDIRECT($F$16&D$21&$F$17&":"&D$21&$F$18),INDIRECT($F$16&$A$21&$F$17&":"&$A$21&$F$18),$A28,INDIRECT($F$16&$O$21&$F$17&":"&$O$21&$F$18),$O28,INDIRECT($F$16&$N$21&$F$17&":"&$N$21&$F$18),$N28) -> 0.4 | E28: =SUMIFS(INDIRECT($F$16&E$21&$F$17&":"&E$21&$F$18),INDIRECT($F$16&$A$21&$F$17&":"&$A$21&$F$18),$A28,INDIRECT($F$16&$O$21&$F$17&":"&$O$21&$F$18),$O28,INDIRECT($F$16&$N$21&$F$17&":"&$N$21&$F$18),$N28) -> 1 | F28: 0 | G28: 0 | H28: 1 | I28: 0 | J28: 0 | K28: - | L28: - | M28: - | N28: Motorcycle | O28: Cycleway or shared use footway (not part of main carriageway)
A29: *M* | C29: Entering lay-by or hard shoulder | D29: 0.4 | E29: 0 | F29: 1 | G29: 0 | H29: 0 | I29: 1 | J29: 1 | K29: - | L29: - | M29: - | N29: Motorcycle
A30: *M* | C30: Leaving lay-by or hard shoulder | D30: 0.4 | E30: 0 | F30: 0 | G30: 2 | H30: 0 | I30: 1 | J30: 0 | K30: - | L30: - | M30: - | N30: Motorcycle
A31: *M* | C31: On lay-by or hard shoulder | D31: 0.8 | E31: 0 | F31: 1 | G31: 4 | H31: 1 | I31: 3 | J31: 1 | K31: - | L31: - | M31: =IF(I31>15,(J31-I31)/I31,"-") -> - | N31: Motorcycle
A32: *M* | C32: On main c'way - not in restricted lane | D32: 321.2 | E32: 214 | F32: 216 | G32: 193 | H32: 193 | I32: 195 | J32: 217 | K32: -0.3244084682 | L32: 0.1243523316 | M32: 0.1128205128 | N32: Motorcycle
A33: *M* | C33: Footway (pavement) | D33: 0 | E33: 0 | F33: 0 | G33: 0 | H33: 0 | I33: 0 | J33: 0 | K33: - | L33: - | M33: - | N33: Motorcycle
A34: *M* | C34: Tram/Light rail track | D34: 0.2 | E34: 0 | F34: 0 | G34: 0 | H34: 0 | I34: 0 | J34: 0 | K34: - | L34: - | M34: - | N34: Motorcycle
A35: *M* | C35: Data missing or out of range | D35: =SUMIFS(INDIRECT($F$16&D$21&$F$17&":"&D$21&$F$18),INDIRECT($F$16&$A$21&$F$17&":"&$A$21&$F$18),$A35,INDIRECT($F$16&$C$21&$F$17&":"&$C$21&$F$18),$C35,INDIRECT($F$16&$N$21&$F$17&":"&$N$21&$F$18),$N35) -> 0 | E35: 0 | F35: 0 | G35: 0 | H35: 0 | I35: 0 | J35: 0 | K35: - | L35: - | M35: - | N35: Motorcycle
A36: A | B36: A road | C36: Bus lane | D36: 0.4 | E36: 0 | F36: 1 | G36: 0 | H36: 0 | I36: 0 | J36: 0 | K36: - | L36: - | M36: - | N36: Motorcycle
A37: A | C37: Busway (including guided busway) | D37: 0 | E37: 0 | F37: 0 | G37: 0 | H37: 0 | I37: 0 | J37: 0 | K37: - | L37: - | M37: - | N37: Motorcycle
A38: A | C38: Cycle lane (on main carriageway) | D38: 0.2 | E38: 0 | F38: 0 | G38: 0 | H38: 0 | I38: 0 | J38: 0 | K38: - | L38: - | M38: - | N38: Motorcycle
A39: A | C39: Cycleway or shared use footway (not part of main carriageway) | D39: =SUMIFS(INDIRECT($F$16&D$21&$F$17&":"&D$21&$F$18),INDIRECT($F$16&$A$21&$F$17&":"&$A$21&$F$18),$A39,INDIRECT($F$16&$O$21&$F$17&":"&$O$21&$F$18),$O39,INDIRECT($F$16&$N$21&$F$17&":"&$N$21&$F$18),$N39) -> 0.2 | E39: =SUMIFS(INDIRECT($F$16&E$21&$F$17&":"&E$21&$F$18),INDIRECT($F$16&$A$21&$F$17&":"&$A$21&$F$18),$A39,INDIRECT($F$16&$O$21&$F$17&":"&$O$21&$F$18),$O39,INDIRECT($F$16&$N$21&$F$17&":"&$N$21&$F$18),$N39) -> 0 | F39: 0 | G39: 0 | H39: 1 | I39: 0 | J39: 0 | K39: - | L39: - | M39: - | N39: Motorcycle | O39: Cycleway or shared use footway (not part of main carriageway)
A40: A | C40: Entering lay-by or hard shoulder | D40: 0.8 | E40: 1 | F40: 0 | G40: 2 | H40: 0 | I40: 2 | J40: 1 | K40: - | L40: - | M40: - | N40: Motorcycle
A41: A | C41: Leaving lay-by or hard shoulder | D41: 1.2 | E41: 0 | F41: 0 | G41: 2 | H41: 1 | I41: 0 | J41: 0 | K41: - | L41: - | M41: - | N41: Motorcycle
A42: A | C42: On lay-by or hard shoulder | D42: 2.2 | E42: 4 | F42: 1 | G42: 1 | H42: 0 | I42: 1 | J42: 2 | K42: - | L42: - | M42: - | N42: Motorcycle
A43: A | C43: On main c'way - not in restricted lane | D43: 648.8 | E43: 581 | F43: 663 | G43: 613 | H43: 628 | I43: 530 | J43: 520 | K43: -0.1985203453 | L43: -0.1719745223 | M43: -0.01886792453 | N43: Motorcycle
A44: A | C44: Footway (pavement) | D44: 0.2 | E44: 0 | F44: 0 | G44: 1 | H44: 1 | I44: 0 | J44: 0 | K44: - | L44: - | M44: - | N44: Motorcycle
A45: A | C45: Tram/Light rail track | D45: 0.8 | E45: 0 | F45: 0 | G45: 0 | H45: 0 | I45: 0 | J45: 0 | K45: - | L45: - | M45: - | N45: Motorcycle
A46: A | C46: Data missing or out of range | D46: 0 | E46: 0 | F46: 0 | G46: 1 | H46: 1 | I46: 0 | J46: 0 | K46: - | L46: - | M46: - | N46: Motorcycle
B48: Notes:
B49: (a) Values in the table report the number of collisions by road class and vehicle location where at least one motorcycle was involved.
B50: (b) Collisions may fall within more than one collision type and hence may be counted more than once in the table.

Sheet Tab_B.9
A7: Casualty report Appendix
A8: Tab_B.9
A9: Collisions involving pedal cycles by road class, vehicle location and year
H11: # columns | I11: ####
A12: Date updated
A13: =List!K2 -> 2020-02-12
A14: Input Year
A15: =Cover!$N$18 -> 2018
A16: Baseline Years | F16: B_DataSheet!
A17: =Cover!$N$20&"-"&Cover!$N$21 -> 2005-2009 | F17: 6625
F18: 6770
A19: Link to Contents
A21: B | C21: C | D21: A | E21: =SUBSTITUTE(ADDRESS(1,MATCH(E$24,INDIRECT($F$16&($F$17-1)&":"&($F$17-1))),4),"1","") -> M | F21: N | G21: O | H21: P | I21: Q | J21: R | N21: D | O21: C
B22: =A8&" - "&A9 -> Tab_B.9 - Collisions involving pedal cycles by road class, vehicle location and year
K23: =J24&" change from" -> 2018 change from | L23: =J24&" change from" -> 2018 change from | M23: =K24&" change from" -> BSL (2005-2009) change from
B24: Road class | C24: Vehicle location | D24: ="BSL ("&A17&")" -> BSL (2005-2009) | E24: =F24-1 -> 2013 | F24: =G24-1 -> 2014 | G24: 2015 | H24: 2016 | I24: 2017 | J24: =A15 -> 2018 | K24: =D24 -> BSL (2005-2009) | L24: =H24 -> 2016 | M24: =I24 -> 2017
A25: *M* | B25: Motorway | C25: Bus lane | D25: =SUMIFS(INDIRECT($F$16&D$21&$F$17&":"&D$21&$F$18),INDIRECT($F$16&$A$21&$F$17&":"&$A$21&$F$18),$A25,INDIRECT($F$16&$C$21&$F$17&":"&$C$21&$F$18),$C25,INDIRECT($F$16&$N$21&$F$17&":"&$N$21&$F$18),$N25) -> 0.2 | E25: 0 | F25: 0 | G25: 0 | H25: 0 | I25: 0 | J25: 0 | K25: =IF(D25>15,(J25-D25)/D25,"-") -> - | L25: =IF(H25>15,(J25-H25)/H25,"-") -> - | M25: =IF(I25>15,(J25-I25)/I25,"-") -> - | N25: Pedal cycle
A26: *M* | C26: Busway (including guided busway) | D26: 0 | E26: 0 | F26: 0 | G26: 0 | H26: 0 | I26: 0 | J26: 0 | K26: =IF(D26>15,(J26-D26)/D26,"-") -> - | L26: =IF(H26>15,(J26-H26)/H26,"-") -> - | M26: =IF(I26>15,(J26-I26)/I26,"-") -> - | N26: Pedal cycle
A27: *M* | C27: Cycle lane (on main carriageway) | D27: 0 | E27: 0 | F27: 0 | G27: 0 | H27: 0 | I27: 0 | J27: 0 | K27: - | L27: - | M27: - | N27: Pedal cycle
A28: *M* | C28: Cycleway or shared use footway (not part of main carriageway) | D28: =SUMIFS(INDIRECT($F$16&D$21&$F$17&":"&D$21&$F$18),INDIRECT($F$16&$A$21&$F$17&":"&$A$21&$F$18),$A28,INDIRECT($F$16&$O$21&$F$17&":"&$O$21&$F$18),$O28,INDIRECT($F$16&$N$21&$F$17&":"&$N$21&$F$18),$N28) -> 0 | E28: =SUMIFS(INDIRECT($F$16&E$21&$F$17&":"&E$21&$F$18),INDIRECT($F$16&$A$21&$F$17&":"&$A$21&$F$18),$A28,INDIRECT($F$16&$O$21&$F$17&":"&$O$21&$F$18),$O28,INDIRECT($F$16&$N$21&$F$17&":"&$N$21&$F$18),$N28) -> 1 | F28: 0 | G28: 0 | H28: 0 | I28: 0 | J28: 0 | K28: - | L28: - | M28: - | N28: Pedal cycle | O28: Cycleway or shared use footway (not part of main carriageway)
A29: *M* | C29: Entering lay-by or hard shoulder | D29: 0 | E29: 0 | F29: 0 | G29: 0 | H29: 0 | I29: 0 | J29: 0 | K29: - | L29: - | M29: - | N29: Pedal cycle
A30: *M* | C30: Leaving lay-by or hard shoulder | D30: 0 | E30: 0 | F30: 0 | G30: 0 | H30: 0 | I30: 0 | J30: 0 | K30: - | L30: - | M30: - | N30: Pedal cycle
A31: *M* | C31: On lay-by or hard shoulder | D31: 0 | E31: 0 | F31: 0 | G31: 0 | H31: 0 | I31: 0 | J31: 0 | K31: - | L31: - | M31: =IF(I31>15,(J31-I31)/I31,"-") -> - | N31: Pedal cycle
A32: *M* | C32: On main c'way - not in restricted lane | D32: 1 | E32: 1 | F32: 1 | G32: 2 | H32: 2 | I32: 2 | J32: 1 | K32: - | L32: - | M32: - | N32: Pedal cycle
A33: *M* | C33: Footway (pavement) | D33: 0 | E33: 0 | F33: 0 | G33: 0 | H33: 0 | I33: 0 | J33: 0 | K33: - | L33: - | M33: - | N33: Pedal cycle
A34: *M* | C34: Tram/Light rail track | D34: 0 | E34: 0 | F34: 0 | G34: 0 | H34: 0 | I34: 0 | J34: 0 | K34: - | L34: - | M34: - | N34: Pedal cycle
A35: *M* | C35: Data missing or out of range | D35: =SUMIFS(INDIRECT($F$16&D$21&$F$17&":"&D$21&$F$18),INDIRECT($F$16&$A$21&$F$17&":"&$A$21&$F$18),$A35,INDIRECT($F$16&$C$21&$F$17&":"&$C$21&$F$18),$C35,INDIRECT($F$16&$N$21&$F$17&":"&$N$21&$F$18),$N35) -> 0 | E35: 0 | F35: 0 | G35: 0 | H35: 1 | I35: 0 | J35: 0 | K35: - | L35: - | M35: - | N35: Pedal cycle
A36: A | B36: A road | C36: Bus lane | D36: 0.8 | E36: 0 | F36: 0 | G36: 0 | H36: 1 | I36: 1 | J36: 0 | K36: - | L36: - | M36: - | N36: Pedal cycle
A37: A | C37: Busway (including guided busway) | D37: 0 | E37: 0 | F37: 0 | G37: 0 | H37: 0 | I37: 0 | J37: 0 | K37: - | L37: - | M37: - | N37: Pedal cycle
A38: A | C38: Cycle lane (on main carriageway) | D38: 2.2 | E38: 3 | F38: 2 | G38: 1 | H38: 4 | I38: 4 | J38: 4 | K38: - | L38: - | M38: - | N38: Pedal cycle
A39: A | C39: Cycleway or shared use footway (not part of main carriageway) | D39: =SUMIFS(INDIRECT($F$16&D$21&$F$17&":"&D$21&$F$18),INDIRECT($F$16&$A$21&$F$17&":"&$A$21&$F$18),$A39,INDIRECT($F$16&$O$21&$F$17&":"&$O$21&$F$18),$O39,INDIRECT($F$16&$N$21&$F$17&":"&$N$21&$F$18),$N39) -> 4.6 | E39: =SUMIFS(INDIRECT($F$16&E$21&$F$17&":"&E$21&$F$18),INDIRECT($F$16&$A$21&$F$17&":"&$A$21&$F$18),$A39,INDIRECT($F$16&$O$21&$F$17&":"&$O$21&$F$18),$O39,INDIRECT($F$16&$N$21&$F$17&":"&$N$21&$F$18),$N39) -> 3 | F39: 7 | G39: 2 | H39: 7 | I39: 3 | J39: 1 | K39: - | L39: - | M39: - | N39: Pedal cycle | O39: Cycleway or shared use footway (not part of main carriageway)
A40: A | C40: Entering lay-by or hard shoulder | D40: 0.2 | E40: 0 | F40: 0 | G40: 0 | H40: 0 | I40: 1 | J40: 0 | K40: - | L40: - | M40: - | N40: Pedal cycle
A41: A | C41: Leaving lay-by or hard shoulder | D41: 0 | E41: 0 | F41: 0 | G41: 0 | H41: 0 | I41: 0 | J41: 0 | K41: - | L41: - | M41: - | N41: Pedal cycle
A42: A | C42: On lay-by or hard shoulder | D42: 0.6 | E42: 0 | F42: 1 | G42: 0 | H42: 0 | I42: 0 | J42: 0 | K42: - | L42: - | M42: - | N42: Pedal cycle
A43: A | C43: On main c'way - not in restricted lane | D43: 138.4 | E43: 137 | F43: 159 | G43: 145 | H43: 129 | I43: 125 | J43: 94 | K43: -0.3208092486 | L43: -0.2713178295 | M43: -0.248 | N43: Pedal cycle
A44: A | C44: Footway (pavement) | D44: 4.6 | E44: 4 | F44: 8 | G44: 4 | H44: 4 | I44: 3 | J44: 2 | K44: - | L44: - | M44: - | N44: Pedal cycle
A45: A | C45: Tram/Light rail track | D45: 0 | E45: 0 | F45: 0 | G45: 0 | H45: 0 | I45: 0 | J45: 0 | K45: - | L45: - | M45: - | N45: Pedal cycle
A46: A | C46: Data missing or out of range | D46: 0 | E46: 0 | F46: 0 | G46: 0 | H46: 1 | I46: 0 | J46: 0 | K46: - | L46: - | M46: - | N46: Pedal cycle
B48: Notes:
B49: (a) Values in the table report the number of collisions by road class and vehicle location where at least one pedal cycle was involved.
B50: (b) Collisions may fall within more than one collision type and hence may be counted more than once in the table.

Sheet Tab_B.10
A7: Casualty report Appendix
A8: Tab_B.10
A9: Collisions involving agricultural vehicles by road class, vehicle location and year
H11: # columns | I11: ####
A12: Date updated
A13: =List!K2 -> 2020-02-12
A14: Input Year
A15: =Cover!$N$18 -> 2018
A16: Baseline Years | F16: B_DataSheet!
A17: =Cover!$N$20&"-"&Cover!$N$21 -> 2005-2009 | F17: 6625
F18: 6770
A19: Link to Contents
A21: B | C21: C | D21: A | E21: =SUBSTITUTE(ADDRESS(1,MATCH(E$24,INDIRECT($F$16&($F$17-1)&":"&($F$17-1))),4),"1","") -> M | F21: N | G21: O | H21: P | I21: Q | J21: R | N21: D | O21: C
B22: =A8&" - "&A9 -> Tab_B.10 - Collisions involving agricultural vehicles by road class, vehicle location and year
K23: =J24&" change from" -> 2018 change from | L23: =J24&" change from" -> 2018 change from | M23: =K24&" change from" -> BSL (2005-2009) change from
B24: Road class | C24: Vehicle location | D24: ="BSL ("&A17&")" -> BSL (2005-2009) | E24: =F24-1 -> 2013 | F24: =G24-1 -> 2014 | G24: 2015 | H24: 2016 | I24: 2017 | J24: =A15 -> 2018 | K24: =D24 -> BSL (2005-2009) | L24: =H24 -> 2016 | M24: =I24 -> 2017
A25: *M* | B25: Motorway | C25: Bus lane | D25: =SUMIFS(INDIRECT($F$16&D$21&$F$17&":"&D$21&$F$18),INDIRECT($F$16&$A$21&$F$17&":"&$A$21&$F$18),$A25,INDIRECT($F$16&$C$21&$F$17&":"&$C$21&$F$18),$C25,INDIRECT($F$16&$N$21&$F$17&":"&$N$21&$F$18),$N25) -> 0 | E25: 0 | F25: 0 | G25: 0 | H25: 0 | I25: 0 | J25: 0 | K25: =IF(D25>15,(J25-D25)/D25,"-") -> - | L25: =IF(H25>15,(J25-H25)/H25,"-") -> - | M25: =IF(I25>15,(J25-I25)/I25,"-") -> - | N25: Agricultural vehicle
A26: *M* | C26: Busway (including guided busway) | D26: 0 | E26: 0 | F26: 0 | G26: 0 | H26: 0 | I26: 0 | J26: 0 | K26: =IF(D26>15,(J26-D26)/D26,"-") -> - | L26: =IF(H26>15,(J26-H26)/H26,"-") -> - | M26: =IF(I26>15,(J26-I26)/I26,"-") -> - | N26: Agricultural vehicle
A27: *M* | C27: Cycle lane (on main carriageway) | D27: 0 | E27: 0 | F27: 0 | G27: 0 | H27: 0 | I27: 0 | J27: 0 | K27: - | L27: - | M27: - | N27: Agricultural vehicle
A28: *M* | C28: Cycleway or shared use footway (not part of main carriageway) | D28: =SUMIFS(INDIRECT($F$16&D$21&$F$17&":"&D$21&$F$18),INDIRECT($F$16&$A$21&$F$17&":"&$A$21&$F$18),$A28,INDIRECT($F$16&$O$21&$F$17&":"&$O$21&$F$18),$O28,INDIRECT($F$16&$N$21&$F$17&":"&$N$21&$F$18),$N28) -> 0 | E28: =SUMIFS(INDIRECT($F$16&E$21&$F$17&":"&E$21&$F$18),INDIRECT($F$16&$A$21&$F$17&":"&$A$21&$F$18),$A28,INDIRECT($F$16&$O$21&$F$17&":"&$O$21&$F$18),$O28,INDIRECT($F$16&$N$21&$F$17&":"&$N$21&$F$18),$N28) -> 0 | F28: 0 | G28: 0 | H28: 0 | I28: 0 | J28: 0 | K28: - | L28: - | M28: - | N28: Agricultural vehicle | O28: Cycleway or shared use footway (not part of main carriageway)
A29: *M* | C29: Entering lay-by or hard shoulder | D29: 0 | E29: 0 | F29: 0 | G29: 0 | H29: 0 | I29: 0 | J29: 0 | K29: - | L29: - | M29: - | N29: Agricultural vehicle
A30: *M* | C30: Leaving lay-by or hard shoulder | D30: 0 | E30: 0 | F30: 0 | G30: 0 | H30: 0 | I30: 0 | J30: 0 | K30: - | L30: - | M30: - | N30: Agricultural vehicle
A31: *M* | C31: On lay-by or hard shoulder | D31: 0.2 | E31: 0 | F31: 0 | G31: 0 | H31: 0 | I31: 0 | J31: 0 | K31: - | L31: - | M31: =IF(I31>15,(J31-I31)/I31,"-") -> - | N31: Agricultural vehicle
A32: *M* | C32: On main c'way - not in restricted lane | D32: 1.4 | E32: 2 | F32: 1 | G32: 0 | H32: 1 | I32: 0 | J32: 1 | K32: - | L32: - | M32: - | N32: Agricultural vehicle
A33: *M* | C33: Footway (pavement) | D33: 0 | E33: 0 | F33: 0 | G33: 0 | H33: 0 | I33: 0 | J33: 0 | K33: - | L33: - | M33: - | N33: Agricultural vehicle
A34: *M* | C34: Tram/Light rail track | D34: 0 | E34: 0 | F34: 0 | G34: 0 | H34: 0 | I34: 0 | J34: 0 | K34: - | L34: - | M34: - | N34: Agricultural vehicle
A35: *M* | C35: Data missing or out of range | D35: =SUMIFS(INDIRECT($F$16&D$21&$F$17&":"&D$21&$F$18),INDIRECT($F$16&$A$21&$F$17&":"&$A$21&$F$18),$A35,INDIRECT($F$16&$C$21&$F$17&":"&$C$21&$F$18),$C35,INDIRECT($F$16&$N$21&$F$17&":"&$N$21&$F$18),$N35) -> 0 | E35: 0 | F35: 0 | G35: 0 | H35: 0 | I35: 0 | J35: 0 | K35: - | L35: - | M35: - | N35: Agricultural vehicle
A36: A | B36: A road | C36: Bus lane | D36: 0 | E36: 0 | F36: 0 | G36: 0 | H36: 0 | I36: 0 | J36: 0 | K36: - | L36: - | M36: - | N36: Agricultural vehicle
A37: A | C37: Busway (including guided busway) | D37: 0 | E37: 0 | F37: 0 | G37: 0 | H37: 0 | I37: 0 | J37: 0 | K37: - | L37: - | M37: - | N37: Agricultural vehicle
A38: A | C38: Cycle lane (on main carriageway) | D38: 0 | E38: 0 | F38: 0 | G38: 0 | H38: 0 | I38: 0 | J38: 0 | K38: - | L38: - | M38: - | N38: Agricultural vehicle
A39: A | C39: Cycleway or shared use footway (not part of main carriageway) | D39: =SUMIFS(INDIRECT($F$16&D$21&$F$17&":"&D$21&$F$18),INDIRECT($F$16&$A$21&$F$17&":"&$A$21&$F$18),$A39,INDIRECT($F$16&$O$21&$F$17&":"&$O$21&$F$18),$O39,INDIRECT($F$16&$N$21&$F$17&":"&$N$21&$F$18),$N39) -> 0 | E39: =SUMIFS(INDIRECT($F$16&E$21&$F$17&":"&E$21&$F$18),INDIRECT($F$16&$A$21&$F$17&":"&$A$21&$F$18),$A39,INDIRECT($F$16&$O$21&$F$17&":"&$O$21&$F$18),$O39,INDIRECT($F$16&$N$21&$F$17&":"&$N$21&$F$18),$N39) -> 0 | F39: 0 | G39: 0 | H39: 0 | I39: 0 | J39: 0 | K39: - | L39: - | M39: - | N39: Agricultural vehicle | O39: Cycleway or shared use footway (not part of main carriageway)
A40: A | C40: Entering lay-by or hard shoulder | D40: 0 | E40: 0 | F40: 0 | G40: 0 | H40: 0 | I40: 0 | J40: 0 | K40: - | L40: - | M40: - | N40: Agricultural vehicle
A41: A | C41: Leaving lay-by or hard shoulder | D41: 0 | E41: 0 | F41: 0 | G41: 0 | H41: 0 | I41: 0 | J41: 0 | K41: - | L41: - | M41: - | N41: Agricultural vehicle
A42: A | C42: On lay-by or hard shoulder | D42: 0.2 | E42: 1 | F42: 0 | G42: 0 | H42: 1 | I42: 0 | J42: 1 | K42: - | L42: - | M42: - | N42: Agricultural vehicle
A43: A | C43: On main c'way - not in restricted lane | D43: 43.6 | E43: 41 | F43: 37 | G43: 24 | H43: 38 | I43: 35 | J43: 34 | K43: -0.2201834862 | L43: -0.1052631579 | M43: -0.02857142857 | N43: Agricultural vehicle
A44: A | C44: Footway (pavement) | D44: 0 | E44: 0 | F44: 0 | G44: 0 | H44: 0 | I44: 0 | J44: 0 | K44: - | L44: - | M44: - | N44: Agricultural vehicle
A45: A | C45: Tram/Light rail track | D45: 0.2 | E45: 0 | F45: 0 | G45: 0 | H45: 0 | I45: 0 | J45: 0 | K45: - | L45: - | M45: - | N45: Agricultural vehicle
A46: A | C46: Data missing or out of range | D46: 0 | E46: 0 | F46: 0 | G46: 0 | H46: 0 | I46: 0 | J46: 0 | K46: - | L46: - | M46: - | N46: Agricultural vehicle
B48: Notes:
B49: (a) Values in the table report the number of collisions by road class and vehicle location where at least one agricultural vehicle was involved.
B50: (b) Collisions may fall within more than one collision type and hence may be counted more than once in the table.

Sheet Tab_B.11
A7: Casualty report Appendix
A8: Tab_B.11
A9: ="Collisions involving pedestrians and single vehicle by vehicle type and severity,"&" "&A15 -> Collisions involving pedestrians and single vehicle by vehicle type and severity, 2018
I11: # columns | J11: ####
A12: Date updated
A13: =List!K2 -> 2020-02-12
A14: Input Year
A15: =List!$J$2 -> 2018
A16: Baseline Years | G16: B_DataSheet! | J16: B_DataSheet!
A17: =Cover!$N$20&"-"&Cover!$N$21 -> 2005-2009 | G17: 6925 | J17: 7225
G18: 6940 | J18: 7240
A19: Link to Contents
B21: B | C21: C | D21: D | E21: E
B22: =A8&" - "&A9 -> Tab_B.11 - Collisions involving pedestrians and single vehicle by vehicle type and severity, 2018
B24: Vehicle type | C24: Fatal | D24: Serious | E24: Slight | F24: Fatal+Serious | G24: Total
B25: Car | C25: =SUMIFS(INDIRECT($G$16&C$21&$G$17&":"&C$21&$G$18),INDIRECT($G$16&$B$21&$G$17&":"&$B$21&$G$18),$B25) -> 18 | D25: =SUMIFS(INDIRECT($G$16&D$21&$G$17&":"&D$21&$G$18),INDIRECT($G$16&$B$21&$G$17&":"&$B$21&$G$18),$B25) -> 24 | E25: 29 | F25: =SUM($C25:$D25) -> 42 | G25: =SUM($E25:$F25) -> 71
B26: Data missing or out of range | C26: =SUMIFS(INDIRECT($G$16&C$21&$G$17&":"&C$21&$G$18),INDIRECT($G$16&$B$21&$G$17&":"&$B$21&$G$18),$B26) -> 0 | D26: 0 | E26: 0 | F26: 0 | G26: =SUM($E26:$F26) -> 0
B27: Goods Vehicle | C27: 2 | D27: 6 | E27: 3 | F27: 8 | G27: 11
B28: HGV | C28: 6 | D28: 8 | E28: 7 | F28: 14 | G28: 21
B29: Motorcycle | C29: 1 | D29: 2 | E29: 1 | F29: 3 | G29: 4
B30: Collisions involving pedestrian and two or more vehicles | C30: =SUMIFS(INDIRECT($J$16&C$21&$J$17&":"&C$21&$J$18),INDIRECT($J$16&$B$21&$J$17&":"&$B$21&$J$18),"Car")+SUMIFS(INDIRECT($J$16&C$21&$J$17&":"&C$21&$J$18),INDIRECT($J$16&$B$21&$J$17&":"&$B$21&$J$18),"Goods Vehicle")+SUMIFS(INDIRECT($J$16&C$21&$J$17&":"&C$21&$J$18),INDIRECT($J$16&$B$21&$J$17&":"&$B$21&$J$18),"HGV") -> 14 | D30: =SUMIFS(INDIRECT($J$16&D$21&$J$17&":"&D$21&$J$18),INDIRECT($J$16&$B$21&$J$17&":"&$B$21&$J$18),"Car")+SUMIFS(INDIRECT($J$16&D$21&$J$17&":"&D$21&$J$18),INDIRECT($J$16&$B$21&$J$17&":"&$B$21&$J$18),"Goods Vehicle")+SUMIFS(INDIRECT($J$16&D$21&$J$17&":"&D$21&$J$18),INDIRECT($J$16&$B$21&$J$17&":"&$B$21&$J$18),"HGV") -> 12 | E30: =SUMIFS(INDIRECT($J$16&E$21&$J$17&":"&E$21&$J$18),INDIRECT($J$16&$B$21&$J$17&":"&$B$21&$J$18),"Car")+SUMIFS(INDIRECT($J$16&E$21&$J$17&":"&E$21&$J$18),INDIRECT($J$16&$B$21&$J$17&":"&$B$21&$J$18),"Goods Vehicle")+SUMIFS(INDIRECT($J$16&E$21&$J$17&":"&E$21&$J$18),INDIRECT($J$16&$B$21&$J$17&":"&$B$21&$J$18),"HGV") -> 8 | F30: =SUM($C30:$D30) -> 26 | G30: =SUM($E30:$F30) -> 34
B32: Notes:
B33: (a) Values in the table report the number of collisions by vehicle type and severity where at least one pedestrian and a single vehicle was involved
B34: (exept where its stated that two or more vehicles were involved).

Sheet Tab_B.12
A7: Casualty report Appendix
A8: Tab_B.12
A9: ="Collisions by road classification, road surface condition and light condition,"&" "&A15 -> Collisions by road classification, road surface condition and light condition, 2018
I11: # columns | J11: ####
A12: Date updated
A13: =List!K2 -> 2020-02-12
A14: Input Year
A15: =List!$J$2 -> 2018
A16: Baseline Years | G16: B_DataSheet!
A17: =Cover!$N$20&"-"&Cover!$N$21 -> 2005-2009 | G17: 7525
G18: 7620
A19: Link to Contents
A21: D | C21: G | D21: C | E21: E | F21: L | G21: H | H21: I | I21: J | J21: K
B22: =A8&" - "&A9 -> Tab_B.12 - Collisions by road classification, road surface condition and light condition, 2018
G23: Darkness
B24: Road class | C24: Road type | D24: Road classification | E24: Road surface condition | F24: Daylight | G24: Llighting unknown | H24: Lights lit | I24: Lights unlit | J24: No lighting
A25: *M* | B25: Motorway | C25: - | D25: - | E25: Dry | F25: =IF($E25="Total",F24+F23+F22+F21+F20+F19,SUMIFS(INDIRECT($G$16&F$21&$G$17&":"&F$21&$G$18),INDIRECT($G$16&$A$21&$G$17&":"&$A$21&$G$18),$A25,INDIRECT($G$16&$E$21&$G$17&":"&$E$21&$G$18),$E25,INDIRECT($G$16&$C$21&$G$17&":"&$C$21&$G$18),IF($C25="-","*",$C25),INDIRECT($G$16&$D$21&$G$17&":"&$D$21&$G$18),IF($D25="-","*",$D25))) -> 2217 | G25: =IF($E25="Total",G24+G23+G22+G21+G20+G19,SUMIFS(INDIRECT($G$16&G$21&$G$17&":"&G$21&$G$18),INDIRECT($G$16&$A$21&$G$17&":"&$A$21&$G$18),$A25,INDIRECT($G$16&$E$21&$G$17&":"&$E$21&$G$18),$E25,INDIRECT($G$16&$C$21&$G$17&":"&$C$21&$G$18),IF($C25="-","*",$C25),INDIRECT($G$16&$D$21&$G$17&":"&$D$21&$G$18),IF($D25="-","*",$D25))) -> 44 | H25: =IF($E25="Total",H24+H23+H22+H21+H20+H19,SUMIFS(INDIRECT($G$16&H$21&$G$17&":"&H$21&$G$18),INDIRECT($G$16&$A$21&$G$17&":"&$A$21&$G$18),$A25,INDIRECT($G$16&$E$21&$G$17&":"&$E$21&$G$18),$E25,INDIRECT($G$16&$C$21&$G$17&":"&$C$21&$G$18),IF($C25="-","*",$C25),INDIRECT($G$16&$D$21&$G$17&":"&$D$21&$G$18),IF($D25="-","*",$D25))) -> 346 | I25: =IF($E25="Total",I24+I23+I22+I21+I20+I19,SUMIFS(INDIRECT($G$16&I$21&$G$17&":"&I$21&$G$18),INDIRECT($G$16&$A$21&$G$17&":"&$A$21&$G$18),$A25,INDIRECT($G$16&$E$21&$G$17&":"&$E$21&$G$18),$E25,INDIRECT($G$16&$C$21&$G$17&":"&$C$21&$G$18),IF($C25="-","*",$C25),INDIRECT($G$16&$D$21&$G$17&":"&$D$21&$G$18),IF($D25="-","*",$D25))) -> 37 | J25: =IF($E25="Total",J24+J23+J22+J21+J20+J19,SUMIFS(INDIRECT($G$16&J$21&$G$17&":"&J$21&$G$18),INDIRECT($G$16&$A$21&$G$17&":"&$A$21&$G$18),$A25,INDIRECT($G$16&$E$21&$G$17&":"&$E$21&$G$18),$E25,INDIRECT($G$16&$C$21&$G$17&":"&$C$21&$G$18),IF($C25="-","*",$C25),INDIRECT($G$16&$D$21&$G$17&":"&$D$21&$G$18),IF($D25="-","*",$D25))) -> 275
A26: *M* | B26: Motorway | C26: - | D26: - | E26: Wet or damp | F26: 534 | G26: 21 | H26: =IF($E26="Total",H25+H24+H23+H22+H21+H20,SUMIFS(INDIRECT($G$16&H$21&$G$17&":"&H$21&$G$18),INDIRECT($G$16&$A$21&$G$17&":"&$A$21&$G$18),$A26,INDIRECT($G$16&$E$21&$G$17&":"&$E$21&$G$18),$E26,INDIRECT($G$16&$C$21&$G$17&":"&$C$21&$G$18),IF($C26="-","*",$C26),INDIRECT($G$16&$D$21&$G$17&":"&$D$21&$G$18),IF($D26="-","*",$D26))) -> 214 | I26: 25 | J26: 198
A27: *M* | B27: Motorway | C27: - | D27: - | E27: Frost or ice | F27: 16 | G27: 3 | H27: 5 | I27: 1 | J27: 5
A28: *M* | B28: Motorway | C28: - | D28: - | E28: Flood over 3cm. deep | F28: 10 | G28: 0 | H28: 4 | I28: 1 | J28: 7
A29: *M* | B29: Motorway | C29: - | D29: - | E29: Snow | F29: 18 | G29: 2 | H29: 4 | I29: 1 | J29: 19
A30: *M* | B30: Motorway | C30: - | D30: - | E30: Data missing or out of range | F30: 16 | G30: 3 | H30: 3 | I30: 0 | J30: 0
A31: *M* | B31: Motorway | C31: - | D31: - | E31: Total | F31: 2811 | G31: 73 | H31: 576 | I31: 65 | J31: 504
A32: A | B32: A-road | C32: - | D32: - | E32: Dry | F32: 2561 | G32: 40 | H32: 296 | I32: 15 | J32: 300
A33: A | B33: A-road | C33: - | D33: - | E33: Wet or damp | F33: 608 | G33: 20 | H33: 189 | I33: 20 | J33: 248
A34: A | B34: A-road | C34: - | D34: - | E34: Frost or ice | F34: 35 | G34: 0 | H34: 9 | I34: 1 | J34: 11
A35: A | B35: A-road | C35: - | D35: - | E35: Flood over 3cm. deep | F35: 6 | G35: 0 | H35: 0 | I35: 0 | J35: 6
A36: A | B36: A-road | C36: - | D36: - | E36: Snow | F36: 36 | G36: 1 | H36: 11 | I36: 0 | J36: 14
A37: A | B37: A-road | C37: - | D37: - | E37: Data missing or out of range | F37: 4 | G37: 0 | H37: 0 | I37: 0 | J37: 0
A38: A | B38: A-road | C38: - | D38: - | E38: Total | F38: 3250 | G38: 61 | H38: 505 | I38: 36 | J38: 579
A39: A | B39: A-road | C39: Dual Carriageway | D39: Built-up | E39: Dry | F39: 280 | G39: 5 | H39: 51 | I39: 3 | J39: 1
A40: A | B40: A-road | C40: Dual Carriageway | D40: Built-up | E40: Wet or damp | F40: 52 | G40: 1 | H40: 33 | I40: 3 | J40: 4
A41: A | B41: A-road | C41: Dual Carriageway | D41: Built-up | E41: Frost or ice | F41: 0 | G41: 0 | H41: 2 | I41: 0 | J41: 0
A42: A | B42: A-road | C42: Dual Carriageway | D42: Built-up | E42: Flood over 3cm. deep | F42: 0 | G42: 0 | H42: 0 | I42: 0 | J42: 0
A43: A | B43: A-road | C43: Dual Carriageway | D43: Built-up | E43: Snow | F43: 1 | G43: 0 | H43: 3 | I43: 0 | J43: 0
A44: A | B44: A-road | C44: Dual Carriageway | D44: Built-up | E44: Data missing or out of range | F44: 0 | G44: 0 | H44: 0 | I44: 0 | J44: 0
A45: A | B45: A-road | C45: Dual Carriageway | D45: Built-up | E45: Total | F45: 333 | G45: 6 | H45: 89 | I45: 6 | J45: 5
A46: A | B46: A-road | C46: Dual Carriageway | D46: Non built-up | E46: Dry | F46: 1581 | G46: 24 | H46: 197 | I46: 10 | J46: 217
A47: A | B47: A-road | C47: Dual Carriageway | D47: Non built-up | E47: Wet or damp | F47: 391 | G47: 15 | H47: 131 | I47: 15 | J47: 181
A48: A | B48: A-road | C48: Dual Carriageway | D48: Non built-up | E48: Frost or ice | F48: 22 | G48: 0 | H48: 7 | I48: 1 | J48: 10
A49: A | B49: A-road | C49: Dual Carriageway | D49: Non built-up | E49: Flood over 3cm. deep | F49: 6 | G49: 0 | H49: 0 | I49: 0 | J49: 5
A50: A | B50: A-road | C50: Dual Carriageway | D50: Non built-up | E50: Snow | F50: 30 | G50: 1 | H50: 7 | I50: 0 | J50: 14
A51: A | B51: A-road | C51: Dual Carriageway | D51: Non built-up | E51: Data missing or out of range | F51: 3 | G51: 0 | H51: 0 | I51: 0 | J51: 0
A52: A | B52: A-road | C52: Dual Carriageway | D52: Non built-up | E52: Total | F52: 2033 | G52: 40 | H52: 342 | I52: 26 | J52: 427
A53: A | B53: A-road | C53: Single Carriageway | D53: Built-up | E53: Dry | F53: 189 | G53: 5 | H53: 27 | I53: 1 | J53: 6
A54: A | B54: A-road | C54: Single Carriageway | D54: Built-up | E54: Wet or damp | F54: 41 | G54: 2 | H54: 13 | I54: 1 | J54: 8
A55: A | B55: A-road | C55: Single Carriageway | D55: Built-up | E55: Frost or ice | F55: 2 | G55: 0 | H55: 0 | I55: 0 | J55: 0
A56: A | B56: A-road | C56: Single Carriageway | D56: Built-up | E56: Flood over 3cm. deep | F56: 0 | G56: 0 | H56: 0 | I56: 0 | J56: 0
A57: A | B57: A-road | C57: Single Carriageway | D57: Built-up | E57: Snow | F57: 0 | G57: 0 | H57: 1 | I57: 0 | J57: 0
A58: A | B58: A-road | C58: Single Carriageway | D58: Built-up | E58: Data missing or out of range | F58: 0 | G58: 0 | H58: 0 | I58: 0 | J58: 0
A59: A | B59: A-road | C59: Single Carriageway | D59: Built-up | E59: Total | F59: 232 | G59: 7 | H59: 41 | I59: 2 | J59: 14
A60: A | B60: A-road | C60: Single Carriageway | D60: Non built-up | E60: Dry | F60: 511 | G60: 6 | H60: 21 | I60: 1 | J60: 76
A61: A | B61: A-road | C61: Single Carriageway | D61: Non built-up | E61: Wet or damp | F61: 124 | G61: 2 | H61: 12 | I61: 1 | J61: 55
A62: A | B62: A-road | C62: Single Carriageway | D62: Non built-up | E62: Frost or ice | F62: 11 | G62: 0 | H62: 0 | I62: 0 | J62: 1
A63: A | B63: A-road | C63: Single Carriageway | D63: Non built-up | E63: Flood over 3cm. deep | F63: 0 | G63: 0 | H63: 0 | I63: 0 | J63: 1
A64: A | B64: A-road | C64: Single Carriageway | D64: Non built-up | E64: Snow | F64: 5 | G64: 0 | H64: 0 | I64: 0 | J64: 0
A65: A | B65: A-road | C65: Single Carriageway | D65: Non built-up | E65: Data missing or out of range | F65: 1 | G65: 0 | H65: 0 | I65: 0 | J65: 0
A66: A | B66: A-road | C66: Single Carriageway | D66: Non built-up | E66: Total | F66: 652 | G66: =IF($E66="Total",G65+G64+G63+G62+G61+G60,SUMIFS(INDIRECT($G$16&G$21&$G$17&":"&G$21&$G$18),INDIRECT($G$16&$A$21&$G$17&":"&$A$21&$G$18),$A66,INDIRECT($G$16&$E$21&$G$17&":"&$E$21&$G$18),$E66,INDIRECT($G$16&$C$21&$G$17&":"&$C$21&$G$18),IF($C66="-","*",$C66),INDIRECT($G$16&$D$21&$G$17&":"&$D$21&$G$18),IF($D66="-","*",$D66))) -> 8 | H66: 33 | I66: 2 | J66: 133
A67: * | B67: Total | C67: - | D67: Built-up | E67: - | F67: =SUMIFS(INDIRECT($G$16&F$21&$G$17&":"&F$21&$G$18),INDIRECT($G$16&$A$21&$G$17&":"&$A$21&$G$18),$A67,INDIRECT($G$16&$E$21&$G$17&":"&$E$21&$G$18),IF($E67="-","*",$E67),INDIRECT($G$16&$C$21&$G$17&":"&$C$21&$G$18),IF($C67="-","*",$C67),INDIRECT($G$16&$D$21&$G$17&":"&$D$21&$G$18),IF($D67="-","*",$D67)) -> 644 | G67: =SUMIFS(INDIRECT($G$16&G$21&$G$17&":"&G$21&$G$18),INDIRECT($G$16&$A$21&$G$17&":"&$A$21&$G$18),$A67,INDIRECT($G$16&$E$21&$G$17&":"&$E$21&$G$18),IF($E67="-","*",$E67),INDIRECT($G$16&$C$21&$G$17&":"&$C$21&$G$18),IF($C67="-","*",$C67),INDIRECT($G$16&$D$21&$G$17&":"&$D$21&$G$18),IF($D67="-","*",$D67)) -> 15 | H67: =SUMIFS(INDIRECT($G$16&H$21&$G$17&":"&H$21&$G$18),INDIRECT($G$16&$A$21&$G$17&":"&$A$21&$G$18),$A67,INDIRECT($G$16&$E$21&$G$17&":"&$E$21&$G$18),IF($E67="-","*",$E67),INDIRECT($G$16&$C$21&$G$17&":"&$C$21&$G$18),IF($C67="-","*",$C67),INDIRECT($G$16&$D$21&$G$17&":"&$D$21&$G$18),IF($D67="-","*",$D67)) -> 157 | I67: =SUMIFS(INDIRECT($G$16&I$21&$G$17&":"&I$21&$G$18),INDIRECT($G$16&$A$21&$G$17&":"&$A$21&$G$18),$A67,INDIRECT($G$16&$E$21&$G$17&":"&$E$21&$G$18),IF($E67="-","*",$E67),INDIRECT($G$16&$C$21&$G$17&":"&$C$21&$G$18),IF($C67="-","*",$C67),INDIRECT($G$16&$D$21&$G$17&":"&$D$21&$G$18),IF($D67="-","*",$D67)) -> 9 | J67: 23
A68: * | B68: Total | C68: - | D68: Non built-up | E68: - | F68: 5417 | G68: 119 | H68: 924 | I68: 92 | J68: =SUMIFS(INDIRECT($G$16&J$21&$G$17&":"&J$21&$G$18),INDIRECT($G$16&$A$21&$G$17&":"&$A$21&$G$18),$A68,INDIRECT($G$16&$E$21&$G$17&":"&$E$21&$G$18),IF($E68="-","*",$E68),INDIRECT($G$16&$C$21&$G$17&":"&$C$21&$G$18),IF($C68="-","*",$C68),INDIRECT($G$16&$D$21&$G$17&":"&$D$21&$G$18),IF($D68="-","*",$D68)) -> 1060
B70: Notes:

Sheet Tab_B.13
A7: Casualty report Appendix
A8: Tab_B.13
A9: ="Collisions during darkness by road classification, weather condition and severity,"&" "&A15 -> Collisions during darkness by road classification, weather condition and severity, 2018
H11: # columns | I11: ####
A12: Date updated
A13: =List!K2 -> 2020-02-12
A14: Input Year
A15: =List!$J$2 -> 2018
A16: Baseline Years | G16: B_DataSheet!
A17: =Cover!$N$20&"-"&Cover!$N$21 -> 2005-2009 | G17: 7825
G18: 7860
A19: Link to Contents
A21: F | C21: G | D21: E | E21: C | F21: H | G21: I | H21: K | I21: L | J21: M | K21: J
B22: =A8&" - "&A9 -> Tab_B.13 - Collisions during darkness by road classification, weather condition and severity, 2018
B24: Road class | C24: Road type | D24: Road classification | E24: Collision severity | F24: Fine | G24: Fog or mist | H24: Rain | I24: Snow | J24: Unknown | K24: Other
A25: *M* | B25: Motorway | C25: - | D25: - | E25: Fatal | F25: =IF(OR($E25="Fatal+Serious", $E25="Total"),F24+F23,SUMIFS(INDIRECT($G$16&F$21&$G$17&":"&F$21&$G$18),INDIRECT($G$16&$A$21&$G$17&":"&$A$21&$G$18),$A25,INDIRECT($G$16&$E$21&$G$17&":"&$E$21&$G$18),$E25,INDIRECT($G$16&$C$21&$G$17&":"&$C$21&$G$18),IF($C25="-","*",$C25),INDIRECT($G$16&$D$21&$G$17&":"&$D$21&$G$18),IF($D25="-","*",$D25))) -> 28 | G25: =IF(OR($E25="Fatal+Serious", $E25="Total"),G24+G23,SUMIFS(INDIRECT($G$16&G$21&$G$17&":"&G$21&$G$18),INDIRECT($G$16&$A$21&$G$17&":"&$A$21&$G$18),$A25,INDIRECT($G$16&$E$21&$G$17&":"&$E$21&$G$18),$E25,INDIRECT($G$16&$C$21&$G$17&":"&$C$21&$G$18),IF($C25="-","*",$C25),INDIRECT($G$16&$D$21&$G$17&":"&$D$21&$G$18),IF($D25="-","*",$D25))) -> 2 | H25: 11 | I25: 1 | J25: 1 | K25: =IF(OR($E25="Fatal+Serious", $E25="Total"),K24+K23,SUMIFS(INDIRECT($G$16&K$21&$G$17&":"&K$21&$G$18),INDIRECT($G$16&$A$21&$G$17&":"&$A$21&$G$18),$A25,INDIRECT($G$16&$E$21&$G$17&":"&$E$21&$G$18),$E25,INDIRECT($G$16&$C$21&$G$17&":"&$C$21&$G$18),IF($C25="-","*",$C25),INDIRECT($G$16&$D$21&$G$17&":"&$D$21&$G$18),IF($D25="-","*",$D25))) -> 1
A26: *M* | B26: Motorway | C26: - | D26: - | E26: Serious | F26: =IF(OR($E26="Fatal+Serious", $E26="Total"),F25+F24,SUMIFS(INDIRECT($G$16&F$21&$G$17&":"&F$21&$G$18),INDIRECT($G$16&$A$21&$G$17&":"&$A$21&$G$18),$A26,INDIRECT($G$16&$E$21&$G$17&":"&$E$21&$G$18),$E26,INDIRECT($G$16&$C$21&$G$17&":"&$C$21&$G$18),IF($C26="-","*",$C26),INDIRECT($G$16&$D$21&$G$17&":"&$D$21&$G$18),IF($D26="-","*",$D26))) -> 153 | G26: =IF(OR($E26="Fatal+Serious", $E26="Total"),G25+G24,SUMIFS(INDIRECT($G$16&G$21&$G$17&":"&G$21&$G$18),INDIRECT($G$16&$A$21&$G$17&":"&$A$21&$G$18),$A26,INDIRECT($G$16&$E$21&$G$17&":"&$E$21&$G$18),$E26,INDIRECT($G$16&$C$21&$G$17&":"&$C$21&$G$18),IF($C26="-","*",$C26),INDIRECT($G$16&$D$21&$G$17&":"&$D$21&$G$18),IF($D26="-","*",$D26))) -> 0 | H26: =IF(OR($E26="Fatal+Serious", $E26="Total"),H25+H24,SUMIFS(INDIRECT($G$16&H$21&$G$17&":"&H$21&$G$18),INDIRECT($G$16&$A$21&$G$17&":"&$A$21&$G$18),$A26,INDIRECT($G$16&$E$21&$G$17&":"&$E$21&$G$18),$E26,INDIRECT($G$16&$C$21&$G$17&":"&$C$21&$G$18),IF($C26="-","*",$C26),INDIRECT($G$16&$D$21&$G$17&":"&$D$21&$G$18),IF($D26="-","*",$D26))) -> 52 | I26: =IF(OR($E26="Fatal+Serious", $E26="Total"),I25+I24,SUMIFS(INDIRECT($G$16&I$21&$G$17&":"&I$21&$G$18),INDIRECT($G$16&$A$21&$G$17&":"&$A$21&$G$18),$A26,INDIRECT($G$16&$E$21&$G$17&":"&$E$21&$G$18),$E26,INDIRECT($G$16&$C$21&$G$17&":"&$C$21&$G$18),IF($C26="-","*",$C26),INDIRECT($G$16&$D$21&$G$17&":"&$D$21&$G$18),IF($D26="-","*",$D26))) -> 8 | J26: =IF(OR($E26="Fatal+Serious", $E26="Total"),J25+J24,SUMIFS(INDIRECT($G$16&J$21&$G$17&":"&J$21&$G$18),INDIRECT($G$16&$A$21&$G$17&":"&$A$21&$G$18),$A26,INDIRECT($G$16&$E$21&$G$17&":"&$E$21&$G$18),$E26,INDIRECT($G$16&$C$21&$G$17&":"&$C$21&$G$18),IF($C26="-","*",$C26),INDIRECT($G$16&$D$21&$G$17&":"&$D$21&$G$18),IF($D26="-","*",$D26))) -> 0 | K26: =IF(OR($E26="Fatal+Serious", $E26="Total"),K25+K24,SUMIFS(INDIRECT($G$16&K$21&$G$17&":"&K$21&$G$18),INDIRECT($G$16&$A$21&$G$17&":"&$A$21&$G$18),$A26,INDIRECT($G$16&$E$21&$G$17&":"&$E$21&$G$18),$E26,INDIRECT($G$16&$C$21&$G$17&":"&$C$21&$G$18),IF($C26="-","*",$C26),INDIRECT($G$16&$D$21&$G$17&":"&$D$21&$G$18),IF($D26="-","*",$D26))) -> 3
A27: *M* | B27: Motorway | C27: - | D27: - | E27: Fatal+Serious | F27: 181 | G27: 2 | H27: 63 | I27: 9 | J27: 1 | K27: =IF(OR($E27="Fatal+Serious", $E27="Total"),K26+K25,SUMIFS(INDIRECT($G$16&K$21&$G$17&":"&K$21&$G$18),INDIRECT($G$16&$A$21&$G$17&":"&$A$21&$G$18),$A27,INDIRECT($G$16&$E$21&$G$17&":"&$E$21&$G$18),$E27,INDIRECT($G$16&$C$21&$G$17&":"&$C$21&$G$18),IF($C27="-","*",$C27),INDIRECT($G$16&$D$21&$G$17&":"&$D$21&$G$18),IF($D27="-","*",$D27))) -> 4
A28: *M* | B28: Motorway | C28: - | D28: - | E28: Slight | F28: 677 | G28: 10 | H28: 205 | I28: 23 | J28: 26 | K28: 17
A29: *M* | B29: Motorway | C29: - | D29: - | E29: Total | F29: 858 | G29: 12 | H29: 268 | I29: 32 | J29: 27 | K29: =IF(OR($E29="Fatal+Serious", $E29="Total"),K28+K27,SUMIFS(INDIRECT($G$16&K$21&$G$17&":"&K$21&$G$18),INDIRECT($G$16&$A$21&$G$17&":"&$A$21&$G$18),$A29,INDIRECT($G$16&$E$21&$G$17&":"&$E$21&$G$18),$E29,INDIRECT($G$16&$C$21&$G$17&":"&$C$21&$G$18),IF($C29="-","*",$C29),INDIRECT($G$16&$D$21&$G$17&":"&$D$21&$G$18),IF($D29="-","*",$D29))) -> 21
A30: A | B30: A-road | C30: - | D30: - | E30: Fatal | F30: 56 | G30: 1 | H30: 6 | I30: 1 | J30: 3 | K30: 0
A31: A | B31: A-road | C31: - | D31: - | E31: Serious | F31: 177 | G31: 5 | H31: 58 | I31: 8 | J31: 4 | K31: 4
A32: A | B32: A-road | C32: - | D32: - | E32: Fatal+Serious | F32: 233 | G32: 6 | H32: 64 | I32: 9 | J32: 7 | K32: 4
A33: A | B33: A-road | C33: - | D33: - | E33: Slight | F33: 601 | G33: 10 | H33: 188 | I33: 25 | J33: 18 | K33: 16
A34: A | B34: A-road | C34: - | D34: - | E34: Total | F34: 834 | G34: 16 | H34: 252 | I34: 34 | J34: 25 | K34: 20
A35: A | B35: A-road | C35: Dual Carriageway | D35: Built-up | E35: Fatal | F35: 2 | G35: 0 | H35: 0 | I35: 0 | J35: 0 | K35: 0
A36: A | B36: A-road | C36: Dual Carriageway | D36: Built-up | E36: Serious | F36: 11 | G36: 0 | H36: 5 | I36: 0 | J36: 0 | K36: 0
A37: A | B37: A-road | C37: Dual Carriageway | D37: Built-up | E37: Fatal+Serious | F37: 13 | G37: 0 | H37: 5 | I37: 0 | J37: 0 | K37: 0
A38: A | B38: A-road | C38: Dual Carriageway | D38: Built-up | E38: Slight | F38: 62 | G38: 0 | H38: 19 | I38: 3 | J38: 2 | K38: 2
A39: A | B39: A-road | C39: Dual Carriageway | D39: Built-up | E39: Total | F39: 75 | G39: 0 | H39: 24 | I39: 3 | J39: 2 | K39: =IF(OR($E39="Fatal+Serious", $E39="Total"),K38+K37,SUMIFS(INDIRECT($G$16&K$21&$G$17&":"&K$21&$G$18),INDIRECT($G$16&$A$21&$G$17&":"&$A$21&$G$18),$A39,INDIRECT($G$16&$E$21&$G$17&":"&$E$21&$G$18),$E39,INDIRECT($G$16&$C$21&$G$17&":"&$C$21&$G$18),IF($C39="-","*",$C39),INDIRECT($G$16&$D$21&$G$17&":"&$D$21&$G$18),IF($D39="-","*",$D39))) -> 2
A40: A | B40: A-road | C40: Dual Carriageway | D40: Non Built-up | E40: Fatal | F40: 40 | G40: 1 | H40: 3 | I40: 1 | J40: 0 | K40: 0
A41: A | B41: A-road | C41: Dual Carriageway | D41: Non Built-up | E41: Serious | F41: 109 | G41: 4 | H41: 42 | I41: 8 | J41: 2 | K41: 3
A42: A | B42: A-road | C42: Dual Carriageway | D42: Non Built-up | E42: Fatal+Serious | F42: 149 | G42: 5 | H42: 45 | I42: 9 | J42: 2 | K42: 3
A43: A | B43: A-road | C43: Dual Carriageway | D43: Non Built-up | E43: Slight | F43: 439 | G43: 6 | H43: 136 | I43: 21 | J43: 10 | K43: 10
A44: A | B44: A-road | C44: Dual Carriageway | D44: Non Built-up | E44: Total | F44: 588 | G44: 11 | H44: 181 | I44: 30 | J44: 12 | K44: 13
A45: A | B45: A-road | C45: Dual Carriageway | D45: Total | E45: Fatal | F45: =F35+F40 -> 42 | G45: =G35+G40 -> 1 | H45: 3 | I45: 1 | J45: 0 | K45: =K35+K40 -> 0
A46: A | B46: A-road | C46: Dual Carriageway | D46: Total | E46: Serious | F46: =F36+F41 -> 120 | G46: 4 | H46: 47 | I46: 8 | J46: 2 | K46: =K36+K41 -> 3
A47: A | B47: A-road | C47: Dual Carriageway | D47: Total | E47: Fatal+Serious | F47: =F37+F42 -> 162 | G47: 5 | H47: 50 | I47: 9 | J47: 2 | K47: =K37+K42 -> 3
A48: A | B48: A-road | C48: Dual Carriageway | D48: Total | E48: Slight | F48: =F38+F43 -> 501 | G48: 6 | H48: 155 | I48: 24 | J48: 12 | K48: =K38+K43 -> 12
A49: A | B49: A-road | C49: Dual Carriageway | D49: Total | E49: Total | F49: =F39+F44 -> 663 | G49: 11 | H49: 205 | I49: 33 | J49: 14 | K49: =K39+K44 -> 15
A50: A | B50: A-road | C50: Single Carriageway | D50: Built-up | E50: Fatal | F50: 1 | G50: 0 | H50: 0 | I50: 0 | J50: 0 | K50: 0
A51: A | B51: A-road | C51: Single Carriageway | D51: Built-up | E51: Serious | F51: 15 | G51: 0 | H51: 3 | I51: 0 | J51: 0 | K51: 0
A52: A | B52: A-road | C52: Single Carriageway | D52: Built-up | E52: Fatal+Serious | F52: 16 | G52: 0 | H52: 3 | I52: 0 | J52: 0 | K52: 0
A53: A | B53: A-road | C53: Single Carriageway | D53: Built-up | E53: Slight | F53: 32 | G53: 2 | H53: 5 | I53: 1 | J53: 3 | K53: 2
A54: A | B54: A-road | C54: Single Carriageway | D54: Built-up | E54: Total | F54: 48 | G54: 2 | H54: 8 | I54: 1 | J54: 3 | K54: 2
A55: A | B55: A-road | C55: Single Carriageway | D55: Non Built-up | E55: Fatal | F55: 13 | G55: 0 | H55: 3 | I55: 0 | J55: 3 | K55: 0
A56: A | B56: A-road | C56: Single Carriageway | D56: Non Built-up | E56: Serious | F56: 42 | G56: 1 | H56: 8 | I56: 0 | J56: 2 | K56: 1
A57: A | B57: A-road | C57: Single Carriageway | D57: Non Built-up | E57: Fatal+Serious | F57: 55 | G57: 1 | H57: 11 | I57: 0 | J57: 5 | K57: 1
A58: A | B58: A-road | C58: Single Carriageway | D58: Non Built-up | E58: Slight | F58: 68 | G58: 2 | H58: 28 | I58: 0 | J58: 3 | K58: 2
A59: A | B59: A-road | C59: Single Carriageway | D59: Non Built-up | E59: Total | F59: 123 | G59: 3 | H59: 39 | I59: 0 | J59: 8 | K59: 3
A60: A | B60: A-road | C60: Single Carriageway | D60: Total | E60: Fatal | F60: =F50+F55 -> 14 | G60: =G50+G55 -> 0 | H60: 3 | I60: 0 | J60: 3 | K60: =K50+K55 -> 0
A61: A | B61: A-road | C61: Single Carriageway | D61: Total | E61: Serious | F61: =F51+F56 -> 57 | G61: 1 | H61: 11 | I61: 0 | J61: 2 | K61: =K51+K56 -> 1
A62: A | B62: A-road | C62: Single Carriageway | D62: Total | E62: Fatal+Serious | F62: =F52+F57 -> 71 | G62: 1 | H62: 14 | I62: 0 | J62: 5 | K62: =K52+K57 -> 1
A63: A | B63: A-road | C63: Single Carriageway | D63: Total | E63: Slight | F63: =F53+F58 -> 100 | G63: 4 | H63: 33 | I63: 1 | J63: 6 | K63: =K53+K58 -> 4
A64: A | B64: A-road | C64: Single Carriageway | D64: Total | E64: Total | F64: =F54+F59 -> 171 | G64: 5 | H64: 47 | I64: 1 | J64: 11 | K64: =K54+K59 -> 5
B66: Notes:
B67: (a) This table reports the number of collisions where the light condition is stated as 'darkness'.

Sheet Tab_B.14
A7: Casualty report Appendix
A8: Tab_B.14
A9: ="Collisions during daylight by road classification, weather condition, and severity,"&" "&A15 -> Collisions during daylight by road classification, weather condition, and severity, 2018
H11: # columns | I11: ####
A12: Date updated
A13: =List!K2 -> 2020-02-12
A14: Input Year
A15: =List!$J$2 -> 2018
A16: Baseline Years | G16: B_DataSheet!
A17: =Cover!$N$20&"-"&Cover!$N$21 -> 2005-2009 | G17: 8125
G18: 8160
A19: Link to Contents
A21: F | C21: G | D21: E | E21: C | F21: H | G21: I | H21: K | I21: L | J21: M | K21: J
B22: =A8&" - "&A9 -> Tab_B.14 - Collisions during daylight by road classification, weather condition, and severity, 2018
B23: Road class | C23: Road type | F23: Daylight
D24: Road classification | E24: Collision severity | F24: Fine | G24: Fog or mist | H24: Rain | I24: Snow | J24: Unknown | K24: Other
A25: *M* | B25: Motorway | C25: - | D25: - | E25: Fatal | F25: =IF(OR($E25="Fatal+Serious", $E25="Total"),F24+F23,SUMIFS(INDIRECT($G$16&F$21&$G$17&":"&F$21&$G$18),INDIRECT($G$16&$A$21&$G$17&":"&$A$21&$G$18),$A25,INDIRECT($G$16&$E$21&$G$17&":"&$E$21&$G$18),$E25,INDIRECT($G$16&$C$21&$G$17&":"&$C$21&$G$18),IF($C25="-","*",$C25),INDIRECT($G$16&$D$21&$G$17&":"&$D$21&$G$18),IF($D25="-","*",$D25))) -> 22 | G25: =IF(OR($E25="Fatal+Serious", $E25="Total"),G24+G23,SUMIFS(INDIRECT($G$16&G$21&$G$17&":"&G$21&$G$18),INDIRECT($G$16&$A$21&$G$17&":"&$A$21&$G$18),$A25,INDIRECT($G$16&$E$21&$G$17&":"&$E$21&$G$18),$E25,INDIRECT($G$16&$C$21&$G$17&":"&$C$21&$G$18),IF($C25="-","*",$C25),INDIRECT($G$16&$D$21&$G$17&":"&$D$21&$G$18),IF($D25="-","*",$D25))) -> 0 | H25: 7 | I25: =IF(OR($E25="Fatal+Serious", $E25="Total"),I24+I23,SUMIFS(INDIRECT($G$16&I$21&$G$17&":"&I$21&$G$18),INDIRECT($G$16&$A$21&$G$17&":"&$A$21&$G$18),$A25,INDIRECT($G$16&$E$21&$G$17&":"&$E$21&$G$18),$E25,INDIRECT($G$16&$C$21&$G$17&":"&$C$21&$G$18),IF($C25="-","*",$C25),INDIRECT($G$16&$D$21&$G$17&":"&$D$21&$G$18),IF($D25="-","*",$D25))) -> 0 | J25: 0 | K25: =IF(OR($E25="Fatal+Serious", $E25="Total"),K24+K23,SUMIFS(INDIRECT($G$16&K$21&$G$17&":"&K$21&$G$18),INDIRECT($G$16&$A$21&$G$17&":"&$A$21&$G$18),$A25,INDIRECT($G$16&$E$21&$G$17&":"&$E$21&$G$18),$E25,INDIRECT($G$16&$C$21&$G$17&":"&$C$21&$G$18),IF($C25="-","*",$C25),INDIRECT($G$16&$D$21&$G$17&":"&$D$21&$G$18),IF($D25="-","*",$D25))) -> 1
A26: *M* | B26: Motorway | C26: - | D26: - | E26: Serious | F26: =IF(OR($E26="Fatal+Serious", $E26="Total"),F25+F24,SUMIFS(INDIRECT($G$16&F$21&$G$17&":"&F$21&$G$18),INDIRECT($G$16&$A$21&$G$17&":"&$A$21&$G$18),$A26,INDIRECT($G$16&$E$21&$G$17&":"&$E$21&$G$18),$E26,INDIRECT($G$16&$C$21&$G$17&":"&$C$21&$G$18),IF($C26="-","*",$C26),INDIRECT($G$16&$D$21&$G$17&":"&$D$21&$G$18),IF($D26="-","*",$D26))) -> 355 | G26: =IF(OR($E26="Fatal+Serious", $E26="Total"),G25+G24,SUMIFS(INDIRECT($G$16&G$21&$G$17&":"&G$21&$G$18),INDIRECT($G$16&$A$21&$G$17&":"&$A$21&$G$18),$A26,INDIRECT($G$16&$E$21&$G$17&":"&$E$21&$G$18),$E26,INDIRECT($G$16&$C$21&$G$17&":"&$C$21&$G$18),IF($C26="-","*",$C26),INDIRECT($G$16&$D$21&$G$17&":"&$D$21&$G$18),IF($D26="-","*",$D26))) -> 1 | H26: =IF(OR($E26="Fatal+Serious", $E26="Total"),H25+H24,SUMIFS(INDIRECT($G$16&H$21&$G$17&":"&H$21&$G$18),INDIRECT($G$16&$A$21&$G$17&":"&$A$21&$G$18),$A26,INDIRECT($G$16&$E$21&$G$17&":"&$E$21&$G$18),$E26,INDIRECT($G$16&$C$21&$G$17&":"&$C$21&$G$18),IF($C26="-","*",$C26),INDIRECT($G$16&$D$21&$G$17&":"&$D$21&$G$18),IF($D26="-","*",$D26))) -> 33 | I26: =IF(OR($E26="Fatal+Serious", $E26="Total"),I25+I24,SUMIFS(INDIRECT($G$16&I$21&$G$17&":"&I$21&$G$18),INDIRECT($G$16&$A$21&$G$17&":"&$A$21&$G$18),$A26,INDIRECT($G$16&$E$21&$G$17&":"&$E$21&$G$18),$E26,INDIRECT($G$16&$C$21&$G$17&":"&$C$21&$G$18),IF($C26="-","*",$C26),INDIRECT($G$16&$D$21&$G$17&":"&$D$21&$G$18),IF($D26="-","*",$D26))) -> 5 | J26: =IF(OR($E26="Fatal+Serious", $E26="Total"),J25+J24,SUMIFS(INDIRECT($G$16&J$21&$G$17&":"&J$21&$G$18),INDIRECT($G$16&$A$21&$G$17&":"&$A$21&$G$18),$A26,INDIRECT($G$16&$E$21&$G$17&":"&$E$21&$G$18),$E26,INDIRECT($G$16&$C$21&$G$17&":"&$C$21&$G$18),IF($C26="-","*",$C26),INDIRECT($G$16&$D$21&$G$17&":"&$D$21&$G$18),IF($D26="-","*",$D26))) -> 2 | K26: 5
A27: *M* | B27: Motorway | C27: - | D27: - | E27: Fatal+Serious | F27: 377 | G27: 1 | H27: 40 | I27: 5 | J27: 2 | K27: 6
A28: *M* | B28: Motorway | C28: - | D28: - | E28: Slight | F28: 2010 | G28: 7 | H28: 263 | I28: 37 | J28: 46 | K28: 17
A29: *M* | B29: Motorway | C29: - | D29: - | E29: Total | F29: 2387 | G29: 8 | H29: 303 | I29: 42 | J29: 48 | K29: =IF(OR($E29="Fatal+Serious", $E29="Total"),K28+K27,SUMIFS(INDIRECT($G$16&K$21&$G$17&":"&K$21&$G$18),INDIRECT($G$16&$A$21&$G$17&":"&$A$21&$G$18),$A29,INDIRECT($G$16&$E$21&$G$17&":"&$E$21&$G$18),$E29,INDIRECT($G$16&$C$21&$G$17&":"&$C$21&$G$18),IF($C29="-","*",$C29),INDIRECT($G$16&$D$21&$G$17&":"&$D$21&$G$18),IF($D29="-","*",$D29))) -> 23
A30: A | B30: A-road | C30: - | D30: - | E30: Fatal | F30: 68 | G30: 1 | H30: 5 | I30: 2 | J30: 3 | K30: 1
A31: A | B31: A-road | C31: - | D31: - | E31: Serious | F31: 492 | G31: 3 | H31: 58 | I31: 14 | J31: 8 | K31: 5
A32: A | B32: A-road | C32: - | D32: - | E32: Fatal+Serious | F32: 560 | G32: 4 | H32: 63 | I32: 16 | J32: 11 | K32: 6
A33: A | B33: A-road | C33: - | D33: - | E33: Slight | F33: 2191 | G33: 5 | H33: 253 | I33: 39 | J33: 71 | K33: 31
A34: A | B34: A-road | C34: - | D34: - | E34: Total | F34: 2751 | G34: 9 | H34: 316 | I34: 55 | J34: 82 | K34: =IF(OR($E34="Fatal+Serious", $E34="Total"),K33+K32,SUMIFS(INDIRECT($G$16&K$21&$G$17&":"&K$21&$G$18),INDIRECT($G$16&$A$21&$G$17&":"&$A$21&$G$18),$A34,INDIRECT($G$16&$E$21&$G$17&":"&$E$21&$G$18),$E34,INDIRECT($G$16&$C$21&$G$17&":"&$C$21&$G$18),IF($C34="-","*",$C34),INDIRECT($G$16&$D$21&$G$17&":"&$D$21&$G$18),IF($D34="-","*",$D34))) -> 37
A35: A | B35: A-road | C35: Dual Carriageway | D35: Built-up | E35: Fatal | F35: 4 | G35: 0 | H35: 0 | I35: 0 | J35: 0 | K35: 0
A36: A | B36: A-road | C36: Dual Carriageway | D36: Built-up | E36: Serious | F36: 40 | G36: 0 | H36: 2 | I36: 0 | J36: 0 | K36: 0
A37: A | B37: A-road | C37: Dual Carriageway | D37: Built-up | E37: Fatal+Serious | F37: 44 | G37: 0 | H37: 2 | I37: 0 | J37: 0 | K37: 0
A38: A | B38: A-road | C38: Dual Carriageway | D38: Built-up | E38: Slight | F38: 251 | G38: 0 | H38: 17 | I38: 0 | J38: 14 | K38: 5
A39: A | B39: A-road | C39: Dual Carriageway | D39: Built-up | E39: Total | F39: 295 | G39: 0 | H39: 19 | I39: 0 | J39: 14 | K39: 5
A40: A | B40: A-road | C40: Dual Carriageway | D40: Non Built-up | E40: Fatal | F40: 35 | G40: 1 | H40: 1 | I40: 1 | J40: 1 | K40: 1
A41: A | B41: A-road | C41: Dual Carriageway | D41: Non Built-up | E41: Serious | F41: 278 | G41: 2 | H41: 42 | I41: 11 | J41: 2 | K41: 5
A42: A | B42: A-road | C42: Dual Carriageway | D42: Non Built-up | E42: Fatal+Serious | F42: 313 | G42: 3 | H42: 43 | I42: 12 | J42: 3 | K42: 6
A43: A | B43: A-road | C43: Dual Carriageway | D43: Non Built-up | E43: Slight | F43: 1383 | G43: 4 | H43: 182 | I43: 30 | J43: 35 | K43: 19
A44: A | B44: A-road | C44: Dual Carriageway | D44: Non Built-up | E44: Total | F44: 1696 | G44: 7 | H44: 225 | I44: 42 | J44: 38 | K44: 25
A45: A | B45: A-road | C45: Dual Carriageway | D45: Total | E45: Fatal | F45: =F35+F40 -> 39 | G45: =G35+G40 -> 1 | H45: 1 | I45: 1 | J45: 1 | K45: =K35+K40 -> 1
A46: A | B46: A-road | C46: Dual Carriageway | D46: Total | E46: Serious | F46: =F36+F41 -> 318 | G46: 2 | H46: 44 | I46: 11 | J46: 2 | K46: =K36+K41 -> 5
A47: A | B47: A-road | C47: Dual Carriageway | D47: Total | E47: Fatal+Serious | F47: =F37+F42 -> 357 | G47: 3 | H47: 45 | I47: 12 | J47: 3 | K47: =K37+K42 -> 6
A48: A | B48: A-road | C48: Dual Carriageway | D48: Total | E48: Slight | F48: =F38+F43 -> 1634 | G48: 4 | H48: 199 | I48: 30 | J48: 49 | K48: =K38+K43 -> 24
A49: A | B49: A-road | C49: Dual Carriageway | D49: Total | E49: Total | F49: =F39+F44 -> 1991 | G49: 7 | H49: 244 | I49: 42 | J49: 52 | K49: =K39+K44 -> 30
A50: A | B50: A-road | C50: Single Carriageway | D50: Built-up | E50: Fatal | F50: 0 | G50: 0 | H50: 0 | I50: 0 | J50: 0 | K50: 0
A51: A | B51: A-road | C51: Single Carriageway | D51: Built-up | E51: Serious | F51: 46 | G51: 0 | H51: 2 | I51: 0 | J51: 1 | K51: 0
A52: A | B52: A-road | C52: Single Carriageway | D52: Built-up | E52: Fatal+Serious | F52: 46 | G52: 0 | H52: 2 | I52: 0 | J52: 1 | K52: 0
A53: A | B53: A-road | C53: Single Carriageway | D53: Built-up | E53: Slight | F53: 162 | G53: 0 | H53: 13 | I53: 0 | J53: 7 | K53: 1
A54: A | B54: A-road | C54: Single Carriageway | D54: Built-up | E54: Total | F54: 208 | G54: 0 | H54: 15 | I54: 0 | J54: 8 | K54: 1
A55: A | B55: A-road | C55: Single Carriageway | D55: Non Built-up | E55: Fatal | F55: 29 | G55: 0 | H55: 4 | I55: 1 | J55: 2 | K55: 0
A56: A | B56: A-road | C56: Single Carriageway | D56: Non Built-up | E56: Serious | F56: 128 | G56: 1 | H56: 12 | I56: 3 | J56: 5 | K56: 0
A57: A | B57: A-road | C57: Single Carriageway | D57: Non Built-up | E57: Fatal+Serious | F57: 157 | G57: 1 | H57: 16 | I57: 4 | J57: 7 | K57: 0
A58: A | B58: A-road | C58: Single Carriageway | D58: Non Built-up | E58: Slight | F58: 395 | G58: 1 | H58: 41 | I58: 9 | J58: 15 | K58: 6
A59: A | B59: A-road | C59: Single Carriageway | D59: Non Built-up | E59: Total | F59: 552 | G59: 2 | H59: 57 | I59: 13 | J59: 22 | K59: 6
A60: A | B60: A-road | C60: Dual Carriageway | D60: Total | E60: Fatal | F60: =F50+F55 -> 29 | G60: =G50+G55 -> 0 | H60: 4 | I60: 1 | J60: 2 | K60: =K50+K55 -> 0
A61: A | B61: A-road | C61: Dual Carriageway | D61: Total | E61: Serious | F61: =F51+F56 -> 174 | G61: 1 | H61: 14 | I61: 3 | J61: 6 | K61: =K51+K56 -> 0
A62: A | B62: A-road | C62: Dual Carriageway | D62: Total | E62: Fatal+Serious | F62: =F52+F57 -> 203 | G62: 1 | H62: 18 | I62: 4 | J62: 8 | K62: =K52+K57 -> 0
A63: A | B63: A-road | C63: Dual Carriageway | D63: Total | E63: Slight | F63: =F53+F58 -> 557 | G63: 1 | H63: 54 | I63: 9 | J63: 22 | K63: =K53+K58 -> 7
A64: A | B64: A-road | C64: Dual Carriageway | D64: Total | E64: Total | F64: =F54+F59 -> 760 | G64: 2 | H64: 72 | I64: 13 | J64: 30 | K64: =K54+K59 -> 7
B66: Notes:
B67: (a) This table reports the number of collisions where the light condition is stated as 'daylight'.

Sheet Tab_B.15
A7: Casualty report Appendix
A8: Tab_B.15
A9: ="Single vehicle collisions by object hit off carriageway, road classification and severity,"&" "&A15 -> Single vehicle collisions by object hit off carriageway, road classification and severity, 2018
I11: # columns | J11: ####
A12: Date updated
A13: =List!K2 -> 2020-02-12
A14: Input Year
A15: =List!$J$2 -> 2018
A16: Baseline Years | G16: B_DataSheet!
A17: =Cover!$N$20&"-"&Cover!$N$21 -> 2005-2009 | G17: 8425
G18: 8500
A19: Link to Contents
A21: B | C21: C | D21: D | E21: E | F21: F | G21: G | H21: H
B22: =A8&" - "&A9 -> Tab_B.15 - Single vehicle collisions by object hit off carriageway, road classification and severity, 2018
B24: Road class | C24: Road type | D24: Road classification | E24: Object hit off carriageway | F24: Fatal | G24: Serious | H24: Slight | I24: Fatal+Serious | J24: Total
A25: *M* | B25: Motorway | C25: - | D25: - | E25: Bus stop or bus shelter | F25: =IF(F$24=$I$24,D25+C25,SUMIFS(INDIRECT($G$16&F$21&$G$17&":"&F$21&$G$18),INDIRECT($G$16&$A$21&$G$17&":"&$A$21&$G$18),$A25,INDIRECT($G$16&$C$21&$G$17&":"&$C$21&$G$18),IF($C25="-","*",$C25),INDIRECT($G$16&$D$21&$G$17&":"&$D$21&$G$18),IF($D25="-","*",$D25), INDIRECT($G$16&$E$21&$G$17&":"&$E$21&$G$18),$E25)) -> 0 | G25: =IF(G$24=$I$24,E25+D25,SUMIFS(INDIRECT($G$16&G$21&$G$17&":"&G$21&$G$18),INDIRECT($G$16&$A$21&$G$17&":"&$A$21&$G$18),$A25,INDIRECT($G$16&$C$21&$G$17&":"&$C$21&$G$18),IF($C25="-","*",$C25),INDIRECT($G$16&$D$21&$G$17&":"&$D$21&$G$18),IF($D25="-","*",$D25), INDIRECT($G$16&$E$21&$G$17&":"&$E$21&$G$18),$E25)) -> 0 | H25: 0 | I25: =IF(I$24=$I$24,G25+F25,SUMIFS(INDIRECT($G$16&I$21&$G$17&":"&I$21&$G$18),INDIRECT($G$16&$A$21&$G$17&":"&$A$21&$G$18),$A25,INDIRECT($G$16&$C$21&$G$17&":"&$C$21&$G$18),IF($C25="-","*",$C25),INDIRECT($G$16&$D$21&$G$17&":"&$D$21&$G$18),IF($D25="-","*",$D25), INDIRECT($G$16&$E$21&$G$17&":"&$E$21&$G$18),$E25)) -> 0 | J25: =SUM($F25:$H25) -> 0
A26: *M* | B26: Motorway | C26: - | D26: - | E26: Central crash barrier | F26: =IF(F$24=$I$24,D26+C26,SUMIFS(INDIRECT($G$16&F$21&$G$17&":"&F$21&$G$18),INDIRECT($G$16&$A$21&$G$17&":"&$A$21&$G$18),$A26,INDIRECT($G$16&$C$21&$G$17&":"&$C$21&$G$18),IF($C26="-","*",$C26),INDIRECT($G$16&$D$21&$G$17&":"&$D$21&$G$18),IF($D26="-","*",$D26), INDIRECT($G$16&$E$21&$G$17&":"&$E$21&$G$18),$E26)) -> 0 | G26: =IF(G$24=$I$24,E26+D26,SUMIFS(INDIRECT($G$16&G$21&$G$17&":"&G$21&$G$18),INDIRECT($G$16&$A$21&$G$17&":"&$A$21&$G$18),$A26,INDIRECT($G$16&$C$21&$G$17&":"&$C$21&$G$18),IF($C26="-","*",$C26),INDIRECT($G$16&$D$21&$G$17&":"&$D$21&$G$18),IF($D26="-","*",$D26), INDIRECT($G$16&$E$21&$G$17&":"&$E$21&$G$18),$E26)) -> 25 | H26: =IF(H$24=$I$24,F26+E26,SUMIFS(INDIRECT($G$16&H$21&$G$17&":"&H$21&$G$18),INDIRECT($G$16&$A$21&$G$17&":"&$A$21&$G$18),$A26,INDIRECT($G$16&$C$21&$G$17&":"&$C$21&$G$18),IF($C26="-","*",$C26),INDIRECT($G$16&$D$21&$G$17&":"&$D$21&$G$18),IF($D26="-","*",$D26), INDIRECT($G$16&$E$21&$G$17&":"&$E$21&$G$18),$E26)) -> 101 | I26: =IF(I$24=$I$24,G26+F26,SUMIFS(INDIRECT($G$16&I$21&$G$17&":"&I$21&$G$18),INDIRECT($G$16&$A$21&$G$17&":"&$A$21&$G$18),$A26,INDIRECT($G$16&$C$21&$G$17&":"&$C$21&$G$18),IF($C26="-","*",$C26),INDIRECT($G$16&$D$21&$G$17&":"&$D$21&$G$18),IF($D26="-","*",$D26), INDIRECT($G$16&$E$21&$G$17&":"&$E$21&$G$18),$E26)) -> 25 | J26: =SUM($F26:$H26) -> 126
A27: *M* | B27: Motorway | C27: - | D27: - | E27: Entered ditch | F27: 0 | G27: 5 | H27: 15 | I27: 5 | J27: 20
A28: *M* | B28: Motorway | C28: - | D28: - | E28: Lamp post | F28: 0 | G28: 4 | H28: 8 | I28: 4 | J28: 12
A29: *M* | B29: Motorway | C29: - | D29: - | E29: Near/Offside crash barrier | F29: 4 | G29: 30 | H29: 98 | I29: 34 | J29: 132
A30: *M* | B30: Motorway | C30: - | D30: - | E30: Road sign or traffic signal | F30: 1 | G30: 5 | H30: 6 | I30: 6 | J30: 12
A31: *M* | B31: Motorway | C31: - | D31: - | E31: Submerged in water | F31: 0 | G31: 0 | H31: 0 | I31: 0 | J31: 0
A32: *M* | B32: Motorway | C32: - | D32: - | E32: Telegraph or electricity pole | F32: 0 | G32: 0 | H32: 0 | I32: 0 | J32: 0
A33: *M* | B33: Motorway | C33: - | D33: - | E33: Tree | F33: 4 | G33: 16 | H33: 30 | I33: 20 | J33: 50
A34: *M* | B34: Motorway | C34: - | D34: - | E34: Wall or fence | F34: 0 | G34: 1 | H34: 2 | I34: 1 | J34: 3
A35: *M* | B35: Motorway | C35: - | D35: - | E35: Other permanent object | F35: 1 | G35: 6 | H35: 11 | I35: 7 | J35: 18
A36: *M* | B36: Motorway | C36: - | D36: - | E36: None | F36: =IF(F$24=$I$24,D36+C36,SUMIFS(INDIRECT($G$16&F$21&$G$17&":"&F$21&$G$18),INDIRECT($G$16&$A$21&$G$17&":"&$A$21&$G$18),$A36,INDIRECT($G$16&$C$21&$G$17&":"&$C$21&$G$18),IF($C36="-","*",$C36),INDIRECT($G$16&$D$21&$G$17&":"&$D$21&$G$18),IF($D36="-","*",$D36), INDIRECT($G$16&$E$21&$G$17&":"&$E$21&$G$18),$E36)) -> 7 | G36: =IF(G$24=$I$24,E36+D36,SUMIFS(INDIRECT($G$16&G$21&$G$17&":"&G$21&$G$18),INDIRECT($G$16&$A$21&$G$17&":"&$A$21&$G$18),$A36,INDIRECT($G$16&$C$21&$G$17&":"&$C$21&$G$18),IF($C36="-","*",$C36),INDIRECT($G$16&$D$21&$G$17&":"&$D$21&$G$18),IF($D36="-","*",$D36), INDIRECT($G$16&$E$21&$G$17&":"&$E$21&$G$18),$E36)) -> 73 | H36: =IF(H$24=$I$24,F36+E36,SUMIFS(INDIRECT($G$16&H$21&$G$17&":"&H$21&$G$18),INDIRECT($G$16&$A$21&$G$17&":"&$A$21&$G$18),$A36,INDIRECT($G$16&$C$21&$G$17&":"&$C$21&$G$18),IF($C36="-","*",$C36),INDIRECT($G$16&$D$21&$G$17&":"&$D$21&$G$18),IF($D36="-","*",$D36), INDIRECT($G$16&$E$21&$G$17&":"&$E$21&$G$18),$E36)) -> 195 | I36: =IF(I$24=$I$24,G36+F36,SUMIFS(INDIRECT($G$16&I$21&$G$17&":"&I$21&$G$18),INDIRECT($G$16&$A$21&$G$17&":"&$A$21&$G$18),$A36,INDIRECT($G$16&$C$21&$G$17&":"&$C$21&$G$18),IF($C36="-","*",$C36),INDIRECT($G$16&$D$21&$G$17&":"&$D$21&$G$18),IF($D36="-","*",$D36), INDIRECT($G$16&$E$21&$G$17&":"&$E$21&$G$18),$E36)) -> 80 | J36: 275
A37: *M* | B37: Motorway | C37: - | D37: - | E37: Data missing or out of range | F37: 0 | G37: 0 | H37: 5 | I37: 0 | J37: 5
B38: Motorway | C38: - | D38: - | E38: Total | F38: =SUM(F25:F37) -> 17 | G38: =SUM(G25:G37) -> 165 | H38: 471 | I38: =SUM(I25:I37) -> 182 | J38: =SUM($F38:$H38) -> 653
A39: A | B39: A-road | C39: - | D39: - | E39: Bus stop or bus shelter | F39: 0 | G39: 0 | H39: 0 | I39: 0 | J39: 0
A40: A | B40: A-road | C40: - | D40: - | E40: Central crash barrier | F40: 2 | G40: 14 | H40: 67 | I40: 16 | J40: 83
A41: A | B41: A-road | C41: - | D41: - | E41: Entered ditch | F41: 0 | G41: 9 | H41: 23 | I41: 9 | J41: 32
A42: A | B42: A-road | C42: - | D42: - | E42: Lamp post | F42: 0 | G42: 6 | H42: 21 | I42: 6 | J42: 27
A43: A | B43: A-road | C43: - | D43: - | E43: Near/Offside crash barrier | F43: 3 | G43: 17 | H43: 48 | I43: 20 | J43: 68
A44: A | B44: A-road | C44: - | D44: - | E44: Road sign or traffic signal | F44: 2 | G44: 10 | H44: 39 | I44: 12 | J44: 51
A45: A | B45: A-road | C45: - | D45: - | E45: Submerged in water | F45: 0 | G45: 0 | H45: 0 | I45: 0 | J45: 0
A46: A | B46: A-road | C46: - | D46: - | E46: Telegraph or electricity pole | F46: 0 | G46: 0 | H46: 1 | I46: 0 | J46: 1
A47: A | B47: A-road | C47: - | D47: - | E47: Tree | F47: 5 | G47: 35 | H47: 50 | I47: 40 | J47: 90
A48: A | B48: A-road | C48: - | D48: - | E48: Wall or fence | F48: 0 | G48: 8 | H48: 24 | I48: 8 | J48: 32
A49: A | B49: A-road | C49: - | D49: - | E49: Other permanent object | F49: 0 | G49: 12 | H49: 26 | I49: 12 | J49: 38
A50: A | B50: A-road | C50: - | D50: - | E50: None | F50: =IF(F$24=$I$24,D50+C50,SUMIFS(INDIRECT($G$16&F$21&$G$17&":"&F$21&$G$18),INDIRECT($G$16&$A$21&$G$17&":"&$A$21&$G$18),$A50,INDIRECT($G$16&$C$21&$G$17&":"&$C$21&$G$18),IF($C50="-","*",$C50),INDIRECT($G$16&$D$21&$G$17&":"&$D$21&$G$18),IF($D50="-","*",$D50), INDIRECT($G$16&$E$21&$G$17&":"&$E$21&$G$18),$E50)) -> 26 | G50: =IF(G$24=$I$24,E50+D50,SUMIFS(INDIRECT($G$16&G$21&$G$17&":"&G$21&$G$18),INDIRECT($G$16&$A$21&$G$17&":"&$A$21&$G$18),$A50,INDIRECT($G$16&$C$21&$G$17&":"&$C$21&$G$18),IF($C50="-","*",$C50),INDIRECT($G$16&$D$21&$G$17&":"&$D$21&$G$18),IF($D50="-","*",$D50), INDIRECT($G$16&$E$21&$G$17&":"&$E$21&$G$18),$E50)) -> 141 | H50: =IF(H$24=$I$24,F50+E50,SUMIFS(INDIRECT($G$16&H$21&$G$17&":"&H$21&$G$18),INDIRECT($G$16&$A$21&$G$17&":"&$A$21&$G$18),$A50,INDIRECT($G$16&$C$21&$G$17&":"&$C$21&$G$18),IF($C50="-","*",$C50),INDIRECT($G$16&$D$21&$G$17&":"&$D$21&$G$18),IF($D50="-","*",$D50), INDIRECT($G$16&$E$21&$G$17&":"&$E$21&$G$18),$E50)) -> 350 | I50: =IF(I$24=$I$24,G50+F50,SUMIFS(INDIRECT($G$16&I$21&$G$17&":"&I$21&$G$18),INDIRECT($G$16&$A$21&$G$17&":"&$A$21&$G$18),$A50,INDIRECT($G$16&$C$21&$G$17&":"&$C$21&$G$18),IF($C50="-","*",$C50),INDIRECT($G$16&$D$21&$G$17&":"&$D$21&$G$18),IF($D50="-","*",$D50), INDIRECT($G$16&$E$21&$G$17&":"&$E$21&$G$18),$E50)) -> 167 | J50: 517
A51: A | B51: A-road | C51: - | D51: - | E51: Data missing or out of range | F51: 0 | G51: 0 | H51: 0 | I51: 0 | J51: 0
B52: A-road | C52: - | D52: - | E52: Total | F52: =SUM(F39:F51) -> 38 | G52: =SUM(G39:G51) -> 252 | H52: 649 | I52: 290 | J52: 939
B54: Notes:

Sheet Tab_B.16
A7: Casualty report Appendix
A8: Tab_B.16
A9: Collisions by region, severity and year
I11: # columns | J11: ####
A12: Date updated
A13: =List!K2 -> 2020-02-12
A14: Input Year
A15: =Cover!$N$18 -> 2018
A16: Baseline Years | G16: B_DataSheet!
A17: =Cover!$N$20&"-"&Cover!$N$21 -> 2005-2009 | G17: 8725
G18: 8760
A19: Link to Contents
B21: C | C21: B | F21: A | G21: =SUBSTITUTE(ADDRESS(1,MATCH(G$24,INDIRECT($G$16&($G$17-1)&":"&($G$17-1))),4),"1","") -> L | H21: M | I21: N | J21: O | K21: P | L21: Q
B22: =A8&" - "&A9 -> Tab_B.16 - Collisions by region, severity and year
M23: =L24&" change from" -> 2018 change from | N23: =L24&" change from" -> 2018 change from | O23: =M24&" change from" -> BSL (2005-2009) change from
B24: Region | C24: Collision severity | F24: ="BSL ("&A17&")" -> BSL (2005-2009) | G24: =H24-1 -> 2013 | H24: =I24-1 -> 2014 | I24: 2015 | J24: 2016 | K24: 2017 | L24: =A15 -> 2018 | M24: =F24 -> BSL (2005-2009) | N24: =J24 -> 2016 | O24: =K24 -> 2017
B25: East | C25: Fatal | F25: =IF(OR($C25="Fatal+Serious",$C25="Total"),F24+F23,SUMIFS(INDIRECT($G$16&F$21&$G$17&":"&F$21&$G$18),INDIRECT($G$16&$C$21&$G$17&":"&$C$21&$G$18),$C25,INDIRECT($G$16&$B$21&$G$17&":"&$B$21&$G$18),$B25)) -> 52 | G25: 35 | H25: 27 | I25: 43 | J25: 38 | K25: 35 | L25: 33 | M25: =IF(F25>15,(L25-F25)/F25,"-") -> -0.3653846154 | N25: =IF(J25>15,(L25-J25)/J25,"-") -> -0.1315789474 | O25: =IF(K25>15,(L25-K25)/K25,"-") -> -0.05714285714
B26: East | C26: Serious | F26: =IF(OR($C26="Fatal+Serious",$C26="Total"),F25+F24,SUMIFS(INDIRECT($G$16&F$21&$G$17&":"&F$21&$G$18),INDIRECT($G$16&$C$21&$G$17&":"&$C$21&$G$18),$C26,INDIRECT($G$16&$B$21&$G$17&":"&$B$21&$G$18),$B26)) -> 280 | G26: =IF(OR($C26="Fatal+Serious",$C26="Total"),G25+G24,SUMIFS(INDIRECT($G$16&G$21&$G$17&":"&G$21&$G$18),INDIRECT($G$16&$C$21&$G$17&":"&$C$21&$G$18),$C26,INDIRECT($G$16&$B$21&$G$17&":"&$B$21&$G$18),$B26)) -> 190 | H26: =IF(OR($C26="Fatal+Serious",$C26="Total"),H25+H24,SUMIFS(INDIRECT($G$16&H$21&$G$17&":"&H$21&$G$18),INDIRECT($G$16&$C$21&$G$17&":"&$C$21&$G$18),$C26,INDIRECT($G$16&$B$21&$G$17&":"&$B$21&$G$18),$B26)) -> 223 | I26: =IF(OR($C26="Fatal+Serious",$C26="Total"),I25+I24,SUMIFS(INDIRECT($G$16&I$21&$G$17&":"&I$21&$G$18),INDIRECT($G$16&$C$21&$G$17&":"&$C$21&$G$18),$C26,INDIRECT($G$16&$B$21&$G$17&":"&$B$21&$G$18),$B26)) -> 207 | J26: =IF(OR($C26="Fatal+Serious",$C26="Total"),J25+J24,SUMIFS(INDIRECT($G$16&J$21&$G$17&":"&J$21&$G$18),INDIRECT($G$16&$C$21&$G$17&":"&$C$21&$G$18),$C26,INDIRECT($G$16&$B$21&$G$17&":"&$B$21&$G$18),$B26)) -> 230 | K26: =IF(OR($C26="Fatal+Serious",$C26="Total"),K25+K24,SUMIFS(INDIRECT($G$16&K$21&$G$17&":"&K$21&$G$18),INDIRECT($G$16&$C$21&$G$17&":"&$C$21&$G$18),$C26,INDIRECT($G$16&$B$21&$G$17&":"&$B$21&$G$18),$B26)) -> 229 | L26: =IF(OR($C26="Fatal+Serious",$C26="Total"),L25+L24,SUMIFS(INDIRECT($G$16&L$21&$G$17&":"&L$21&$G$18),INDIRECT($G$16&$C$21&$G$17&":"&$C$21&$G$18),$C26,INDIRECT($G$16&$B$21&$G$17&":"&$B$21&$G$18),$B26)) -> 204 | M26: =IF(F26>15,(L26-F26)/F26,"-") -> -0.2714285714 | N26: =IF(J26>15,(L26-J26)/J26,"-") -> -0.1130434783 | O26: =IF(K26>15,(L26-K26)/K26,"-") -> -0.1091703057
B27: East | C27: Fatal+Serious | F27: 332 | G27: 225 | H27: 250 | I27: 250 | J27: 268 | K27: 264 | L27: 237 | M27: -0.2861445783 | N27: -0.1156716418 | O27: -0.1022727273
B28: East | C28: Slight | F28: 1756.4 | G28: 1232 | H28: 1238 | I28: 1153 | J28: 1232 | K28: 1173 | L28: 1062 | M28: -0.3953541335 | N28: -0.137987013 | O28: -0.09462915601
B29: East | C29: Total | F29: 2088.4 | G29: 1457 | H29: 1488 | I29: 1403 | J29: 1500 | K29: 1437 | L29: 1299 | M29: -0.3779927217 | N29: -0.134 | O29: -0.09603340292
B30: M25 DBFO | C30: Fatal | F30: 25.4 | G30: 17 | H30: 16 | I30: 11 | J30: 17 | K30: 16 | L30: 10 | M30: -0.6062992126 | N30: -0.4117647059 | O30: -0.375
B31: M25 DBFO | C31: Serious | F31: 162.2 | G31: 101 | H31: 136 | I31: 145 | J31: 147 | K31: 133 | L31: 199 | M31: 0.2268803946 | N31: 0.3537414966 | O31: 0.4962406015
B32: M25 DBFO | C32: Fatal+Serious | F32: 187.6 | G32: 118 | H32: 152 | I32: 156 | J32: 164 | K32: 149 | L32: 209 | M32: 0.1140724947 | N32: 0.2743902439 | O32: 0.4026845638
B33: M25 DBFO | C33: Slight | F33: 1535.8 | G33: 1177 | H33: 1227 | I33: 1174 | J33: 1239 | K33: 1088 | L33: 966 | M33: -0.3710118505 | N33: -0.2203389831 | O33: -0.1121323529
B34: M25 DBFO | C34: Total | F34: 1723.4 | G34: 1295 | H34: 1379 | I34: 1330 | J34: 1403 | K34: 1237 | L34: 1175 | M34: -0.3182081931 | N34: -0.1625089095 | O34: -0.05012126112
B35: Midlands | C35: Fatal | F35: 69.8 | G35: 50 | H35: 45 | I35: 53 | J35: 54 | K35: 58 | L35: 59 | M35: -0.1547277937 | N35: 0.09259259259 | O35: 0.01724137931
B36: Midlands | C36: Serious | F36: 334.4 | G36: 219 | H36: 243 | I36: 241 | J36: 280 | K36: 248 | L36: 243 | M36: -0.2733253589 | N36: -0.1321428571 | O36: -0.02016129032
B37: Midlands | C37: Fatal+Serious | F37: 404.2 | G37: 269 | H37: 288 | I37: 294 | J37: 334 | K37: 306 | L37: 302 | M37: -0.2528451262 | N37: -0.09580838323 | O37: -0.01307189542
B38: Midlands | C38: Slight | F38: 2452.8 | G38: 1877 | H38: 1831 | I38: 1779 | J38: 1639 | K38: 1314 | L38: 1112 | M38: -0.546640574 | N38: -0.3215375229 | O38: -0.1537290715
B39: Midlands | C39: Total | F39: 2857 | G39: 2146 | H39: 2119 | I39: 2073 | J39: 1973 | K39: 1620 | L39: 1414 | M39: -0.5050752538 | N39: -0.283324886 | O39: -0.1271604938
B40: South East | C40: Fatal | F40: 50.2 | G40: 33 | H40: 31 | I40: 30 | J40: 37 | K40: 30 | L40: 31 | M40: -0.3824701195 | N40: -0.1621621622 | O40: 0.03333333333
B41: South East | C41: Serious | F41: 262.4 | G41: 269 | H41: 334 | I41: 279 | J41: 321 | K41: 259 | L41: 290 | M41: 0.1051829268 | N41: -0.09657320872 | O41: 0.1196911197
B42: South East | C42: Fatal+Serious | F42: 312.6 | G42: 302 | H42: 365 | I42: 309 | J42: 358 | K42: 289 | L42: 321 | M42: 0.02687140115 | N42: -0.1033519553 | O42: 0.1107266436
B43: South East | C43: Slight | F43: 1936.8 | G43: 1592 | H43: 1713 | I43: 1629 | J43: 1527 | K43: 1318 | L43: 1260 | M43: -0.3494423792 | N43: -0.1748526523 | O43: -0.0440060698
B44: South East | C44: Total | F44: 2249.4 | G44: 1894 | H44: 2078 | I44: 1938 | J44: 1885 | K44: 1607 | L44: 1581 | M44: -0.2971459056 | N44: -0.1612732095 | O44: -0.01617921593
B45: South West | C45: Fatal | F45: 38 | G45: 43 | H45: 25 | I45: 28 | J45: 25 | K45: 26 | L45: 35 | M45: -0.07894736842 | N45: 0.4 | O45: 0.3461538462
B46: South West | C46: Serious | F46: 137.4 | G46: 136 | H46: 131 | I46: 137 | J46: 156 | K46: 132 | L46: 143 | M46: 0.04075691412 | N46: -0.08333333333 | O46: 0.08333333333
B47: South West | C47: Fatal+Serious | F47: 175.4 | G47: 179 | H47: 156 | I47: 165 | J47: 181 | K47: 158 | L47: 178 | M47: 0.01482326112 | N47: -0.01657458564 | O47: 0.1265822785
B48: South West | C48: Slight | F48: 1154.6 | G48: 755 | H48: 838 | I48: 806 | J48: 786 | K48: 653 | L48: 624 | M48: -0.459553092 | N48: -0.2061068702 | O48: -0.04441041348
B49: South West | C49: Total | F49: 1330 | G49: 934 | H49: 994 | I49: 971 | J49: 967 | K49: 811 | L49: 802 | M49: -0.3969924812 | N49: -0.170630817 | O49: -0.0110974106
B50: North West | C50: Fatal | F50: 35.6 | G50: 17 | H50: 27 | I50: 17 | J50: 19 | K50: 21 | L50: 29 | M50: -0.1853932584 | N50: 0.5263157895 | O50: 0.380952381
B51: North West | C51: Serious | F51: 179.6 | G51: 134 | H51: 157 | I51: 152 | J51: 158 | K51: 143 | L51: 162 | M51: -0.09799554566 | N51: 0.0253164557 | O51: 0.1328671329
B52: North West | C52: Fatal+Serious | F52: 215.2 | G52: 151 | H52: 184 | I52: 169 | J52: 177 | K52: 164 | L52: 191 | M52: -0.1124535316 | N52: 0.0790960452 | O52: 0.1646341463
B53: North West | C53: Slight | F53: 1597.4 | G53: 1020 | H53: 1048 | I53: 951 | J53: 923 | K53: 832 | L53: 854 | M53: -0.4653812445 | N53: -0.07475622969 | O53: 0.02644230769
B54: North West | C54: Total | F54: 1812.6 | G54: 1171 | H54: 1232 | I54: 1120 | J54: 1100 | K54: 996 | L54: 1045 | M54: -0.4234800839 | N54: -0.05 | O54: 0.04919678715
B55: Yorkshire & North East | C55: Fatal | F55: 43 | G55: 31 | H55: 21 | I55: 20 | J55: 23 | K55: 17 | L55: 24 | M55: -0.4418604651 | N55: 0.04347826087 | O55: 0.4117647059
B56: Yorkshire & North East | C56: Serious | F56: 214.4 | G56: 160 | H56: 147 | I56: 159 | J56: 190 | K56: 195 | L56: 212 | M56: -0.01119402985 | N56: 0.1157894737 | O56: 0.08717948718
B57: Yorkshire & North East | C57: Fatal+Serious | F57: 257.4 | G57: 191 | H57: 168 | I57: 179 | J57: 213 | K57: 212 | L57: 236 | M57: -0.08313908314 | N57: 0.1079812207 | O57: 0.1132075472
B58: Yorkshire & North East | C58: Slight | F58: 1552.2 | G58: 1057 | H58: 1131 | I58: 1285 | J58: 1117 | K58: 923 | L58: 908 | M58: -0.4150238371 | N58: -0.1871083259 | O58: -0.01625135428
B59: Yorkshire & North East | C59: Total | F59: 1809.6 | G59: 1248 | H59: 1299 | I59: 1464 | J59: 1330 | K59: 1135 | L59: 1144 | M59: -0.367816092 | N59: -0.1398496241 | O59: 0.007929515419
B60: Unknown | C60: Fatal | F60: 0 | G60: 0 | H60: 0 | I60: 0 | J60: 0 | K60: 0 | L60: =IF(OR($C60="Fatal+Serious",$C60="Total"),L59+L58,SUMIFS(INDIRECT($G$16&L$21&$G$17&":"&L$21&$G$18),INDIRECT($G$16&$C$21&$G$17&":"&$C$21&$G$18),$C60,INDIRECT($G$16&$B$21&$G$17&":"&$B$21&$G$18),$B60)) -> 0 | M60: - | N60: - | O60: -
B61: Unknown | C61: Serious | F61: 0.2 | G61: 0 | H61: 0 | I61: 0 | J61: 0 | K61: 0 | L61: 0 | M61: - | N61: - | O61: -
B62: Unknown | C62: Fatal+Serious | F62: 0.2 | G62: 0 | H62: 0 | I62: 0 | J62: 0 | K62: 0 | L62: 0 | M62: - | N62: - | O62: -
B63: Unknown | C63: Slight | F63: 0.6 | G63: 0 | H63: 0 | I63: 0 | J63: 0 | K63: 0 | L63: 0 | M63: - | N63: - | O63: -
B64: Unknown | C64: Total | F64: 0.8 | G64: 0 | H64: 0 | I64: 0 | J64: 0 | K64: 0 | L64: 0 | M64: - | N64: - | O64: -
B66: Notes:

Sheet Tab_B.17
A7: Casualty report Appendix
A8: Tab_B.17
A9: Collisions by road classification, severity and year
I11: # columns | J11: ####
A12: Date updated
A13: =List!K2 -> 2020-02-12
A14: Input Year
A15: =Cover!$N$18 -> 2018
A16: Baseline Years | G16: B_dataSheet!
A17: =Cover!$N$20&"-"&Cover!$N$21 -> 2005-2009 | G17: 25
G18: 56
A19: Link to Contents
B21: B | C21: C | D21: D | E21: E | F21: A | G21: =SUBSTITUTE(ADDRESS(1,MATCH(G$24,B_DataSheet!$24:$24),4),"1","") -> N | H21: =SUBSTITUTE(ADDRESS(1,MATCH(H$24,B_DataSheet!$24:$24),4),"1","") -> O | I21: =SUBSTITUTE(ADDRESS(1,MATCH(I$24,B_DataSheet!$24:$24),4),"1","") -> P | J21: =SUBSTITUTE(ADDRESS(1,MATCH(J$24,B_DataSheet!$24:$24),4),"1","") -> Q | K21: =SUBSTITUTE(ADDRESS(1,MATCH(K$24,B_DataSheet!$24:$24),4),"1","") -> R | L21: =SUBSTITUTE(ADDRESS(1,MATCH(L$24,B_DataSheet!$24:$24),4),"1","") -> S
B22: =A8&" - "&A9 -> Tab_B.17 - Collisions by road classification, severity and year
N23: =L24&" change from" -> 2018 change from
B24: Road class | C24: Road type | D24: Road classification | E24: Collision severity | F24: ="BSL ("&A17&")" -> BSL (2005-2009) | G24: =H24-1 -> 2013 | H24: =I24-1 -> 2014 | I24: 2015 | J24: 2016 | K24: 2017 | L24: =A15 -> 2018 | M24: =F24 -> BSL (2005-2009) | N24: =J24 -> 2016 | O24: =K24 -> 2017
B25: Motorway | C25: - | D25: - | E25: Fatal | F25: =IF(OR($E25="Fatal+Serious", $E25="Total"),F24+F23,SUMIFS(INDIRECT($G$16&F$21&$G$17&":"&F$21&$G$18),INDIRECT($G$16&$B$21&$G$17&":"&$B$21&$G$18),$B25,INDIRECT($G$16&$E$21&$G$17&":"&$E$21&$G$18),$E25,INDIRECT($G$16&$C$21&$G$17&":"&$C$21&$G$18),IF($C25="-","*",$C25),INDIRECT($G$16&$D$21&$G$17&":"&$D$21&$G$18),IF($D25="-","*",$D25))) -> 131.2 | G25: =IF(OR($E25="Fatal+Serious", $E25="Total"),G24+G23,SUMIFS(INDIRECT($G$16&G$21&$G$17&":"&G$21&$G$18),INDIRECT($G$16&$B$21&$G$17&":"&$B$21&$G$18),$B25,INDIRECT($G$16&$E$21&$G$17&":"&$E$21&$G$18),$E25,INDIRECT($G$16&$C$21&$G$17&":"&$C$21&$G$18),IF($C25="-","*",$C25),INDIRECT($G$16&$D$21&$G$17&":"&$D$21&$G$18),IF($D25="-","*",$D25))) -> 85 | H25: 73 | I25: 82 | J25: 74 | K25: 69 | L25: =IF(OR($E25="Fatal+Serious", $E25="Total"),L24+L23,SUMIFS(INDIRECT($G$16&L$21&$G$17&":"&L$21&$G$18),INDIRECT($G$16&$B$21&$G$17&":"&$B$21&$G$18),$B25,INDIRECT($G$16&$E$21&$G$17&":"&$E$21&$G$18),$E25,INDIRECT($G$16&$C$21&$G$17&":"&$C$21&$G$18),IF($C25="-","*",$C25),INDIRECT($G$16&$D$21&$G$17&":"&$D$21&$G$18),IF($D25="-","*",$D25))) -> 74 | M25: =IF(F25>15,(L25-F25)/F25,"-") -> -0.4359756098 | N25: =IF(J25>15,(L25-J25)/J25,"-") -> 0 | O25: =IF(K25>15,(L25-K25)/K25,"-") -> 0.07246376812
B26: Motorway | C26: - | D26: - | E26: Serious | F26: =IF(OR($E26="Fatal+Serious", $E26="Total"),F25+F24,SUMIFS(INDIRECT($G$16&F$21&$G$17&":"&F$21&$G$18),INDIRECT($G$16&$B$21&$G$17&":"&$B$21&$G$18),$B26,INDIRECT($G$16&$E$21&$G$17&":"&$E$21&$G$18),$E26,INDIRECT($G$16&$C$21&$G$17&":"&$C$21&$G$18),IF($C26="-","*",$C26),INDIRECT($G$16&$D$21&$G$17&":"&$D$21&$G$18),IF($D26="-","*",$D26))) -> 684.2 | G26: =IF(OR($E26="Fatal+Serious", $E26="Total"),G25+G24,SUMIFS(INDIRECT($G$16&G$21&$G$17&":"&G$21&$G$18),INDIRECT($G$16&$B$21&$G$17&":"&$B$21&$G$18),$B26,INDIRECT($G$16&$E$21&$G$17&":"&$E$21&$G$18),$E26,INDIRECT($G$16&$C$21&$G$17&":"&$C$21&$G$18),IF($C26="-","*",$C26),INDIRECT($G$16&$D$21&$G$17&":"&$D$21&$G$18),IF($D26="-","*",$D26))) -> 487 | H26: =IF(OR($E26="Fatal+Serious", $E26="Total"),H25+H24,SUMIFS(INDIRECT($G$16&H$21&$G$17&":"&H$21&$G$18),INDIRECT($G$16&$B$21&$G$17&":"&$B$21&$G$18),$B26,INDIRECT($G$16&$E$21&$G$17&":"&$E$21&$G$18),$E26,INDIRECT($G$16&$C$21&$G$17&":"&$C$21&$G$18),IF($C26="-","*",$C26),INDIRECT($G$16&$D$21&$G$17&":"&$D$21&$G$18),IF($D26="-","*",$D26))) -> 533 | I26: =IF(OR($E26="Fatal+Serious", $E26="Total"),I25+I24,SUMIFS(INDIRECT($G$16&I$21&$G$17&":"&I$21&$G$18),INDIRECT($G$16&$B$21&$G$17&":"&$B$21&$G$18),$B26,INDIRECT($G$16&$E$21&$G$17&":"&$E$21&$G$18),$E26,INDIRECT($G$16&$C$21&$G$17&":"&$C$21&$G$18),IF($C26="-","*",$C26),INDIRECT($G$16&$D$21&$G$17&":"&$D$21&$G$18),IF($D26="-","*",$D26))) -> 538 | J26: =IF(OR($E26="Fatal+Serious", $E26="Total"),J25+J24,SUMIFS(INDIRECT($G$16&J$21&$G$17&":"&J$21&$G$18),INDIRECT($G$16&$B$21&$G$17&":"&$B$21&$G$18),$B26,INDIRECT($G$16&$E$21&$G$17&":"&$E$21&$G$18),$E26,INDIRECT($G$16&$C$21&$G$17&":"&$C$21&$G$18),IF($C26="-","*",$C26),INDIRECT($G$16&$D$21&$G$17&":"&$D$21&$G$18),IF($D26="-","*",$D26))) -> 618 | K26: =IF(OR($E26="Fatal+Serious", $E26="Total"),K25+K24,SUMIFS(INDIRECT($G$16&K$21&$G$17&":"&K$21&$G$18),INDIRECT($G$16&$B$21&$G$17&":"&$B$21&$G$18),$B26,INDIRECT($G$16&$E$21&$G$17&":"&$E$21&$G$18),$E26,INDIRECT($G$16&$C$21&$G$17&":"&$C$21&$G$18),IF($C26="-","*",$C26),INDIRECT($G$16&$D$21&$G$17&":"&$D$21&$G$18),IF($D26="-","*",$D26))) -> 550 | L26: =IF(OR($E26="Fatal+Serious", $E26="Total"),L25+L24,SUMIFS(INDIRECT($G$16&L$21&$G$17&":"&L$21&$G$18),INDIRECT($G$16&$B$21&$G$17&":"&$B$21&$G$18),$B26,INDIRECT($G$16&$E$21&$G$17&":"&$E$21&$G$18),$E26,INDIRECT($G$16&$C$21&$G$17&":"&$C$21&$G$18),IF($C26="-","*",$C26),INDIRECT($G$16&$D$21&$G$17&":"&$D$21&$G$18),IF($D26="-","*",$D26))) -> 617 | M26: -0.09821689564 | N26: -0.001618122977 | O26: 0.1218181818
B27: Motorway | C27: - | D27: - | E27: Fatal+Serious | F27: 815.4 | G27: 572 | H27: 606 | I27: 620 | J27: 692 | K27: 619 | L27: 691 | M27: -0.1525631592 | N27: -0.001445086705 | O27: 0.1163166397
B28: Motorway | C28: - | D28: - | E28: Slight | F28: 6135.8 | G28: 4224 | H28: 4335 | I28: 4206 | J28: 4046 | K28: 3561 | L28: 3338 | M28: -0.4559796604 | N28: -0.1749876421 | O28: -0.06262285875
B29: Motorway | C29: - | D29: - | E29: Total | F29: 6951.2 | G29: 4796 | H29: 4941 | I29: 4826 | J29: 4738 | K29: 4180 | L29: 4029 | M29: -0.4203878467 | N29: -0.1496411988 | O29: -0.03612440191
B30: A-road | C30: - | D30: - | E30: Fatal | F30: 182.8 | G30: 141 | H30: 119 | I30: 120 | J30: 139 | K30: 134 | L30: 147 | M30: -0.1958424508 | N30: 0.05755395683 | O30: 0.09701492537
B31: A-road | C31: - | D31: - | E31: Serious | F31: 886.4 | G31: 721 | H31: 838 | I31: 782 | J31: 864 | K31: 789 | L31: 836 | M31: -0.05685920578 | N31: -0.03240740741 | O31: 0.05956907478
B32: A-road | C32: - | D32: - | E32: Fatal+Serious | F32: 1069.2 | G32: 862 | H32: 957 | I32: 902 | J32: 1003 | K32: 923 | L32: 983 | M32: -0.08062102507 | N32: -0.01994017946 | O32: 0.06500541712
B33: A-road | C33: - | D33: - | E33: Slight | F33: 5850.8 | G33: 4482 | H33: 4691 | I33: 4571 | J33: 4417 | K33: 3740 | L33: 3448 | M33: -0.4106788815 | N33: -0.2193796695 | O33: -0.07807486631
B34: A-road | C34: - | D34: - | E34: Total | F34: 6920 | G34: 5344 | H34: 5648 | I34: 5473 | J34: 5420 | K34: 4663 | L34: 4431 | M34: -0.3596820809 | N34: -0.1824723247 | O34: -0.04975337765
B35: A-road | C35: Dual Carriageway | D35: Built-up | E35: Fatal | F35: 5.4 | G35: 2 | H35: 4 | I35: 3 | J35: 4 | K35: 4 | L35: 6 | M35: - | N35: - | O35: -
B36: A-road | C36: Dual Carriageway | D36: Built-up | E36: Serious | F36: 50.8 | G36: 41 | H36: 58 | I36: 53 | J36: 52 | K36: 43 | L36: 58 | M36: 0.1417322835 | N36: 0.1153846154 | O36: 0.3488372093
B37: A-road | C37: Dual Carriageway | D37: Built-up | E37: Fatal+Serious | F37: 56.2 | G37: 43 | H37: 62 | I37: 56 | J37: 56 | K37: 47 | L37: 64 | M37: 0.1387900356 | N37: 0.1428571429 | O37: 0.3617021277
B38: A-road | C38: Dual Carriageway | D38: Built-up | E38: Slight | F38: 612.2 | G38: 493 | H38: 547 | I38: 498 | J38: 493 | K38: 419 | L38: 375 | M38: -0.38745508 | N38: -0.2393509128 | O38: -0.1050119332
B39: A-road | C39: Dual Carriageway | D39: Built-up | E39: Total | F39: 668.4 | G39: 536 | H39: 609 | I39: 554 | J39: 549 | K39: 466 | L39: 439 | M39: -0.3432076601 | N39: -0.2003642987 | O39: -0.05793991416
B40: A-road | C40: Dual Carriageway | D40: Non Built-up | E40: Fatal | F40: 114.4 | G40: 80 | H40: 64 | I40: 73 | J40: 87 | K40: 79 | L40: 85 | M40: -0.256993007 | N40: -0.02298850575 | O40: 0.07594936709
B41: A-road | C41: Dual Carriageway | D41: Non Built-up | E41: Serious | F41: 543.4 | G41: 422 | H41: 506 | I41: 465 | J41: 555 | K41: 479 | L41: 508 | M41: -0.06514538093 | N41: -0.08468468468 | O41: 0.06054279749
B42: A-road | C42: Dual Carriageway | D42: Non Built-up | E42: Fatal+Serious | F42: 657.8 | G42: 502 | H42: 570 | I42: 538 | J42: 642 | K42: 558 | L42: 593 | M42: -0.09851018547 | N42: -0.07632398754 | O42: 0.06272401434
B43: A-road | C43: Dual Carriageway | D43: Non Built-up | E43: Slight | F43: 3753.8 | G43: 2934 | H43: 3042 | I43: 2993 | J43: 2886 | K43: 2429 | L43: 2275 | M43: -0.3939474666 | N43: -0.2117117117 | O43: -0.06340057637
B44: A-road | C44: Dual Carriageway | D44: Non Built-up | E44: Total | F44: 4411.6 | G44: 3436 | H44: 3612 | I44: 3531 | J44: 3528 | K44: 2987 | L44: 2868 | M44: -0.3498957294 | N44: -0.1870748299 | O44: -0.03983930365
B45: A-road | C45: Dual Carriageway | D45: Total | E45: Fatal | F45: =F40+F35 -> 119.8 | G45: =G40+G35 -> 82 | H45: 68 | I45: 76 | J45: 91 | K45: 83 | L45: 91 | M45: -0.2404006678 | N45: =IF(J45>15,(L45-J45)/J45,"-") -> 0 | O45: 0.09638554217
B46: A-road | C46: Dual Carriageway | E46: Serious | F46: =F41+F36 -> 594.2 | G46: 463 | H46: 564 | I46: 518 | J46: 607 | K46: 522 | L46: 566 | M46: -0.04745876809 | N46: -0.06754530478 | O46: 0.08429118774
B47: A-road | C47: Dual Carriageway | E47: Fatal+Serious | F47: 714 | G47: 545 | H47: 632 | I47: 594 | J47: 698 | K47: 605 | L47: 657 | M47: -0.07983193277 | N47: -0.05873925501 | O47: 0.08595041322
B48: A-road | C48: Dual Carriageway | E48: Slight | F48: 4366 | G48: 3427 | H48: 3589 | I48: 3491 | J48: 3379 | K48: 2848 | L48: 2650 | M48: -0.3930371049 | N48: -0.215744303 | O48: -0.06952247191
B49: A-road | C49: Dual Carriageway | E49: Total | F49: =F44+F39 -> 5080 | G49: =G44+G39 -> 3972 | H49: 4221 | I49: 4085 | J49: 4077 | K49: 3453 | L49: =L44+L39 -> 3307 | M49: -0.349015748 | N49: -0.188864361 | O49: -0.04228207356
